Workbook

Sheet Sample Report (hidden)
A2: Date
A3: Hen
A4: Program
A5: Start at 999999
A6: Sequence component 1 | B6: Time 1 | C6: Seqeunce Component 2 | D6: Time 2 | E6: Seqeunce Component 3 | F6: Time 3 | G6: Correct 0 = No 1=Yes | J6: Seqeunce | K6: Time
A7: 12 | B7: 7 | C7: 12 | D7: 42 | E7: 13 | F7: 18 | G7: if 77 new line, if 31 or 41 = yes new line on 77, | J7: =string of Seqeunce compponent 1, 2 & 3 | K7: =time 3
A8: This continues until ther is a 1 on its own to indicate start of summary data
J9: 10-19 =1
A10: Summary Data | J10: 20-29 =2
A11: Correct | B11: Incorrect | C11: Rft | D11: total | E11: Av Correct | F11: Av Incorrect | G11: Percent correct | H11: Time | J11: in this example the seqeunce would be 111
A12: 40 | B12: 33 | C12: 40 | D12: 73 | E12: 23.95 | F12: 15 | G12: 54 | H12: 806

Sheet Summary
A2: Day | B2: Date | C2: Average Response Rate | D2: Target % | E2: RF for non correct sequence | F2: U Value | K2: Block 1 | L2: Block 2 | M2: Block 3 | N2: Block 4 | O2: Block 5 | P2: Block 6
A3: 1 | B3: ='!N127950.Gus'!B2:C2 -> <date> | C3: =('!N127950.Gus'!F190/60)/'!N127950.Gus'!Q3 -> 2.162862319 | D3: ='!N127950.Gus'!N20/'!N127950.Gus'!Q3 -> 0.005434782609 | E3: =SUM('!N127950.Gus'!L20:Q20)/'!N127950.Gus'!Q3 -> 1 | F3: ='!N127950.Gus'!Q16 -> 0.272725226 | J3: Average Response Rate | K3: =AVERAGE(C3:C7) -> 2.156070019 | L3: =AVERAGE(C8:C12) -> 2.134934159 | M3: =AVERAGE(C13:C17) -> 2.188423141 | N3: =AVERAGE(C18:C22) -> 2.428159032 | O3: =AVERAGE(C23:C27) -> 5.758295558 | P3: =AVERAGE(C28:C32) -> 2.928971201
A4: 2 | B4: ='!N128910.Gus'!B2:C2 -> <date> | C4: =('!N128910.Gus'!F191/60)/'!N128910.Gus'!Q3 -> 2.157927928 | D4: ='!N128910.Gus'!N20/'!N128910.Gus'!Q3 -> 0 | E4: =SUM('!N128910.Gus'!L20:Q20)/'!N128910.Gus'!Q3 -> 0.9405405405 | F4: ='!N128910.Gus'!Q16 -> 0.2702900634 | J4: Target % | K4: =AVERAGE(D3:D7) -> 0.003346843527 | L4: =AVERAGE(D8:D12) -> 0.008425543596 | M4: =AVERAGE(D13:D17) -> 0.003297491039 | N4: =AVERAGE(D18:D22) -> 0.0155266347 | O4: =AVERAGE(D23:D27) -> 0.01477546837 | P4: =AVERAGE(D28:D32) -> 0.01426041064
A5: 3 | B5: ='!N129A20.Gus'!B2:C2 -> <date> | C5: =('!N129A20.Gus'!F195/60)/'!N129A20.Gus'!Q3 -> 2.096578947 | D5: ='!N129A20.Gus'!N20/'!N129A20.Gus'!Q3 -> 0 | E5: =SUM('!N129A20.Gus'!L20:Q20)/'!N129A20.Gus'!Q3 -> 0.9736842105 | F5: ='!N129A20.Gus'!Q16 -> 0.2685253536 | J5: CCRF | K5: =AVERAGE(E3:E7) -> 1.202018119 | L5: =AVERAGE(E8:E12) -> 1.097664641 | M5: =AVERAGE(E13:E17) -> 1.224593622 | N5: =AVERAGE(E18:E22) -> 1.483977785 | O5: =AVERAGE(E23:E27) -> 1.174021648 | P5: =AVERAGE(E28:E32) -> 2.314891236
A6: 4 | B6: ='!N130920.Gus'!B2:C2 -> <date> | C6: =('!N130920.Gus'!F195/60)/'!N130920.Gus'!Q3 -> 2.107142857 | D6: ='!N130920.Gus'!N20/'!N130920.Gus'!Q3 -> 0 | E6: =SUM('!N130920.Gus'!L20:Q20)/'!N130920.Gus'!Q3 -> 1.502645503 | F6: ='!N130920.Gus'!Q16 -> 0.2944609227 | J6: U Value | K6: =AVERAGE(F3:F7) -> 0.2870631237 | L6: =AVERAGE(F8:F12) -> 0.3039328573 | M6: =AVERAGE(F13:F17) -> 0.2681268614 | N6: =AVERAGE(F18:F22) -> 0.2757923854 | O6: =AVERAGE(F23:F27) -> 0.4178836779 | P6: =AVERAGE(F28:F32) -> 0.3043785247
A7: 5 | B7: ='!N131920.Gus'!B2:C2 -> <date> | C7: =('!N131920.Gus'!F183/60)/'!N131920.Gus'!Q3 -> 2.255838041 | D7: ='!N131920.Gus'!N20/'!N131920.Gus'!Q3 -> 0.01129943503 | E7: =SUM('!N131920.Gus'!L20:Q20)/'!N131920.Gus'!Q3 -> 1.593220339 | F7: ='!N131920.Gus'!Q16 -> 0.3293140527
A8: 6 | B8: ='!N201920.Gus'!B2:C2 -> <date> | C8: =('!N201920.Gus'!F189/60)/'!N201920.Gus'!Q3 -> 2.184790528 | D8: ='!N201920.Gus'!N20/'!N201920.Gus'!Q3 -> 0.005464480874 | E8: =SUM('!N201920.Gus'!L20:Q20)/'!N201920.Gus'!Q3 -> 1 | F8: ='!N201920.Gus'!Q16 -> 0.3157920122
A9: 7 | B9: ='!N202B00.Gus'!B2:C2 -> <date> | C9: =('!N202B00.Gus'!F200/60)/'!N202B00.Gus'!Q3 -> 2.053436426 | D9: ='!N202B00.Gus'!N20/'!N202B00.Gus'!Q3 -> 0.01546391753 | E9: =SUM('!N202B00.Gus'!L20:Q20)/'!N202B00.Gus'!Q3 -> 0.9278350515 | F9: ='!N202B00.Gus'!Q16 -> 0.3069075546 | G9: =K3 -> 2.156070019 | H9: =L3 -> 2.134934159 | I9: 2.188423141 | J9: 2.428159032 | K9: 5.758295558 | L9: 2.928971201 | M9: =K4 -> 0.003346843527 | N9: =L4 -> 0.008425543596 | O9: 0.003297491039 | P9: 0.0155266347 | Q9: 0.01477546837 | R9: 0.01426041064 | S9: =K6 -> 0.2870631237 | T9: =L6 -> 0.3039328573 | U9: 0.2681268614 | V9: 0.2757923854 | W9: 0.4178836779 | X9: 0.3043785247
A10: 8 | B10: ='!N204A10.Gus'!B2:C2 -> <date> | C10: =('!N204A10.Gus'!F204/60)/'!N204A10.Gus'!Q3 -> 1.995393635 | D10: ='!N204A10.Gus'!N20/'!N204A10.Gus'!Q3 -> 0.01005025126 | E10: =SUM('!N204A10.Gus'!L20:Q20)/'!N204A10.Gus'!Q3 -> 0.9547738693 | F10: ='!N204A10.Gus'!Q16 -> 0.3077940477
A11: 9 | B11: ='!N205920.Gus'!B2:C2 -> <date> | C11: =('!N205920.Gus'!F180/60)/'!N205920.Gus'!Q3 -> 2.276285714 | D11: ='!N205920.Gus'!N20/'!N205920.Gus'!Q3 -> 0.005714285714 | E11: =SUM('!N205920.Gus'!L20:Q20)/'!N205920.Gus'!Q3 -> 1.605714286 | F11: ='!N205920.Gus'!Q16 -> 0.3128837417
A12: 10 | B12: ='!N206A30.Gus'!B2:C2 -> <date> | C12: =('!N206A30.Gus'!F190/60)/'!N206A30.Gus'!Q3 -> 2.164764493 | D12: ='!N206A30.Gus'!N20/'!N206A30.Gus'!Q3 -> 0.005434782609 | E12: =SUM('!N206A30.Gus'!L20:Q20)/'!N206A30.Gus'!Q3 -> 1 | F12: ='!N206A30.Gus'!Q16 -> 0.2762869303
A13: 11 | B13: ='!N207A10.Gus'!B2:C2 -> <date> | C13: =('!N207A10.Gus'!F195/60)/'!N207A10.Gus'!Q3 -> 2.111816578 | D13: ='!N207A10.Gus'!N20/'!N207A10.Gus'!Q3 -> 0 | E13: =SUM('!N207A10.Gus'!L20:Q20)/'!N207A10.Gus'!Q3 -> 0.9788359788 | F13: ='!N207A10.Gus'!Q16 -> 0.2644621867
A14: 12 | B14: ='!N208930.Gus'!B2:C2 -> <date> | C14: =('!N208930.Gus'!F186/60)/'!N208930.Gus'!Q3 -> 2.210925926 | D14: ='!N208930.Gus'!N20/'!N208930.Gus'!Q3 -> 0.01111111111 | E14: =SUM('!N208930.Gus'!L20:Q20)/'!N208930.Gus'!Q3 -> 1.577777778 | F14: ='!N208930.Gus'!Q16 -> 0.2708203934
A15: 13 | B15: ='!N209940.Gus'!B2:C2 -> <date> | C15: =('!N209940.Gus'!F192/60)/'!N209940.Gus'!Q3 -> 2.140232975 | D15: ='!N209940.Gus'!N20/'!N209940.Gus'!Q3 -> 0.005376344086 | E15: =SUM('!N209940.Gus'!L20:Q20)/'!N209940.Gus'!Q3 -> 1.532258065 | F15: ='!N209940.Gus'!Q16 -> 0.2645125409
A16: 14 | B16: ='!N210940.Gus'!B2:C2 -> <date> | C16: =('!N210940.Gus'!F187/60)/'!N210940.Gus'!Q3 -> 2.202854512 | D16: ='!N210940.Gus'!N20/'!N210940.Gus'!Q3 -> 0 | E16: =SUM('!N210940.Gus'!L20:Q20)/'!N210940.Gus'!Q3 -> 1.005524862 | F16: ='!N210940.Gus'!Q16 -> 0.2669675766
A17: 15 | B17: ='!N211A50.Gus'!B2:C2 -> <date> | C17: =('!N211A50.Gus'!F181/60)/'!N211A50.Gus'!Q3 -> 2.276285714 | D17: ='!N211A50.Gus'!N20/'!N211A50.Gus'!Q3 -> 0 | E17: =SUM('!N211A50.Gus'!L20:Q20)/'!N211A50.Gus'!Q3 -> 1.028571429 | F17: ='!N211A50.Gus'!Q16 -> 0.2738716093
A18: 16 | B18: ='!N212A00.Gus'!B2:C2 -> <date> | C18: =('!N212A00.Gus'!F177/60)/'!N212A00.Gus'!Q3 -> 2.283918129 | D18: ='!N212A00.Gus'!N20/'!N212A00.Gus'!Q3 -> 0.04093567251 | E18: =SUM('!N212A00.Gus'!L20:Q20)/'!N212A00.Gus'!Q3 -> 1.087719298 | F18: ='!N212A00.Gus'!Q16 -> 0.3062783251
A19: 17 | B19: ='!N213A30.Gus'!B2:C2 -> <date> | C19: =('!N213A30.Gus'!F167/60)/'!N213A30.Gus'!Q3 -> 2.383643892 | D19: ='!N213A30.Gus'!N20/'!N213A30.Gus'!Q3 -> 0 | E19: =SUM('!N213A30.Gus'!L20:Q20)/'!N213A30.Gus'!Q3 -> 1.714285714 | F19: ='!N213A30.Gus'!Q16 -> 0.290332753
A20: 18 | B20: ='!N214910.Gus'!B2:C2 -> <date> | C20: =('!N214910.Gus'!F162/60)/'!N214910.Gus'!Q3 -> 2.563568376 | D20: ='!N214910.Gus'!N20/'!N214910.Gus'!Q3 -> 0.01282051282 | E20: =SUM('!N214910.Gus'!L20:Q20)/'!N214910.Gus'!Q3 -> 1.769230769 | F20: ='!N214910.Gus'!Q16 -> 0.2506115844
A21: 19 | B21: ='!N215920.Gus'!B2:C2 -> <date> | C21: =('!N215920.Gus'!F159/60)/'!N215920.Gus'!Q3 -> 2.606100218 | D21: ='!N215920.Gus'!N20/'!N215920.Gus'!Q3 -> 0.006535947712 | E21: =SUM('!N215920.Gus'!L20:Q20)/'!N215920.Gus'!Q3 -> 1.790849673 | F21: ='!N215920.Gus'!Q16 -> 0.2540851648
A22: 20 | B22: ='!N216A10.Gus'!B2:C2 -> <date> | C22: =('!N216A10.Gus'!F179/60)/'!N216A10.Gus'!Q3 -> 2.303564547 | D22: ='!N216A10.Gus'!N20/'!N216A10.Gus'!Q3 -> 0.01734104046 | E22: =SUM('!N216A10.Gus'!L20:Q20)/'!N216A10.Gus'!Q3 -> 1.057803468 | F22: ='!N216A10.Gus'!Q16 -> 0.2776540999
A23: 21 | B23: ='!N217930.Gus'!B2:C2 -> <date> | C23: =('!N217930.Gus'!F154/60)/'!N217930.Gus'!Q3 -> 2.69009009 | D23: ='!N217930.Gus'!N20/'!N217930.Gus'!Q3 -> 0.02027027027 | E23: =SUM('!N217930.Gus'!L20:Q20)/'!N217930.Gus'!Q3 -> 1.175675676 | F23: ='!N217930.Gus'!Q16 -> 0.2448810816
A24: 22 | B24: ='!N218A10.Gus'!B2:C2 -> <date> | C24: =('!N218A10.Gus'!F172/60)/'!N218A10.Gus'!Q3 -> 2.383133733 | D24: ='!N218A10.Gus'!N20/'!N218A10.Gus'!Q3 -> 0.005988023952 | E24: =SUM('!N218A10.Gus'!L20:Q20)/'!N218A10.Gus'!Q3 -> 1.664670659 | F24: ='!N218A10.Gus'!Q16 -> 0.2696222704
A25: 23 | B25: ='!N219A40.Gus'!B2:C2 -> <date> | C25: =('!N219A40.Gus'!F173/60)/'!N219A40.Gus'!Q3 -> 2.371230159 | D25: ='!N219A40.Gus'!N20/'!N219A40.Gus'!Q3 -> 0.02976190476 | E25: =SUM('!N219A40.Gus'!L20:Q20)/'!N219A40.Gus'!Q3 -> 1.625 | F25: ='!N219A40.Gus'!Q16 -> 0.2891281957
A26: 24 | B26: ='!N220940.Gus'!B2:C2 -> <date> | C26: =('!N220940.Gus'!F9/60)/'!N220940.Gus'!Q3 -> 18.96666667 | D26: ='!N220940.Gus'!N20/'!N220940.Gus'!Q3 -> 0 | E26: =SUM('!N220940.Gus'!L20:Q20)/'!N220940.Gus'!Q3 -> 0.3333333333 | F26: ='!N220940.Gus'!Q16 -> 1
A27: 25 | B27: ='!N221A10.Gus'!B2:C2 -> <date> | C27: =('!N221A10.Gus'!F174/60)/'!N221A10.Gus'!Q3 -> 2.380357143 | D27: ='!N221A10.Gus'!N20/'!N221A10.Gus'!Q3 -> 0.01785714286 | E27: =SUM('!N221A10.Gus'!L20:Q20)/'!N221A10.Gus'!Q3 -> 1.071428571 | F27: ='!N221A10.Gus'!Q16 -> 0.2857868415
A28: 26 | B28: ='!N222A10.Gus'!B2:C2 -> <date> | C28: =('!N222A10.Gus'!F158/60)/'!N222A10.Gus'!Q3 -> 2.510307018 | D28: ='!N222A10.Gus'!N20/'!N222A10.Gus'!Q3 -> 0.03289473684 | E28: =SUM('!N222A10.Gus'!L20:Q20)/'!N222A10.Gus'!Q3 -> 1.763157895 | F28: ='!N222A10.Gus'!Q16 -> 0.3007430395
A29: 27 | B29: ='!N223950.Gus'!B2:C2 -> <date> | C29: =('!N223950.Gus'!F97/60)/'!N223950.Gus'!Q3 -> 3.775641026 | D29: ='!N223950.Gus'!N20/'!N223950.Gus'!Q3 -> 0.01098901099 | E29: =SUM('!N223950.Gus'!L20:Q20)/'!N223950.Gus'!Q3 -> 2.78021978 | F29: ='!N223950.Gus'!Q16 -> 0.312809443
A30: 28 | B30: ='!N224900.Gus'!B2:C2 -> <date> | C30: =('!N224900.Gus'!F92/60)/'!N224900.Gus'!Q3 -> 2.805813953 | D30: ='!N224900.Gus'!N20/'!N224900.Gus'!Q3 -> 0 | E30: =SUM('!N224900.Gus'!L20:Q20)/'!N224900.Gus'!Q3 -> 2.906976744 | F30: ='!N224900.Gus'!Q16 -> 0.3073912276
A31: 29 | B31: ='!N225A00.Gus'!B2:C2 -> <date> | C31: =('!N225A00.Gus'!F158/60)/'!N225A00.Gus'!Q3 -> 2.624122807 | D31: ='!N225A00.Gus'!N20/'!N225A00.Gus'!Q3 -> 0.01315789474 | E31: =SUM('!N225A00.Gus'!L20:Q20)/'!N225A00.Gus'!Q3 -> 1.809210526 | F31: ='!N225A00.Gus'!Q16 -> 0.2965703885
A32: 30

Sheet Start
F1: Use Folder 51 | H1: Auto Clean Up | J1: Correct sequence
F2: FALSE | H2: TRUE | J2: 211
A4: Working with Folder | G4: Process All/Or Pick A number: ALL or an integer
A5: F:\Possum Chapter\Raw Data\Gus\Repeat Phase 1 Any\ | G5: ALL
A6: Filenames:
A7: !N219A40.Gus | G7: Paint Cells
A8: !N220940.Gus | G8: FALSE
A9: !N221A10.Gus
A10: !N222A10.Gus
A11: !N223950.Gus
A12: !N224900.Gus
A13: !N225A00.Gus
A14: !N127950.Gus
A15: !N128910.Gus
A16: !N129A20.Gus
A17: !N130920.Gus
A18: !N131920.Gus
A19: !N201920.Gus
A20: !N202B00.Gus
A21: !N204A10.Gus
A22: !N205920.Gus
A23: !N206A30.Gus
A24: !N207A10.Gus
A25: !N208930.Gus
A26: !N209940.Gus
A27: !N210940.Gus
A28: !N211A50.Gus
A29: !N212A00.Gus
A30: !N213A30.Gus
A31: !N214910.Gus
A32: !N215920.Gus
A33: !N216A10.Gus
A34: !N217930.Gus
A35: !N218A10.Gus

Sheet !N127950.Gus
A1: Report for:!N127950.Gus
A2: Date: | B2: <date>
A3: Hen: | B3: <hen> | F3: Correct Sequence | G3: =Start!J2 -> 211 | P3: Total Sequences in Data | Q3: =4994-COUNTBLANK(L7:L5000) -> 184 | V3: Total Sequences in Block Data | W3: =COUNTA(L7:L37) -> 31 | AA3: Total Sequences in Block Data | AB3: =COUNTA(L38:L67) -> 30 | AF3: Total Sequences in Block Data | AG3: =COUNTA(L68:L98) -> 31 | AK3: Total Sequences in Block Data | AL3: =COUNTA(L99:L129) -> 31 | AP3: Total Sequences in Block Data | AQ3: =COUNTA(L130:L159) -> 30 | AU3: Total Sequences in Block Data | AV3: =COUNTA(L160:L190) -> 31
P4: Total Sequences in Summary | Q4: =SUM(O7:O14) -> 184 | V4: Total Sequences in Block Summary | W4: =SUM(U7:U14) -> 31 | AA4: Total Sequences in Block Summary | AB4: =SUM(Z7:Z14) -> 30 | AF4: Total Sequences in Block Summary | AG4: =SUM(AE7:AE14) -> 31 | AK4: Total Sequences in Block Summary | AL4: =SUM(AJ7:AJ14) -> 31 | AP4: Total Sequences in Block Summary | AQ4: =SUM(AO7:AO14) -> 30 | AU4: Total Sequences in Block Summary | AV4: =SUM(AT7:AT14) -> 31
T5: Block 1 | Y5: Block 2 | AD5: Block 3 | AI5: Block 4 | AN5: Block 5 | AS5: Block 6
A6: Sequence Component 1 | B6: Time 1 | C6: Sequence Component 2 | D6: Time 2 | E6: Sequence Component 3 | F6: Time 3 | G6: Sequence Component 4 | H6: Time 4 | I6: Sequence Component 5 | J6: Time 5 | K6: Correct? 0=No 1=Yes | L6: Sequence | N6: Frequency | P6: Relative Frequency | Q6: Variability | T6: Frequency | V6: Relative Frequency | W6: Variability | Y6: Frequency | AA6: Relative Frequency | AB6: Variability | AD6: Frequency | AF6: Relative Frequency | AG6: Variability | AI6: Frequency | AK6: Relative Frequency | AL6: Variability | AN6: Frequency | AP6: Relative Frequency | AQ6: Variability | AS6: Frequency | AU6: Relative Frequency | AV6: Variability
A7: 12 | B7: 14 | C7: 13 | D7: 17 | E7: 13 | F7: 31 | K7: 0 | L7: 111 | N7: 111 | O7: =COUNTIF($L$7:$L$500,N7) -> 19 | P7: =O7/$Q$4 -> 0.1032608696 | Q7: =IF(P7=0,0,(P7*((LOG(P7))/LOG(2)))) -> -0.3382448609 | T7: =N7 -> 111 | U7: =COUNTIF(L7:L37,T7) -> 2 | V7: =U7/(W4-U11) -> 0.06451612903 | W7: =IF(V7=0,0,(V7*((LOG(V7))/LOG(2)))) -> -0.2551094394 | Y7: =N7 -> 111 | Z7: =COUNTIF(L38:L67,Y7) -> 2 | AA7: =Z7/(AB4-Z11) -> 0.06666666667 | AB7: =IF(AA7=0,0,(AA7*((LOG(AA7))/LOG(2)))) -> -0.260459373 | AD7: =N7 -> 111 | AE7: =COUNTIF(L68:L98,AD7) -> 4 | AF7: =AE7/(AG4-AE11) -> 0.1290322581 | AG7: =IF(AF7=0,0,(AF7*((LOG(AF7))/LOG(2)))) -> -0.3811866207 | AI7: =N7 -> 111 | AJ7: =COUNTIF(L99:L129,AI7) -> 6 | AK7: =AJ7/(AL4-AJ11) -> 0.1935483871 | AL7: =IF(AK7=0,0,(AK7*((LOG(AK7))/LOG(2)))) -> -0.4585613825 | AN7: =N7 -> 111 | AO7: =COUNTIF(L130:L159,AN7) -> 2 | AP7: =AO7/(AQ4-AO11) -> 0.06666666667 | AQ7: =IF(AP7=0,0,(AP7*((LOG(AP7))/LOG(2)))) -> -0.260459373 | AS7: =N7 -> 111 | AT7: =COUNTIF(L160:L190,AS7) -> 3 | AU7: =AT7/(AV4-AT11) -> 0.1 | AV7: =IF(AU7=0,0,(AU7*((LOG(AU7))/LOG(2)))) -> -0.3321928095
A8: 21 | B8: 140 | C8: 22 | D8: 149 | E8: 24 | F8: 156 | K8: 0 | L8: 222 | N8: 112 | O8: =COUNTIF($L$7:$L$500,N8) -> 57 | P8: =O8/$Q$4 -> 0.3097826087 | Q8: =IF(P8=0,0,(P8*((LOG(P8))/LOG(2)))) -> -0.5237407646 | T8: =N8 -> 112 | U8: =COUNTIF(L7:L37,T8) -> 6 | V8: =U8/(W4-U11) -> 0.1935483871 | W8: =IF(V8=0,0,(V8*((LOG(V8))/LOG(2)))) -> -0.4585613825 | Y8: =N8 -> 112 | Z8: =COUNTIF(L38:L67,Y8) -> 7 | AA8: =Z8/(AB4-Z11) -> 0.2333333333 | AB8: =IF(AA8=0,0,(AA8*((LOG(AA8))/LOG(2)))) -> -0.4898916572 | AD8: =N8 -> 112 | AE8: =COUNTIF(L68:L98,AD8) -> 10 | AF8: =AE8/(AG4-AE11) -> 0.3225806452 | AG8: =IF(AF8=0,0,(AF8*((LOG(AF8))/LOG(2)))) -> -0.526538134 | AI8: =N8 -> 112 | AJ8: =COUNTIF(L99:L129,AI8) -> 12 | AK8: =AJ8/(AL4-AJ11) -> 0.3870967742 | AL8: =IF(AK8=0,0,(AK8*((LOG(AK8))/LOG(2)))) -> -0.5300259908 | AN8: =N8 -> 112 | AO8: =COUNTIF(L130:L159,AN8) -> 10 | AP8: =AO8/(AQ4-AO11) -> 0.3333333333 | AQ8: =IF(AP8=0,0,(AP8*((LOG(AP8))/LOG(2)))) -> -0.5283208336 | AS8: =N8 -> 112 | AT8: =COUNTIF(L160:L190,AS8) -> 12 | AU8: =AT8/(AV4-AT11) -> 0.4 | AV8: =IF(AU8=0,0,(AU8*((LOG(AU8))/LOG(2)))) -> -0.528771238
A9: 12 | B9: 256 | C9: 24 | D9: 260 | E9: 24 | F9: 266 | K9: 0 | L9: 122 | N9: 121 | O9: =COUNTIF($L$7:$L$500,N9) -> 11 | P9: =O9/$Q$4 -> 0.0597826087 | Q9: =IF(P9=0,0,(P9*((LOG(P9))/LOG(2)))) -> -0.2429643137 | T9: =N9 -> 121 | U9: =COUNTIF(L7:L37,T9) -> 0 | V9: =U9/(W4-U11) -> 0 | W9: =IF(V9=0,0,(V9*((LOG(V9))/LOG(2)))) -> 0 | Y9: =N9 -> 121 | Z9: =COUNTIF(L38:L67,Y9) -> 2 | AA9: =Z9/(AB4-Z11) -> 0.06666666667 | AB9: =IF(AA9=0,0,(AA9*((LOG(AA9))/LOG(2)))) -> -0.260459373 | AD9: =N9 -> 121 | AE9: =COUNTIF(L68:L98,AD9) -> 1 | AF9: =AE9/(AG4-AE11) -> 0.03225806452 | AG9: =IF(AF9=0,0,(AF9*((LOG(AF9))/LOG(2)))) -> -0.1598127842 | AI9: =N9 -> 121 | AJ9: =COUNTIF(L99:L129,AI9) -> 2 | AK9: =AJ9/(AL4-AJ11) -> 0.06451612903 | AL9: =IF(AK9=0,0,(AK9*((LOG(AK9))/LOG(2)))) -> -0.2551094394 | AN9: =N9 -> 121 | AO9: =COUNTIF(L130:L159,AN9) -> 3 | AP9: =AO9/(AQ4-AO11) -> 0.1 | AQ9: =IF(AP9=0,0,(AP9*((LOG(AP9))/LOG(2)))) -> -0.3321928095 | AS9: =N9 -> 121 | AT9: =COUNTIF(L160:L190,AS9) -> 3 | AU9: =AT9/(AV4-AT11) -> 0.1 | AV9: =IF(AU9=0,0,(AU9*((LOG(AU9))/LOG(2)))) -> -0.3321928095
A10: 12 | B10: 380 | C10: 13 | D10: 381 | E10: 24 | F10: 403 | K10: 0 | L10: 112 | N10: 122 | O10: =COUNTIF($L$7:$L$500,N10) -> 76 | P10: =O10/$Q$4 -> 0.4130434783 | Q10: =IF(P10=0,0,(P10*((LOG(P10))/LOG(2)))) -> -0.5268924872 | T10: =N10 -> 122 | U10: =COUNTIF(L7:L37,T10) -> 19 | V10: =U10/(W4-U11) -> 0.6129032258 | W10: =IF(V10=0,0,(V10*((LOG(V10))/LOG(2)))) -> -0.4328744239 | Y10: =N10 -> 122 | Z10: =COUNTIF(L38:L67,Y10) -> 16 | AA10: =Z10/(AB4-Z11) -> 0.5333333333 | AB10: =IF(AA10=0,0,(AA10*((LOG(AA10))/LOG(2)))) -> -0.4836749843 | AD10: =N10 -> 122 | AE10: =COUNTIF(L68:L98,AD10) -> 11 | AF10: =AE10/(AG4-AE11) -> 0.3548387097 | AG10: =IF(AF10=0,0,(AF10*((LOG(AF10))/LOG(2)))) -> -0.5304003745 | AI10: =N10 -> 122 | AJ10: =COUNTIF(L99:L129,AI10) -> 10 | AK10: =AJ10/(AL4-AJ11) -> 0.3225806452 | AL10: =IF(AK10=0,0,(AK10*((LOG(AK10))/LOG(2)))) -> -0.526538134 | AN10: =N10 -> 122 | AO10: =COUNTIF(L130:L159,AN10) -> 12 | AP10: =AO10/(AQ4-AO11) -> 0.4 | AQ10: =IF(AP10=0,0,(AP10*((LOG(AP10))/LOG(2)))) -> -0.528771238 | AS10: =N10 -> 122 | AT10: =COUNTIF(L160:L190,AS10) -> 8 | AU10: =AT10/(AV4-AT11) -> 0.2666666667 | AV10: =IF(AU10=0,0,(AU10*((LOG(AU10))/LOG(2)))) -> -0.5085041588
A11: 12 | B11: 527 | C11: 24 | D11: 547 | E11: 24 | F11: 568 | K11: 0 | L11: 122 | N11: 211 | O11: =COUNTIF($L$7:$L$500,N11) -> 1 | P11: =O11/$Q$4 -> 0.005434782609 | Q11: =IF(P11=0,0,(P11*((LOG(P11))/LOG(2)))) -> -0.04088892367 | T11: =N11 -> 211 | U11: =COUNTIF(L7:L37,T11) -> 0 | Y11: =N11 -> 211 | Z11: =COUNTIF(L38:L67,Y11) -> 0 | AD11: =N11 -> 211 | AE11: =COUNTIF(L68:L98,AD11) -> 0 | AI11: =N11 -> 211 | AJ11: =COUNTIF(L99:L129,AI11) -> 0 | AN11: =N11 -> 211 | AO11: =COUNTIF(L130:L159,AN11) -> 0 | AS11: =N11 -> 211 | AT11: =COUNTIF(L160:L190,AS11) -> 1
A12: 21 | B12: 740 | C12: 22 | D12: 748 | E12: 24 | F12: 755 | K12: 0 | L12: 222 | N12: 212 | O12: =COUNTIF($L$7:$L$500,N12) -> 1 | P12: =O12/$Q$4 -> 0.005434782609 | Q12: =IF(P12=0,0,(P12*((LOG(P12))/LOG(2)))) -> -0.04088892367 | T12: =N12 -> 212 | U12: =COUNTIF(L7:L37,T12) -> 0 | V12: =U12/(W4-U11) -> 0 | W12: =IF(V12=0,0,(V12*((LOG(V12))/LOG(2)))) -> 0 | Y12: =N12 -> 212 | Z12: =COUNTIF(L38:L67,Y12) -> 0 | AA12: =Z12/(AB4-Z11) -> 0 | AB12: =IF(AA12=0,0,(AA12*((LOG(AA12))/LOG(2)))) -> 0 | AD12: =N12 -> 212 | AE12: =COUNTIF(L68:L98,AD12) -> 0 | AF12: =AE12/(AG4-AE11) -> 0 | AG12: =IF(AF12=0,0,(AF12*((LOG(AF12))/LOG(2)))) -> 0 | AI12: =N12 -> 212 | AJ12: =COUNTIF(L99:L129,AI12) -> 0 | AK12: =AJ12/(AL4-AJ11) -> 0 | AL12: =IF(AK12=0,0,(AK12*((LOG(AK12))/LOG(2)))) -> 0 | AN12: =N12 -> 212 | AO12: =COUNTIF(L130:L159,AN12) -> 0 | AP12: =AO12/(AQ4-AO11) -> 0 | AQ12: =IF(AP12=0,0,(AP12*((LOG(AP12))/LOG(2)))) -> 0 | AS12: =N12 -> 212 | AT12: =COUNTIF(L160:L190,AS12) -> 1 | AU12: =AT12/(AV4-AT11) -> 0.03333333333 | AV12: =IF(AU12=0,0,(AU12*((LOG(AU12))/LOG(2)))) -> -0.1635630199
A13: 12 | B13: 925 | C13: 24 | D13: 940 | E13: 24 | F13: 959 | K13: 0 | L13: 122 | N13: 221 | O13: =COUNTIF($L$7:$L$500,N13) -> 0 | P13: =O13/$Q$4 -> 0 | Q13: =IF(P13=0,0,(P13*((LOG(P13))/LOG(2)))) -> 0 | T13: =N13 -> 221 | U13: =COUNTIF(L7:L37,T13) -> 0 | V13: =U13/(W4-U11) -> 0 | W13: =IF(V13=0,0,(V13*((LOG(V13))/LOG(2)))) -> 0 | Y13: =N13 -> 221 | Z13: =COUNTIF(L38:L67,Y13) -> 0 | AA13: =Z13/(AB4-Z11) -> 0 | AB13: =IF(AA13=0,0,(AA13*((LOG(AA13))/LOG(2)))) -> 0 | AD13: =N13 -> 221 | AE13: =COUNTIF(L68:L98,AD13) -> 0 | AF13: =AE13/(AG4-AE11) -> 0 | AG13: =IF(AF13=0,0,(AF13*((LOG(AF13))/LOG(2)))) -> 0 | AI13: =N13 -> 221 | AJ13: =COUNTIF(L99:L129,AI13) -> 0 | AK13: =AJ13/(AL4-AJ11) -> 0 | AL13: =IF(AK13=0,0,(AK13*((LOG(AK13))/LOG(2)))) -> 0 | AN13: =N13 -> 221 | AO13: =COUNTIF(L130:L159,AN13) -> 0 | AP13: =AO13/(AQ4-AO11) -> 0 | AQ13: =IF(AP13=0,0,(AP13*((LOG(AP13))/LOG(2)))) -> 0 | AS13: =N13 -> 221 | AT13: =COUNTIF(L160:L190,AS13) -> 0 | AU13: =AT13/(AV4-AT11) -> 0 | AV13: =IF(AU13=0,0,(AU13*((LOG(AU13))/LOG(2)))) -> 0
A14: 12 | B14: 1076 | C14: 24 | D14: 1083 | E14: 24 | F14: 1091 | K14: 0 | L14: 122 | N14: 222 | O14: =COUNTIF($L$7:$L$500,N14) -> 19 | P14: =O14/$Q$4 -> 0.1032608696 | Q14: =IF(P14=0,0,(P14*((LOG(P14))/LOG(2)))) -> -0.3382448609 | T14: =N14 -> 222 | U14: =COUNTIF(L7:L37,T14) -> 4 | V14: =U14/(W4-U11) -> 0.1290322581 | W14: =IF(V14=0,0,(V14*((LOG(V14))/LOG(2)))) -> -0.3811866207 | Y14: =N14 -> 222 | Z14: =COUNTIF(L38:L67,Y14) -> 3 | AA14: =Z14/(AB4-Z11) -> 0.1 | AB14: =IF(AA14=0,0,(AA14*((LOG(AA14))/LOG(2)))) -> -0.3321928095 | AD14: =N14 -> 222 | AE14: =COUNTIF(L68:L98,AD14) -> 5 | AF14: =AE14/(AG4-AE11) -> 0.1612903226 | AG14: =IF(AF14=0,0,(AF14*((LOG(AF14))/LOG(2)))) -> -0.4245593896 | AI14: =N14 -> 222 | AJ14: =COUNTIF(L99:L129,AI14) -> 1 | AK14: =AJ14/(AL4-AJ11) -> 0.03225806452 | AL14: =IF(AK14=0,0,(AK14*((LOG(AK14))/LOG(2)))) -> -0.1598127842 | AN14: =N14 -> 222 | AO14: =COUNTIF(L130:L159,AN14) -> 3 | AP14: =AO14/(AQ4-AO11) -> 0.1 | AQ14: =IF(AP14=0,0,(AP14*((LOG(AP14))/LOG(2)))) -> -0.3321928095 | AS14: =N14 -> 222 | AT14: =COUNTIF(L160:L190,AS14) -> 3 | AU14: =AT14/(AV4-AT11) -> 0.1 | AV14: =IF(AU14=0,0,(AU14*((LOG(AU14))/LOG(2)))) -> -0.3321928095
A15: 21 | B15: 1194 | C15: 22 | D15: 1203 | E15: 24 | F15: 1210 | K15: 0 | L15: 222 | P15: =SUM(P7:P14) -> 1 | Q15: =-SUM(Q7:Q14) -> 2.051865135 | V15: =SUM(V7:V14) -> 1 | W15: =-SUM(W7:W14) -> 1.527731867 | AA15: =SUM(AA7:AA14) -> 1 | AB15: =-SUM(AB7:AB14) -> 1.826678197 | AF15: =SUM(AF7:AF14) -> 1 | AG15: =-SUM(AG7:AG14) -> 2.022497303 | AK15: =SUM(AK7:AK14) -> 1 | AL15: =-SUM(AL7:AL14) -> 1.930047731 | AP15: =SUM(AP7:AP14) -> 1 | AQ15: =-SUM(AQ7:AQ14) -> 1.981937064 | AU15: =SUM(AU7:AU14) -> 1 | AV15: =-SUM(AV7:AV14) -> 2.197416845
A16: 12 | B16: 1308 | C16: 24 | D16: 1319 | E16: 24 | F16: 1330 | K16: 0 | L16: 122 | P16: U= | Q16: =Q15/(LOG(Q4)/LOG(2)) -> 0.272725226 | V16: U1= | W16: =W15/(LOG(W4)/LOG(2)) -> 0.3083712818 | AA16: U2= | AB16: =AB15/(LOG(AB4)/LOG(2)) -> 0.3722679692 | AF16: U3= | AG16: =AG15/(LOG(AG4)/LOG(2)) -> 0.4082392332 | AK16: U4= | AL16: =AL15/(LOG(AL4)/LOG(2)) -> 0.3895783716 | AP16: U5= | AQ16: =AQ15/(LOG(AQ4)/LOG(2)) -> 0.4039089572 | AU16: U6= | AV16: =AV15/(LOG(AV4)/LOG(2)) -> 0.443546583
A17: 12 | B17: 1427 | C17: 24 | D17: 1436 | E17: 24 | F17: 1443 | K17: 0 | L17: 122
A18: 12 | B18: 1537 | C18: 24 | D18: 1546 | E18: 24 | F18: 1555 | K18: 0 | L18: 122
A19: 12 | B19: 1653 | C19: 24 | D19: 1663 | E19: 24 | F19: 1673 | K19: 0 | L19: 122 | N19: Total Target Seq
A20: 12 | B20: 1770 | C20: 24 | D20: 1775 | E20: 24 | F20: 1783 | K20: 0 | L20: 122 | N20: =COUNTIF(L7:L190,G3) -> 1 | P20: 31 | Q20: 30 | R20: 31 | S20: 31 | T20: 30 | U20: 31
A21: 12 | B21: 1883 | C21: 24 | D21: 1887 | E21: 24 | F21: 1896 | K21: 0 | L21: 122 | P21: % of reinforcement given in 6 equal intervals based on number of trials
A22: 12 | B22: 1991 | C22: 24 | D22: 1997 | E22: 24 | F22: 2005 | K22: 0 | L22: 122 | P22: %_1 | Q22: %_2 | R22: %_3 | S22: %_4 | T22: %_5 | U22: %_6
A23: 12 | B23: 2095 | C23: 13 | D23: 2099 | E23: 13 | F23: 2122 | K23: 0 | L23: 111 | O23: target sequence | P23: =$G$3 -> 211 | Q23: =$G$3 -> 211 | R23: =$G$3 -> 211 | S23: =$G$3 -> 211 | T23: =$G$3 -> 211 | U23: =$G$3 -> 211
A24: 12 | B24: 2214 | C24: 24 | D24: 2224 | E24: 24 | F24: 2234 | K24: 0 | L24: 122 | O24: total reinforcement | P24: =U11 -> 0 | Q24: =Z11 -> 0 | R24: =AE11 -> 0 | S24: =AJ11 -> 0 | T24: =AO11 -> 0 | U24: =AT11 -> 1
A25: 12 | B25: 2329 | C25: 24 | D25: 2336 | E25: 24 | F25: 2339 | K25: 0 | L25: 122 | O25: % target
A26: 12 | B26: 2437 | C26: 24 | D26: 2452 | E26: 24 | F26: 2459 | K26: 0 | L26: 122 | O26: CCRF
A27: 12 | B27: 2555 | C27: 24 | D27: 2566 | E27: 24 | F27: 2573 | K27: 0 | L27: 122 | O27: % CCRf
A28: 12 | B28: 2666 | C28: 13 | D28: 2675 | E28: 24 | F28: 2680 | K28: 0 | L28: 112 | O28: average response rate | P28: =F37/P20 -> 120.8064516 | Q28: =(F67-F37)/Q20 -> 124.8 | R28: =(F98-F67)/R20 -> 160.483871 | S28: =(F129-F98)/S20 -> 126.516129 | T28: =(F159-F129)/T20 -> 117.5333333 | U28: =(F190-F159)/U20 -> 127.9354839
A29: 21 | B29: 2782 | C29: 22 | D29: 2789 | E29: 24 | F29: 2799 | K29: 0 | L29: 222
A30: 12 | B30: 2901 | C30: 13 | D30: 2904 | E30: 24 | F30: 2909 | K30: 0 | L30: 112
A31: 12 | B31: 3005 | C31: 13 | D31: 3008 | E31: 24 | F31: 3025 | K31: 0 | L31: 112
A32: 12 | B32: 3123 | C32: 24 | D32: 3129 | E32: 24 | F32: 3135 | K32: 0 | L32: 122
A33: 12 | B33: 3231 | C33: 24 | D33: 3235 | E33: 24 | F33: 3252 | K33: 0 | L33: 122
A34: 12 | B34: 3352 | C34: 13 | D34: 3358 | E34: 24 | F34: 3365 | K34: 0 | L34: 112
A35: 12 | B35: 3467 | C35: 13 | D35: 3473 | E35: 24 | F35: 3481 | K35: 0 | L35: 112
A36: 12 | B36: 3596 | C36: 24 | D36: 3612 | E36: 24 | F36: 3623 | K36: 0 | L36: 122
A37: 12 | B37: 3725 | C37: 24 | D37: 3738 | E37: 24 | F37: 3745 | K37: 0 | L37: 122
A38: 12 | B38: 3850 | C38: 24 | D38: 3866 | E38: 24 | F38: 3874 | K38: 0 | L38: 122
A39: 12 | B39: 3972 | C39: 24 | D39: 3982 | E39: 24 | F39: 3989 | K39: 0 | L39: 122
A40: 12 | B40: 4091 | C40: 24 | D40: 4100 | E40: 24 | F40: 4107 | K40: 0 | L40: 122
A41: 12 | B41: 4203 | C41: 24 | D41: 4207 | E41: 24 | F41: 4217 | K41: 0 | L41: 122
A42: 21 | B42: 4321 | C42: 22 | D42: 4327 | E42: 24 | F42: 4333 | K42: 0 | L42: 222
A43: 12 | B43: 4430 | C43: 13 | D43: 4435 | E43: 24 | F43: 4447 | K43: 0 | L43: 112
A44: 12 | B44: 4552 | C44: 24 | D44: 4567 | E44: 24 | F44: 4578 | K44: 0 | L44: 122
A45: 12 | B45: 4673 | C45: 24 | D45: 4685 | E45: 24 | F45: 4697 | K45: 0 | L45: 122
A46: 12 | B46: 4794 | C46: 13 | D46: 4797 | E46: 24 | F46: 4815 | K46: 0 | L46: 112
A47: 12 | B47: 4913 | C47: 13 | D47: 4917 | E47: 24 | F47: 4927 | K47: 0 | L47: 112
A48: 12 | B48: 5023 | C48: 13 | D48: 5028 | E48: 24 | F48: 5041 | K48: 0 | L48: 112
A49: 12 | B49: 5191 | C49: 13 | D49: 5195 | E49: 24 | F49: 5206 | K49: 0 | L49: 112
A50: 12 | B50: 5303 | C50: 13 | D50: 5305 | E50: 13 | F50: 5307 | K50: 0 | L50: 111
A51: 12 | B51: 5481 | C51: 24 | D51: 5500 | E51: 24 | F51: 5514 | K51: 0 | L51: 122
A52: 21 | B52: 5622 | C52: 22 | D52: 5638 | E52: 24 | F52: 5645 | K52: 0 | L52: 222
A53: 12 | B53: 5741 | C53: 24 | D53: 5750 | E53: 24 | F53: 5755 | K53: 0 | L53: 122
A54: 12 | B54: 5846 | C54: 13 | D54: 5855 | E54: 13 | F54: 5857 | K54: 0 | L54: 111
A55: 21 | B55: 5956 | C55: 22 | D55: 5965 | E55: 24 | F55: 5973 | K55: 0 | L55: 222
A56: 12 | B56: 6089 | C56: 24 | D56: 6102 | E56: 24 | F56: 6110 | K56: 0 | L56: 122
A57: 12 | B57: 6231 | C57: 13 | D57: 6236 | E57: 24 | F57: 6246 | K57: 0 | L57: 112
A58: 12 | B58: 6349 | C58: 24 | D58: 6363 | E58: 24 | F58: 6371 | K58: 0 | L58: 122
A59: 12 | B59: 6468 | C59: 24 | D59: 6477 | E59: 24 | F59: 6491 | K59: 0 | L59: 122
A60: 12 | B60: 6598 | C60: 24 | D60: 6608 | E60: 13 | F60: 6613 | K60: 0 | L60: 121
A61: 12 | B61: 6710 | C61: 24 | D61: 6720 | E61: 24 | F61: 6729 | K61: 0 | L61: 122
A62: 12 | B62: 6825 | C62: 24 | D62: 6837 | E62: 24 | F62: 6846 | K62: 0 | L62: 122
A63: 12 | B63: 6940 | C63: 24 | D63: 6951 | E63: 24 | F63: 6957 | K63: 0 | L63: 122
A64: 12 | B64: 7049 | C64: 13 | D64: 7053 | E64: 24 | F64: 7065 | K64: 0 | L64: 112
A65: 12 | B65: 7159 | C65: 24 | D65: 7175 | E65: 13 | F65: 7183 | K65: 0 | L65: 121
A66: 12 | B66: 7316 | C66: 24 | D66: 7360 | E66: 24 | F66: 7374 | K66: 0 | L66: 122
A67: 12 | B67: 7469 | C67: 24 | D67: 7480 | E67: 24 | F67: 7489 | K67: 0 | L67: 122
A68: 12 | B68: 7636 | C68: 24 | D68: 7647 | E68: 24 | F68: 7657 | K68: 0 | L68: 122
A69: 12 | B69: 7762 | C69: 24 | D69: 7787 | E69: 24 | F69: 7795 | K69: 0 | L69: 122
A70: 12 | B70: 7890 | C70: 24 | D70: 7896 | E70: 24 | F70: 7905 | K70: 0 | L70: 122
A71: 12 | B71: 7997 | C71: 24 | D71: 8004 | E71: 24 | F71: 8013 | K71: 0 | L71: 122
A72: 12 | B72: 8105 | C72: 13 | D72: 8113 | E72: 24 | F72: 8117 | K72: 0 | L72: 112
A73: 12 | B73: 8220 | C73: 24 | D73: 8234 | E73: 24 | F73: 8244 | K73: 0 | L73: 122
A74: 12 | B74: 8342 | C74: 13 | D74: 8354 | E74: 24 | F74: 8362 | K74: 0 | L74: 112
A75: 12 | B75: 8455 | C75: 24 | D75: 8467 | E75: 24 | F75: 8475 | K75: 0 | L75: 122
A76: 21 | B76: 8575 | C76: 22 | D76: 8585 | E76: 24 | F76: 8592 | K76: 0 | L76: 222
A77: 12 | B77: 8689 | C77: 13 | D77: 8696 | E77: 24 | F77: 8706 | K77: 0 | L77: 112
A78: 12 | B78: 8814 | C78: 24 | D78: 8829 | E78: 13 | F78: 8833 | K78: 0 | L78: 121
A79: 12 | B79: 8936 | C79: 13 | D79: 8942 | E79: 24 | F79: 8960 | K79: 0 | L79: 112
A80: 12 | B80: 9053 | C80: 13 | D80: 9062 | E80: 24 | F80: 9079 | K80: 0 | L80: 112
A81: 21 | B81: 9191 | C81: 22 | D81: 9198 | E81: 24 | F81: 9205 | K81: 0 | L81: 222
A82: 12 | B82: 10150 | C82: 13 | D82: 10156 | E82: 13 | F82: 10163 | K82: 0 | L82: 111
A83: 12 | B83: 10261 | C83: 24 | D83: 10276 | E83: 24 | F83: 10287 | K83: 0 | L83: 122
A84: 12 | B84: 10498 | C84: 24 | D84: 10513 | E84: 24 | F84: 10519 | K84: 0 | L84: 122
A85: 12 | B85: 10827 | C85: 13 | D85: 10831 | E85: 13 | F85: 10841 | K85: 0 | L85: 111
A86: 21 | B86: 10949 | C86: 22 | D86: 10960 | E86: 24 | F86: 10973 | K86: 0 | L86: 222
A87: 21 | B87: 11082 | C87: 22 | D87: 11088 | E87: 24 | F87: 11097 | K87: 0 | L87: 222
A88: 21 | B88: 11196 | C88: 22 | D88: 11201 | E88: 24 | F88: 11209 | K88: 0 | L88: 222
A89: 12 | B89: 11300 | C89: 13 | D89: 11306 | E89: 24 | F89: 11319 | K89: 0 | L89: 112
A90: 12 | B90: 11503 | C90: 13 | D90: 11508 | E90: 24 | F90: 11527 | K90: 0 | L90: 112
A91: 12 | B91: 11639 | C91: 13 | D91: 11643 | E91: 24 | F91: 11652 | K91: 0 | L91: 112
A92: 12 | B92: 11744 | C92: 13 | D92: 11748 | E92: 24 | F92: 11764 | K92: 0 | L92: 112
A93: 12 | B93: 11886 | C93: 24 | D93: 11903 | E93: 24 | F93: 11910 | K93: 0 | L93: 122
A94: 12 | B94: 12018 | C94: 24 | D94: 12021 | E94: 24 | F94: 12028 | K94: 0 | L94: 122
A95: 12 | B95: 12120 | C95: 13 | D95: 12128 | E95: 13 | F95: 12131 | K95: 0 | L95: 111
A96: 12 | B96: 12228 | C96: 13 | D96: 12231 | E96: 13 | F96: 12235 | K96: 0 | L96: 111
A97: 12 | B97: 12325 | C97: 13 | D97: 12329 | E97: 24 | F97: 12344 | K97: 0 | L97: 112
A98: 12 | B98: 12439 | C98: 24 | D98: 12456 | E98: 24 | F98: 12464 | K98: 0 | L98: 122
A99: 12 | B99: 12567 | C99: 24 | D99: 12569 | E99: 24 | F99: 12576 | K99: 0 | L99: 122
A100: 21 | B100: 12677 | C100: 22 | D100: 12681 | E100: 24 | F100: 12688 | K100: 0 | L100: 222
A101: 12 | B101: 12780 | C101: 13 | D101: 12790 | E101: 24 | F101: 12801 | K101: 0 | L101: 112
A102: 12 | B102: 12897 | C102: 13 | D102: 12900 | E102: 24 | F102: 12913 | K102: 0 | L102: 112
A103: 12 | B103: 13013 | C103: 13 | D103: 13020 | E103: 24 | F103: 13027 | K103: 0 | L103: 112
A104: 12 | B104: 13125 | C104: 13 | D104: 13129 | E104: 24 | F104: 13144 | K104: 0 | L104: 112
A105: 12 | B105: 13241 | C105: 13 | D105: 13244 | E105: 24 | F105: 13255 | K105: 0 | L105: 112
A106: 12 | B106: 13356 | C106: 13 | D106: 13358 | E106: 13 | F106: 13361 | K106: 0 | L106: 111
A107: 12 | B107: 13470 | C107: 24 | D107: 13475 | E107: 24 | F107: 13481 | K107: 0 | L107: 122
A108: 12 | B108: 13592 | C108: 13 | D108: 13598 | E108: 13 | F108: 13605 | K108: 0 | L108: 111
A109: 12 | B109: 13704 | C109: 24 | D109: 13711 | E109: 24 | F109: 13719 | K109: 0 | L109: 122
A110: 12 | B110: 13817 | C110: 24 | D110: 13821 | E110: 24 | F110: 13828 | K110: 0 | L110: 122
A111: 12 | B111: 13930 | C111: 13 | D111: 13934 | E111: 13 | F111: 13938 | K111: 0 | L111: 111
A112: 12 | B112: 14032 | C112: 13 | D112: 14040 | E112: 13 | F112: 14047 | K112: 0 | L112: 111
A113: 12 | B113: 14187 | C113: 24 | D113: 14200 | E113: 24 | F113: 14206 | K113: 0 | L113: 122
A114: 12 | B114: 14316 | C114: 13 | D114: 14321 | E114: 24 | F114: 14343 | K114: 0 | L114: 112
A115: 12 | B115: 14438 | C115: 24 | D115: 14452 | E115: 13 | F115: 14457 | K115: 0 | L115: 121
A116: 12 | B116: 14550 | C116: 13 | D116: 14561 | E116: 24 | F116: 14578 | K116: 0 | L116: 112
A117: 12 | B117: 14682 | C117: 13 | D117: 14686 | E117: 13 | F117: 14692 | K117: 0 | L117: 111
A118: 12 | B118: 14794 | C118: 13 | D118: 14801 | E118: 24 | F118: 14819 | K118: 0 | L118: 112
A119: 12 | B119: 14913 | C119: 24 | D119: 14919 | E119: 24 | F119: 14925 | K119: 0 | L119: 122
A120: 12 | B120: 15035 | C120: 13 | D120: 15043 | E120: 24 | F120: 15055 | K120: 0 | L120: 112
A121: 12 | B121: 15208 | C121: 13 | D121: 15214 | E121: 24 | F121: 15228 | K121: 0 | L121: 112
A122: 12 | B122: 15328 | C122: 24 | D122: 15335 | E122: 24 | F122: 15341 | K122: 0 | L122: 122
A123: 12 | B123: 15439 | C123: 13 | D123: 15443 | E123: 24 | F123: 15456 | K123: 0 | L123: 112
A124: 12 | B124: 15606 | C124: 24 | D124: 15623 | E124: 24 | F124: 15633 | K124: 0 | L124: 122
A125: 12 | B125: 15805 | C125: 13 | D125: 15812 | E125: 24 | F125: 15826 | K125: 0 | L125: 112
A126: 12 | B126: 15952 | C126: 24 | D126: 15965 | E126: 13 | F126: 15972 | K126: 0 | L126: 121
A127: 12 | B127: 16116 | C127: 24 | D127: 16135 | E127: 24 | F127: 16153 | K127: 0 | L127: 122
A128: 12 | B128: 16255 | C128: 24 | D128: 16269 | E128: 24 | F128: 16276 | K128: 0 | L128: 122
A129: 12 | B129: 16371 | C129: 13 | D129: 16380 | E129: 13 | F129: 16386 | K129: 0 | L129: 111
A130: 21 | B130: 16490 | C130: 22 | D130: 16495 | E130: 24 | F130: 16502 | K130: 0 | L130: 222
A131: 12 | B131: 16603 | C131: 13 | D131: 16608 | E131: 24 | F131: 16614 | K131: 0 | L131: 112
A132: 12 | B132: 16713 | C132: 24 | D132: 16717 | E132: 24 | F132: 16723 | K132: 0 | L132: 122
A133: 12 | B133: 16817 | C133: 24 | D133: 16834 | E133: 24 | F133: 16844 | K133: 0 | L133: 122
A134: 12 | B134: 16944 | C134: 24 | D134: 16960 | E134: 24 | F134: 16973 | K134: 0 | L134: 122
A135: 12 | B135: 17081 | C135: 24 | D135: 17093 | E135: 24 | F135: 17100 | K135: 0 | L135: 122
A136: 12 | B136: 17193 | C136: 24 | D136: 17206 | E136: 24 | F136: 17215 | K136: 0 | L136: 122
A137: 12 | B137: 17307 | C137: 13 | D137: 17314 | E137: 24 | F137: 17325 | K137: 0 | L137: 112
A138: 12 | B138: 17422 | C138: 24 | D138: 17426 | E138: 13 | F138: 17429 | K138: 0 | L138: 121
A139: 12 | B139: 17531 | C139: 24 | D139: 17543 | E139: 13 | F139: 17545 | K139: 0 | L139: 121
A140: 12 | B140: 17638 | C140: 13 | D140: 17647 | E140: 24 | F140: 17667 | K140: 0 | L140: 112
A141: 12 | B141: 17768 | C141: 13 | D141: 17783 | E141: 24 | F141: 17786 | K141: 0 | L141: 112
A142: 12 | B142: 17884 | C142: 24 | D142: 17896 | E142: 24 | F142: 17905 | K142: 0 | L142: 122
A143: 12 | B143: 18001 | C143: 13 | D143: 18005 | E143: 24 | F143: 18018 | K143: 0 | L143: 112
A144: 21 | B144: 18128 | C144: 22 | D144: 18134 | E144: 24 | F144: 18142 | K144: 0 | L144: 222
A145: 12 | B145: 18241 | C145: 13 | D145: 18244 | E145: 24 | F145: 18250 | K145: 0 | L145: 112
A146: 12 | B146: 18351 | C146: 24 | D146: 18362 | E146: 13 | F146: 18367 | K146: 0 | L146: 121
A147: 12 | B147: 18461 | C147: 24 | D147: 18468 | E147: 24 | F147: 18474 | K147: 0 | L147: 122
A148: 12 | B148: 18566 | C148: 24 | D148: 18577 | E148: 24 | F148: 18583 | K148: 0 | L148: 122
A149: 21 | B149: 18690 | C149: 22 | D149: 18696 | E149: 24 | F149: 18705 | K149: 0 | L149: 222
A150: 12 | B150: 18839 | C150: 13 | D150: 18841 | E150: 13 | F150: 18846 | K150: 0 | L150: 111
A151: 12 | B151: 18943 | C151: 24 | D151: 18947 | E151: 24 | F151: 18954 | K151: 0 | L151: 122
A152: 12 | B152: 19055 | C152: 13 | D152: 19058 | E152: 24 | F152: 19072 | K152: 0 | L152: 112
A153: 12 | B153: 19166 | C153: 24 | D153: 19173 | E153: 24 | F153: 19179 | K153: 0 | L153: 122
A154: 12 | B154: 19271 | C154: 24 | D154: 19280 | E154: 24 | F154: 19287 | K154: 0 | L154: 122
A155: 12 | B155: 19402 | C155: 13 | D155: 19406 | E155: 24 | F155: 19417 | K155: 0 | L155: 112
A156: 12 | B156: 19542 | C156: 13 | D156: 19546 | E156: 24 | F156: 19567 | K156: 0 | L156: 112
A157: 12 | B157: 19662 | C157: 13 | D157: 19669 | E157: 13 | F157: 19676 | K157: 0 | L157: 111
A158: 12 | B158: 19780 | C158: 13 | D158: 19792 | E158: 24 | F158: 19794 | K158: 0 | L158: 112
A159: 12 | B159: 19891 | C159: 24 | D159: 19904 | E159: 24 | F159: 19912 | K159: 0 | L159: 122
A160: 12 | B160: 20005 | C160: 13 | D160: 20008 | E160: 24 | F160: 20012 | K160: 0 | L160: 112
A161: 12 | B161: 20110 | C161: 24 | D161: 20124 | E161: 24 | F161: 20131 | K161: 0 | L161: 122
A162: 21 | B162: 20326 | C162: 22 | D162: 20338 | E162: 24 | F162: 20347 | K162: 0 | L162: 222
A163: 12 | B163: 20523 | C163: 13 | D163: 20537 | E163: 24 | F163: 20550 | K163: 0 | L163: 112
A164: 21 | B164: 20659 | C164: 11 | D164: 20661 | E164: 11 | F164: 20682 | K164: 0 | L164: 211
A165: 12 | B165: 20815 | C165: 13 | D165: 20828 | E165: 24 | F165: 20835 | K165: 0 | L165: 112
A166: 12 | B166: 20953 | C166: 13 | D166: 20958 | E166: 24 | F166: 20973 | K166: 0 | L166: 112
A167: 12 | B167: 21099 | C167: 24 | D167: 21112 | E167: 13 | F167: 21114 | K167: 0 | L167: 121
A168: 12 | B168: 21211 | C168: 24 | D168: 21215 | E168: 24 | F168: 21222 | K168: 0 | L168: 122
A169: 12 | B169: 21317 | C169: 24 | D169: 21329 | E169: 24 | F169: 21337 | K169: 0 | L169: 122
A170: 12 | B170: 21430 | C170: 13 | D170: 21439 | E170: 13 | F170: 21443 | K170: 0 | L170: 111
A171: 12 | B171: 21563 | C171: 13 | D171: 21568 | E171: 24 | F171: 21581 | K171: 0 | L171: 112
A172: 12 | B172: 21683 | C172: 13 | D172: 21688 | E172: 24 | F172: 21701 | K172: 0 | L172: 112
A173: 12 | B173: 21792 | C173: 13 | D173: 21801 | E173: 13 | F173: 21807 | K173: 0 | L173: 111
A174: 12 | B174: 21900 | C174: 24 | D174: 21908 | E174: 13 | F174: 21913 | K174: 0 | L174: 121
A175: 12 | B175: 22019 | C175: 24 | D175: 22021 | E175: 24 | F175: 22027 | K175: 0 | L175: 122
A176: 21 | B176: 22126 | C176: 11 | D176: 22131 | E176: 22 | F176: 22134 | K176: 0 | L176: 212
A177: 21 | B177: 22234 | C177: 22 | D177: 22240 | E177: 24 | F177: 22248 | K177: 0 | L177: 222
A178: 12 | B178: 22342 | C178: 13 | D178: 22345 | E178: 24 | F178: 22351 | K178: 0 | L178: 112
A179: 12 | B179: 22485 | C179: 13 | D179: 22493 | E179: 13 | F179: 22498 | K179: 0 | L179: 111
A180: 12 | B180: 22591 | C180: 13 | D180: 22600 | E180: 24 | F180: 22602 | K180: 0 | L180: 112
A181: 12 | B181: 22754 | C181: 13 | D181: 22760 | E181: 24 | F181: 22777 | K181: 0 | L181: 112
A182: 12 | B182: 22878 | C182: 24 | D182: 22901 | E182: 13 | F182: 22906 | K182: 0 | L182: 121
A183: 12 | B183: 23073 | C183: 24 | D183: 23076 | E183: 24 | F183: 23083 | K183: 0 | L183: 122
A184: 12 | B184: 23178 | C184: 24 | D184: 23186 | E184: 24 | F184: 23192 | K184: 0 | L184: 122
A185: 12 | B185: 23284 | C185: 13 | D185: 23290 | E185: 24 | F185: 23300 | K185: 0 | L185: 112
A186: 21 | B186: 23392 | C186: 22 | D186: 23399 | E186: 24 | F186: 23405 | K186: 0 | L186: 222
A187: 12 | B187: 23527 | C187: 13 | D187: 23531 | E187: 24 | F187: 23547 | K187: 0 | L187: 112
A188: 12 | B188: 23646 | C188: 24 | D188: 23658 | E188: 24 | F188: 23667 | K188: 0 | L188: 122
A189: 12 | B189: 23762 | C189: 24 | D189: 23768 | E189: 24 | F189: 23774 | K189: 0 | L189: 122
A190: 12 | B190: 23867 | C190: 13 | D190: 23873 | E190: 24 | F190: 23878 | K190: 0 | L190: 112

Sheet !N128910.Gus
A1: Report for:!N128910.Gus
A2: Date: | B2: <date>
A3: Hen: | B3: <hen> | F3: Correct Sequence | G3: =Start!J2 -> 211 | P3: Total Sequences in Data | Q3: =4994-COUNTBLANK(L7:L5000) -> 185 | V3: Total Sequences in Block Data | W3: =COUNTA(L7:L37) -> 31 | AA3: Total Sequences in Block Data | AB3: =COUNTA(L38:L68) -> 31 | AF3: Total Sequences in Block Data | AG3: =COUNTA(L69:L98) -> 30 | AK3: Total Sequences in Block Data | AL3: =COUNTA(L99:L129) -> 31 | AP3: Total Sequences in Block Data | AQ3: =COUNTA(L130:L160) -> 31 | AU3: Total Sequences in Block Data | AV3: =COUNTA(L161:L191) -> 31
P4: Total Sequences in Summary | Q4: =SUM(O7:O14) -> 185 | V4: Total Sequences in Block Summary | W4: =SUM(U7:U14) -> 31 | AA4: Total Sequences in Block Summary | AB4: =SUM(Z7:Z14) -> 31 | AF4: Total Sequences in Block Summary | AG4: =SUM(AE7:AE14) -> 30 | AK4: Total Sequences in Block Summary | AL4: =SUM(AJ7:AJ14) -> 31 | AP4: Total Sequences in Block Summary | AQ4: =SUM(AO7:AO14) -> 31 | AU4: Total Sequences in Block Summary | AV4: =SUM(AT7:AT14) -> 31
T5: Block 1 | Y5: Block 2 | AD5: Block 3 | AI5: Block 4 | AN5: Block 5 | AS5: Block 6
A6: Sequence Component 1 | B6: Time 1 | C6: Sequence Component 2 | D6: Time 2 | E6: Sequence Component 3 | F6: Time 3 | G6: Sequence Component 4 | H6: Time 4 | I6: Sequence Component 5 | J6: Time 5 | K6: Correct? 0=No 1=Yes | L6: Sequence | N6: Frequency | P6: Relative Frequency | Q6: Variability | T6: Frequency | V6: Relative Frequency | W6: Variability | Y6: Frequency | AA6: Relative Frequency | AB6: Variability | AD6: Frequency | AF6: Relative Frequency | AG6: Variability | AI6: Frequency | AK6: Relative Frequency | AL6: Variability | AN6: Frequency | AP6: Relative Frequency | AQ6: Variability | AS6: Frequency | AU6: Relative Frequency | AV6: Variability
A7: 12 | B7: 14 | C7: 13 | D7: 24 | E7: 24 | F7: 30 | K7: 0 | L7: 112 | N7: 111 | O7: =COUNTIF($L$7:$L$500,N7) -> 25 | P7: =O7/$Q$4 -> 0.1351351351 | Q7: =IF(P7=0,0,(P7*((LOG(P7))/LOG(2)))) -> -0.3902061177 | T7: =N7 -> 111 | U7: =COUNTIF(L7:L37,T7) -> 4 | V7: =U7/(W4-U11) -> 0.1290322581 | W7: =IF(V7=0,0,(V7*((LOG(V7))/LOG(2)))) -> -0.3811866207 | Y7: =N7 -> 111 | Z7: =COUNTIF(L38:L68,Y7) -> 3 | AA7: =Z7/(AB4-Z11) -> 0.09677419355 | AB7: =IF(AA7=0,0,(AA7*((LOG(AA7))/LOG(2)))) -> -0.3260548848 | AD7: =N7 -> 111 | AE7: =COUNTIF(L69:L98,AD7) -> 3 | AF7: =AE7/(AG4-AE11) -> 0.1 | AG7: =IF(AF7=0,0,(AF7*((LOG(AF7))/LOG(2)))) -> -0.3321928095 | AI7: =N7 -> 111 | AJ7: =COUNTIF(L99:L129,AI7) -> 4 | AK7: =AJ7/(AL4-AJ11) -> 0.1290322581 | AL7: =IF(AK7=0,0,(AK7*((LOG(AK7))/LOG(2)))) -> -0.3811866207 | AN7: =N7 -> 111 | AO7: =COUNTIF(L130:L160,AN7) -> 4 | AP7: =AO7/(AQ4-AO11) -> 0.1290322581 | AQ7: =IF(AP7=0,0,(AP7*((LOG(AP7))/LOG(2)))) -> -0.3811866207 | AS7: =N7 -> 111 | AT7: =COUNTIF(L161:L191,AS7) -> 7 | AU7: =AT7/(AV4-AT11) -> 0.2258064516 | AV7: =IF(AU7=0,0,(AU7*((LOG(AU7))/LOG(2)))) -> -0.4847706361
A8: 12 | B8: 128 | C8: 13 | D8: 155 | E8: 24 | F8: 168 | K8: 0 | L8: 112 | N8: 112 | O8: =COUNTIF($L$7:$L$500,N8) -> 82 | P8: =O8/$Q$4 -> 0.4432432432 | Q8: =IF(P8=0,0,(P8*((LOG(P8))/LOG(2)))) -> -0.520291975 | T8: =N8 -> 112 | U8: =COUNTIF(L7:L37,T8) -> 11 | V8: =U8/(W4-U11) -> 0.3548387097 | W8: =IF(V8=0,0,(V8*((LOG(V8))/LOG(2)))) -> -0.5304003745 | Y8: =N8 -> 112 | Z8: =COUNTIF(L38:L68,Y8) -> 9 | AA8: =Z8/(AB4-Z11) -> 0.2903225806 | AB8: =IF(AA8=0,0,(AA8*((LOG(AA8))/LOG(2)))) -> -0.518014251 | AD8: =N8 -> 112 | AE8: =COUNTIF(L69:L98,AD8) -> 15 | AF8: =AE8/(AG4-AE11) -> 0.5 | AG8: =IF(AF8=0,0,(AF8*((LOG(AF8))/LOG(2)))) -> -0.5 | AI8: =N8 -> 112 | AJ8: =COUNTIF(L99:L129,AI8) -> 20 | AK8: =AJ8/(AL4-AJ11) -> 0.6451612903 | AL8: =IF(AK8=0,0,(AK8*((LOG(AK8))/LOG(2)))) -> -0.4079149777 | AN8: =N8 -> 112 | AO8: =COUNTIF(L130:L160,AN8) -> 10 | AP8: =AO8/(AQ4-AO11) -> 0.3225806452 | AQ8: =IF(AP8=0,0,(AP8*((LOG(AP8))/LOG(2)))) -> -0.526538134 | AS8: =N8 -> 112 | AT8: =COUNTIF(L161:L191,AS8) -> 17 | AU8: =AT8/(AV4-AT11) -> 0.5483870968 | AV8: =IF(AU8=0,0,(AU8*((LOG(AU8))/LOG(2)))) -> -0.4753054508
A9: 12 | B9: 333 | C9: 13 | D9: 338 | E9: 13 | F9: 341 | K9: 0 | L9: 111 | N9: 121 | O9: =COUNTIF($L$7:$L$500,N9) -> 12 | P9: =O9/$Q$4 -> 0.06486486486 | Q9: =IF(P9=0,0,(P9*((LOG(P9))/LOG(2)))) -> -0.2559839325 | T9: =N9 -> 121 | U9: =COUNTIF(L7:L37,T9) -> 2 | V9: =U9/(W4-U11) -> 0.06451612903 | W9: =IF(V9=0,0,(V9*((LOG(V9))/LOG(2)))) -> -0.2551094394 | Y9: =N9 -> 121 | Z9: =COUNTIF(L38:L68,Y9) -> 3 | AA9: =Z9/(AB4-Z11) -> 0.09677419355 | AB9: =IF(AA9=0,0,(AA9*((LOG(AA9))/LOG(2)))) -> -0.3260548848 | AD9: =N9 -> 121 | AE9: =COUNTIF(L69:L98,AD9) -> 1 | AF9: =AE9/(AG4-AE11) -> 0.03333333333 | AG9: =IF(AF9=0,0,(AF9*((LOG(AF9))/LOG(2)))) -> -0.1635630199 | AI9: =N9 -> 121 | AJ9: =COUNTIF(L99:L129,AI9) -> 2 | AK9: =AJ9/(AL4-AJ11) -> 0.06451612903 | AL9: =IF(AK9=0,0,(AK9*((LOG(AK9))/LOG(2)))) -> -0.2551094394 | AN9: =N9 -> 121 | AO9: =COUNTIF(L130:L160,AN9) -> 3 | AP9: =AO9/(AQ4-AO11) -> 0.09677419355 | AQ9: =IF(AP9=0,0,(AP9*((LOG(AP9))/LOG(2)))) -> -0.3260548848 | AS9: =N9 -> 121 | AT9: =COUNTIF(L161:L191,AS9) -> 1 | AU9: =AT9/(AV4-AT11) -> 0.03225806452 | AV9: =IF(AU9=0,0,(AU9*((LOG(AU9))/LOG(2)))) -> -0.1598127842
A10: 12 | B10: 502 | C10: 13 | D10: 506 | E10: 13 | F10: 511 | K10: 0 | L10: 111 | N10: 122 | O10: =COUNTIF($L$7:$L$500,N10) -> 54 | P10: =O10/$Q$4 -> 0.2918918919 | Q10: =IF(P10=0,0,(P10*((LOG(P10))/LOG(2)))) -> -0.5185441824 | T10: =N10 -> 122 | U10: =COUNTIF(L7:L37,T10) -> 13 | V10: =U10/(W4-U11) -> 0.4193548387 | W10: =IF(V10=0,0,(V10*((LOG(V10))/LOG(2)))) -> -0.5257688935 | Y10: =N10 -> 122 | Z10: =COUNTIF(L38:L68,Y10) -> 12 | AA10: =Z10/(AB4-Z11) -> 0.3870967742 | AB10: =IF(AA10=0,0,(AA10*((LOG(AA10))/LOG(2)))) -> -0.5300259908 | AD10: =N10 -> 122 | AE10: =COUNTIF(L69:L98,AD10) -> 7 | AF10: =AE10/(AG4-AE11) -> 0.2333333333 | AG10: =IF(AF10=0,0,(AF10*((LOG(AF10))/LOG(2)))) -> -0.4898916572 | AI10: =N10 -> 122 | AJ10: =COUNTIF(L99:L129,AI10) -> 4 | AK10: =AJ10/(AL4-AJ11) -> 0.1290322581 | AL10: =IF(AK10=0,0,(AK10*((LOG(AK10))/LOG(2)))) -> -0.3811866207 | AN10: =N10 -> 122 | AO10: =COUNTIF(L130:L160,AN10) -> 13 | AP10: =AO10/(AQ4-AO11) -> 0.4193548387 | AQ10: =IF(AP10=0,0,(AP10*((LOG(AP10))/LOG(2)))) -> -0.5257688935 | AS10: =N10 -> 122 | AT10: =COUNTIF(L161:L191,AS10) -> 5 | AU10: =AT10/(AV4-AT11) -> 0.1612903226 | AV10: =IF(AU10=0,0,(AU10*((LOG(AU10))/LOG(2)))) -> -0.4245593896
A11: 12 | B11: 655 | C11: 13 | D11: 660 | E11: 13 | F11: 665 | K11: 0 | L11: 111 | N11: 211 | O11: =COUNTIF($L$7:$L$500,N11) -> 0 | P11: =O11/$Q$4 -> 0 | Q11: =IF(P11=0,0,(P11*((LOG(P11))/LOG(2)))) -> 0 | T11: =N11 -> 211 | U11: =COUNTIF(L7:L37,T11) -> 0 | Y11: =N11 -> 211 | Z11: =COUNTIF(L38:L68,Y11) -> 0 | AD11: =N11 -> 211 | AE11: =COUNTIF(L69:L98,AD11) -> 0 | AI11: =N11 -> 211 | AJ11: =COUNTIF(L99:L129,AI11) -> 0 | AN11: =N11 -> 211 | AO11: =COUNTIF(L130:L160,AN11) -> 0 | AS11: =N11 -> 211 | AT11: =COUNTIF(L161:L191,AS11) -> 0
A12: 12 | B12: 768 | C12: 24 | D12: 772 | E12: 24 | F12: 778 | K12: 0 | L12: 122 | N12: 212 | O12: =COUNTIF($L$7:$L$500,N12) -> 4 | P12: =O12/$Q$4 -> 0.02162162162 | Q12: =IF(P12=0,0,(P12*((LOG(P12))/LOG(2)))) -> -0.119597437 | T12: =N12 -> 212 | U12: =COUNTIF(L7:L37,T12) -> 0 | V12: =U12/(W4-U11) -> 0 | W12: =IF(V12=0,0,(V12*((LOG(V12))/LOG(2)))) -> 0 | Y12: =N12 -> 212 | Z12: =COUNTIF(L38:L68,Y12) -> 2 | AA12: =Z12/(AB4-Z11) -> 0.06451612903 | AB12: =IF(AA12=0,0,(AA12*((LOG(AA12))/LOG(2)))) -> -0.2551094394 | AD12: =N12 -> 212 | AE12: =COUNTIF(L69:L98,AD12) -> 2 | AF12: =AE12/(AG4-AE11) -> 0.06666666667 | AG12: =IF(AF12=0,0,(AF12*((LOG(AF12))/LOG(2)))) -> -0.260459373 | AI12: =N12 -> 212 | AJ12: =COUNTIF(L99:L129,AI12) -> 0 | AK12: =AJ12/(AL4-AJ11) -> 0 | AL12: =IF(AK12=0,0,(AK12*((LOG(AK12))/LOG(2)))) -> 0 | AN12: =N12 -> 212 | AO12: =COUNTIF(L130:L160,AN12) -> 0 | AP12: =AO12/(AQ4-AO11) -> 0 | AQ12: =IF(AP12=0,0,(AP12*((LOG(AP12))/LOG(2)))) -> 0 | AS12: =N12 -> 212 | AT12: =COUNTIF(L161:L191,AS12) -> 0 | AU12: =AT12/(AV4-AT11) -> 0 | AV12: =IF(AU12=0,0,(AU12*((LOG(AU12))/LOG(2)))) -> 0
A13: 12 | B13: 949 | C13: 24 | D13: 962 | E13: 13 | F13: 967 | K13: 0 | L13: 121 | N13: 221 | O13: =COUNTIF($L$7:$L$500,N13) -> 2 | P13: =O13/$Q$4 -> 0.01081081081 | Q13: =IF(P13=0,0,(P13*((LOG(P13))/LOG(2)))) -> -0.0706095293 | T13: =N13 -> 221 | U13: =COUNTIF(L7:L37,T13) -> 0 | V13: =U13/(W4-U11) -> 0 | W13: =IF(V13=0,0,(V13*((LOG(V13))/LOG(2)))) -> 0 | Y13: =N13 -> 221 | Z13: =COUNTIF(L38:L68,Y13) -> 0 | AA13: =Z13/(AB4-Z11) -> 0 | AB13: =IF(AA13=0,0,(AA13*((LOG(AA13))/LOG(2)))) -> 0 | AD13: =N13 -> 221 | AE13: =COUNTIF(L69:L98,AD13) -> 1 | AF13: =AE13/(AG4-AE11) -> 0.03333333333 | AG13: =IF(AF13=0,0,(AF13*((LOG(AF13))/LOG(2)))) -> -0.1635630199 | AI13: =N13 -> 221 | AJ13: =COUNTIF(L99:L129,AI13) -> 0 | AK13: =AJ13/(AL4-AJ11) -> 0 | AL13: =IF(AK13=0,0,(AK13*((LOG(AK13))/LOG(2)))) -> 0 | AN13: =N13 -> 221 | AO13: =COUNTIF(L130:L160,AN13) -> 1 | AP13: =AO13/(AQ4-AO11) -> 0.03225806452 | AQ13: =IF(AP13=0,0,(AP13*((LOG(AP13))/LOG(2)))) -> -0.1598127842 | AS13: =N13 -> 221 | AT13: =COUNTIF(L161:L191,AS13) -> 0 | AU13: =AT13/(AV4-AT11) -> 0 | AV13: =IF(AU13=0,0,(AU13*((LOG(AU13))/LOG(2)))) -> 0
A14: 12 | B14: 1094 | C14: 13 | D14: 1101 | E14: 24 | F14: 1119 | K14: 0 | L14: 112 | N14: 222 | O14: =COUNTIF($L$7:$L$500,N14) -> 6 | P14: =O14/$Q$4 -> 0.03243243243 | Q14: =IF(P14=0,0,(P14*((LOG(P14))/LOG(2)))) -> -0.1604243987 | T14: =N14 -> 222 | U14: =COUNTIF(L7:L37,T14) -> 1 | V14: =U14/(W4-U11) -> 0.03225806452 | W14: =IF(V14=0,0,(V14*((LOG(V14))/LOG(2)))) -> -0.1598127842 | Y14: =N14 -> 222 | Z14: =COUNTIF(L38:L68,Y14) -> 2 | AA14: =Z14/(AB4-Z11) -> 0.06451612903 | AB14: =IF(AA14=0,0,(AA14*((LOG(AA14))/LOG(2)))) -> -0.2551094394 | AD14: =N14 -> 222 | AE14: =COUNTIF(L69:L98,AD14) -> 1 | AF14: =AE14/(AG4-AE11) -> 0.03333333333 | AG14: =IF(AF14=0,0,(AF14*((LOG(AF14))/LOG(2)))) -> -0.1635630199 | AI14: =N14 -> 222 | AJ14: =COUNTIF(L99:L129,AI14) -> 1 | AK14: =AJ14/(AL4-AJ11) -> 0.03225806452 | AL14: =IF(AK14=0,0,(AK14*((LOG(AK14))/LOG(2)))) -> -0.1598127842 | AN14: =N14 -> 222 | AO14: =COUNTIF(L130:L160,AN14) -> 0 | AP14: =AO14/(AQ4-AO11) -> 0 | AQ14: =IF(AP14=0,0,(AP14*((LOG(AP14))/LOG(2)))) -> 0 | AS14: =N14 -> 222 | AT14: =COUNTIF(L161:L191,AS14) -> 1 | AU14: =AT14/(AV4-AT11) -> 0.03225806452 | AV14: =IF(AU14=0,0,(AU14*((LOG(AU14))/LOG(2)))) -> -0.1598127842
A15: 12 | B15: 1226 | C15: 24 | D15: 1233 | E15: 24 | F15: 1238 | K15: 0 | L15: 122 | P15: =SUM(P7:P14) -> 1 | Q15: =-SUM(Q7:Q14) -> 2.035657573 | V15: =SUM(V7:V14) -> 1 | W15: =-SUM(W7:W14) -> 1.852278112 | AA15: =SUM(AA7:AA14) -> 1 | AB15: =-SUM(AB7:AB14) -> 2.21036889 | AF15: =SUM(AF7:AF14) -> 1 | AG15: =-SUM(AG7:AG14) -> 2.073232899 | AK15: =SUM(AK7:AK14) -> 1 | AL15: =-SUM(AL7:AL14) -> 1.585210443 | AP15: =SUM(AP7:AP14) -> 1 | AQ15: =-SUM(AQ7:AQ14) -> 1.919361317 | AU15: =SUM(AU7:AU14) -> 1 | AV15: =-SUM(AV7:AV14) -> 1.704261045
A16: 12 | B16: 1339 | C16: 24 | D16: 1345 | E16: 24 | F16: 1353 | K16: 0 | L16: 122 | P16: U= | Q16: =Q15/(LOG(Q4)/LOG(2)) -> 0.2702900634 | V16: U1= | W16: =W15/(LOG(W4)/LOG(2)) -> 0.3738806451 | AA16: U2= | AB16: =AB15/(LOG(AB4)/LOG(2)) -> 0.4461609415 | AF16: U3= | AG16: =AG15/(LOG(AG4)/LOG(2)) -> 0.4225145963 | AK16: U4= | AL16: =AL15/(LOG(AL4)/LOG(2)) -> 0.3199732799 | AP16: U5= | AQ16: =AQ15/(LOG(AQ4)/LOG(2)) -> 0.3874213287 | AU16: U6= | AV16: =AV15/(LOG(AV4)/LOG(2)) -> 0.3440035352
A17: 12 | B17: 1507 | C17: 13 | D17: 1511 | E17: 24 | F17: 1525 | K17: 0 | L17: 112
A18: 12 | B18: 1626 | C18: 24 | D18: 1637 | E18: 24 | F18: 1651 | K18: 0 | L18: 122
A19: 12 | B19: 1750 | C19: 13 | D19: 1753 | E19: 24 | F19: 1764 | K19: 0 | L19: 112 | N19: Total Target Seq
A20: 12 | B20: 1862 | C20: 13 | D20: 1865 | E20: 24 | F20: 1874 | K20: 0 | L20: 112 | N20: =COUNTIF(L7:L191,G3) -> 0 | P20: 31 | Q20: 31 | R20: 30 | S20: 31 | T20: 31 | U20: 31
A21: 12 | B21: 1965 | C21: 24 | D21: 1977 | E21: 24 | F21: 1985 | K21: 0 | L21: 122 | P21: % of reinforcement given in 6 equal intervals based on number of trials
A22: 12 | B22: 2086 | C22: 24 | D22: 2088 | E22: 24 | F22: 2099 | K22: 0 | L22: 122 | P22: %_1 | Q22: %_2 | R22: %_3 | S22: %_4 | T22: %_5 | U22: %_6
A23: 12 | B23: 2189 | C23: 13 | D23: 2193 | E23: 24 | F23: 2203 | K23: 0 | L23: 112 | O23: target sequence | P23: =$G$3 -> 211 | Q23: =$G$3 -> 211 | R23: =$G$3 -> 211 | S23: =$G$3 -> 211 | T23: =$G$3 -> 211 | U23: =$G$3 -> 211
A24: 12 | B24: 2303 | C24: 24 | D24: 2309 | E24: 24 | F24: 2321 | K24: 0 | L24: 122 | O24: total reinforcement | P24: =U11 -> 0 | Q24: =Z11 -> 0 | R24: =AE11 -> 0 | S24: =AJ11 -> 0 | T24: =AO11 -> 0 | U24: =AT11 -> 0
A25: 12 | B25: 2423 | C25: 24 | D25: 2439 | E25: 24 | F25: 2453 | K25: 0 | L25: 122 | O25: % target
A26: 12 | B26: 2554 | C26: 24 | D26: 2559 | E26: 24 | F26: 2572 | K26: 0 | L26: 122 | O26: CCRF
A27: 21 | B27: 2679 | C27: 22 | D27: 2686 | E27: 24 | F27: 2692 | K27: 0 | L27: 222 | O27: % CCRf
A28: 12 | B28: 2794 | C28: 13 | D28: 2816 | E28: 13 | F28: 2822 | K28: 0 | L28: 111 | O28: average response rate | P28: =F37/P20 -> 127.8064516 | Q28: =(F68-F37)/Q20 -> 133.483871 | R28: =(F98-F68)/R20 -> 126.7333333 | S28: =(F129-F98)/S20 -> 128.9032258 | T28: =(F160-F129)/T20 -> 124.2258065 | U28: =(F191-F160)/U20 -> 135.6129032
A29: 12 | B29: 2922 | C29: 24 | D29: 2938 | E29: 24 | F29: 2950 | K29: 0 | L29: 122
A30: 12 | B30: 3070 | C30: 13 | D30: 3075 | E30: 24 | F30: 3086 | K30: 0 | L30: 112
A31: 12 | B31: 3184 | C31: 24 | D31: 3189 | E31: 24 | F31: 3198 | K31: 0 | L31: 122
A32: 12 | B32: 3301 | C32: 13 | D32: 3309 | E32: 24 | F32: 3328 | K32: 0 | L32: 112
A33: 12 | B33: 3422 | C33: 24 | D33: 3433 | E33: 13 | F33: 3439 | K33: 0 | L33: 121
A34: 12 | B34: 3568 | C34: 24 | D34: 3580 | E34: 24 | F34: 3592 | K34: 0 | L34: 122
A35: 12 | B35: 3702 | C35: 13 | D35: 3707 | E35: 24 | F35: 3719 | K35: 0 | L35: 112
A36: 12 | B36: 3820 | C36: 13 | D36: 3823 | E36: 24 | F36: 3839 | K36: 0 | L36: 112
A37: 12 | B37: 3942 | C37: 24 | D37: 3952 | E37: 24 | F37: 3962 | K37: 0 | L37: 122
A38: 12 | B38: 4059 | C38: 13 | D38: 4062 | E38: 24 | F38: 4071 | K38: 0 | L38: 112
A39: 21 | B39: 4177 | C39: 22 | D39: 4183 | E39: 24 | F39: 4193 | K39: 0 | L39: 222
A40: 12 | B40: 4300 | C40: 24 | D40: 4315 | E40: 24 | F40: 4323 | K40: 0 | L40: 122
A41: 12 | B41: 4432 | C41: 24 | D41: 4446 | E41: 13 | F41: 4450 | K41: 0 | L41: 121
A42: 12 | B42: 4571 | C42: 13 | D42: 4574 | E42: 24 | F42: 4589 | K42: 0 | L42: 112
A43: 12 | B43: 4681 | C43: 13 | D43: 4686 | E43: 24 | F43: 4703 | K43: 0 | L43: 112
A44: 12 | B44: 4913 | C44: 13 | D44: 4916 | E44: 24 | F44: 4939 | K44: 0 | L44: 112
A45: 12 | B45: 5040 | C45: 13 | D45: 5042 | E45: 13 | F45: 5046 | K45: 0 | L45: 111
A46: 12 | B46: 5144 | C46: 24 | D46: 5151 | E46: 24 | F46: 5158 | K46: 0 | L46: 122
A47: 12 | B47: 5310 | C47: 24 | D47: 5337 | E47: 24 | F47: 5340 | K47: 0 | L47: 122
A48: 12 | B48: 5506 | C48: 24 | D48: 5531 | E48: 24 | F48: 5540 | K48: 0 | L48: 122
A49: 12 | B49: 5680 | C49: 24 | D49: 5698 | E49: 24 | F49: 5705 | K49: 0 | L49: 122
A50: 12 | B50: 5819 | C50: 24 | D50: 5830 | E50: 24 | F50: 5840 | K50: 0 | L50: 122
A51: 12 | B51: 5956 | C51: 13 | D51: 5960 | E51: 24 | F51: 5975 | K51: 0 | L51: 112
A52: 12 | B52: 6070 | C52: 24 | D52: 6079 | E52: 24 | F52: 6089 | K52: 0 | L52: 122
A53: 12 | B53: 6181 | C53: 13 | D53: 6192 | E53: 24 | F53: 6204 | K53: 0 | L53: 112
A54: 21 | B54: 6384 | C54: 11 | D54: 6386 | E54: 22 | F54: 6392 | K54: 0 | L54: 212
A55: 12 | B55: 6498 | C55: 24 | D55: 6508 | E55: 24 | F55: 6515 | K55: 0 | L55: 122
A56: 12 | B56: 6610 | C56: 24 | D56: 6623 | E56: 24 | F56: 6637 | K56: 0 | L56: 122
A57: 12 | B57: 6749 | C57: 13 | D57: 6754 | E57: 24 | F57: 6768 | K57: 0 | L57: 112
A58: 12 | B58: 6871 | C58: 13 | D58: 6875 | E58: 13 | F58: 6878 | K58: 0 | L58: 111
A59: 12 | B59: 6980 | C59: 24 | D59: 6987 | E59: 24 | F59: 6990 | K59: 0 | L59: 122
A60: 12 | B60: 7089 | C60: 13 | D60: 7097 | E60: 24 | F60: 7102 | K60: 0 | L60: 112
A61: 12 | B61: 7196 | C61: 24 | D61: 7203 | E61: 13 | F61: 7205 | K61: 0 | L61: 121
A62: 12 | B62: 7311 | C62: 24 | D62: 7328 | E62: 24 | F62: 7336 | K62: 0 | L62: 122
A63: 12 | B63: 7489 | C63: 13 | D63: 7493 | E63: 24 | F63: 7507 | K63: 0 | L63: 112
A64: 12 | B64: 7608 | C64: 24 | D64: 7624 | E64: 13 | F64: 7630 | K64: 0 | L64: 121
A65: 12 | B65: 7728 | C65: 24 | D65: 7740 | E65: 24 | F65: 7751 | K65: 0 | L65: 122
A66: 21 | B66: 7862 | C66: 22 | D66: 7870 | E66: 24 | F66: 7880 | K66: 0 | L66: 222
A67: 12 | B67: 7972 | C67: 13 | D67: 7981 | E67: 13 | F67: 7984 | K67: 0 | L67: 111
A68: 21 | B68: 8087 | C68: 11 | D68: 8092 | E68: 22 | F68: 8100 | K68: 0 | L68: 212
A69: 12 | B69: 8193 | C69: 13 | D69: 8198 | E69: 24 | F69: 8204 | K69: 0 | L69: 112
A70: 12 | B70: 8297 | C70: 24 | D70: 8322 | E70: 24 | F70: 8328 | K70: 0 | L70: 122
A71: 21 | B71: 8445 | C71: 11 | D71: 8452 | E71: 22 | F71: 8459 | K71: 0 | L71: 212
A72: 12 | B72: 8556 | C72: 24 | D72: 8559 | E72: 24 | F72: 8569 | K72: 0 | L72: 122
A73: 12 | B73: 8662 | C73: 13 | D73: 8674 | E73: 24 | F73: 8678 | K73: 0 | L73: 112
A74: 21 | B74: 8788 | C74: 22 | D74: 8793 | E74: 13 | F74: 8799 | K74: 0 | L74: 221
A75: 12 | B75: 8896 | C75: 13 | D75: 8900 | E75: 24 | F75: 8925 | K75: 0 | L75: 112
A76: 12 | B76: 9077 | C76: 13 | D76: 9081 | E76: 24 | F76: 9100 | K76: 0 | L76: 112
A77: 12 | B77: 9203 | C77: 13 | D77: 9214 | E77: 24 | F77: 9222 | K77: 0 | L77: 112
A78: 12 | B78: 9329 | C78: 24 | D78: 9332 | E78: 24 | F78: 9338 | K78: 0 | L78: 122
A79: 12 | B79: 9441 | C79: 24 | D79: 9449 | E79: 24 | F79: 9460 | K79: 0 | L79: 122
A80: 12 | B80: 9580 | C80: 13 | D80: 9590 | E80: 24 | F80: 9603 | K80: 0 | L80: 112
A81: 12 | B81: 9726 | C81: 13 | D81: 9749 | E81: 24 | F81: 9772 | K81: 0 | L81: 112
A82: 12 | B82: 9873 | C82: 13 | D82: 9878 | E82: 24 | F82: 9893 | K82: 0 | L82: 112
A83: 21 | B83: 9998 | C83: 22 | D83: 10009 | E83: 24 | F83: 10018 | K83: 0 | L83: 222
A84: 12 | B84: 10121 | C84: 13 | D84: 10126 | E84: 24 | F84: 10140 | K84: 0 | L84: 112
A85: 12 | B85: 10245 | C85: 13 | D85: 10248 | E85: 24 | F85: 10265 | K85: 0 | L85: 112
A86: 12 | B86: 10370 | C86: 24 | D86: 10388 | E86: 13 | F86: 10393 | K86: 0 | L86: 121
A87: 12 | B87: 10531 | C87: 13 | D87: 10535 | E87: 24 | F87: 10552 | K87: 0 | L87: 112
A88: 12 | B88: 10659 | C88: 13 | D88: 10665 | E88: 24 | F88: 10685 | K88: 0 | L88: 112
A89: 12 | B89: 10784 | C89: 13 | D89: 10787 | E89: 24 | F89: 10799 | K89: 0 | L89: 112
A90: 12 | B90: 10894 | C90: 24 | D90: 10902 | E90: 24 | F90: 10908 | K90: 0 | L90: 122
A91: 12 | B91: 11005 | C91: 24 | D91: 11020 | E91: 24 | F91: 11027 | K91: 0 | L91: 122
A92: 12 | B92: 11128 | C92: 13 | D92: 11131 | E92: 13 | F92: 11135 | K92: 0 | L92: 111
A93: 12 | B93: 11236 | C93: 24 | D93: 11244 | E93: 24 | F93: 11251 | K93: 0 | L93: 122
A94: 21 | B94: 11358 | C94: 11 | D94: 11361 | E94: 22 | F94: 11365 | K94: 0 | L94: 212
A95: 12 | B95: 11463 | C95: 13 | D95: 11471 | E95: 24 | F95: 11481 | K95: 0 | L95: 112
A96: 12 | B96: 11578 | C96: 13 | D96: 11583 | E96: 13 | F96: 11592 | K96: 0 | L96: 111
A97: 12 | B97: 11713 | C97: 13 | D97: 11719 | E97: 24 | F97: 11745 | K97: 0 | L97: 112
A98: 12 | B98: 11887 | C98: 13 | D98: 11894 | E98: 13 | F98: 11902 | K98: 0 | L98: 111
A99: 12 | B99: 11995 | C99: 13 | D99: 12007 | E99: 24 | F99: 12009 | K99: 0 | L99: 112
A100: 12 | B100: 12123 | C100: 13 | D100: 12126 | E100: 24 | F100: 12141 | K100: 0 | L100: 112
A101: 12 | B101: 12241 | C101: 13 | D101: 12246 | E101: 13 | F101: 12257 | K101: 0 | L101: 111
A102: 12 | B102: 12350 | C102: 13 | D102: 12358 | E102: 24 | F102: 12361 | K102: 0 | L102: 112
A103: 12 | B103: 12483 | C103: 13 | D103: 12487 | E103: 13 | F103: 12491 | K103: 0 | L103: 111
A104: 12 | B104: 12585 | C104: 13 | D104: 12599 | E104: 24 | F104: 12608 | K104: 0 | L104: 112
A105: 12 | B105: 12710 | C105: 13 | D105: 12714 | E105: 24 | F105: 12727 | K105: 0 | L105: 112
A106: 12 | B106: 12819 | C106: 13 | D106: 12822 | E106: 24 | F106: 12832 | K106: 0 | L106: 112
A107: 21 | B107: 12960 | C107: 22 | D107: 12968 | E107: 24 | F107: 12976 | K107: 0 | L107: 222
A108: 12 | B108: 13076 | C108: 13 | D108: 13084 | E108: 24 | F108: 13097 | K108: 0 | L108: 112
A109: 12 | B109: 13200 | C109: 13 | D109: 13204 | E109: 24 | F109: 13231 | K109: 0 | L109: 112
A110: 12 | B110: 13332 | C110: 13 | D110: 13337 | E110: 24 | F110: 13350 | K110: 0 | L110: 112
A111: 12 | B111: 13456 | C111: 13 | D111: 13472 | E111: 24 | F111: 13475 | K111: 0 | L111: 112
A112: 12 | B112: 13569 | C112: 24 | D112: 13581 | E112: 24 | F112: 13587 | K112: 0 | L112: 122
A113: 12 | B113: 13705 | C113: 13 | D113: 13717 | E113: 24 | F113: 13727 | K113: 0 | L113: 112
A114: 12 | B114: 13832 | C114: 13 | D114: 13845 | E114: 13 | F114: 13862 | K114: 0 | L114: 111
A115: 12 | B115: 14048 | C115: 13 | D115: 14062 | E115: 24 | F115: 14066 | K115: 0 | L115: 112
A116: 12 | B116: 14169 | C116: 13 | D116: 14182 | E116: 24 | F116: 14186 | K116: 0 | L116: 112
A117: 12 | B117: 14317 | C117: 24 | D117: 14331 | E117: 13 | F117: 14334 | K117: 0 | L117: 121
A118: 12 | B118: 14439 | C118: 13 | D118: 14448 | E118: 24 | F118: 14456 | K118: 0 | L118: 112
A119: 12 | B119: 14594 | C119: 13 | D119: 14606 | E119: 24 | F119: 14610 | K119: 0 | L119: 112
A120: 12 | B120: 14703 | C120: 13 | D120: 14710 | E120: 13 | F120: 14714 | K120: 0 | L120: 111
A121: 12 | B121: 14809 | C121: 24 | D121: 14816 | E121: 24 | F121: 14823 | K121: 0 | L121: 122
A122: 12 | B122: 14929 | C122: 13 | D122: 14942 | E122: 24 | F122: 14945 | K122: 0 | L122: 112
A123: 12 | B123: 15086 | C123: 24 | D123: 15099 | E123: 13 | F123: 15102 | K123: 0 | L123: 121
A124: 12 | B124: 15268 | C124: 24 | D124: 15280 | E124: 24 | F124: 15287 | K124: 0 | L124: 122
A125: 12 | B125: 15396 | C125: 13 | D125: 15404 | E125: 24 | F125: 15410 | K125: 0 | L125: 112
A126: 12 | B126: 15541 | C126: 13 | D126: 15554 | E126: 24 | F126: 15563 | K126: 0 | L126: 112
A127: 12 | B127: 15659 | C127: 24 | D127: 15665 | E127: 24 | F127: 15673 | K127: 0 | L127: 122
A128: 12 | B128: 15773 | C128: 13 | D128: 15776 | E128: 24 | F128: 15789 | K128: 0 | L128: 112
A129: 12 | B129: 15883 | C129: 13 | D129: 15892 | E129: 24 | F129: 15898 | K129: 0 | L129: 112
A130: 12 | B130: 15992 | C130: 13 | D130: 16003 | E130: 24 | F130: 16009 | K130: 0 | L130: 112
A131: 12 | B131: 16106 | C131: 13 | D131: 16109 | E131: 13 | F131: 16112 | K131: 0 | L131: 111
A132: 12 | B132: 16213 | C132: 13 | D132: 16218 | E132: 24 | F132: 16229 | K132: 0 | L132: 112
A133: 12 | B133: 16336 | C133: 24 | D133: 16350 | E133: 24 | F133: 16364 | K133: 0 | L133: 122
A134: 12 | B134: 16467 | C134: 24 | D134: 16475 | E134: 24 | F134: 16482 | K134: 0 | L134: 122
A135: 12 | B135: 16640 | C135: 24 | D135: 16654 | E135: 13 | F135: 16659 | K135: 0 | L135: 121
A136: 12 | B136: 16768 | C136: 13 | D136: 16776 | E136: 24 | F136: 16789 | K136: 0 | L136: 112
A137: 12 | B137: 16883 | C137: 24 | D137: 16898 | E137: 24 | F137: 16904 | K137: 0 | L137: 122
A138: 12 | B138: 17003 | C138: 24 | D138: 17018 | E138: 13 | F138: 17019 | K138: 0 | L138: 121
A139: 12 | B139: 17116 | C139: 13 | D139: 17121 | E139: 24 | F139: 17124 | K139: 0 | L139: 112
A140: 12 | B140: 17224 | C140: 24 | D140: 17230 | E140: 24 | F140: 17238 | K140: 0 | L140: 122
A141: 21 | B141: 17347 | C141: 22 | D141: 17354 | E141: 13 | F141: 17362 | K141: 0 | L141: 221
A142: 12 | B142: 17485 | C142: 13 | D142: 17489 | E142: 24 | F142: 17501 | K142: 0 | L142: 112
A143: 12 | B143: 17617 | C143: 24 | D143: 17628 | E143: 24 | F143: 17635 | K143: 0 | L143: 122
A144: 12 | B144: 17781 | C144: 24 | D144: 17789 | E144: 24 | F144: 17796 | K144: 0 | L144: 122
A145: 12 | B145: 17902 | C145: 13 | D145: 17906 | E145: 13 | F145: 17912 | K145: 0 | L145: 111
A146: 12 | B146: 18010 | C146: 24 | D146: 18016 | E146: 24 | F146: 18022 | K146: 0 | L146: 122
A147: 12 | B147: 18120 | C147: 24 | D147: 18127 | E147: 24 | F147: 18136 | K147: 0 | L147: 122
A148: 12 | B148: 18231 | C148: 13 | D148: 18236 | E148: 24 | F148: 18240 | K148: 0 | L148: 112
A149: 12 | B149: 18342 | C149: 24 | D149: 18347 | E149: 24 | F149: 18354 | K149: 0 | L149: 122
A150: 12 | B150: 18454 | C150: 13 | D150: 18456 | E150: 24 | F150: 18469 | K150: 0 | L150: 112
A151: 12 | B151: 18571 | C151: 24 | D151: 18595 | E151: 24 | F151: 18602 | K151: 0 | L151: 122
A152: 12 | B152: 18732 | C152: 24 | D152: 18744 | E152: 13 | F152: 18746 | K152: 0 | L152: 121
A153: 12 | B153: 18960 | C153: 13 | D153: 18963 | E153: 13 | F153: 18969 | K153: 0 | L153: 111
A154: 12 | B154: 19069 | C154: 24 | D154: 19074 | E154: 24 | F154: 19085 | K154: 0 | L154: 122
A155: 12 | B155: 19182 | C155: 13 | D155: 19188 | E155: 24 | F155: 19200 | K155: 0 | L155: 112
A156: 12 | B156: 19296 | C156: 13 | D156: 19299 | E156: 13 | F156: 19302 | K156: 0 | L156: 111
A157: 12 | B157: 19405 | C157: 13 | D157: 19409 | E157: 24 | F157: 19422 | K157: 0 | L157: 112
A158: 12 | B158: 19515 | C158: 24 | D158: 19526 | E158: 24 | F158: 19531 | K158: 0 | L158: 122
A159: 12 | B159: 19627 | C159: 24 | D159: 19634 | E159: 24 | F159: 19641 | K159: 0 | L159: 122
A160: 12 | B160: 19734 | C160: 13 | D160: 19743 | E160: 24 | F160: 19749 | K160: 0 | L160: 112
A161: 12 | B161: 19844 | C161: 13 | D161: 19853 | E161: 24 | F161: 19856 | K161: 0 | L161: 112
A162: 12 | B162: 19957 | C162: 13 | D162: 19962 | E162: 13 | F162: 19970 | K162: 0 | L162: 111
A163: 12 | B163: 20069 | C163: 13 | D163: 20072 | E163: 24 | F163: 20084 | K163: 0 | L163: 112
A164: 12 | B164: 20339 | C164: 13 | D164: 20344 | E164: 24 | F164: 20356 | K164: 0 | L164: 112
A165: 12 | B165: 20463 | C165: 13 | D165: 20467 | E165: 13 | F165: 20476 | K165: 0 | L165: 111
A166: 12 | B166: 20574 | C166: 13 | D166: 20587 | E166: 24 | F166: 20597 | K166: 0 | L166: 112
A167: 12 | B167: 20764 | C167: 24 | D167: 20776 | E167: 13 | F167: 20782 | K167: 0 | L167: 121
A168: 12 | B168: 20991 | C168: 13 | D168: 20995 | E168: 13 | F168: 21000 | K168: 0 | L168: 111
A169: 12 | B169: 21104 | C169: 24 | D169: 21108 | E169: 24 | F169: 21115 | K169: 0 | L169: 122
A170: 12 | B170: 21223 | C170: 13 | D170: 21227 | E170: 24 | F170: 21244 | K170: 0 | L170: 112
A171: 12 | B171: 21378 | C171: 13 | D171: 21381 | E171: 24 | F171: 21392 | K171: 0 | L171: 112
A172: 12 | B172: 21560 | C172: 24 | D172: 21583 | E172: 24 | F172: 21592 | K172: 0 | L172: 122
A173: 12 | B173: 21695 | C173: 13 | D173: 21699 | E173: 24 | F173: 21716 | K173: 0 | L173: 112
A174: 12 | B174: 21818 | C174: 13 | D174: 21824 | E174: 24 | F174: 21838 | K174: 0 | L174: 112
A175: 12 | B175: 21936 | C175: 13 | D175: 21940 | E175: 13 | F175: 21944 | K175: 0 | L175: 111
A176: 12 | B176: 22087 | C176: 13 | D176: 22090 | E176: 24 | F176: 22112 | K176: 0 | L176: 112
A177: 12 | B177: 22256 | C177: 13 | D177: 22268 | E177: 24 | F177: 22275 | K177: 0 | L177: 112
A178: 12 | B178: 22382 | C178: 13 | D178: 22397 | E178: 24 | F178: 22408 | K178: 0 | L178: 112
A179: 12 | B179: 22512 | C179: 13 | D179: 22526 | E179: 24 | F179: 22536 | K179: 0 | L179: 112
A180: 12 | B180: 22632 | C180: 24 | D180: 22638 | E180: 24 | F180: 22645 | K180: 0 | L180: 122
A181: 12 | B181: 22747 | C181: 13 | D181: 22750 | E181: 13 | F181: 22753 | K181: 0 | L181: 111
A182: 12 | B182: 22854 | C182: 13 | D182: 22858 | E182: 24 | F182: 22871 | K182: 0 | L182: 112
A183: 12 | B183: 22968 | C183: 24 | D183: 22976 | E183: 24 | F183: 22982 | K183: 0 | L183: 122
A184: 12 | B184: 23112 | C184: 13 | D184: 23125 | E184: 24 | F184: 23132 | K184: 0 | L184: 112
A185: 12 | B185: 23225 | C185: 13 | D185: 23233 | E185: 24 | F185: 23245 | K185: 0 | L185: 112
A186: 12 | B186: 23345 | C186: 13 | D186: 23347 | E186: 13 | F186: 23353 | K186: 0 | L186: 111
A187: 12 | B187: 23447 | C187: 13 | D187: 23454 | E187: 13 | F187: 23457 | K187: 0 | L187: 111
A188: 21 | B188: 23562 | C188: 22 | D188: 23567 | E188: 24 | F188: 23573 | K188: 0 | L188: 222
A189: 12 | B189: 23663 | C189: 24 | D189: 23669 | E189: 24 | F189: 23676 | K189: 0 | L189: 122
A190: 12 | B190: 23802 | C190: 13 | D190: 23809 | E190: 24 | F190: 23823 | K190: 0 | L190: 112
A191: 12 | B191: 23938 | C191: 13 | D191: 23947 | E191: 24 | F191: 23953 | L191: 112

Sheet !N129A20.Gus
A1: Report for:!N129A20.Gus
A2: Date: | B2: <date>
A3: Hen: | B3: <hen> | F3: Correct Sequence | G3: =Start!J2 -> 211 | P3: Total Sequences in Data | Q3: =4994-COUNTBLANK(L7:L5000) -> 190 | V3: Total Sequences in Block Data | W3: =COUNTA(L7:L38) -> 32 | AA3: Total Sequences in Block Data | AB3: =COUNTA(L39:L69) -> 31 | AF3: Total Sequences in Block Data | AG3: =COUNTA(L70:L101) -> 32 | AK3: Total Sequences in Block Data | AL3: =COUNTA(L102:L133) -> 32 | AP3: Total Sequences in Block Data | AQ3: =COUNTA(L134:L164) -> 31 | AU3: Total Sequences in Block Data | AV3: =COUNTA(L165:L196) -> 32
P4: Total Sequences in Summary | Q4: =SUM(O7:O14) -> 189 | V4: Total Sequences in Block Summary | W4: =SUM(U7:U14) -> 32 | AA4: Total Sequences in Block Summary | AB4: =SUM(Z7:Z14) -> 31 | AF4: Total Sequences in Block Summary | AG4: =SUM(AE7:AE14) -> 32 | AK4: Total Sequences in Block Summary | AL4: =SUM(AJ7:AJ14) -> 32 | AP4: Total Sequences in Block Summary | AQ4: =SUM(AO7:AO14) -> 31 | AU4: Total Sequences in Block Summary | AV4: =SUM(AT7:AT14) -> 31
T5: Block 1 | Y5: Block 2 | AD5: Block 3 | AI5: Block 4 | AN5: Block 5 | AS5: Block 6
A6: Sequence Component 1 | B6: Time 1 | C6: Sequence Component 2 | D6: Time 2 | E6: Sequence Component 3 | F6: Time 3 | G6: Sequence Component 4 | H6: Time 4 | I6: Sequence Component 5 | J6: Time 5 | K6: Correct? 0=No 1=Yes | L6: Sequence | N6: Frequency | P6: Relative Frequency | Q6: Variability | T6: Frequency | V6: Relative Frequency | W6: Variability | Y6: Frequency | AA6: Relative Frequency | AB6: Variability | AD6: Frequency | AF6: Relative Frequency | AG6: Variability | AI6: Frequency | AK6: Relative Frequency | AL6: Variability | AN6: Frequency | AP6: Relative Frequency | AQ6: Variability | AS6: Frequency | AU6: Relative Frequency | AV6: Variability
A7: 12 | B7: 19 | C7: 13 | D7: 27 | E7: 24 | F7: 40 | K7: 0 | L7: 112 | N7: 111 | O7: =COUNTIF($L$7:$L$500,N7) -> 27 | P7: =O7/$Q$4 -> 0.1428571429 | Q7: =IF(P7=0,0,(P7*((LOG(P7))/LOG(2)))) -> -0.4010507032 | T7: =N7 -> 111 | U7: =COUNTIF(L7:L38,T7) -> 4 | V7: =U7/(W4-U11) -> 0.125 | W7: =IF(V7=0,0,(V7*((LOG(V7))/LOG(2)))) -> -0.375 | Y7: =N7 -> 111 | Z7: =COUNTIF(L39:L69,Y7) -> 7 | AA7: =Z7/(AB4-Z11) -> 0.2258064516 | AB7: =IF(AA7=0,0,(AA7*((LOG(AA7))/LOG(2)))) -> -0.4847706361 | AD7: =N7 -> 111 | AE7: =COUNTIF(L70:L101,AD7) -> 7 | AF7: =AE7/(AG4-AE11) -> 0.21875 | AG7: =IF(AF7=0,0,(AF7*((LOG(AF7))/LOG(2)))) -> -0.4796411108 | AI7: =N7 -> 111 | AJ7: =COUNTIF(L102:L133,AI7) -> 3 | AK7: =AJ7/(AL4-AJ11) -> 0.09375 | AL7: =IF(AK7=0,0,(AK7*((LOG(AK7))/LOG(2)))) -> -0.3201597656 | AN7: =N7 -> 111 | AO7: =COUNTIF(L134:L164,AN7) -> 5 | AP7: =AO7/(AQ4-AO11) -> 0.1612903226 | AQ7: =IF(AP7=0,0,(AP7*((LOG(AP7))/LOG(2)))) -> -0.4245593896 | AS7: =N7 -> 111 | AT7: =COUNTIF(L165:L196,AS7) -> 1 | AU7: =AT7/(AV4-AT11) -> 0.03225806452 | AV7: =IF(AU7=0,0,(AU7*((LOG(AU7))/LOG(2)))) -> -0.1598127842
A8: 12 | B8: 140 | C8: 13 | D8: 142 | E8: 24 | F8: 149 | K8: 0 | L8: 112 | N8: 112 | O8: =COUNTIF($L$7:$L$500,N8) -> 63 | P8: =O8/$Q$4 -> 0.3333333333 | Q8: =IF(P8=0,0,(P8*((LOG(P8))/LOG(2)))) -> -0.5283208336 | T8: =N8 -> 112 | U8: =COUNTIF(L7:L38,T8) -> 11 | V8: =U8/(W4-U11) -> 0.34375 | W8: =IF(V8=0,0,(V8*((LOG(V8))/LOG(2)))) -> -0.5295703811 | Y8: =N8 -> 112 | Z8: =COUNTIF(L39:L69,Y8) -> 10 | AA8: =Z8/(AB4-Z11) -> 0.3225806452 | AB8: =IF(AA8=0,0,(AA8*((LOG(AA8))/LOG(2)))) -> -0.526538134 | AD8: =N8 -> 112 | AE8: =COUNTIF(L70:L101,AD8) -> 12 | AF8: =AE8/(AG4-AE11) -> 0.375 | AG8: =IF(AF8=0,0,(AF8*((LOG(AF8))/LOG(2)))) -> -0.5306390622 | AI8: =N8 -> 112 | AJ8: =COUNTIF(L102:L133,AI8) -> 12 | AK8: =AJ8/(AL4-AJ11) -> 0.375 | AL8: =IF(AK8=0,0,(AK8*((LOG(AK8))/LOG(2)))) -> -0.5306390622 | AN8: =N8 -> 112 | AO8: =COUNTIF(L134:L164,AN8) -> 8 | AP8: =AO8/(AQ4-AO11) -> 0.2580645161 | AQ8: =IF(AP8=0,0,(AP8*((LOG(AP8))/LOG(2)))) -> -0.5043087253 | AS8: =N8 -> 112 | AT8: =COUNTIF(L165:L196,AS8) -> 10 | AU8: =AT8/(AV4-AT11) -> 0.3225806452 | AV8: =IF(AU8=0,0,(AU8*((LOG(AU8))/LOG(2)))) -> -0.526538134
A9: 12 | B9: 241 | C9: 13 | D9: 254 | E9: 13 | F9: 266 | K9: 0 | L9: 111 | N9: 121 | O9: =COUNTIF($L$7:$L$500,N9) -> 15 | P9: =O9/$Q$4 -> 0.07936507937 | Q9: =IF(P9=0,0,(P9*((LOG(P9))/LOG(2)))) -> -0.290107288 | T9: =N9 -> 121 | U9: =COUNTIF(L7:L38,T9) -> 0 | V9: =U9/(W4-U11) -> 0 | W9: =IF(V9=0,0,(V9*((LOG(V9))/LOG(2)))) -> 0 | Y9: =N9 -> 121 | Z9: =COUNTIF(L39:L69,Y9) -> 0 | AA9: =Z9/(AB4-Z11) -> 0 | AB9: =IF(AA9=0,0,(AA9*((LOG(AA9))/LOG(2)))) -> 0 | AD9: =N9 -> 121 | AE9: =COUNTIF(L70:L101,AD9) -> 2 | AF9: =AE9/(AG4-AE11) -> 0.0625 | AG9: =IF(AF9=0,0,(AF9*((LOG(AF9))/LOG(2)))) -> -0.25 | AI9: =N9 -> 121 | AJ9: =COUNTIF(L102:L133,AI9) -> 5 | AK9: =AJ9/(AL4-AJ11) -> 0.15625 | AL9: =IF(AK9=0,0,(AK9*((LOG(AK9))/LOG(2)))) -> -0.4184487352 | AN9: =N9 -> 121 | AO9: =COUNTIF(L134:L164,AN9) -> 3 | AP9: =AO9/(AQ4-AO11) -> 0.09677419355 | AQ9: =IF(AP9=0,0,(AP9*((LOG(AP9))/LOG(2)))) -> -0.3260548848 | AS9: =N9 -> 121 | AT9: =COUNTIF(L165:L196,AS9) -> 5 | AU9: =AT9/(AV4-AT11) -> 0.1612903226 | AV9: =IF(AU9=0,0,(AU9*((LOG(AU9))/LOG(2)))) -> -0.4245593896
A10: 12 | B10: 386 | C10: 13 | D10: 389 | E10: 13 | F10: 393 | K10: 0 | L10: 111 | N10: 122 | O10: =COUNTIF($L$7:$L$500,N10) -> 75 | P10: =O10/$Q$4 -> 0.3968253968 | Q10: =IF(P10=0,0,(P10*((LOG(P10))/LOG(2)))) -> -0.5291364023 | T10: =N10 -> 122 | U10: =COUNTIF(L7:L38,T10) -> 15 | V10: =U10/(W4-U11) -> 0.46875 | W10: =IF(V10=0,0,(V10*((LOG(V10))/LOG(2)))) -> -0.5123950333 | Y10: =N10 -> 122 | Z10: =COUNTIF(L39:L69,Y10) -> 13 | AA10: =Z10/(AB4-Z11) -> 0.4193548387 | AB10: =IF(AA10=0,0,(AA10*((LOG(AA10))/LOG(2)))) -> -0.5257688935 | AD10: =N10 -> 122 | AE10: =COUNTIF(L70:L101,AD10) -> 10 | AF10: =AE10/(AG4-AE11) -> 0.3125 | AG10: =IF(AF10=0,0,(AF10*((LOG(AF10))/LOG(2)))) -> -0.5243974703 | AI10: =N10 -> 122 | AJ10: =COUNTIF(L102:L133,AI10) -> 10 | AK10: =AJ10/(AL4-AJ11) -> 0.3125 | AL10: =IF(AK10=0,0,(AK10*((LOG(AK10))/LOG(2)))) -> -0.5243974703 | AN10: =N10 -> 122 | AO10: =COUNTIF(L134:L164,AN10) -> 13 | AP10: =AO10/(AQ4-AO11) -> 0.4193548387 | AQ10: =IF(AP10=0,0,(AP10*((LOG(AP10))/LOG(2)))) -> -0.5257688935 | AS10: =N10 -> 122 | AT10: =COUNTIF(L165:L196,AS10) -> 14 | AU10: =AT10/(AV4-AT11) -> 0.4516129032 | AV10: =IF(AU10=0,0,(AU10*((LOG(AU10))/LOG(2)))) -> -0.5179283689
A11: 12 | B11: 486 | C11: 13 | D11: 499 | E11: 24 | F11: 503 | K11: 0 | L11: 112 | N11: 211 | O11: =COUNTIF($L$7:$L$500,N11) -> 0 | P11: =O11/$Q$4 -> 0 | Q11: =IF(P11=0,0,(P11*((LOG(P11))/LOG(2)))) -> 0 | T11: =N11 -> 211 | U11: =COUNTIF(L7:L38,T11) -> 0 | Y11: =N11 -> 211 | Z11: =COUNTIF(L39:L69,Y11) -> 0 | AD11: =N11 -> 211 | AE11: =COUNTIF(L70:L101,AD11) -> 0 | AI11: =N11 -> 211 | AJ11: =COUNTIF(L102:L133,AI11) -> 0 | AN11: =N11 -> 211 | AO11: =COUNTIF(L134:L164,AN11) -> 0 | AS11: =N11 -> 211 | AT11: =COUNTIF(L165:L196,AS11) -> 0
A12: 12 | B12: 605 | C12: 24 | D12: 612 | E12: 24 | F12: 619 | K12: 0 | L12: 122 | N12: 212 | O12: =COUNTIF($L$7:$L$500,N12) -> 4 | P12: =O12/$Q$4 -> 0.02116402116 | Q12: =IF(P12=0,0,(P12*((LOG(P12))/LOG(2)))) -> -0.1177194164 | T12: =N12 -> 212 | U12: =COUNTIF(L7:L38,T12) -> 2 | V12: =U12/(W4-U11) -> 0.0625 | W12: =IF(V12=0,0,(V12*((LOG(V12))/LOG(2)))) -> -0.25 | Y12: =N12 -> 212 | Z12: =COUNTIF(L39:L69,Y12) -> 0 | AA12: =Z12/(AB4-Z11) -> 0 | AB12: =IF(AA12=0,0,(AA12*((LOG(AA12))/LOG(2)))) -> 0 | AD12: =N12 -> 212 | AE12: =COUNTIF(L70:L101,AD12) -> 0 | AF12: =AE12/(AG4-AE11) -> 0 | AG12: =IF(AF12=0,0,(AF12*((LOG(AF12))/LOG(2)))) -> 0 | AI12: =N12 -> 212 | AJ12: =COUNTIF(L102:L133,AI12) -> 1 | AK12: =AJ12/(AL4-AJ11) -> 0.03125 | AL12: =IF(AK12=0,0,(AK12*((LOG(AK12))/LOG(2)))) -> -0.15625 | AN12: =N12 -> 212 | AO12: =COUNTIF(L134:L164,AN12) -> 1 | AP12: =AO12/(AQ4-AO11) -> 0.03225806452 | AQ12: =IF(AP12=0,0,(AP12*((LOG(AP12))/LOG(2)))) -> -0.1598127842 | AS12: =N12 -> 212 | AT12: =COUNTIF(L165:L196,AS12) -> 0 | AU12: =AT12/(AV4-AT11) -> 0 | AV12: =IF(AU12=0,0,(AU12*((LOG(AU12))/LOG(2)))) -> 0
A13: 12 | B13: 722 | C13: 13 | D13: 729 | E13: 24 | F13: 742 | K13: 0 | L13: 112 | N13: 221 | O13: =COUNTIF($L$7:$L$500,N13) -> 2 | P13: =O13/$Q$4 -> 0.01058201058 | Q13: =IF(P13=0,0,(P13*((LOG(P13))/LOG(2)))) -> -0.06944171877 | T13: =N13 -> 221 | U13: =COUNTIF(L7:L38,T13) -> 0 | V13: =U13/(W4-U11) -> 0 | W13: =IF(V13=0,0,(V13*((LOG(V13))/LOG(2)))) -> 0 | Y13: =N13 -> 221 | Z13: =COUNTIF(L39:L69,Y13) -> 1 | AA13: =Z13/(AB4-Z11) -> 0.03225806452 | AB13: =IF(AA13=0,0,(AA13*((LOG(AA13))/LOG(2)))) -> -0.1598127842 | AD13: =N13 -> 221 | AE13: =COUNTIF(L70:L101,AD13) -> 1 | AF13: =AE13/(AG4-AE11) -> 0.03125 | AG13: =IF(AF13=0,0,(AF13*((LOG(AF13))/LOG(2)))) -> -0.15625 | AI13: =N13 -> 221 | AJ13: =COUNTIF(L102:L133,AI13) -> 0 | AK13: =AJ13/(AL4-AJ11) -> 0 | AL13: =IF(AK13=0,0,(AK13*((LOG(AK13))/LOG(2)))) -> 0 | AN13: =N13 -> 221 | AO13: =COUNTIF(L134:L164,AN13) -> 0 | AP13: =AO13/(AQ4-AO11) -> 0 | AQ13: =IF(AP13=0,0,(AP13*((LOG(AP13))/LOG(2)))) -> 0 | AS13: =N13 -> 221 | AT13: =COUNTIF(L165:L196,AS13) -> 0 | AU13: =AT13/(AV4-AT11) -> 0 | AV13: =IF(AU13=0,0,(AU13*((LOG(AU13))/LOG(2)))) -> 0
A14: 12 | B14: 841 | C14: 24 | D14: 848 | E14: 24 | F14: 854 | K14: 0 | L14: 122 | N14: 222 | O14: =COUNTIF($L$7:$L$500,N14) -> 3 | P14: =O14/$Q$4 -> 0.01587301587 | Q14: =IF(P14=0,0,(P14*((LOG(P14))/LOG(2)))) -> -0.0948774591 | T14: =N14 -> 222 | U14: =COUNTIF(L7:L38,T14) -> 0 | V14: =U14/(W4-U11) -> 0 | W14: =IF(V14=0,0,(V14*((LOG(V14))/LOG(2)))) -> 0 | Y14: =N14 -> 222 | Z14: =COUNTIF(L39:L69,Y14) -> 0 | AA14: =Z14/(AB4-Z11) -> 0 | AB14: =IF(AA14=0,0,(AA14*((LOG(AA14))/LOG(2)))) -> 0 | AD14: =N14 -> 222 | AE14: =COUNTIF(L70:L101,AD14) -> 0 | AF14: =AE14/(AG4-AE11) -> 0 | AG14: =IF(AF14=0,0,(AF14*((LOG(AF14))/LOG(2)))) -> 0 | AI14: =N14 -> 222 | AJ14: =COUNTIF(L102:L133,AI14) -> 1 | AK14: =AJ14/(AL4-AJ11) -> 0.03125 | AL14: =IF(AK14=0,0,(AK14*((LOG(AK14))/LOG(2)))) -> -0.15625 | AN14: =N14 -> 222 | AO14: =COUNTIF(L134:L164,AN14) -> 1 | AP14: =AO14/(AQ4-AO11) -> 0.03225806452 | AQ14: =IF(AP14=0,0,(AP14*((LOG(AP14))/LOG(2)))) -> -0.1598127842 | AS14: =N14 -> 222 | AT14: =COUNTIF(L165:L196,AS14) -> 1 | AU14: =AT14/(AV4-AT11) -> 0.03225806452 | AV14: =IF(AU14=0,0,(AU14*((LOG(AU14))/LOG(2)))) -> -0.1598127842
A15: 12 | B15: 949 | C15: 13 | D15: 955 | E15: 24 | F15: 960 | K15: 0 | L15: 112 | P15: =SUM(P7:P14) -> 1 | Q15: =-SUM(Q7:Q14) -> 2.030653821 | V15: =SUM(V7:V14) -> 1 | W15: =-SUM(W7:W14) -> 1.666965414 | AA15: =SUM(AA7:AA14) -> 1 | AB15: =-SUM(AB7:AB14) -> 1.696890448 | AF15: =SUM(AF7:AF14) -> 1 | AG15: =-SUM(AG7:AG14) -> 1.940927643 | AK15: =SUM(AK7:AK14) -> 1 | AL15: =-SUM(AL7:AL14) -> 2.106145033 | AP15: =SUM(AP7:AP14) -> 1 | AQ15: =-SUM(AQ7:AQ14) -> 2.100317462 | AU15: =SUM(AU7:AU14) -> 1 | AV15: =-SUM(AV7:AV14) -> 1.788651461
A16: 12 | B16: 1053 | C16: 13 | D16: 1062 | E16: 24 | F16: 1069 | K16: 0 | L16: 112 | P16: U= | Q16: =Q15/(LOG(Q4)/LOG(2)) -> 0.2685253536 | V16: U1= | W16: =W15/(LOG(W4)/LOG(2)) -> 0.3333930829 | AA16: U2= | AB16: =AB15/(LOG(AB4)/LOG(2)) -> 0.3425157869 | AF16: U3= | AG16: =AG15/(LOG(AG4)/LOG(2)) -> 0.3881855287 | AK16: U4= | AL16: =AL15/(LOG(AL4)/LOG(2)) -> 0.4212290067 | AP16: U5= | AQ16: =AQ15/(LOG(AQ4)/LOG(2)) -> 0.4239471612 | AU16: U6= | AV16: =AV15/(LOG(AV4)/LOG(2)) -> 0.3610376636
A17: 12 | B17: 1169 | C17: 24 | D17: 1175 | E17: 24 | F17: 1183 | K17: 0 | L17: 122
A18: 12 | B18: 1276 | C18: 13 | D18: 1282 | E18: 24 | F18: 1290 | K18: 0 | L18: 112
A19: 12 | B19: 1384 | C19: 24 | D19: 1395 | E19: 24 | F19: 1401 | K19: 0 | L19: 122 | N19: Total Target Seq
A20: 12 | B20: 1488 | C20: 24 | D20: 1498 | E20: 24 | F20: 1505 | K20: 0 | L20: 122 | N20: =COUNTIF(L7:L196,G3) -> 0 | P20: 32 | Q20: 31 | R20: 32 | S20: 32 | T20: 31 | U20: 32
A21: 12 | B21: 1597 | C21: 13 | D21: 1609 | E21: 24 | F21: 1621 | K21: 0 | L21: 112 | P21: % of reinforcement given in 6 equal intervals based on number of trials
A22: 12 | B22: 1762 | C22: 13 | D22: 1766 | E22: 13 | F22: 1770 | K22: 0 | L22: 111 | P22: %_1 | Q22: %_2 | R22: %_3 | S22: %_4 | T22: %_5 | U22: %_6
A23: 12 | B23: 1875 | C23: 24 | D23: 1884 | E23: 24 | F23: 1889 | K23: 0 | L23: 122 | O23: target sequence | P23: =$G$3 -> 211 | Q23: =$G$3 -> 211 | R23: =$G$3 -> 211 | S23: =$G$3 -> 211 | T23: =$G$3 -> 211 | U23: =$G$3 -> 211
A24: 12 | B24: 1982 | C24: 13 | D24: 1992 | E24: 24 | F24: 2002 | K24: 0 | L24: 112 | O24: total reinforcement | P24: =U11 -> 0 | Q24: =Z11 -> 0 | R24: =AE11 -> 0 | S24: =AJ11 -> 0 | T24: =AO11 -> 0 | U24: =AT11 -> 0
A25: 12 | B25: 2094 | C25: 13 | D25: 2102 | E25: 13 | F25: 2106 | K25: 0 | L25: 111 | O25: % target
A26: 12 | B26: 2201 | C26: 24 | D26: 2204 | E26: 24 | F26: 2209 | K26: 0 | L26: 122 | O26: CCRF
A27: 12 | B27: 2347 | C27: 24 | D27: 2353 | E27: 24 | F27: 2361 | K27: 0 | L27: 122 | O27: % CCRf
A28: 12 | B28: 2486 | C28: 24 | D28: 2493 | E28: 24 | F28: 2506 | K28: 0 | L28: 122 | O28: average response rate | P28: =F38/P20 -> 118.09375 | Q28: =(F69-F38)/Q20 -> 116.483871 | R28: =(F101-F69)/R20 -> 122.3125 | S28: =(F133-F101)/S20 -> 126.25 | T28: =(F164-F133)/T20 -> 134.3225806 | U28: =(F196-F164)/U20 -> -609.625
A29: 12 | B29: 2606 | C29: 24 | D29: 2621 | E29: 24 | F29: 2627 | K29: 0 | L29: 122
A30: 12 | B30: 2722 | C30: 24 | D30: 2729 | E30: 24 | F30: 2735 | K30: 0 | L30: 122
A31: 12 | B31: 2840 | C31: 24 | D31: 2850 | E31: 24 | F31: 2859 | K31: 0 | L31: 122
A32: 12 | B32: 2971 | C32: 13 | D32: 2982 | E32: 24 | F32: 2993 | K32: 0 | L32: 112
A33: 12 | B33: 3116 | C33: 24 | D33: 3131 | E33: 24 | F33: 3139 | K33: 0 | L33: 122
A34: 12 | B34: 3247 | C34: 24 | D34: 3259 | E34: 24 | F34: 3271 | K34: 0 | L34: 122
A35: 12 | B35: 3393 | C35: 13 | D35: 3407 | E35: 24 | F35: 3411 | K35: 0 | L35: 112
A36: 12 | B36: 3515 | C36: 24 | D36: 3525 | E36: 24 | F36: 3538 | K36: 0 | L36: 122
A37: 21 | B37: 3657 | C37: 11 | D37: 3668 | E37: 22 | F37: 3672 | K37: 0 | L37: 212
A38: 21 | B38: 3774 | C38: 11 | D38: 3777 | E38: 22 | F38: 3779 | K38: 0 | L38: 212
A39: 21 | B39: 3882 | C39: 22 | D39: 3886 | E39: 13 | F39: 3893 | K39: 0 | L39: 221
A40: 12 | B40: 3988 | C40: 24 | D40: 4003 | E40: 24 | F40: 4012 | K40: 0 | L40: 122
A41: 12 | B41: 4106 | C41: 13 | D41: 4116 | E41: 24 | F41: 4121 | K41: 0 | L41: 112
A42: 12 | B42: 4215 | C42: 13 | D42: 4221 | E42: 24 | F42: 4224 | K42: 0 | L42: 112
A43: 12 | B43: 4327 | C43: 24 | D43: 4332 | E43: 24 | F43: 4337 | K43: 0 | L43: 122
A44: 12 | B44: 4432 | C44: 24 | D44: 4444 | E44: 24 | F44: 4450 | K44: 0 | L44: 122
A45: 12 | B45: 4555 | C45: 13 | D45: 4560 | E45: 24 | F45: 4565 | K45: 0 | L45: 112
A46: 12 | B46: 4667 | C46: 13 | D46: 4671 | E46: 24 | F46: 4676 | K46: 0 | L46: 112
A47: 12 | B47: 4773 | C47: 24 | D47: 4781 | E47: 24 | F47: 4790 | K47: 0 | L47: 122
A48: 12 | B48: 4882 | C48: 13 | D48: 4892 | E48: 24 | F48: 4897 | K48: 0 | L48: 112
A49: 12 | B49: 4990 | C49: 13 | D49: 4997 | E49: 13 | F49: 5001 | K49: 0 | L49: 111
A50: 12 | B50: 5094 | C50: 13 | D50: 5103 | E50: 13 | F50: 5105 | K50: 0 | L50: 111
A51: 12 | B51: 5198 | C51: 24 | D51: 5203 | E51: 24 | F51: 5210 | K51: 0 | L51: 122
A52: 12 | B52: 5310 | C52: 24 | D52: 5320 | E52: 24 | F52: 5335 | K52: 0 | L52: 122
A53: 12 | B53: 5429 | C53: 24 | D53: 5446 | E53: 24 | F53: 5454 | K53: 0 | L53: 122
A54: 12 | B54: 5557 | C54: 24 | D54: 5570 | E54: 24 | F54: 5578 | K54: 0 | L54: 122
A55: 12 | B55: 5672 | C55: 13 | D55: 5677 | E55: 24 | F55: 5683 | K55: 0 | L55: 112
A56: 12 | B56: 5776 | C56: 24 | D56: 5785 | E56: 24 | F56: 5791 | K56: 0 | L56: 122
A57: 12 | B57: 5888 | C57: 13 | D57: 5891 | E57: 24 | F57: 5902 | K57: 0 | L57: 112
A58: 12 | B58: 6000 | C58: 24 | D58: 6006 | E58: 24 | F58: 6013 | K58: 0 | L58: 122
A59: 12 | B59: 6105 | C59: 13 | D59: 6113 | E59: 13 | F59: 6117 | K59: 0 | L59: 111
A60: 12 | B60: 6229 | C60: 13 | D60: 6233 | E60: 24 | F60: 6251 | K60: 0 | L60: 112
A61: 12 | B61: 6412 | C61: 13 | D61: 6417 | E61: 24 | F61: 6434 | K61: 0 | L61: 112
A62: 12 | B62: 6527 | C62: 13 | D62: 6539 | E62: 13 | F62: 6544 | K62: 0 | L62: 111
A63: 12 | B63: 6648 | C63: 24 | D63: 6661 | E63: 24 | F63: 6667 | K63: 0 | L63: 122
A64: 12 | B64: 6812 | C64: 13 | D64: 6825 | E64: 13 | F64: 6830 | K64: 0 | L64: 111
A65: 12 | B65: 6923 | C65: 24 | D65: 6937 | E65: 24 | F65: 6943 | K65: 0 | L65: 122
A66: 12 | B66: 7047 | C66: 13 | D66: 7051 | E66: 24 | F66: 7065 | K66: 0 | L66: 112
A67: 12 | B67: 7166 | C67: 13 | D67: 7168 | E67: 13 | F67: 7172 | K67: 0 | L67: 111
A68: 12 | B68: 7266 | C68: 13 | D68: 7274 | E68: 13 | F68: 7278 | K68: 0 | L68: 111
A69: 12 | B69: 7378 | C69: 24 | D69: 7384 | E69: 24 | F69: 7390 | K69: 0 | L69: 122
A70: 12 | B70: 7485 | C70: 24 | D70: 7491 | E70: 24 | F70: 7499 | K70: 0 | L70: 122
A71: 12 | B71: 7615 | C71: 13 | D71: 7620 | E71: 24 | F71: 7630 | K71: 0 | L71: 112
A72: 12 | B72: 7751 | C72: 13 | D72: 7756 | E72: 13 | F72: 7759 | K72: 0 | L72: 111
A73: 12 | B73: 7864 | C73: 24 | D73: 7876 | E73: 24 | F73: 7886 | K73: 0 | L73: 122
A74: 12 | B74: 7986 | C74: 13 | D74: 7989 | E74: 24 | F74: 8002 | K74: 0 | L74: 112
A75: 12 | B75: 8099 | C75: 24 | D75: 8104 | E75: 24 | F75: 8110 | K75: 0 | L75: 122
A76: 21 | B76: 8211 | C76: 22 | D76: 8218 | E76: 13 | F76: 8224 | K76: 0 | L76: 221
A77: 12 | B77: 8317 | C77: 13 | D77: 8323 | E77: 24 | F77: 8328 | K77: 0 | L77: 112
A78: 12 | B78: 8421 | C78: 24 | D78: 8430 | E78: 24 | F78: 8436 | K78: 0 | L78: 122
A79: 12 | B79: 8530 | C79: 13 | D79: 8540 | E79: 24 | F79: 8546 | K79: 0 | L79: 112
A80: 12 | B80: 8643 | C80: 24 | D80: 8649 | E80: 13 | F80: 8652 | K80: 0 | L80: 121
A81: 12 | B81: 8746 | C81: 24 | D81: 8757 | E81: 24 | F81: 8765 | K81: 0 | L81: 122
A82: 12 | B82: 9004 | C82: 13 | D82: 9011 | E82: 24 | F82: 9025 | K82: 0 | L82: 112
A83: 12 | B83: 9138 | C83: 24 | D83: 9151 | E83: 24 | F83: 9156 | K83: 0 | L83: 122
A84: 12 | B84: 9249 | C84: 13 | D84: 9257 | E84: 24 | F84: 9262 | K84: 0 | L84: 112
A85: 12 | B85: 9358 | C85: 13 | D85: 9361 | E85: 24 | F85: 9377 | K85: 0 | L85: 112
A86: 12 | B86: 9473 | C86: 13 | D86: 9477 | E86: 13 | F86: 9489 | K86: 0 | L86: 111
A87: 12 | B87: 9585 | C87: 13 | D87: 9588 | E87: 13 | F87: 9591 | K87: 0 | L87: 111
A88: 12 | B88: 9686 | C88: 24 | D88: 9691 | E88: 24 | F88: 9696 | K88: 0 | L88: 122
A89: 12 | B89: 9792 | C89: 13 | D89: 9796 | E89: 24 | F89: 9807 | K89: 0 | L89: 112
A90: 12 | B90: 9900 | C90: 13 | D90: 9906 | E90: 13 | F90: 9909 | K90: 0 | L90: 111
A91: 12 | B91: 10006 | C91: 13 | D91: 10011 | E91: 24 | F91: 10016 | K91: 0 | L91: 112
A92: 12 | B92: 10118 | C92: 24 | D92: 10121 | E92: 24 | F92: 10128 | K92: 0 | L92: 122
A93: 12 | B93: 10219 | C93: 13 | D93: 10224 | E93: 13 | F93: 10247 | K93: 0 | L93: 111
A94: 12 | B94: 10362 | C94: 13 | D94: 10368 | E94: 13 | F94: 10375 | K94: 0 | L94: 111
A95: 12 | B95: 10564 | C95: 13 | D95: 10573 | E95: 13 | F95: 10579 | K95: 0 | L95: 111
A96: 12 | B96: 10674 | C96: 24 | D96: 10683 | E96: 13 | F96: 10687 | K96: 0 | L96: 121
A97: 12 | B97: 10779 | C97: 24 | D97: 10791 | E97: 24 | F97: 10795 | K97: 0 | L97: 122
A98: 12 | B98: 10892 | C98: 24 | D98: 10898 | E98: 24 | F98: 10908 | K98: 0 | L98: 122
A99: 12 | B99: 11002 | C99: 13 | D99: 11010 | E99: 24 | F99: 11015 | K99: 0 | L99: 112
A100: 12 | B100: 11114 | C100: 13 | D100: 11117 | E100: 24 | F100: 11127 | K100: 0 | L100: 112
A101: 12 | B101: 11290 | C101: 13 | D101: 11301 | E101: 24 | F101: 11304 | K101: 0 | L101: 112
A102: 21 | B102: 11406 | C102: 11 | D102: 11410 | E102: 22 | F102: 11418 | K102: 0 | L102: 212
A103: 12 | B103: 11511 | C103: 24 | D103: 11523 | E103: 24 | F103: 11529 | K103: 0 | L103: 122
A104: 12 | B104: 11622 | C104: 24 | D104: 11632 | E104: 24 | F104: 11638 | K104: 0 | L104: 122
A105: 12 | B105: 11730 | C105: 13 | D105: 11740 | E105: 24 | F105: 11747 | K105: 0 | L105: 112
A106: 12 | B106: 11876 | C106: 13 | D106: 11889 | E106: 24 | F106: 11895 | K106: 0 | L106: 112
A107: 12 | B107: 11999 | C107: 13 | D107: 12003 | E107: 13 | F107: 12006 | K107: 0 | L107: 111
A108: 12 | B108: 12095 | C108: 24 | D108: 12105 | E108: 24 | F108: 12117 | K108: 0 | L108: 122
A109: 12 | B109: 12255 | C109: 24 | D109: 12268 | E109: 13 | F109: 12271 | K109: 0 | L109: 121
A110: 12 | B110: 12481 | C110: 24 | D110: 12496 | E110: 13 | F110: 12499 | K110: 0 | L110: 121
A111: 12 | B111: 12619 | C111: 24 | D111: 12635 | E111: 24 | F111: 12642 | K111: 0 | L111: 122
A112: 12 | B112: 12769 | C112: 13 | D112: 12776 | E112: 24 | F112: 12795 | K112: 0 | L112: 112
A113: 12 | B113: 12925 | C113: 24 | D113: 12931 | E113: 13 | F113: 12944 | K113: 0 | L113: 121
A114: 12 | B114: 13090 | C114: 13 | D114: 13093 | E114: 24 | F114: 13110 | K114: 0 | L114: 112
A115: 12 | B115: 13210 | C115: 13 | D115: 13214 | E115: 24 | F115: 13225 | K115: 0 | L115: 112
A116: 12 | B116: 13329 | C116: 13 | D116: 13332 | E116: 24 | F116: 13339 | K116: 0 | L116: 112
A117: 12 | B117: 13440 | C117: 13 | D117: 13443 | E117: 13 | F117: 13455 | K117: 0 | L117: 111
A118: 12 | B118: 13557 | C118: 24 | D118: 13567 | E118: 24 | F118: 13575 | K118: 0 | L118: 122
A119: 12 | B119: 13681 | C119: 24 | D119: 13684 | E119: 24 | F119: 13694 | K119: 0 | L119: 122
A120: 12 | B120: 13797 | C120: 24 | D120: 13810 | E120: 13 | F120: 13815 | K120: 0 | L120: 121
A121: 12 | B121: 13942 | C121: 13 | D121: 13946 | E121: 24 | F121: 13970 | K121: 0 | L121: 112
A122: 12 | B122: 14095 | C122: 24 | D122: 14106 | E122: 24 | F122: 14115 | K122: 0 | L122: 122
A123: 12 | B123: 14214 | C123: 24 | D123: 14220 | E123: 24 | F123: 14226 | K123: 0 | L123: 122
A124: 12 | B124: 14318 | C124: 13 | D124: 14329 | E124: 24 | F124: 14340 | K124: 0 | L124: 112
A125: 12 | B125: 14434 | C125: 13 | D125: 14440 | E125: 24 | F125: 14445 | K125: 0 | L125: 112
A126: 12 | B126: 14541 | C126: 24 | D126: 14548 | E126: 13 | F126: 14552 | K126: 0 | L126: 121
A127: 12 | B127: 14647 | C127: 13 | D127: 14651 | E127: 24 | F127: 14654 | K127: 0 | L127: 112
A128: 12 | B128: 14753 | C128: 13 | D128: 14759 | E128: 24 | F128: 14773 | K128: 0 | L128: 112
A129: 12 | B129: 14882 | C129: 13 | D129: 14885 | E129: 13 | F129: 14888 | K129: 0 | L129: 111
A130: 21 | B130: 15000 | C130: 22 | D130: 15005 | E130: 24 | F130: 15011 | K130: 0 | L130: 222
A131: 12 | B131: 15105 | C131: 24 | D131: 15112 | E131: 24 | F131: 15118 | K131: 0 | L131: 122
A132: 12 | B132: 15216 | C132: 24 | D132: 15222 | E132: 24 | F132: 15232 | K132: 0 | L132: 122
A133: 12 | B133: 15326 | C133: 13 | D133: 15334 | E133: 24 | F133: 15344 | K133: 0 | L133: 112
A134: 12 | B134: 15440 | C134: 24 | D134: 15445 | E134: 24 | F134: 15453 | K134: 0 | L134: 122
A135: 12 | B135: 15549 | C135: 24 | D135: 15553 | E135: 24 | F135: 15559 | K135: 0 | L135: 122
A136: 12 | B136: 15655 | C136: 24 | D136: 15660 | E136: 24 | F136: 15667 | K136: 0 | L136: 122
A137: 12 | B137: 15759 | C137: 13 | D137: 15767 | E137: 13 | F137: 15771 | K137: 0 | L137: 111
A138: 12 | B138: 15873 | C138: 24 | D138: 15882 | E138: 24 | F138: 15890 | K138: 0 | L138: 122
A139: 12 | B139: 15984 | C139: 13 | D139: 15989 | E139: 24 | F139: 15994 | K139: 0 | L139: 112
A140: 12 | B140: 16089 | C140: 13 | D140: 16096 | E140: 24 | F140: 16101 | K140: 0 | L140: 112
A141: 12 | B141: 16210 | C141: 24 | D141: 16225 | E141: 24 | F141: 16230 | K141: 0 | L141: 122
A142: 12 | B142: 16335 | C142: 13 | D142: 16343 | E142: 13 | F142: 16349 | K142: 0 | L142: 111
A143: 12 | B143: 16446 | C143: 13 | D143: 16452 | E143: 24 | F143: 16465 | K143: 0 | L143: 112
A144: 12 | B144: 16558 | C144: 13 | D144: 16568 | E144: 13 | F144: 16569 | K144: 0 | L144: 111
A145: 12 | B145: 16667 | C145: 13 | D145: 16670 | E145: 24 | F145: 16679 | K145: 0 | L145: 112
A146: 12 | B146: 16771 | C146: 13 | D146: 16777 | E146: 13 | F146: 16781 | K146: 0 | L146: 111
A147: 12 | B147: 16879 | C147: 13 | D147: 16882 | E147: 24 | F147: 16893 | K147: 0 | L147: 112
A148: 12 | B148: 16987 | C148: 24 | D148: 17002 | E148: 24 | F148: 17008 | K148: 0 | L148: 122
A149: 12 | B149: 17107 | C149: 24 | D149: 17110 | E149: 24 | F149: 17116 | K149: 0 | L149: 122
A150: 21 | B150: 17226 | C150: 22 | D150: 17232 | E150: 24 | F150: 17241 | K150: 0 | L150: 222
A151: 12 | B151: 17333 | C151: 13 | D151: 17342 | E151: 24 | F151: 17346 | K151: 0 | L151: 112
A152: 12 | B152: 17443 | C152: 13 | D152: 17448 | E152: 24 | F152: 17455 | K152: 0 | L152: 112
A153: 21 | B153: 17559 | C153: 11 | D153: 17562 | E153: 22 | F153: 17564 | K153: 0 | L153: 212
A154: 12 | B154: 17691 | C154: 24 | D154: 17704 | E154: 13 | F154: 17708 | K154: 0 | L154: 121
A155: 12 | B155: 17852 | C155: 13 | D155: 17857 | E155: 13 | F155: 17862 | K155: 0 | L155: 111
A156: 12 | B156: 17955 | C156: 24 | D156: 17962 | E156: 24 | F156: 17969 | K156: 0 | L156: 122
A157: 12 | B157: 18080 | C157: 24 | D157: 18091 | E157: 24 | F157: 18096 | K157: 0 | L157: 122
A158: 12 | B158: 18216 | C158: 24 | D158: 18227 | E158: 13 | F158: 18233 | K158: 0 | L158: 121
A159: 12 | B159: 18781 | C159: 13 | D159: 18785 | E159: 24 | F159: 18806 | K159: 0 | L159: 112
A160: 12 | B160: 18901 | C160: 24 | D160: 18908 | E160: 24 | F160: 18915 | K160: 0 | L160: 122
A161: 12 | B161: 19012 | C161: 24 | D161: 19022 | E161: 24 | F161: 19029 | K161: 0 | L161: 122
A162: 12 | B162: 19122 | C162: 24 | D162: 19135 | E162: 24 | F162: 19139 | K162: 0 | L162: 122
A163: 12 | B163: 19285 | C163: 24 | D163: 19299 | E163: 24 | F163: 19312 | K163: 0 | L163: 122
A164: 12 | B164: 19490 | C164: 24 | D164: 19505 | E164: 13 | F164: 19508 | K164: 0 | L164: 121
A165: 12 | B165: 19611 | C165: 13 | D165: 19624 | E165: 24 | F165: 19630 | K165: 0 | L165: 112
A166: 12 | B166: 19723 | C166: 24 | D166: 19735 | E166: 24 | F166: 19744 | K166: 0 | L166: 122
A167: 12 | B167: 19868 | C167: 24 | D167: 19882 | E167: 13 | F167: 19892 | K167: 0 | L167: 121
A168: 12 | B168: 19984 | C168: 13 | D168: 19995 | E168: 24 | F168: 20009 | K168: 0 | L168: 112
A169: 12 | B169: 20139 | C169: 24 | D169: 20152 | E169: 13 | F169: 20155 | K169: 0 | L169: 121
A170: 12 | B170: 20340 | C170: 24 | D170: 20351 | E170: 24 | F170: 20358 | K170: 0 | L170: 122
A171: 12 | B171: 20468 | C171: 24 | D171: 20482 | E171: 24 | F171: 20491 | K171: 0 | L171: 122
A172: 12 | B172: 20588 | C172: 13 | D172: 20591 | E172: 24 | F172: 20603 | K172: 0 | L172: 112
A173: 12 | B173: 20696 | C173: 24 | D173: 20712 | E173: 24 | F173: 20719 | K173: 0 | L173: 122
A174: 21 | B174: 20851 | C174: 22 | D174: 20858 | E174: 24 | F174: 20868 | K174: 0 | L174: 222
A175: 12 | B175: 20965 | C175: 24 | D175: 20976 | E175: 24 | F175: 20980 | K175: 0 | L175: 122
A176: 12 | B176: 21079 | C176: 13 | D176: 21085 | E176: 24 | F176: 21092 | K176: 0 | L176: 112
A177: 12 | B177: 21191 | C177: 13 | D177: 21195 | E177: 24 | F177: 21206 | K177: 0 | L177: 112
A178: 12 | B178: 21304 | C178: 24 | D178: 21306 | E178: 24 | F178: 21311 | K178: 0 | L178: 122
A179: 12 | B179: 21579 | C179: 24 | D179: 21604 | E179: 24 | F179: 21624 | K179: 0 | L179: 122
A180: 12 | B180: 21720 | C180: 24 | D180: 21727 | E180: 13 | F180: 21731 | K180: 0 | L180: 121
A181: 12 | B181: 21835 | C181: 13 | D181: 21852 | E181: 24 | F181: 21859 | K181: 0 | L181: 112
A182: 12 | B182: 22026 | C182: 24 | D182: 22038 | E182: 24 | F182: 22062 | K182: 0 | L182: 122
A183: 12 | B183: 22228 | C183: 24 | D183: 22233 | E183: 24 | F183: 22240 | K183: 0 | L183: 122
A184: 12 | B184: 22347 | C184: 24 | D184: 22360 | E184: 24 | F184: 22373 | K184: 0 | L184: 122
A185: 12 | B185: 22466 | C185: 24 | D185: 22480 | E185: 13 | F185: 22483 | K185: 0 | L185: 121
A186: 12 | B186: 22575 | C186: 13 | D186: 22584 | E186: 13 | F186: 22587 | K186: 0 | L186: 111
A187: 12 | B187: 22687 | C187: 24 | D187: 22700 | E187: 24 | F187: 22711 | K187: 0 | L187: 122
A188: 12 | B188: 22817 | C188: 24 | D188: 22823 | E188: 24 | F188: 22831 | K188: 0 | L188: 122
A189: 12 | B189: 22931 | C189: 13 | D189: 22935 | E189: 24 | F189: 22945 | K189: 0 | L189: 112
A190: 12 | B190: 23040 | C190: 24 | D190: 23047 | E190: 24 | F190: 23054 | K190: 0 | L190: 122
A191: 12 | B191: 23173 | C191: 13 | D191: 23191 | E191: 24 | F191: 23198 | K191: 0 | L191: 112
A192: 12 | B192: 23408 | C192: 24 | D192: 23420 | E192: 24 | F192: 23426 | K192: 0 | L192: 122
A193: 12 | B193: 23593 | C193: 24 | D193: 23605 | E193: 13 | F193: 23610 | K193: 0 | L193: 121
A194: 12 | B194: 23732 | C194: 13 | D194: 23740 | E194: 24 | F194: 23750 | K194: 0 | L194: 112
A195: 12 | B195: 23874 | C195: 13 | D195: 23888 | E195: 24 | F195: 23901 | K195: 0 | L195: 112
A196: 12 | B196: 23994 | C196: 24 | D196: 24001 | L196: 12

Sheet !N130920.Gus
A1: Report for:!N130920.Gus
A2: Date: | B2: <date>
A3: Hen: | B3: <hen> | F3: Correct Sequence | G3: =Start!J2 -> 211 | P3: Total Sequences in Data | Q3: =4994-COUNTBLANK(L7:L5000) -> 189 | V3: Total Sequences in Block Data | W3: =COUNTA(L7:L38) -> 32 | AA3: Total Sequences in Block Data | AB3: =COUNTA(L39:L69) -> 31 | AF3: Total Sequences in Block Data | AG3: =COUNTA(L70:L101) -> 32 | AK3: Total Sequences in Block Data | AL3: =COUNTA(L102:L132) -> 31 | AP3: Total Sequences in Block Data | AQ3: =COUNTA(L133:L164) -> 32 | AU3: Total Sequences in Block Data | AV3: =COUNTA(L165:L195) -> 31
P4: Total Sequences in Summary | Q4: =SUM(O7:O14) -> 189 | V4: Total Sequences in Block Summary | W4: =SUM(U7:U14) -> 32 | AA4: Total Sequences in Block Summary | AB4: =SUM(Z7:Z14) -> 31 | AF4: Total Sequences in Block Summary | AG4: =SUM(AE7:AE14) -> 32 | AK4: Total Sequences in Block Summary | AL4: =SUM(AJ7:AJ14) -> 31 | AP4: Total Sequences in Block Summary | AQ4: =SUM(AO7:AO14) -> 32 | AU4: Total Sequences in Block Summary | AV4: =SUM(AT7:AT14) -> 31
T5: Block 1 | Y5: Block 2 | AD5: Block 3 | AI5: Block 4 | AN5: Block 5 | AS5: Block 6
A6: Sequence Component 1 | B6: Time 1 | C6: Sequence Component 2 | D6: Time 2 | E6: Sequence Component 3 | F6: Time 3 | G6: Sequence Component 4 | H6: Time 4 | I6: Sequence Component 5 | J6: Time 5 | K6: Correct? 0=No 1=Yes | L6: Sequence | N6: Frequency | P6: Relative Frequency | Q6: Variability | T6: Frequency | V6: Relative Frequency | W6: Variability | Y6: Frequency | AA6: Relative Frequency | AB6: Variability | AD6: Frequency | AF6: Relative Frequency | AG6: Variability | AI6: Frequency | AK6: Relative Frequency | AL6: Variability | AN6: Frequency | AP6: Relative Frequency | AQ6: Variability | AS6: Frequency | AU6: Relative Frequency | AV6: Variability
A7: 12 | B7: 14 | C7: 13 | D7: 19 | E7: 13 | F7: 23 | K7: 0 | L7: 111 | N7: 111 | O7: =COUNTIF($L$7:$L$500,N7) -> 7 | P7: =O7/$Q$4 -> 0.03703703704 | Q7: =IF(P7=0,0,(P7*((LOG(P7))/LOG(2)))) -> -0.1761069445 | T7: =N7 -> 111 | U7: =COUNTIF(L7:L38,T7) -> 2 | V7: =U7/(W4-U11) -> 0.0625 | W7: =IF(V7=0,0,(V7*((LOG(V7))/LOG(2)))) -> -0.25 | Y7: =N7 -> 111 | Z7: =COUNTIF(L39:L69,Y7) -> 0 | AA7: =Z7/(AB4-Z11) -> 0 | AB7: =IF(AA7=0,0,(AA7*((LOG(AA7))/LOG(2)))) -> 0 | AD7: =N7 -> 111 | AE7: =COUNTIF(L70:L101,AD7) -> 0 | AF7: =AE7/(AG4-AE11) -> 0 | AG7: =IF(AF7=0,0,(AF7*((LOG(AF7))/LOG(2)))) -> 0 | AI7: =N7 -> 111 | AJ7: =COUNTIF(L102:L132,AI7) -> 2 | AK7: =AJ7/(AL4-AJ11) -> 0.06451612903 | AL7: =IF(AK7=0,0,(AK7*((LOG(AK7))/LOG(2)))) -> -0.2551094394 | AN7: =N7 -> 111 | AO7: =COUNTIF(L133:L164,AN7) -> 3 | AP7: =AO7/(AQ4-AO11) -> 0.09375 | AQ7: =IF(AP7=0,0,(AP7*((LOG(AP7))/LOG(2)))) -> -0.3201597656 | AS7: =N7 -> 111 | AT7: =COUNTIF(L165:L195,AS7) -> 0 | AU7: =AT7/(AV4-AT11) -> 0 | AV7: =IF(AU7=0,0,(AU7*((LOG(AU7))/LOG(2)))) -> 0
A8: 12 | B8: 119 | C8: 24 | D8: 125 | E8: 24 | F8: 133 | K8: 0 | L8: 122 | N8: 112 | O8: =COUNTIF($L$7:$L$500,N8) -> 41 | P8: =O8/$Q$4 -> 0.2169312169 | Q8: =IF(P8=0,0,(P8*((LOG(P8))/LOG(2)))) -> -0.4782661757 | T8: =N8 -> 112 | U8: =COUNTIF(L7:L38,T8) -> 11 | V8: =U8/(W4-U11) -> 0.34375 | W8: =IF(V8=0,0,(V8*((LOG(V8))/LOG(2)))) -> -0.5295703811 | Y8: =N8 -> 112 | Z8: =COUNTIF(L39:L69,Y8) -> 4 | AA8: =Z8/(AB4-Z11) -> 0.1290322581 | AB8: =IF(AA8=0,0,(AA8*((LOG(AA8))/LOG(2)))) -> -0.3811866207 | AD8: =N8 -> 112 | AE8: =COUNTIF(L70:L101,AD8) -> 3 | AF8: =AE8/(AG4-AE11) -> 0.09375 | AG8: =IF(AF8=0,0,(AF8*((LOG(AF8))/LOG(2)))) -> -0.3201597656 | AI8: =N8 -> 112 | AJ8: =COUNTIF(L102:L132,AI8) -> 5 | AK8: =AJ8/(AL4-AJ11) -> 0.1612903226 | AL8: =IF(AK8=0,0,(AK8*((LOG(AK8))/LOG(2)))) -> -0.4245593896 | AN8: =N8 -> 112 | AO8: =COUNTIF(L133:L164,AN8) -> 10 | AP8: =AO8/(AQ4-AO11) -> 0.3125 | AQ8: =IF(AP8=0,0,(AP8*((LOG(AP8))/LOG(2)))) -> -0.5243974703 | AS8: =N8 -> 112 | AT8: =COUNTIF(L165:L195,AS8) -> 8 | AU8: =AT8/(AV4-AT11) -> 0.2580645161 | AV8: =IF(AU8=0,0,(AU8*((LOG(AU8))/LOG(2)))) -> -0.5043087253
A9: 12 | B9: 232 | C9: 13 | D9: 235 | E9: 24 | F9: 245 | K9: 0 | L9: 112 | N9: 121 | O9: =COUNTIF($L$7:$L$500,N9) -> 14 | P9: =O9/$Q$4 -> 0.07407407407 | Q9: =IF(P9=0,0,(P9*((LOG(P9))/LOG(2)))) -> -0.278139815 | T9: =N9 -> 121 | U9: =COUNTIF(L7:L38,T9) -> 2 | V9: =U9/(W4-U11) -> 0.0625 | W9: =IF(V9=0,0,(V9*((LOG(V9))/LOG(2)))) -> -0.25 | Y9: =N9 -> 121 | Z9: =COUNTIF(L39:L69,Y9) -> 1 | AA9: =Z9/(AB4-Z11) -> 0.03225806452 | AB9: =IF(AA9=0,0,(AA9*((LOG(AA9))/LOG(2)))) -> -0.1598127842 | AD9: =N9 -> 121 | AE9: =COUNTIF(L70:L101,AD9) -> 2 | AF9: =AE9/(AG4-AE11) -> 0.0625 | AG9: =IF(AF9=0,0,(AF9*((LOG(AF9))/LOG(2)))) -> -0.25 | AI9: =N9 -> 121 | AJ9: =COUNTIF(L102:L132,AI9) -> 3 | AK9: =AJ9/(AL4-AJ11) -> 0.09677419355 | AL9: =IF(AK9=0,0,(AK9*((LOG(AK9))/LOG(2)))) -> -0.3260548848 | AN9: =N9 -> 121 | AO9: =COUNTIF(L133:L164,AN9) -> 5 | AP9: =AO9/(AQ4-AO11) -> 0.15625 | AQ9: =IF(AP9=0,0,(AP9*((LOG(AP9))/LOG(2)))) -> -0.4184487352 | AS9: =N9 -> 121 | AT9: =COUNTIF(L165:L195,AS9) -> 1 | AU9: =AT9/(AV4-AT11) -> 0.03225806452 | AV9: =IF(AU9=0,0,(AU9*((LOG(AU9))/LOG(2)))) -> -0.1598127842
A10: 12 | B10: 342 | C10: 13 | D10: 350 | E10: 24 | F10: 362 | K10: 0 | L10: 112 | N10: 122 | O10: =COUNTIF($L$7:$L$500,N10) -> 87 | P10: =O10/$Q$4 -> 0.4603174603 | Q10: =IF(P10=0,0,(P10*((LOG(P10))/LOG(2)))) -> -0.51523284 | T10: =N10 -> 122 | U10: =COUNTIF(L7:L38,T10) -> 10 | V10: =U10/(W4-U11) -> 0.3125 | W10: =IF(V10=0,0,(V10*((LOG(V10))/LOG(2)))) -> -0.5243974703 | Y10: =N10 -> 122 | Z10: =COUNTIF(L39:L69,Y10) -> 18 | AA10: =Z10/(AB4-Z11) -> 0.5806451613 | AB10: =IF(AA10=0,0,(AA10*((LOG(AA10))/LOG(2)))) -> -0.4553833407 | AD10: =N10 -> 122 | AE10: =COUNTIF(L70:L101,AD10) -> 21 | AF10: =AE10/(AG4-AE11) -> 0.65625 | AG10: =IF(AF10=0,0,(AF10*((LOG(AF10))/LOG(2)))) -> -0.3987916913 | AI10: =N10 -> 122 | AJ10: =COUNTIF(L102:L132,AI10) -> 19 | AK10: =AJ10/(AL4-AJ11) -> 0.6129032258 | AL10: =IF(AK10=0,0,(AK10*((LOG(AK10))/LOG(2)))) -> -0.4328744239 | AN10: =N10 -> 122 | AO10: =COUNTIF(L133:L164,AN10) -> 7 | AP10: =AO10/(AQ4-AO11) -> 0.21875 | AQ10: =IF(AP10=0,0,(AP10*((LOG(AP10))/LOG(2)))) -> -0.4796411108 | AS10: =N10 -> 122 | AT10: =COUNTIF(L165:L195,AS10) -> 12 | AU10: =AT10/(AV4-AT11) -> 0.3870967742 | AV10: =IF(AU10=0,0,(AU10*((LOG(AU10))/LOG(2)))) -> -0.5300259908
A11: 21 | B11: 465 | C11: 11 | D11: 468 | E11: 22 | F11: 471 | K11: 0 | L11: 212 | N11: 211 | O11: =COUNTIF($L$7:$L$500,N11) -> 0 | P11: =O11/$Q$4 -> 0 | Q11: =IF(P11=0,0,(P11*((LOG(P11))/LOG(2)))) -> 0 | T11: =N11 -> 211 | U11: =COUNTIF(L7:L38,T11) -> 0 | Y11: =N11 -> 211 | Z11: =COUNTIF(L39:L69,Y11) -> 0 | AD11: =N11 -> 211 | AE11: =COUNTIF(L70:L101,AD11) -> 0 | AI11: =N11 -> 211 | AJ11: =COUNTIF(L102:L132,AI11) -> 0 | AN11: =N11 -> 211 | AO11: =COUNTIF(L133:L164,AN11) -> 0 | AS11: =N11 -> 211 | AT11: =COUNTIF(L165:L195,AS11) -> 0
A12: 12 | B12: 566 | C12: 13 | D12: 570 | E12: 24 | F12: 573 | K12: 0 | L12: 112 | N12: 212 | O12: =COUNTIF($L$7:$L$500,N12) -> 14 | P12: =O12/$Q$4 -> 0.07407407407 | Q12: =IF(P12=0,0,(P12*((LOG(P12))/LOG(2)))) -> -0.278139815 | T12: =N12 -> 212 | U12: =COUNTIF(L7:L38,T12) -> 2 | V12: =U12/(W4-U11) -> 0.0625 | W12: =IF(V12=0,0,(V12*((LOG(V12))/LOG(2)))) -> -0.25 | Y12: =N12 -> 212 | Z12: =COUNTIF(L39:L69,Y12) -> 2 | AA12: =Z12/(AB4-Z11) -> 0.06451612903 | AB12: =IF(AA12=0,0,(AA12*((LOG(AA12))/LOG(2)))) -> -0.2551094394 | AD12: =N12 -> 212 | AE12: =COUNTIF(L70:L101,AD12) -> 3 | AF12: =AE12/(AG4-AE11) -> 0.09375 | AG12: =IF(AF12=0,0,(AF12*((LOG(AF12))/LOG(2)))) -> -0.3201597656 | AI12: =N12 -> 212 | AJ12: =COUNTIF(L102:L132,AI12) -> 0 | AK12: =AJ12/(AL4-AJ11) -> 0 | AL12: =IF(AK12=0,0,(AK12*((LOG(AK12))/LOG(2)))) -> 0 | AN12: =N12 -> 212 | AO12: =COUNTIF(L133:L164,AN12) -> 2 | AP12: =AO12/(AQ4-AO11) -> 0.0625 | AQ12: =IF(AP12=0,0,(AP12*((LOG(AP12))/LOG(2)))) -> -0.25 | AS12: =N12 -> 212 | AT12: =COUNTIF(L165:L195,AS12) -> 5 | AU12: =AT12/(AV4-AT11) -> 0.1612903226 | AV12: =IF(AU12=0,0,(AU12*((LOG(AU12))/LOG(2)))) -> -0.4245593896
A13: 12 | B13: 676 | C13: 13 | D13: 692 | E13: 24 | F13: 696 | K13: 0 | L13: 112 | N13: 221 | O13: =COUNTIF($L$7:$L$500,N13) -> 6 | P13: =O13/$Q$4 -> 0.03174603175 | Q13: =IF(P13=0,0,(P13*((LOG(P13))/LOG(2)))) -> -0.1580088865 | T13: =N13 -> 221 | U13: =COUNTIF(L7:L38,T13) -> 2 | V13: =U13/(W4-U11) -> 0.0625 | W13: =IF(V13=0,0,(V13*((LOG(V13))/LOG(2)))) -> -0.25 | Y13: =N13 -> 221 | Z13: =COUNTIF(L39:L69,Y13) -> 0 | AA13: =Z13/(AB4-Z11) -> 0 | AB13: =IF(AA13=0,0,(AA13*((LOG(AA13))/LOG(2)))) -> 0 | AD13: =N13 -> 221 | AE13: =COUNTIF(L70:L101,AD13) -> 0 | AF13: =AE13/(AG4-AE11) -> 0 | AG13: =IF(AF13=0,0,(AF13*((LOG(AF13))/LOG(2)))) -> 0 | AI13: =N13 -> 221 | AJ13: =COUNTIF(L102:L132,AI13) -> 1 | AK13: =AJ13/(AL4-AJ11) -> 0.03225806452 | AL13: =IF(AK13=0,0,(AK13*((LOG(AK13))/LOG(2)))) -> -0.1598127842 | AN13: =N13 -> 221 | AO13: =COUNTIF(L133:L164,AN13) -> 1 | AP13: =AO13/(AQ4-AO11) -> 0.03125 | AQ13: =IF(AP13=0,0,(AP13*((LOG(AP13))/LOG(2)))) -> -0.15625 | AS13: =N13 -> 221 | AT13: =COUNTIF(L165:L195,AS13) -> 2 | AU13: =AT13/(AV4-AT11) -> 0.06451612903 | AV13: =IF(AU13=0,0,(AU13*((LOG(AU13))/LOG(2)))) -> -0.2551094394
A14: 12 | B14: 814 | C14: 24 | D14: 820 | E14: 24 | F14: 824 | K14: 0 | L14: 122 | N14: 222 | O14: =COUNTIF($L$7:$L$500,N14) -> 20 | P14: =O14/$Q$4 -> 0.1058201058 | Q14: =IF(P14=0,0,(P14*((LOG(P14))/LOG(2)))) -> -0.3428904052 | T14: =N14 -> 222 | U14: =COUNTIF(L7:L38,T14) -> 3 | V14: =U14/(W4-U11) -> 0.09375 | W14: =IF(V14=0,0,(V14*((LOG(V14))/LOG(2)))) -> -0.3201597656 | Y14: =N14 -> 222 | Z14: =COUNTIF(L39:L69,Y14) -> 6 | AA14: =Z14/(AB4-Z11) -> 0.1935483871 | AB14: =IF(AA14=0,0,(AA14*((LOG(AA14))/LOG(2)))) -> -0.4585613825 | AD14: =N14 -> 222 | AE14: =COUNTIF(L70:L101,AD14) -> 3 | AF14: =AE14/(AG4-AE11) -> 0.09375 | AG14: =IF(AF14=0,0,(AF14*((LOG(AF14))/LOG(2)))) -> -0.3201597656 | AI14: =N14 -> 222 | AJ14: =COUNTIF(L102:L132,AI14) -> 1 | AK14: =AJ14/(AL4-AJ11) -> 0.03225806452 | AL14: =IF(AK14=0,0,(AK14*((LOG(AK14))/LOG(2)))) -> -0.1598127842 | AN14: =N14 -> 222 | AO14: =COUNTIF(L133:L164,AN14) -> 4 | AP14: =AO14/(AQ4-AO11) -> 0.125 | AQ14: =IF(AP14=0,0,(AP14*((LOG(AP14))/LOG(2)))) -> -0.375 | AS14: =N14 -> 222 | AT14: =COUNTIF(L165:L195,AS14) -> 3 | AU14: =AT14/(AV4-AT11) -> 0.09677419355 | AV14: =IF(AU14=0,0,(AU14*((LOG(AU14))/LOG(2)))) -> -0.3260548848
A15: 12 | B15: 939 | C15: 13 | D15: 957 | E15: 24 | F15: 963 | K15: 0 | L15: 112 | P15: =SUM(P7:P14) -> 1 | Q15: =-SUM(Q7:Q14) -> 2.226784882 | V15: =SUM(V7:V14) -> 1 | W15: =-SUM(W7:W14) -> 2.374127617 | AA15: =SUM(AA7:AA14) -> 1 | AB15: =-SUM(AB7:AB14) -> 1.710053567 | AF15: =SUM(AF7:AF14) -> 1 | AG15: =-SUM(AG7:AG14) -> 1.609270988 | AK15: =SUM(AK7:AK14) -> 1 | AL15: =-SUM(AL7:AL14) -> 1.758223706 | AP15: =SUM(AP7:AP14) -> 1 | AQ15: =-SUM(AQ7:AQ14) -> 2.523897082 | AU15: =SUM(AU7:AU14) -> 1 | AV15: =-SUM(AV7:AV14) -> 2.199871214
A16: 12 | B16: 1070 | C16: 24 | D16: 1086 | E16: 24 | F16: 1093 | K16: 0 | L16: 122 | P16: U= | Q16: =Q15/(LOG(Q4)/LOG(2)) -> 0.2944609227 | V16: U1= | W16: =W15/(LOG(W4)/LOG(2)) -> 0.4748255234 | AA16: U2= | AB16: =AB15/(LOG(AB4)/LOG(2)) -> 0.3451727506 | AF16: U3= | AG16: =AG15/(LOG(AG4)/LOG(2)) -> 0.3218541976 | AK16: U4= | AL16: =AL15/(LOG(AL4)/LOG(2)) -> 0.3548958491 | AP16: U5= | AQ16: =AQ15/(LOG(AQ4)/LOG(2)) -> 0.5047794164 | AU16: U6= | AV16: =AV15/(LOG(AV4)/LOG(2)) -> 0.4440419952
A17: 12 | B17: 1199 | C17: 24 | D17: 1212 | E17: 24 | F17: 1221 | K17: 0 | L17: 122
A18: 12 | B18: 1330 | C18: 24 | D18: 1334 | E18: 24 | F18: 1341 | K18: 0 | L18: 122
A19: 12 | B19: 1437 | C19: 24 | D19: 1447 | E19: 13 | F19: 1453 | K19: 0 | L19: 121 | N19: Total Target Seq
A20: 21 | B20: 1552 | C20: 22 | D20: 1557 | E20: 13 | F20: 1559 | K20: 0 | L20: 221 | N20: =COUNTIF(L7:L195,G3) -> 0 | P20: 32 | Q20: 31 | R20: 32 | S20: 31 | T20: 32 | U20: 31
A21: 12 | B21: 1703 | C21: 13 | D21: 1721 | E21: 24 | F21: 1726 | K21: 0 | L21: 112 | P21: % of reinforcement given in 6 equal intervals based on number of trials
A22: 21 | B22: 1843 | C22: 11 | D22: 1847 | E22: 22 | F22: 1850 | K22: 0 | L22: 212 | P22: %_1 | Q22: %_2 | R22: %_3 | S22: %_4 | T22: %_5 | U22: %_6
A23: 21 | B23: 1958 | C23: 22 | D23: 1964 | E23: 24 | F23: 1972 | K23: 0 | L23: 222 | O23: target sequence | P23: =$G$3 -> 211 | Q23: =$G$3 -> 211 | R23: =$G$3 -> 211 | S23: =$G$3 -> 211 | T23: =$G$3 -> 211 | U23: =$G$3 -> 211
A24: 12 | B24: 2070 | C24: 24 | D24: 2075 | E24: 24 | F24: 2081 | K24: 0 | L24: 122 | O24: total reinforcement | P24: =U11 -> 0 | Q24: =Z11 -> 0 | R24: =AE11 -> 0 | S24: =AJ11 -> 0 | T24: =AO11 -> 0 | U24: =AT11 -> 0
A25: 12 | B25: 2175 | C25: 13 | D25: 2187 | E25: 24 | F25: 2190 | K25: 0 | L25: 112 | O25: % target
A26: 12 | B26: 2283 | C26: 13 | D26: 2292 | E26: 24 | F26: 2298 | K26: 0 | L26: 112 | O26: CCRF
A27: 21 | B27: 2406 | C27: 22 | D27: 2412 | E27: 13 | F27: 2417 | K27: 0 | L27: 221 | O27: % CCRf
A28: 21 | B28: 2515 | C28: 22 | D28: 2519 | E28: 24 | F28: 2526 | K28: 0 | L28: 222 | O28: average response rate | P28: =F38/P20 -> 121.03125 | Q28: =(F69-F38)/Q20 -> 127.9354839 | R28: =(F101-F69)/R20 -> 121.34375 | S28: =(F132-F101)/S20 -> 128.5483871 | T28: =(F164-F132)/T20 -> 124.8125 | U28: =(F195-F164)/U20 -> 135.2903226
A29: 12 | B29: 2674 | C29: 13 | D29: 2688 | E29: 24 | F29: 2692 | K29: 0 | L29: 112
A30: 12 | B30: 2794 | C30: 24 | D30: 2801 | E30: 24 | F30: 2806 | K30: 0 | L30: 122
A31: 12 | B31: 2984 | C31: 24 | D31: 2992 | E31: 24 | F31: 2999 | K31: 0 | L31: 122
A32: 12 | B32: 3094 | C32: 24 | D32: 3101 | E32: 24 | F32: 3107 | K32: 0 | L32: 122
A33: 12 | B33: 3208 | C33: 24 | D33: 3218 | E33: 24 | F33: 3225 | K33: 0 | L33: 122
A34: 12 | B34: 3325 | C34: 13 | D34: 3327 | E34: 13 | F34: 3339 | K34: 0 | L34: 111
A35: 12 | B35: 3431 | C35: 13 | D35: 3439 | E35: 24 | F35: 3445 | K35: 0 | L35: 112
A36: 21 | B36: 3547 | C36: 22 | D36: 3554 | E36: 24 | F36: 3560 | K36: 0 | L36: 222
A37: 12 | B37: 3664 | C37: 24 | D37: 3675 | E37: 13 | F37: 3684 | K37: 0 | L37: 121
A38: 12 | B38: 3858 | C38: 13 | D38: 3869 | E38: 24 | F38: 3873 | K38: 0 | L38: 112
A39: 21 | B39: 4008 | C39: 22 | D39: 4015 | E39: 24 | F39: 4022 | K39: 0 | L39: 222
A40: 12 | B40: 4124 | C40: 24 | D40: 4140 | E40: 13 | F40: 4146 | K40: 0 | L40: 121
A41: 12 | B41: 4242 | C41: 24 | D41: 4258 | E41: 24 | F41: 4265 | K41: 0 | L41: 122
A42: 21 | B42: 4408 | C42: 22 | D42: 4410 | E42: 24 | F42: 4424 | K42: 0 | L42: 222
A43: 12 | B43: 4523 | C43: 13 | D43: 4535 | E43: 24 | F43: 4540 | K43: 0 | L43: 112
A44: 12 | B44: 4656 | C44: 24 | D44: 4671 | E44: 24 | F44: 4680 | K44: 0 | L44: 122
A45: 12 | B45: 4783 | C45: 24 | D45: 4796 | E45: 24 | F45: 4803 | K45: 0 | L45: 122
A46: 12 | B46: 4904 | C46: 24 | D46: 4910 | E46: 24 | F46: 4917 | K46: 0 | L46: 122
A47: 12 | B47: 5017 | C47: 24 | D47: 5027 | E47: 24 | F47: 5034 | K47: 0 | L47: 122
A48: 12 | B48: 5130 | C48: 24 | D48: 5133 | E48: 24 | F48: 5140 | K48: 0 | L48: 122
A49: 12 | B49: 5236 | C49: 24 | D49: 5242 | E49: 24 | F49: 5248 | K49: 0 | L49: 122
A50: 21 | B50: 5350 | C50: 22 | D50: 5354 | E50: 24 | F50: 5360 | K50: 0 | L50: 222
A51: 12 | B51: 5454 | C51: 13 | D51: 5462 | E51: 24 | F51: 5464 | K51: 0 | L51: 112
A52: 12 | B52: 5559 | C52: 24 | D52: 5567 | E52: 24 | F52: 5573 | K52: 0 | L52: 122
A53: 12 | B53: 5661 | C53: 24 | D53: 5672 | E53: 24 | F53: 5678 | K53: 0 | L53: 122
A54: 12 | B54: 5773 | C54: 13 | D54: 5781 | E54: 24 | F54: 5790 | K54: 0 | L54: 112
A55: 12 | B55: 5971 | C55: 24 | D55: 5975 | E55: 24 | F55: 5981 | K55: 0 | L55: 122
A56: 21 | B56: 6092 | C56: 22 | D56: 6101 | E56: 24 | F56: 6110 | K56: 0 | L56: 222
A57: 12 | B57: 6237 | C57: 24 | D57: 6247 | E57: 24 | F57: 6254 | K57: 0 | L57: 122
A58: 21 | B58: 6394 | C58: 11 | D58: 6402 | E58: 22 | F58: 6409 | K58: 0 | L58: 212
A59: 12 | B59: 6515 | C59: 24 | D59: 6520 | E59: 24 | F59: 6534 | K59: 0 | L59: 122
A60: 12 | B60: 6659 | C60: 24 | D60: 6662 | E60: 24 | F60: 6669 | K60: 0 | L60: 122
A61: 12 | B61: 6818 | C61: 24 | D61: 6819 | E61: 24 | F61: 6826 | K61: 0 | L61: 122
A62: 21 | B62: 6959 | C62: 22 | D62: 6965 | E62: 24 | F62: 6974 | K62: 0 | L62: 222
A63: 12 | B63: 7108 | C63: 24 | D63: 7110 | E63: 24 | F63: 7116 | K63: 0 | L63: 122
A64: 21 | B64: 7239 | C64: 11 | D64: 7241 | E64: 22 | F64: 7253 | K64: 0 | L64: 212
A65: 21 | B65: 7357 | C65: 22 | D65: 7363 | E65: 24 | F65: 7372 | K65: 0 | L65: 222
A66: 12 | B66: 7465 | C66: 13 | D66: 7475 | E66: 24 | F66: 7488 | K66: 0 | L66: 112
A67: 12 | B67: 7580 | C67: 24 | D67: 7592 | E67: 24 | F67: 7598 | K67: 0 | L67: 122
A68: 12 | B68: 7705 | C68: 24 | D68: 7716 | E68: 24 | F68: 7730 | K68: 0 | L68: 122
A69: 12 | B69: 7828 | C69: 24 | D69: 7831 | E69: 24 | F69: 7839 | K69: 0 | L69: 122
A70: 12 | B70: 7957 | C70: 24 | D70: 7970 | E70: 13 | F70: 7975 | K70: 0 | L70: 121
A71: 21 | B71: 8102 | C71: 22 | D71: 8108 | E71: 24 | F71: 8115 | K71: 0 | L71: 222
A72: 12 | B72: 8208 | C72: 24 | D72: 8217 | E72: 24 | F72: 8219 | K72: 0 | L72: 122
A73: 12 | B73: 8313 | C73: 24 | D73: 8320 | E73: 24 | F73: 8329 | K73: 0 | L73: 122
A74: 12 | B74: 8426 | C74: 24 | D74: 8431 | E74: 24 | F74: 8434 | K74: 0 | L74: 122
A75: 12 | B75: 8560 | C75: 24 | D75: 8575 | E75: 24 | F75: 8581 | K75: 0 | L75: 122
A76: 21 | B76: 8684 | C76: 22 | D76: 8689 | E76: 24 | F76: 8695 | K76: 0 | L76: 222
A77: 12 | B77: 8867 | C77: 24 | D77: 8881 | E77: 24 | F77: 8886 | K77: 0 | L77: 122
A78: 12 | B78: 8990 | C78: 24 | D78: 8994 | E78: 24 | F78: 8999 | K78: 0 | L78: 122
A79: 12 | B79: 9097 | C79: 24 | D79: 9101 | E79: 24 | F79: 9106 | K79: 0 | L79: 122
A80: 21 | B80: 9215 | C80: 11 | D80: 9220 | E80: 22 | F80: 9230 | K80: 0 | L80: 212
A81: 12 | B81: 9320 | C81: 24 | D81: 9330 | E81: 24 | F81: 9338 | K81: 0 | L81: 122
A82: 12 | B82: 9450 | C82: 24 | D82: 9462 | E82: 24 | F82: 9473 | K82: 0 | L82: 122
A83: 12 | B83: 9567 | C83: 24 | D83: 9579 | E83: 13 | F83: 9586 | K83: 0 | L83: 121
A84: 12 | B84: 9681 | C84: 24 | D84: 9684 | E84: 24 | F84: 9690 | K84: 0 | L84: 122
A85: 12 | B85: 9787 | C85: 24 | D85: 9793 | E85: 24 | F85: 9799 | K85: 0 | L85: 122
A86: 12 | B86: 9893 | C86: 13 | D86: 9908 | E86: 24 | F86: 9915 | K86: 0 | L86: 112
A87: 12 | B87: 10035 | C87: 24 | D87: 10042 | E87: 24 | F87: 10048 | K87: 0 | L87: 122
A88: 12 | B88: 10157 | C88: 24 | D88: 10166 | E88: 24 | F88: 10174 | K88: 0 | L88: 122
A89: 12 | B89: 10310 | C89: 13 | D89: 10320 | E89: 24 | F89: 10330 | K89: 0 | L89: 112
A90: 12 | B90: 10431 | C90: 24 | D90: 10433 | E90: 24 | F90: 10437 | K90: 0 | L90: 122
A91: 12 | B91: 10540 | C91: 24 | D91: 10550 | E91: 24 | F91: 10552 | K91: 0 | L91: 122
A92: 12 | B92: 10646 | C92: 24 | D92: 10652 | E92: 24 | F92: 10658 | K92: 0 | L92: 122
A93: 12 | B93: 10759 | C93: 24 | D93: 10769 | E93: 24 | F93: 10775 | K93: 0 | L93: 122
A94: 21 | B94: 10904 | C94: 11 | D94: 10906 | E94: 22 | F94: 10916 | K94: 0 | L94: 212
A95: 12 | B95: 11025 | C95: 24 | D95: 11031 | E95: 24 | F95: 11037 | K95: 0 | L95: 122
A96: 12 | B96: 11132 | C96: 24 | D96: 11141 | E96: 24 | F96: 11147 | K96: 0 | L96: 122
A97: 12 | B97: 11242 | C97: 24 | D97: 11246 | E97: 24 | F97: 11251 | K97: 0 | L97: 122
A98: 12 | B98: 11356 | C98: 13 | D98: 11359 | E98: 24 | F98: 11371 | K98: 0 | L98: 112
A99: 12 | B99: 11466 | C99: 24 | D99: 11469 | E99: 24 | F99: 11482 | K99: 0 | L99: 122
A100: 21 | B100: 11599 | C100: 11 | D100: 11602 | E100: 22 | F100: 11606 | K100: 0 | L100: 212
A101: 21 | B101: 11708 | C101: 22 | D101: 11714 | E101: 24 | F101: 11722 | K101: 0 | L101: 222
A102: 12 | B102: 11870 | C102: 24 | D102: 11887 | E102: 13 | F102: 11891 | K102: 0 | L102: 121
A103: 12 | B103: 11984 | C103: 13 | D103: 11986 | E103: 13 | F103: 11993 | K103: 0 | L103: 111
A104: 12 | B104: 12080 | C104: 24 | D104: 12100 | E104: 24 | F104: 12108 | K104: 0 | L104: 122
A105: 12 | B105: 12209 | C105: 13 | D105: 12213 | E105: 24 | F105: 12224 | K105: 0 | L105: 112
A106: 12 | B106: 12328 | C106: 24 | D106: 12339 | E106: 24 | F106: 12346 | K106: 0 | L106: 122
A107: 12 | B107: 12446 | C107: 13 | D107: 12449 | E107: 24 | F107: 12461 | K107: 0 | L107: 112
A108: 12 | B108: 12560 | C108: 24 | D108: 12574 | E108: 24 | F108: 12580 | K108: 0 | L108: 122
A109: 21 | B109: 12680 | C109: 22 | D109: 12685 | E109: 24 | F109: 12694 | K109: 0 | L109: 222
A110: 12 | B110: 12785 | C110: 24 | D110: 12789 | E110: 24 | F110: 12794 | K110: 0 | L110: 122
A111: 12 | B111: 12925 | C111: 13 | D111: 12934 | E111: 24 | F111: 12940 | K111: 0 | L111: 112
A112: 12 | B112: 13040 | C112: 13 | D112: 13045 | E112: 24 | F112: 13055 | K112: 0 | L112: 112
A113: 12 | B113: 13157 | C113: 24 | D113: 13165 | E113: 24 | F113: 13172 | K113: 0 | L113: 122
A114: 12 | B114: 13261 | C114: 24 | D114: 13267 | E114: 24 | F114: 13270 | K114: 0 | L114: 122
A115: 12 | B115: 13362 | C115: 24 | D115: 13367 | E115: 24 | F115: 13373 | K115: 0 | L115: 122
A116: 12 | B116: 13526 | C116: 13 | D116: 13540 | E116: 24 | F116: 13563 | K116: 0 | L116: 112
A117: 12 | B117: 13733 | C117: 24 | D117: 13745 | E117: 13 | F117: 13751 | K117: 0 | L117: 121
A118: 12 | B118: 13845 | C118: 24 | D118: 13856 | E118: 24 | F118: 13862 | K118: 0 | L118: 122
A119: 12 | B119: 13959 | C119: 24 | D119: 13961 | E119: 24 | F119: 13966 | K119: 0 | L119: 122
A120: 12 | B120: 14180 | C120: 24 | D120: 14194 | E120: 24 | F120: 14199 | K120: 0 | L120: 122
A121: 12 | B121: 14295 | C121: 24 | D121: 14307 | E121: 24 | F121: 14312 | K121: 0 | L121: 122
A122: 12 | B122: 14443 | C122: 24 | D122: 14457 | E122: 24 | F122: 14463 | K122: 0 | L122: 122
A123: 12 | B123: 14556 | C123: 13 | D123: 14567 | E123: 13 | F123: 14577 | K123: 0 | L123: 111
A124: 12 | B124: 14675 | C124: 24 | D124: 14677 | E124: 24 | F124: 14684 | K124: 0 | L124: 122
A125: 12 | B125: 14783 | C125: 24 | D125: 14786 | E125: 24 | F125: 14794 | K125: 0 | L125: 122
A126: 12 | B126: 14890 | C126: 24 | D126: 14895 | E126: 24 | F126: 14901 | K126: 0 | L126: 122
A127: 21 | B127: 15005 | C127: 22 | D127: 15010 | E127: 13 | F127: 15014 | K127: 0 | L127: 221
A128: 12 | B128: 15113 | C128: 24 | D128: 15128 | E128: 24 | F128: 15143 | K128: 0 | L128: 122
A129: 12 | B129: 15244 | C129: 24 | D129: 15256 | E129: 24 | F129: 15264 | K129: 0 | L129: 122
A130: 12 | B130: 15361 | C130: 24 | D130: 15365 | E130: 24 | F130: 15373 | K130: 0 | L130: 122
A131: 12 | B131: 15466 | C131: 24 | D131: 15475 | E131: 24 | F131: 15488 | K131: 0 | L131: 122
A132: 12 | B132: 15684 | C132: 24 | D132: 15697 | E132: 13 | F132: 15707 | K132: 0 | L132: 121
A133: 12 | B133: 15820 | C133: 24 | D133: 15840 | E133: 24 | F133: 15849 | K133: 0 | L133: 122
A134: 21 | B134: 15983 | C134: 22 | D134: 15996 | E134: 24 | F134: 16003 | K134: 0 | L134: 222
A135: 12 | B135: 16096 | C135: 13 | D135: 16110 | E135: 24 | F135: 16119 | K135: 0 | L135: 112
A136: 21 | B136: 16251 | C136: 11 | D136: 16255 | E136: 22 | F136: 16261 | K136: 0 | L136: 212
A137: 21 | B137: 16360 | C137: 22 | D137: 16365 | E137: 13 | F137: 16370 | K137: 0 | L137: 221
A138: 12 | B138: 16475 | C138: 24 | D138: 16485 | E138: 13 | F138: 16491 | K138: 0 | L138: 121
A139: 21 | B139: 16660 | C139: 22 | D139: 16666 | E139: 24 | F139: 16674 | K139: 0 | L139: 222
A140: 12 | B140: 16791 | C140: 24 | D140: 16795 | E140: 24 | F140: 16801 | K140: 0 | L140: 122
A141: 12 | B141: 16894 | C141: 13 | D141: 16916 | E141: 24 | F141: 16924 | K141: 0 | L141: 112
A142: 12 | B142: 17020 | C142: 24 | D142: 17032 | E142: 13 | F142: 17042 | K142: 0 | L142: 121
A143: 12 | B143: 17205 | C143: 24 | D143: 17217 | E143: 13 | F143: 17221 | K143: 0 | L143: 121
A144: 12 | B144: 17322 | C144: 13 | D144: 17334 | E144: 24 | F144: 17340 | K144: 0 | L144: 112
A145: 21 | B145: 17439 | C145: 22 | D145: 17445 | E145: 24 | F145: 17454 | K145: 0 | L145: 222
A146: 12 | B146: 17555 | C146: 24 | D146: 17561 | E146: 24 | F146: 17567 | K146: 0 | L146: 122
A147: 12 | B147: 17660 | C147: 13 | D147: 17674 | E147: 24 | F147: 17677 | K147: 0 | L147: 112
A148: 21 | B148: 17830 | C148: 11 | D148: 17832 | E148: 22 | F148: 17835 | K148: 0 | L148: 212
A149: 12 | B149: 17928 | C149: 24 | D149: 17939 | E149: 13 | F149: 17950 | K149: 0 | L149: 121
A150: 12 | B150: 18072 | C150: 24 | D150: 18084 | E150: 13 | F150: 18088 | K150: 0 | L150: 121
A151: 12 | B151: 18192 | C151: 13 | D151: 18196 | E151: 24 | F151: 18207 | K151: 0 | L151: 112
A152: 12 | B152: 18306 | C152: 13 | D152: 18310 | E152: 24 | F152: 18322 | K152: 0 | L152: 112
A153: 12 | B153: 18442 | C153: 13 | D153: 18451 | E153: 13 | F153: 18465 | K153: 0 | L153: 111
A154: 12 | B154: 18556 | C154: 13 | D154: 18561 | E154: 24 | F154: 18572 | K154: 0 | L154: 112
A155: 12 | B155: 18675 | C155: 13 | D155: 18680 | E155: 24 | F155: 18694 | K155: 0 | L155: 112
A156: 12 | B156: 18798 | C156: 13 | D156: 18804 | E156: 24 | F156: 18819 | K156: 0 | L156: 112
A157: 12 | B157: 18912 | C157: 13 | D157: 18915 | E157: 24 | F157: 18925 | K157: 0 | L157: 112
A158: 12 | B158: 19019 | C158: 13 | D158: 19025 | E158: 13 | F158: 19029 | K158: 0 | L158: 111
A159: 12 | B159: 19131 | C159: 24 | D159: 19136 | E159: 24 | F159: 19143 | K159: 0 | L159: 122
A160: 12 | B160: 19244 | C160: 24 | D160: 19247 | E160: 24 | F160: 19253 | K160: 0 | L160: 122
A161: 12 | B161: 19351 | C161: 24 | D161: 19354 | E161: 24 | F161: 19366 | K161: 0 | L161: 122
A162: 12 | B162: 19459 | C162: 24 | D162: 19467 | E162: 24 | F162: 19472 | K162: 0 | L162: 122
A163: 12 | B163: 19570 | C163: 13 | D163: 19573 | E163: 13 | F163: 19577 | K163: 0 | L163: 111
A164: 21 | B164: 19689 | C164: 22 | D164: 19694 | E164: 24 | F164: 19701 | K164: 0 | L164: 222
A165: 12 | B165: 19803 | C165: 24 | D165: 19806 | E165: 24 | F165: 19811 | K165: 0 | L165: 122
A166: 12 | B166: 19909 | C166: 13 | D166: 19914 | E166: 24 | F166: 19923 | K166: 0 | L166: 112
A167: 12 | B167: 20020 | C167: 24 | D167: 20023 | E167: 24 | F167: 20029 | K167: 0 | L167: 122
A168: 12 | B168: 20138 | C168: 13 | D168: 20153 | E168: 24 | F168: 20160 | K168: 0 | L168: 112
A169: 12 | B169: 20273 | C169: 24 | D169: 20289 | E169: 24 | F169: 20294 | K169: 0 | L169: 122
A170: 12 | B170: 20435 | C170: 24 | D170: 20439 | E170: 24 | F170: 20448 | K170: 0 | L170: 122
A171: 12 | B171: 20553 | C171: 13 | D171: 20557 | E171: 24 | F171: 20566 | K171: 0 | L171: 112
A172: 12 | B172: 20659 | C172: 13 | D172: 20669 | E172: 24 | F172: 20681 | K172: 0 | L172: 112
A173: 12 | B173: 20810 | C173: 24 | D173: 20822 | E173: 24 | F173: 20829 | K173: 0 | L173: 122
A174: 21 | B174: 20933 | C174: 22 | D174: 20938 | E174: 24 | F174: 20946 | K174: 0 | L174: 222
A175: 21 | B175: 21051 | C175: 22 | D175: 21056 | E175: 13 | F175: 21060 | K175: 0 | L175: 221
A176: 12 | B176: 21158 | C176: 13 | D176: 21162 | E176: 24 | F176: 21172 | K176: 0 | L176: 112
A177: 12 | B177: 21266 | C177: 24 | D177: 21271 | E177: 24 | F177: 21275 | K177: 0 | L177: 122
A178: 21 | B178: 21381 | C178: 11 | D178: 21382 | E178: 22 | F178: 21387 | K178: 0 | L178: 212
A179: 12 | B179: 21486 | C179: 13 | D179: 21489 | E179: 24 | F179: 21499 | K179: 0 | L179: 112
A180: 12 | B180: 21648 | C180: 13 | D180: 21662 | E180: 24 | F180: 21669 | K180: 0 | L180: 112
A181: 12 | B181: 21873 | C181: 24 | D181: 21889 | E181: 13 | F181: 21893 | K181: 0 | L181: 121
A182: 12 | B182: 22015 | C182: 13 | D182: 22026 | E182: 24 | F182: 22028 | K182: 0 | L182: 112
A183: 12 | B183: 22141 | C183: 24 | D183: 22144 | E183: 24 | F183: 22152 | K183: 0 | L183: 122
A184: 21 | B184: 22310 | C184: 11 | D184: 22316 | E184: 22 | F184: 22320 | K184: 0 | L184: 212
A185: 21 | B185: 22567 | C185: 11 | D185: 22575 | E185: 22 | F185: 22592 | K185: 0 | L185: 212
A186: 12 | B186: 22685 | C186: 24 | D186: 22700 | E186: 24 | F186: 22706 | K186: 0 | L186: 122
A187: 21 | B187: 22865 | C187: 22 | D187: 22870 | E187: 13 | F187: 22872 | K187: 0 | L187: 221
A188: 21 | B188: 23002 | C188: 11 | D188: 23005 | E188: 22 | F188: 23010 | K188: 0 | L188: 212
A189: 12 | B189: 23102 | C189: 24 | D189: 23118 | E189: 24 | F189: 23126 | K189: 0 | L189: 122
A190: 21 | B190: 23223 | C190: 11 | D190: 23225 | E190: 22 | F190: 23227 | K190: 0 | L190: 212
A191: 21 | B191: 23331 | C191: 22 | D191: 23337 | E191: 24 | F191: 23342 | K191: 0 | L191: 222
A192: 12 | B192: 23435 | C192: 24 | D192: 23438 | E192: 24 | F192: 23446 | K192: 0 | L192: 122
A193: 21 | B193: 23626 | C193: 22 | D193: 23643 | E193: 24 | F193: 23650 | K193: 0 | L193: 222
A194: 12 | B194: 23787 | C194: 24 | D194: 23789 | E194: 24 | F194: 23794 | K194: 0 | L194: 122
A195: 12 | B195: 23889 | C195: 24 | D195: 23891 | E195: 24 | F195: 23895 | K195: 0 | L195: 122

Sheet !N131920.Gus
A1: Report for:!N131920.Gus
A2: Date: | B2: <date>
A3: Hen: | B3: <hen> | F3: Correct Sequence | G3: =Start!J2 -> 211 | P3: Total Sequences in Data | Q3: =4994-COUNTBLANK(L7:L5000) -> 177 | V3: Total Sequences in Block Data | W3: =COUNTA(L7:L36) -> 30 | AA3: Total Sequences in Block Data | AB3: =COUNTA(L37:L65) -> 29 | AF3: Total Sequences in Block Data | AG3: =COUNTA(L66:L95) -> 30 | AK3: Total Sequences in Block Data | AL3: =COUNTA(L96:L124) -> 29 | AP3: Total Sequences in Block Data | AQ3: =COUNTA(L125:L154) -> 30 | AU3: Total Sequences in Block Data | AV3: =COUNTA(L155:L183) -> 29
P4: Total Sequences in Summary | Q4: =SUM(O7:O14) -> 177 | V4: Total Sequences in Block Summary | W4: =SUM(U7:U14) -> 30 | AA4: Total Sequences in Block Summary | AB4: =SUM(Z7:Z14) -> 29 | AF4: Total Sequences in Block Summary | AG4: =SUM(AE7:AE14) -> 30 | AK4: Total Sequences in Block Summary | AL4: =SUM(AJ7:AJ14) -> 29 | AP4: Total Sequences in Block Summary | AQ4: =SUM(AO7:AO14) -> 30 | AU4: Total Sequences in Block Summary | AV4: =SUM(AT7:AT14) -> 29
T5: Block 1 | Y5: Block 2 | AD5: Block 3 | AI5: Block 4 | AN5: Block 5 | AS5: Block 6
A6: Sequence Component 1 | B6: Time 1 | C6: Sequence Component 2 | D6: Time 2 | E6: Sequence Component 3 | F6: Time 3 | G6: Sequence Component 4 | H6: Time 4 | I6: Sequence Component 5 | J6: Time 5 | K6: Correct? 0=No 1=Yes | L6: Sequence | N6: Frequency | P6: Relative Frequency | Q6: Variability | T6: Frequency | V6: Relative Frequency | W6: Variability | Y6: Frequency | AA6: Relative Frequency | AB6: Variability | AD6: Frequency | AF6: Relative Frequency | AG6: Variability | AI6: Frequency | AK6: Relative Frequency | AL6: Variability | AN6: Frequency | AP6: Relative Frequency | AQ6: Variability | AS6: Frequency | AU6: Relative Frequency | AV6: Variability
A7: 12 | B7: 38 | C7: 13 | D7: 42 | E7: 13 | F7: 59 | K7: 0 | L7: 111 | N7: 111 | O7: =COUNTIF($L$7:$L$500,N7) -> 6 | P7: =O7/$Q$4 -> 0.03389830508 | Q7: =IF(P7=0,0,(P7*((LOG(P7))/LOG(2)))) -> -0.1655133237 | T7: =N7 -> 111 | U7: =COUNTIF(L7:L36,T7) -> 2 | V7: =U7/(W4-U11) -> 0.06896551724 | W7: =IF(V7=0,0,(V7*((LOG(V7))/LOG(2)))) -> -0.2660676548 | Y7: =N7 -> 111 | Z7: =COUNTIF(L37:L65,Y7) -> 1 | AA7: =Z7/(AB4-Z11) -> 0.03448275862 | AB7: =IF(AA7=0,0,(AA7*((LOG(AA7))/LOG(2)))) -> -0.167516586 | AD7: =N7 -> 111 | AE7: =COUNTIF(L66:L95,AD7) -> 0 | AF7: =AE7/(AG4-AE11) -> 0 | AG7: =IF(AF7=0,0,(AF7*((LOG(AF7))/LOG(2)))) -> 0 | AI7: =N7 -> 111 | AJ7: =COUNTIF(L96:L124,AI7) -> 1 | AK7: =AJ7/(AL4-AJ11) -> 0.03448275862 | AL7: =IF(AK7=0,0,(AK7*((LOG(AK7))/LOG(2)))) -> -0.167516586 | AN7: =N7 -> 111 | AO7: =COUNTIF(L125:L154,AN7) -> 2 | AP7: =AO7/(AQ4-AO11) -> 0.06666666667 | AQ7: =IF(AP7=0,0,(AP7*((LOG(AP7))/LOG(2)))) -> -0.260459373 | AS7: =N7 -> 111 | AT7: =COUNTIF(L155:L183,AS7) -> 0 | AU7: =AT7/(AV4-AT11) -> 0 | AV7: =IF(AU7=0,0,(AU7*((LOG(AU7))/LOG(2)))) -> 0
A8: 12 | B8: 169 | C8: 24 | D8: 175 | E8: 24 | F8: 181 | K8: 0 | L8: 122 | N8: 112 | O8: =COUNTIF($L$7:$L$500,N8) -> 48 | P8: =O8/$Q$4 -> 0.2711864407 | Q8: =IF(P8=0,0,(P8*((LOG(P8))/LOG(2)))) -> -0.5105472676 | T8: =N8 -> 112 | U8: =COUNTIF(L7:L36,T8) -> 7 | V8: =U8/(W4-U11) -> 0.2413793103 | W8: =IF(V8=0,0,(V8*((LOG(V8))/LOG(2)))) -> -0.4949787073 | Y8: =N8 -> 112 | Z8: =COUNTIF(L37:L65,Y8) -> 9 | AA8: =Z8/(AB4-Z11) -> 0.3103448276 | AB8: =IF(AA8=0,0,(AA8*((LOG(AA8))/LOG(2)))) -> -0.5238794463 | AD8: =N8 -> 112 | AE8: =COUNTIF(L66:L95,AD8) -> 7 | AF8: =AE8/(AG4-AE11) -> 0.2413793103 | AG8: =IF(AF8=0,0,(AF8*((LOG(AF8))/LOG(2)))) -> -0.4949787073 | AI8: =N8 -> 112 | AJ8: =COUNTIF(L96:L124,AI8) -> 12 | AK8: =AJ8/(AL4-AJ11) -> 0.4137931034 | AL8: =IF(AK8=0,0,(AK8*((LOG(AK8))/LOG(2)))) -> -0.5267662735 | AN8: =N8 -> 112 | AO8: =COUNTIF(L125:L154,AN8) -> 8 | AP8: =AO8/(AQ4-AO11) -> 0.2666666667 | AQ8: =IF(AP8=0,0,(AP8*((LOG(AP8))/LOG(2)))) -> -0.5085041588 | AS8: =N8 -> 112 | AT8: =COUNTIF(L155:L183,AS8) -> 5 | AU8: =AT8/(AV4-AT11) -> 0.1724137931 | AV8: =IF(AU8=0,0,(AU8*((LOG(AU8))/LOG(2)))) -> -0.4372505
A9: 12 | B9: 276 | C9: 24 | D9: 294 | E9: 24 | F9: 301 | K9: 0 | L9: 122 | N9: 121 | O9: =COUNTIF($L$7:$L$500,N9) -> 25 | P9: =O9/$Q$4 -> 0.1412429379 | Q9: =IF(P9=0,0,(P9*((LOG(P9))/LOG(2)))) -> -0.3988346554 | T9: =N9 -> 121 | U9: =COUNTIF(L7:L36,T9) -> 2 | V9: =U9/(W4-U11) -> 0.06896551724 | W9: =IF(V9=0,0,(V9*((LOG(V9))/LOG(2)))) -> -0.2660676548 | Y9: =N9 -> 121 | Z9: =COUNTIF(L37:L65,Y9) -> 7 | AA9: =Z9/(AB4-Z11) -> 0.2413793103 | AB9: =IF(AA9=0,0,(AA9*((LOG(AA9))/LOG(2)))) -> -0.4949787073 | AD9: =N9 -> 121 | AE9: =COUNTIF(L66:L95,AD9) -> 4 | AF9: =AE9/(AG4-AE11) -> 0.1379310345 | AG9: =IF(AF9=0,0,(AF9*((LOG(AF9))/LOG(2)))) -> -0.3942042752 | AI9: =N9 -> 121 | AJ9: =COUNTIF(L96:L124,AI9) -> 4 | AK9: =AJ9/(AL4-AJ11) -> 0.1379310345 | AL9: =IF(AK9=0,0,(AK9*((LOG(AK9))/LOG(2)))) -> -0.3942042752 | AN9: =N9 -> 121 | AO9: =COUNTIF(L125:L154,AN9) -> 5 | AP9: =AO9/(AQ4-AO11) -> 0.1666666667 | AQ9: =IF(AP9=0,0,(AP9*((LOG(AP9))/LOG(2)))) -> -0.4308270835 | AS9: =N9 -> 121 | AT9: =COUNTIF(L155:L183,AS9) -> 3 | AU9: =AT9/(AV4-AT11) -> 0.1034482759 | AV9: =IF(AU9=0,0,(AU9*((LOG(AU9))/LOG(2)))) -> -0.3385881201
A10: 12 | B10: 399 | C10: 13 | D10: 402 | E10: 13 | F10: 404 | K10: 0 | L10: 111 | N10: 122 | O10: =COUNTIF($L$7:$L$500,N10) -> 59 | P10: =O10/$Q$4 -> 0.3333333333 | Q10: =IF(P10=0,0,(P10*((LOG(P10))/LOG(2)))) -> -0.5283208336 | T10: =N10 -> 122 | U10: =COUNTIF(L7:L36,T10) -> 10 | V10: =U10/(W4-U11) -> 0.3448275862 | W10: =IF(V10=0,0,(V10*((LOG(V10))/LOG(2)))) -> -0.5296734139 | Y10: =N10 -> 122 | Z10: =COUNTIF(L37:L65,Y10) -> 10 | AA10: =Z10/(AB4-Z11) -> 0.3448275862 | AB10: =IF(AA10=0,0,(AA10*((LOG(AA10))/LOG(2)))) -> -0.5296734139 | AD10: =N10 -> 122 | AE10: =COUNTIF(L66:L95,AD10) -> 11 | AF10: =AE10/(AG4-AE11) -> 0.3793103448 | AG10: =IF(AF10=0,0,(AF10*((LOG(AF10))/LOG(2)))) -> -0.5304842463 | AI10: =N10 -> 122 | AJ10: =COUNTIF(L96:L124,AI10) -> 7 | AK10: =AJ10/(AL4-AJ11) -> 0.2413793103 | AL10: =IF(AK10=0,0,(AK10*((LOG(AK10))/LOG(2)))) -> -0.4949787073 | AN10: =N10 -> 122 | AO10: =COUNTIF(L125:L154,AN10) -> 9 | AP10: =AO10/(AQ4-AO11) -> 0.3 | AQ10: =IF(AP10=0,0,(AP10*((LOG(AP10))/LOG(2)))) -> -0.5210896782 | AS10: =N10 -> 122 | AT10: =COUNTIF(L155:L183,AS10) -> 12 | AU10: =AT10/(AV4-AT11) -> 0.4137931034 | AV10: =IF(AU10=0,0,(AU10*((LOG(AU10))/LOG(2)))) -> -0.5267662735
A11: 12 | B11: 506 | C11: 13 | D11: 519 | E11: 24 | F11: 522 | K11: 0 | L11: 112 | N11: 211 | O11: =COUNTIF($L$7:$L$500,N11) -> 2 | P11: =O11/$Q$4 -> 0.01129943503 | Q11: =IF(P11=0,0,(P11*((LOG(P11))/LOG(2)))) -> -0.0730802887 | T11: =N11 -> 211 | U11: =COUNTIF(L7:L36,T11) -> 1 | Y11: =N11 -> 211 | Z11: =COUNTIF(L37:L65,Y11) -> 0 | AD11: =N11 -> 211 | AE11: =COUNTIF(L66:L95,AD11) -> 1 | AI11: =N11 -> 211 | AJ11: =COUNTIF(L96:L124,AI11) -> 0 | AN11: =N11 -> 211 | AO11: =COUNTIF(L125:L154,AN11) -> 0 | AS11: =N11 -> 211 | AT11: =COUNTIF(L155:L183,AS11) -> 0
A12: 21 | B12: 625 | C12: 11 | D12: 627 | E12: 22 | F12: 629 | K12: 0 | L12: 212 | N12: 212 | O12: =COUNTIF($L$7:$L$500,N12) -> 12 | P12: =O12/$Q$4 -> 0.06779661017 | Q12: =IF(P12=0,0,(P12*((LOG(P12))/LOG(2)))) -> -0.2632300372 | T12: =N12 -> 212 | U12: =COUNTIF(L7:L36,T12) -> 4 | V12: =U12/(W4-U11) -> 0.1379310345 | W12: =IF(V12=0,0,(V12*((LOG(V12))/LOG(2)))) -> -0.3942042752 | Y12: =N12 -> 212 | Z12: =COUNTIF(L37:L65,Y12) -> 1 | AA12: =Z12/(AB4-Z11) -> 0.03448275862 | AB12: =IF(AA12=0,0,(AA12*((LOG(AA12))/LOG(2)))) -> -0.167516586 | AD12: =N12 -> 212 | AE12: =COUNTIF(L66:L95,AD12) -> 2 | AF12: =AE12/(AG4-AE11) -> 0.06896551724 | AG12: =IF(AF12=0,0,(AF12*((LOG(AF12))/LOG(2)))) -> -0.2660676548 | AI12: =N12 -> 212 | AJ12: =COUNTIF(L96:L124,AI12) -> 1 | AK12: =AJ12/(AL4-AJ11) -> 0.03448275862 | AL12: =IF(AK12=0,0,(AK12*((LOG(AK12))/LOG(2)))) -> -0.167516586 | AN12: =N12 -> 212 | AO12: =COUNTIF(L125:L154,AN12) -> 1 | AP12: =AO12/(AQ4-AO11) -> 0.03333333333 | AQ12: =IF(AP12=0,0,(AP12*((LOG(AP12))/LOG(2)))) -> -0.1635630199 | AS12: =N12 -> 212 | AT12: =COUNTIF(L155:L183,AS12) -> 3 | AU12: =AT12/(AV4-AT11) -> 0.1034482759 | AV12: =IF(AU12=0,0,(AU12*((LOG(AU12))/LOG(2)))) -> -0.3385881201
A13: 12 | B13: 724 | C13: 13 | D13: 729 | E13: 24 | F13: 755 | K13: 0 | L13: 112 | N13: 221 | O13: =COUNTIF($L$7:$L$500,N13) -> 7 | P13: =O13/$Q$4 -> 0.0395480226 | Q13: =IF(P13=0,0,(P13*((LOG(P13))/LOG(2)))) -> -0.1843036972 | T13: =N13 -> 221 | U13: =COUNTIF(L7:L36,T13) -> 1 | V13: =U13/(W4-U11) -> 0.03448275862 | W13: =IF(V13=0,0,(V13*((LOG(V13))/LOG(2)))) -> -0.167516586 | Y13: =N13 -> 221 | Z13: =COUNTIF(L37:L65,Y13) -> 1 | AA13: =Z13/(AB4-Z11) -> 0.03448275862 | AB13: =IF(AA13=0,0,(AA13*((LOG(AA13))/LOG(2)))) -> -0.167516586 | AD13: =N13 -> 221 | AE13: =COUNTIF(L66:L95,AD13) -> 1 | AF13: =AE13/(AG4-AE11) -> 0.03448275862 | AG13: =IF(AF13=0,0,(AF13*((LOG(AF13))/LOG(2)))) -> -0.167516586 | AI13: =N13 -> 221 | AJ13: =COUNTIF(L96:L124,AI13) -> 1 | AK13: =AJ13/(AL4-AJ11) -> 0.03448275862 | AL13: =IF(AK13=0,0,(AK13*((LOG(AK13))/LOG(2)))) -> -0.167516586 | AN13: =N13 -> 221 | AO13: =COUNTIF(L125:L154,AN13) -> 2 | AP13: =AO13/(AQ4-AO11) -> 0.06666666667 | AQ13: =IF(AP13=0,0,(AP13*((LOG(AP13))/LOG(2)))) -> -0.260459373 | AS13: =N13 -> 221 | AT13: =COUNTIF(L155:L183,AS13) -> 1 | AU13: =AT13/(AV4-AT11) -> 0.03448275862 | AV13: =IF(AU13=0,0,(AU13*((LOG(AU13))/LOG(2)))) -> -0.167516586
A14: 12 | B14: 874 | C14: 24 | D14: 887 | E14: 24 | F14: 891 | K14: 0 | L14: 122 | N14: 222 | O14: =COUNTIF($L$7:$L$500,N14) -> 18 | P14: =O14/$Q$4 -> 0.1016949153 | Q14: =IF(P14=0,0,(P14*((LOG(P14))/LOG(2)))) -> -0.3353573439 | T14: =N14 -> 222 | U14: =COUNTIF(L7:L36,T14) -> 3 | V14: =U14/(W4-U11) -> 0.1034482759 | W14: =IF(V14=0,0,(V14*((LOG(V14))/LOG(2)))) -> -0.3385881201 | Y14: =N14 -> 222 | Z14: =COUNTIF(L37:L65,Y14) -> 0 | AA14: =Z14/(AB4-Z11) -> 0 | AB14: =IF(AA14=0,0,(AA14*((LOG(AA14))/LOG(2)))) -> 0 | AD14: =N14 -> 222 | AE14: =COUNTIF(L66:L95,AD14) -> 4 | AF14: =AE14/(AG4-AE11) -> 0.1379310345 | AG14: =IF(AF14=0,0,(AF14*((LOG(AF14))/LOG(2)))) -> -0.3942042752 | AI14: =N14 -> 222 | AJ14: =COUNTIF(L96:L124,AI14) -> 3 | AK14: =AJ14/(AL4-AJ11) -> 0.1034482759 | AL14: =IF(AK14=0,0,(AK14*((LOG(AK14))/LOG(2)))) -> -0.3385881201 | AN14: =N14 -> 222 | AO14: =COUNTIF(L125:L154,AN14) -> 3 | AP14: =AO14/(AQ4-AO11) -> 0.1 | AQ14: =IF(AP14=0,0,(AP14*((LOG(AP14))/LOG(2)))) -> -0.3321928095 | AS14: =N14 -> 222 | AT14: =COUNTIF(L155:L183,AS14) -> 5 | AU14: =AT14/(AV4-AT11) -> 0.1724137931 | AV14: =IF(AU14=0,0,(AU14*((LOG(AU14))/LOG(2)))) -> -0.4372505
A15: 21 | B15: 1081 | C15: 22 | D15: 1087 | E15: 24 | F15: 1094 | K15: 0 | L15: 222 | P15: =SUM(P7:P14) -> 1 | Q15: =-SUM(Q7:Q14) -> 2.459187447 | V15: =SUM(V7:V14) -> 1 | W15: =-SUM(W7:W14) -> 2.457096412 | AA15: =SUM(AA7:AA14) -> 1 | AB15: =-SUM(AB7:AB14) -> 2.051081326 | AF15: =SUM(AF7:AF14) -> 1 | AG15: =-SUM(AG7:AG14) -> 2.247455745 | AK15: =SUM(AK7:AK14) -> 1 | AL15: =-SUM(AL7:AL14) -> 2.257087134 | AP15: =SUM(AP7:AP14) -> 1 | AQ15: =-SUM(AQ7:AQ14) -> 2.477095496 | AU15: =SUM(AU7:AU14) -> 1 | AV15: =-SUM(AV7:AV14) -> 2.2459601
A16: 12 | B16: 1214 | C16: 24 | D16: 1226 | E16: 24 | F16: 1233 | K16: 0 | L16: 122 | P16: U= | Q16: =Q15/(LOG(Q4)/LOG(2)) -> 0.3293140527 | V16: U1= | W16: =W15/(LOG(W4)/LOG(2)) -> 0.500744079 | AA16: U2= | AB16: =AB15/(LOG(AB4)/LOG(2)) -> 0.422208594 | AF16: U3= | AG16: =AG15/(LOG(AG4)/LOG(2)) -> 0.4580203493 | AK16: U4= | AL16: =AL15/(LOG(AL4)/LOG(2)) -> 0.4646142372 | AP16: U5= | AQ16: =AQ15/(LOG(AQ4)/LOG(2)) -> 0.5048197932 | AU16: U6= | AV16: =AV15/(LOG(AV4)/LOG(2)) -> 0.4623237724
A17: 21 | B17: 1334 | C17: 11 | D17: 1342 | E17: 22 | F17: 1345 | K17: 0 | L17: 212
A18: 21 | B18: 1446 | C18: 22 | D18: 1452 | E18: 24 | F18: 1458 | K18: 0 | L18: 222
A19: 12 | B19: 1562 | C19: 13 | D19: 1570 | E19: 24 | F19: 1575 | K19: 0 | L19: 112 | N19: Total Target Seq
A20: 21 | B20: 1681 | C20: 22 | D20: 1688 | E20: 13 | F20: 1693 | K20: 0 | L20: 221 | N20: =COUNTIF(L7:L183,G3) -> 2 | P20: 30 | Q20: 29 | R20: 30 | S20: 29 | T20: 30 | U20: 29
A21: 12 | B21: 1796 | C21: 24 | D21: 1802 | E21: 24 | F21: 1810 | K21: 0 | L21: 122 | P21: % of reinforcement given in 6 equal intervals based on number of trials
A22: 21 | B22: 1917 | C22: 11 | D22: 1920 | E22: 22 | F22: 1931 | K22: 0 | L22: 212 | P22: %_1 | Q22: %_2 | R22: %_3 | S22: %_4 | T22: %_5 | U22: %_6
A23: 12 | B23: 2022 | C23: 24 | D23: 2035 | E23: 24 | F23: 2042 | K23: 0 | L23: 122 | O23: target sequence | P23: =$G$3 -> 211 | Q23: =$G$3 -> 211 | R23: =$G$3 -> 211 | S23: =$G$3 -> 211 | T23: =$G$3 -> 211 | U23: =$G$3 -> 211
A24: 12 | B24: 2143 | C24: 13 | D24: 2149 | E24: 24 | F24: 2155 | K24: 0 | L24: 112 | O24: total reinforcement | P24: =U11 -> 1 | Q24: =Z11 -> 0 | R24: =AE11 -> 1 | S24: =AJ11 -> 0 | T24: =AO11 -> 0 | U24: =AT11 -> 0
A25: 21 | B25: 2260 | C25: 22 | D25: 2264 | E25: 24 | F25: 2269 | K25: 0 | L25: 222 | O25: % target
A26: 12 | B26: 2392 | C26: 24 | D26: 2402 | E26: 13 | F26: 2406 | K26: 0 | L26: 121 | O26: CCRF
A27: 21 | B27: 2556 | C27: 11 | D27: 2561 | E27: 11 | F27: 2568 | K27: 0 | L27: 211 | O27: % CCRf
A28: 21 | B28: 2676 | C28: 11 | D28: 2681 | E28: 22 | F28: 2701 | K28: 0 | L28: 212 | O28: average response rate | P28: =F36/P20 -> 129.3333333 | Q28: =(F65-F36)/Q20 -> 141.0344828 | R28: =(F95-F65)/R20 -> 130.8666667 | S28: =(F124-F95)/S20 -> 135.5172414 | T28: =(F154-F124)/T20 -> 143.1333333 | U28: =(F183-F154)/U20 -> 132.3103448
A29: 12 | B29: 2815 | C29: 24 | D29: 2821 | E29: 24 | F29: 2830 | K29: 0 | L29: 122
A30: 12 | B30: 2982 | C30: 24 | D30: 2999 | E30: 24 | F30: 3006 | K30: 0 | L30: 122
A31: 12 | B31: 3125 | C31: 24 | D31: 3137 | E31: 13 | F31: 3141 | K31: 0 | L31: 121
A32: 12 | B32: 3336 | C32: 13 | D32: 3342 | E32: 24 | F32: 3350 | K32: 0 | L32: 112
A33: 12 | B33: 3509 | C33: 24 | D33: 3512 | E33: 24 | F33: 3518 | K33: 0 | L33: 122
A34: 12 | B34: 3625 | C34: 13 | D34: 3628 | E34: 24 | F34: 3640 | K34: 0 | L34: 112
A35: 12 | B35: 3738 | C35: 24 | D35: 3744 | E35: 24 | F35: 3751 | K35: 0 | L35: 122
A36: 12 | B36: 3851 | C36: 13 | D36: 3867 | E36: 24 | F36: 3880 | K36: 0 | L36: 112
A37: 12 | B37: 3981 | C37: 24 | D37: 3988 | E37: 24 | F37: 3997 | K37: 0 | L37: 122
A38: 12 | B38: 4088 | C38: 13 | D38: 4103 | E38: 24 | F38: 4113 | K38: 0 | L38: 112
A39: 12 | B39: 4309 | C39: 24 | D39: 4322 | E39: 13 | F39: 4325 | K39: 0 | L39: 121
A40: 12 | B40: 4428 | C40: 13 | D40: 4445 | E40: 24 | F40: 4450 | K40: 0 | L40: 112
A41: 12 | B41: 4591 | C41: 13 | D41: 4605 | E41: 24 | F41: 4612 | K41: 0 | L41: 112
A42: 12 | B42: 4704 | C42: 13 | D42: 4714 | E42: 24 | F42: 4719 | K42: 0 | L42: 112
A43: 12 | B43: 4833 | C43: 13 | D43: 4846 | E43: 24 | F43: 4853 | K43: 0 | L43: 112
A44: 12 | B44: 4959 | C44: 13 | D44: 4963 | E44: 13 | F44: 4966 | K44: 0 | L44: 111
A45: 12 | B45: 5083 | C45: 24 | D45: 5086 | E45: 24 | F45: 5092 | K45: 0 | L45: 122
A46: 12 | B46: 5191 | C46: 24 | D46: 5199 | E46: 24 | F46: 5211 | K46: 0 | L46: 122
A47: 12 | B47: 5306 | C47: 24 | D47: 5310 | E47: 24 | F47: 5315 | K47: 0 | L47: 122
A48: 12 | B48: 5417 | C48: 24 | D48: 5429 | E48: 24 | F48: 5436 | K48: 0 | L48: 122
A49: 12 | B49: 5528 | C49: 24 | D49: 5538 | E49: 24 | F49: 5548 | K49: 0 | L49: 122
A50: 12 | B50: 5694 | C50: 24 | D50: 5704 | E50: 13 | F50: 5711 | K50: 0 | L50: 121
A51: 12 | B51: 5856 | C51: 24 | D51: 5870 | E51: 13 | F51: 5882 | K51: 0 | L51: 121
A52: 21 | B52: 6040 | C52: 11 | D52: 6047 | E52: 22 | F52: 6056 | K52: 0 | L52: 212
A53: 21 | B53: 6164 | C53: 22 | D53: 6171 | E53: 13 | F53: 6178 | K53: 0 | L53: 221
A54: 12 | B54: 6314 | C54: 13 | D54: 6329 | E54: 24 | F54: 6333 | K54: 0 | L54: 112
A55: 12 | B55: 6496 | C55: 24 | D55: 6509 | E55: 13 | F55: 6512 | K55: 0 | L55: 121
A56: 12 | B56: 6704 | C56: 24 | D56: 6720 | E56: 13 | F56: 6723 | K56: 0 | L56: 121
A57: 12 | B57: 6843 | C57: 24 | D57: 6856 | E57: 13 | F57: 6861 | K57: 0 | L57: 121
A58: 12 | B58: 7022 | C58: 24 | D58: 7026 | E58: 24 | F58: 7032 | K58: 0 | L58: 122
A59: 12 | B59: 7131 | C59: 24 | D59: 7137 | E59: 24 | F59: 7148 | K59: 0 | L59: 122
A60: 12 | B60: 7264 | C60: 13 | D60: 7269 | E60: 24 | F60: 7279 | K60: 0 | L60: 112
A61: 12 | B61: 7378 | C61: 13 | D61: 7381 | E61: 24 | F61: 7398 | K61: 0 | L61: 112
A62: 12 | B62: 7623 | C62: 24 | D62: 7635 | E62: 13 | F62: 7638 | K62: 0 | L62: 121
A63: 12 | B63: 7732 | C63: 13 | D63: 7741 | E63: 24 | F63: 7749 | K63: 0 | L63: 112
A64: 12 | B64: 7846 | C64: 24 | D64: 7852 | E64: 24 | F64: 7861 | K64: 0 | L64: 122
A65: 12 | B65: 7954 | C65: 24 | D65: 7964 | E65: 24 | F65: 7970 | K65: 0 | L65: 122
A66: 21 | B66: 8068 | C66: 11 | D66: 8072 | E66: 22 | F66: 8079 | K66: 0 | L66: 212
A67: 21 | B67: 8180 | C67: 22 | D67: 8186 | E67: 24 | F67: 8192 | K67: 0 | L67: 222
A68: 12 | B68: 8289 | C68: 24 | D68: 8296 | E68: 24 | F68: 8302 | K68: 0 | L68: 122
A69: 21 | B69: 8416 | C69: 22 | D69: 8422 | E69: 24 | F69: 8428 | K69: 0 | L69: 222
A70: 12 | B70: 8530 | C70: 24 | D70: 8541 | E70: 24 | F70: 8549 | K70: 0 | L70: 122
A71: 21 | B71: 8663 | C71: 11 | D71: 8668 | E71: 22 | F71: 8672 | K71: 0 | L71: 212
A72: 21 | B72: 8776 | C72: 22 | D72: 8782 | E72: 24 | F72: 8789 | K72: 0 | L72: 222
A73: 12 | B73: 8885 | C73: 24 | D73: 8891 | E73: 24 | F73: 8896 | K73: 0 | L73: 122
A74: 12 | B74: 8992 | C74: 24 | D74: 8995 | E74: 24 | F74: 9004 | K74: 0 | L74: 122
A75: 12 | B75: 9097 | C75: 13 | D75: 9105 | E75: 24 | F75: 9112 | K75: 0 | L75: 112
A76: 12 | B76: 9205 | C76: 24 | D76: 9216 | E76: 24 | F76: 9224 | K76: 0 | L76: 122
A77: 21 | B77: 9327 | C77: 22 | D77: 9333 | E77: 13 | F77: 9335 | K77: 0 | L77: 221
A78: 12 | B78: 9435 | C78: 24 | D78: 9443 | E78: 24 | F78: 9447 | K78: 0 | L78: 122
A79: 12 | B79: 9542 | C79: 24 | D79: 9548 | E79: 24 | F79: 9554 | K79: 0 | L79: 122
A80: 12 | B80: 9695 | C80: 24 | D80: 9712 | E80: 13 | F80: 9716 | K80: 0 | L80: 121
A81: 12 | B81: 9929 | C81: 24 | D81: 9941 | E81: 13 | F81: 9945 | K81: 0 | L81: 121
A82: 21 | B82: 10055 | C82: 11 | D82: 10059 | E82: 11 | F82: 10065 | K82: 0 | L82: 211
A83: 12 | B83: 10310 | C83: 13 | D83: 10327 | E83: 24 | F83: 10332 | K83: 0 | L83: 112
A84: 12 | B84: 10509 | C84: 24 | D84: 10525 | E84: 13 | F84: 10531 | K84: 0 | L84: 121
A85: 21 | B85: 10639 | C85: 22 | D85: 10647 | E85: 24 | F85: 10654 | K85: 0 | L85: 222
A86: 12 | B86: 10753 | C86: 13 | D86: 10760 | E86: 24 | F86: 10776 | K86: 0 | L86: 112
A87: 12 | B87: 10875 | C87: 24 | D87: 10882 | E87: 24 | F87: 10892 | K87: 0 | L87: 122
A88: 12 | B88: 10989 | C88: 13 | D88: 10993 | E88: 24 | F88: 10998 | K88: 0 | L88: 112
A89: 12 | B89: 11104 | C89: 24 | D89: 11106 | E89: 24 | F89: 11113 | K89: 0 | L89: 122
A90: 12 | B90: 11213 | C90: 13 | D90: 11216 | E90: 24 | F90: 11229 | K90: 0 | L90: 112
A91: 12 | B91: 11326 | C91: 24 | D91: 11339 | E91: 13 | F91: 11345 | K91: 0 | L91: 121
A92: 12 | B92: 11440 | C92: 13 | D92: 11447 | E92: 24 | F92: 11450 | K92: 0 | L92: 112
A93: 12 | B93: 11548 | C93: 24 | D93: 11558 | E93: 24 | F93: 11564 | K93: 0 | L93: 122
A94: 12 | B94: 11755 | C94: 24 | D94: 11764 | E94: 24 | F94: 11770 | K94: 0 | L94: 122
A95: 12 | B95: 11879 | C95: 13 | D95: 11894 | E95: 24 | F95: 11896 | K95: 0 | L95: 112
A96: 12 | B96: 11999 | C96: 13 | D96: 12016 | E96: 24 | F96: 12024 | K96: 0 | L96: 112
A97: 12 | B97: 12131 | C97: 13 | D97: 12146 | E97: 24 | F97: 12154 | K97: 0 | L97: 112
A98: 12 | B98: 12288 | C98: 13 | D98: 12304 | E98: 24 | F98: 12310 | K98: 0 | L98: 112
A99: 21 | B99: 12409 | C99: 22 | D99: 12415 | E99: 24 | F99: 12422 | K99: 0 | L99: 222
A100: 12 | B100: 12519 | C100: 13 | D100: 12529 | E100: 24 | F100: 12532 | K100: 0 | L100: 112
A101: 12 | B101: 12624 | C101: 24 | D101: 12629 | E101: 24 | F101: 12634 | K101: 0 | L101: 122
A102: 12 | B102: 12728 | C102: 24 | D102: 12731 | E102: 24 | F102: 12736 | K102: 0 | L102: 122
A103: 12 | B103: 12828 | C103: 13 | D103: 12837 | E103: 24 | F103: 12843 | K103: 0 | L103: 112
A104: 21 | B104: 12950 | C104: 22 | D104: 12955 | E104: 13 | F104: 12962 | K104: 0 | L104: 221
A105: 12 | B105: 13074 | C105: 13 | D105: 13081 | E105: 24 | F105: 13091 | K105: 0 | L105: 112
A106: 12 | B106: 13385 | C106: 24 | D106: 13397 | E106: 13 | F106: 13406 | K106: 0 | L106: 121
A107: 12 | B107: 13514 | C107: 13 | D107: 13531 | E107: 24 | F107: 13537 | K107: 0 | L107: 112
A108: 12 | B108: 13734 | C108: 13 | D108: 13736 | E108: 24 | F108: 13751 | K108: 0 | L108: 112
A109: 12 | B109: 13899 | C109: 13 | D109: 13910 | E109: 24 | F109: 13922 | K109: 0 | L109: 112
A110: 12 | B110: 14024 | C110: 13 | D110: 14039 | E110: 13 | F110: 14045 | K110: 0 | L110: 111
A111: 12 | B111: 14142 | C111: 24 | D111: 14152 | E111: 24 | F111: 14158 | K111: 0 | L111: 122
A112: 12 | B112: 14253 | C112: 24 | D112: 14265 | E112: 13 | F112: 14271 | K112: 0 | L112: 121
A113: 12 | B113: 14425 | C113: 24 | D113: 14441 | E113: 13 | F113: 14445 | K113: 0 | L113: 121
A114: 12 | B114: 14540 | C114: 13 | D114: 14547 | E114: 24 | F114: 14554 | K114: 0 | L114: 112
A115: 12 | B115: 14654 | C115: 24 | D115: 14666 | E115: 13 | F115: 14670 | K115: 0 | L115: 121
A116: 12 | B116: 14770 | C116: 24 | D116: 14781 | E116: 24 | F116: 14787 | K116: 0 | L116: 122
A117: 12 | B117: 14883 | C117: 13 | D117: 14887 | E117: 24 | F117: 14893 | K117: 0 | L117: 112
A118: 12 | B118: 14988 | C118: 13 | D118: 15001 | E118: 24 | F118: 15006 | K118: 0 | L118: 112
A119: 21 | B119: 15270 | C119: 11 | D119: 15274 | E119: 22 | F119: 15277 | K119: 0 | L119: 212
A120: 12 | B120: 15369 | C120: 24 | D120: 15378 | E120: 24 | F120: 15389 | K120: 0 | L120: 122
A121: 12 | B121: 15482 | C121: 24 | D121: 15486 | E121: 24 | F121: 15490 | K121: 0 | L121: 122
A122: 21 | B122: 15590 | C122: 22 | D122: 15595 | E122: 24 | F122: 15601 | K122: 0 | L122: 222
A123: 21 | B123: 15700 | C123: 22 | D123: 15703 | E123: 24 | F123: 15710 | K123: 0 | L123: 222
A124: 12 | B124: 15808 | C124: 24 | D124: 15818 | E124: 24 | F124: 15826 | K124: 0 | L124: 122
A125: 12 | B125: 15918 | C125: 13 | D125: 15922 | E125: 24 | F125: 15934 | K125: 0 | L125: 112
A126: 12 | B126: 16026 | C126: 24 | D126: 16047 | E126: 24 | F126: 16052 | K126: 0 | L126: 122
A127: 12 | B127: 16227 | C127: 13 | D127: 16244 | E127: 24 | F127: 16246 | K127: 0 | L127: 112
A128: 12 | B128: 16408 | C128: 24 | D128: 16421 | E128: 13 | F128: 16423 | K128: 0 | L128: 121
A129: 12 | B129: 16516 | C129: 13 | D129: 16525 | E129: 13 | F129: 16530 | K129: 0 | L129: 111
A130: 12 | B130: 16630 | C130: 24 | D130: 16642 | E130: 24 | F130: 16648 | K130: 0 | L130: 122
A131: 12 | B131: 16742 | C131: 13 | D131: 16750 | E131: 24 | F131: 16766 | K131: 0 | L131: 112
A132: 21 | B132: 16873 | C132: 22 | D132: 16879 | E132: 24 | F132: 16885 | K132: 0 | L132: 222
A133: 12 | B133: 16982 | C133: 24 | D133: 16993 | E133: 24 | F133: 16997 | K133: 0 | L133: 122
A134: 21 | B134: 17103 | C134: 22 | D134: 17112 | E134: 13 | F134: 17118 | K134: 0 | L134: 221
A135: 12 | B135: 17222 | C135: 24 | D135: 17227 | E135: 24 | F135: 17233 | K135: 0 | L135: 122
A136: 12 | B136: 17332 | C136: 24 | D136: 17349 | E136: 24 | F136: 17355 | K136: 0 | L136: 122
A137: 12 | B137: 17453 | C137: 24 | D137: 17462 | E137: 13 | F137: 17466 | K137: 0 | L137: 121
A138: 12 | B138: 17610 | C138: 24 | D138: 17621 | E138: 24 | F138: 17633 | K138: 0 | L138: 122
A139: 12 | B139: 17906 | C139: 24 | D139: 17914 | E139: 24 | F139: 17925 | K139: 0 | L139: 122
A140: 12 | B140: 18109 | C140: 13 | D140: 18127 | E140: 13 | F140: 18151 | K140: 0 | L140: 111
A141: 12 | B141: 18315 | C141: 24 | D141: 18329 | E141: 13 | F141: 18339 | K141: 0 | L141: 121
A142: 12 | B142: 18497 | C142: 24 | D142: 18510 | E142: 13 | F142: 18517 | K142: 0 | L142: 121
A143: 21 | B143: 18692 | C143: 22 | D143: 18698 | E143: 24 | F143: 18705 | K143: 0 | L143: 222
A144: 12 | B144: 18801 | C144: 24 | D144: 18803 | E144: 24 | F144: 18809 | K144: 0 | L144: 122
A145: 12 | B145: 18908 | C145: 24 | D145: 18921 | E145: 13 | F145: 18923 | K145: 0 | L145: 121
A146: 12 | B146: 19018 | C146: 13 | D146: 19025 | E146: 24 | F146: 19026 | K146: 0 | L146: 112
A147: 12 | B147: 19251 | C147: 13 | D147: 19262 | E147: 24 | F147: 19266 | K147: 0 | L147: 112
A148: 12 | B148: 19424 | C148: 13 | D148: 19439 | E148: 24 | F148: 19444 | K148: 0 | L148: 112
A149: 12 | B149: 19542 | C149: 13 | D149: 19551 | E149: 24 | F149: 19555 | K149: 0 | L149: 112
A150: 21 | B150: 19660 | C150: 11 | D150: 19667 | E150: 22 | F150: 19675 | K150: 0 | L150: 212
A151: 21 | B151: 19779 | C151: 22 | D151: 19785 | E151: 13 | F151: 19793 | K151: 0 | L151: 221
A152: 12 | B152: 19885 | C152: 13 | D152: 19893 | E152: 24 | F152: 19902 | K152: 0 | L152: 112
A153: 21 | B153: 20006 | C153: 22 | D153: 20010 | E153: 24 | F153: 20016 | K153: 0 | L153: 222
A154: 12 | B154: 20105 | C154: 24 | D154: 20110 | E154: 24 | F154: 20120 | K154: 0 | L154: 122
A155: 12 | B155: 20242 | C155: 24 | D155: 20251 | E155: 24 | F155: 20258 | K155: 0 | L155: 122
A156: 12 | B156: 20360 | C156: 13 | D156: 20377 | E156: 24 | F156: 20383 | K156: 0 | L156: 112
A157: 12 | B157: 20511 | C157: 13 | D157: 20526 | E157: 24 | F157: 20530 | K157: 0 | L157: 112
A158: 21 | B158: 20706 | C158: 11 | D158: 20713 | E158: 22 | F158: 20721 | K158: 0 | L158: 212
A159: 21 | B159: 20824 | C159: 22 | D159: 20830 | E159: 24 | F159: 20841 | K159: 0 | L159: 222
A160: 12 | B160: 20945 | C160: 24 | D160: 20962 | E160: 13 | F160: 20966 | K160: 0 | L160: 121
A161: 12 | B161: 21081 | C161: 24 | D161: 21085 | E161: 24 | F161: 21089 | K161: 0 | L161: 122
A162: 12 | B162: 21176 | C162: 24 | D162: 21195 | E162: 24 | F162: 21201 | K162: 0 | L162: 122
A163: 12 | B163: 21377 | C163: 24 | D163: 21390 | E163: 13 | F163: 21393 | K163: 0 | L163: 121
A164: 21 | B164: 21509 | C164: 22 | D164: 21515 | E164: 24 | F164: 21521 | K164: 0 | L164: 222
A165: 21 | B165: 21623 | C165: 22 | D165: 21629 | E165: 24 | F165: 21636 | K165: 0 | L165: 222
A166: 12 | B166: 21732 | C166: 13 | D166: 21744 | E166: 24 | F166: 21746 | K166: 0 | L166: 112
A167: 21 | B167: 21896 | C167: 22 | D167: 21902 | E167: 13 | F167: 21904 | K167: 0 | L167: 221
A168: 12 | B168: 22026 | C168: 24 | D168: 22036 | E168: 24 | F168: 22039 | K168: 0 | L168: 122
A169: 21 | B169: 22136 | C169: 22 | D169: 22151 | E169: 24 | F169: 22158 | K169: 0 | L169: 222
A170: 12 | B170: 22253 | C170: 24 | D170: 22256 | E170: 24 | F170: 22262 | K170: 0 | L170: 122
A171: 12 | B171: 22382 | C171: 24 | D171: 22393 | E171: 24 | F171: 22399 | K171: 0 | L171: 122
A172: 12 | B172: 22492 | C172: 13 | D172: 22501 | E172: 24 | F172: 22518 | K172: 0 | L172: 112
A173: 12 | B173: 22633 | C173: 24 | D173: 22638 | E173: 24 | F173: 22646 | K173: 0 | L173: 122
A174: 12 | B174: 22771 | C174: 24 | D174: 22785 | E174: 24 | F174: 22792 | K174: 0 | L174: 122
A175: 12 | B175: 22933 | C175: 13 | D175: 22940 | E175: 24 | F175: 22952 | K175: 0 | L175: 112
A176: 21 | B176: 23083 | C176: 11 | D176: 23085 | E176: 22 | F176: 23090 | K176: 0 | L176: 212
A177: 21 | B177: 23185 | C177: 22 | D177: 23190 | E177: 24 | F177: 23196 | K177: 0 | L177: 222
A178: 12 | B178: 23298 | C178: 24 | D178: 23304 | E178: 24 | F178: 23311 | K178: 0 | L178: 122
A179: 12 | B179: 23411 | C179: 24 | D179: 23414 | E179: 24 | F179: 23420 | K179: 0 | L179: 122
A180: 12 | B180: 23513 | C180: 24 | D180: 23516 | E180: 24 | F180: 23521 | K180: 0 | L180: 122
A181: 12 | B181: 23618 | C181: 24 | D181: 23634 | E181: 13 | F181: 23638 | K181: 0 | L181: 121
A182: 21 | B182: 23818 | C182: 11 | D182: 23824 | E182: 22 | F182: 23836 | K182: 0 | L182: 212
A183: 12 | B183: 23936 | C183: 24 | D183: 23951 | E183: 24 | F183: 23957 | L183: 122

Sheet !N201920.Gus
A1: Report for:!N201920.Gus
A2: Date: | B2: <date>
A3: Hen: | B3: <hen> | F3: Correct Sequence | G3: =Start!J2 -> 211 | P3: Total Sequences in Data | Q3: =4994-COUNTBLANK(L7:L5000) -> 183 | V3: Total Sequences in Block Data | W3: =COUNTA(L7:L37) -> 31 | AA3: Total Sequences in Block Data | AB3: =COUNTA(L38:L67) -> 30 | AF3: Total Sequences in Block Data | AG3: =COUNTA(L68:L98) -> 31 | AK3: Total Sequences in Block Data | AL3: =COUNTA(L99:L128) -> 30 | AP3: Total Sequences in Block Data | AQ3: =COUNTA(L129:L159) -> 31 | AU3: Total Sequences in Block Data | AV3: =COUNTA(L160:L189) -> 30
P4: Total Sequences in Summary | Q4: =SUM(O7:O14) -> 183 | V4: Total Sequences in Block Summary | W4: =SUM(U7:U14) -> 31 | AA4: Total Sequences in Block Summary | AB4: =SUM(Z7:Z14) -> 30 | AF4: Total Sequences in Block Summary | AG4: =SUM(AE7:AE14) -> 31 | AK4: Total Sequences in Block Summary | AL4: =SUM(AJ7:AJ14) -> 30 | AP4: Total Sequences in Block Summary | AQ4: =SUM(AO7:AO14) -> 31 | AU4: Total Sequences in Block Summary | AV4: =SUM(AT7:AT14) -> 30
T5: Block 1 | Y5: Block 2 | AD5: Block 3 | AI5: Block 4 | AN5: Block 5 | AS5: Block 6
A6: Sequence Component 1 | B6: Time 1 | C6: Sequence Component 2 | D6: Time 2 | E6: Sequence Component 3 | F6: Time 3 | G6: Sequence Component 4 | H6: Time 4 | I6: Sequence Component 5 | J6: Time 5 | K6: Correct? 0=No 1=Yes | L6: Sequence | N6: Frequency | P6: Relative Frequency | Q6: Variability | T6: Frequency | V6: Relative Frequency | W6: Variability | Y6: Frequency | AA6: Relative Frequency | AB6: Variability | AD6: Frequency | AF6: Relative Frequency | AG6: Variability | AI6: Frequency | AK6: Relative Frequency | AL6: Variability | AN6: Frequency | AP6: Relative Frequency | AQ6: Variability | AS6: Frequency | AU6: Relative Frequency | AV6: Variability
A7: 12 | B7: 12 | C7: 13 | D7: 33 | E7: 24 | F7: 53 | K7: 0 | L7: 112 | N7: 111 | O7: =COUNTIF($L$7:$L$500,N7) -> 3 | P7: =O7/$Q$4 -> 0.01639344262 | Q7: =IF(P7=0,0,(P7*((LOG(P7))/LOG(2)))) -> -0.09722520226 | T7: =N7 -> 111 | U7: =COUNTIF(L7:L37,T7) -> 2 | V7: =U7/(W4-U11) -> 0.06451612903 | W7: =IF(V7=0,0,(V7*((LOG(V7))/LOG(2)))) -> -0.2551094394 | Y7: =N7 -> 111 | Z7: =COUNTIF(L38:L67,Y7) -> 0 | AA7: =Z7/(AB4-Z11) -> 0 | AB7: =IF(AA7=0,0,(AA7*((LOG(AA7))/LOG(2)))) -> 0 | AD7: =N7 -> 111 | AE7: =COUNTIF(L68:L98,AD7) -> 1 | AF7: =AE7/(AG4-AE11) -> 0.03225806452 | AG7: =IF(AF7=0,0,(AF7*((LOG(AF7))/LOG(2)))) -> -0.1598127842 | AI7: =N7 -> 111 | AJ7: =COUNTIF(L99:L128,AI7) -> 0 | AK7: =AJ7/(AL4-AJ11) -> 0 | AL7: =IF(AK7=0,0,(AK7*((LOG(AK7))/LOG(2)))) -> 0 | AN7: =N7 -> 111 | AO7: =COUNTIF(L129:L159,AN7) -> 0 | AP7: =AO7/(AQ4-AO11) -> 0 | AQ7: =IF(AP7=0,0,(AP7*((LOG(AP7))/LOG(2)))) -> 0 | AS7: =N7 -> 111 | AT7: =COUNTIF(L160:L189,AS7) -> 0 | AU7: =AT7/(AV4-AT11) -> 0 | AV7: =IF(AU7=0,0,(AU7*((LOG(AU7))/LOG(2)))) -> 0
A8: 12 | B8: 155 | C8: 13 | D8: 161 | E8: 24 | F8: 175 | K8: 0 | L8: 112 | N8: 112 | O8: =COUNTIF($L$7:$L$500,N8) -> 21 | P8: =O8/$Q$4 -> 0.1147540984 | Q8: =IF(P8=0,0,(P8*((LOG(P8))/LOG(2)))) -> -0.3584209329 | T8: =N8 -> 112 | U8: =COUNTIF(L7:L37,T8) -> 6 | V8: =U8/(W4-U11) -> 0.1935483871 | W8: =IF(V8=0,0,(V8*((LOG(V8))/LOG(2)))) -> -0.4585613825 | Y8: =N8 -> 112 | Z8: =COUNTIF(L38:L67,Y8) -> 2 | AA8: =Z8/(AB4-Z11) -> 0.06896551724 | AB8: =IF(AA8=0,0,(AA8*((LOG(AA8))/LOG(2)))) -> -0.2660676548 | AD8: =N8 -> 112 | AE8: =COUNTIF(L68:L98,AD8) -> 5 | AF8: =AE8/(AG4-AE11) -> 0.1612903226 | AG8: =IF(AF8=0,0,(AF8*((LOG(AF8))/LOG(2)))) -> -0.4245593896 | AI8: =N8 -> 112 | AJ8: =COUNTIF(L99:L128,AI8) -> 2 | AK8: =AJ8/(AL4-AJ11) -> 0.06666666667 | AL8: =IF(AK8=0,0,(AK8*((LOG(AK8))/LOG(2)))) -> -0.260459373 | AN8: =N8 -> 112 | AO8: =COUNTIF(L129:L159,AN8) -> 5 | AP8: =AO8/(AQ4-AO11) -> 0.1612903226 | AQ8: =IF(AP8=0,0,(AP8*((LOG(AP8))/LOG(2)))) -> -0.4245593896 | AS8: =N8 -> 112 | AT8: =COUNTIF(L160:L189,AS8) -> 1 | AU8: =AT8/(AV4-AT11) -> 0.03333333333 | AV8: =IF(AU8=0,0,(AU8*((LOG(AU8))/LOG(2)))) -> -0.1635630199
A9: 12 | B9: 270 | C9: 13 | D9: 275 | E9: 24 | F9: 286 | K9: 0 | L9: 112 | N9: 121 | O9: =COUNTIF($L$7:$L$500,N9) -> 7 | P9: =O9/$Q$4 -> 0.03825136612 | Q9: =IF(P9=0,0,(P9*((LOG(P9))/LOG(2)))) -> -0.1801006252 | T9: =N9 -> 121 | U9: =COUNTIF(L7:L37,T9) -> 2 | V9: =U9/(W4-U11) -> 0.06451612903 | W9: =IF(V9=0,0,(V9*((LOG(V9))/LOG(2)))) -> -0.2551094394 | Y9: =N9 -> 121 | Z9: =COUNTIF(L38:L67,Y9) -> 1 | AA9: =Z9/(AB4-Z11) -> 0.03448275862 | AB9: =IF(AA9=0,0,(AA9*((LOG(AA9))/LOG(2)))) -> -0.167516586 | AD9: =N9 -> 121 | AE9: =COUNTIF(L68:L98,AD9) -> 1 | AF9: =AE9/(AG4-AE11) -> 0.03225806452 | AG9: =IF(AF9=0,0,(AF9*((LOG(AF9))/LOG(2)))) -> -0.1598127842 | AI9: =N9 -> 121 | AJ9: =COUNTIF(L99:L128,AI9) -> 1 | AK9: =AJ9/(AL4-AJ11) -> 0.03333333333 | AL9: =IF(AK9=0,0,(AK9*((LOG(AK9))/LOG(2)))) -> -0.1635630199 | AN9: =N9 -> 121 | AO9: =COUNTIF(L129:L159,AN9) -> 0 | AP9: =AO9/(AQ4-AO11) -> 0 | AQ9: =IF(AP9=0,0,(AP9*((LOG(AP9))/LOG(2)))) -> 0 | AS9: =N9 -> 121 | AT9: =COUNTIF(L160:L189,AS9) -> 2 | AU9: =AT9/(AV4-AT11) -> 0.06666666667 | AV9: =IF(AU9=0,0,(AU9*((LOG(AU9))/LOG(2)))) -> -0.260459373
A10: 12 | B10: 444 | C10: 24 | D10: 456 | E10: 24 | F10: 463 | K10: 0 | L10: 122 | N10: 122 | O10: =COUNTIF($L$7:$L$500,N10) -> 68 | P10: =O10/$Q$4 -> 0.3715846995 | Q10: =IF(P10=0,0,(P10*((LOG(P10))/LOG(2)))) -> -0.5307110153 | T10: =N10 -> 122 | U10: =COUNTIF(L7:L37,T10) -> 11 | V10: =U10/(W4-U11) -> 0.3548387097 | W10: =IF(V10=0,0,(V10*((LOG(V10))/LOG(2)))) -> -0.5304003745 | Y10: =N10 -> 122 | Z10: =COUNTIF(L38:L67,Y10) -> 12 | AA10: =Z10/(AB4-Z11) -> 0.4137931034 | AB10: =IF(AA10=0,0,(AA10*((LOG(AA10))/LOG(2)))) -> -0.5267662735 | AD10: =N10 -> 122 | AE10: =COUNTIF(L68:L98,AD10) -> 12 | AF10: =AE10/(AG4-AE11) -> 0.3870967742 | AG10: =IF(AF10=0,0,(AF10*((LOG(AF10))/LOG(2)))) -> -0.5300259908 | AI10: =N10 -> 122 | AJ10: =COUNTIF(L99:L128,AI10) -> 14 | AK10: =AJ10/(AL4-AJ11) -> 0.4666666667 | AL10: =IF(AK10=0,0,(AK10*((LOG(AK10))/LOG(2)))) -> -0.5131166477 | AN10: =N10 -> 122 | AO10: =COUNTIF(L129:L159,AN10) -> 6 | AP10: =AO10/(AQ4-AO11) -> 0.1935483871 | AQ10: =IF(AP10=0,0,(AP10*((LOG(AP10))/LOG(2)))) -> -0.4585613825 | AS10: =N10 -> 122 | AT10: =COUNTIF(L160:L189,AS10) -> 13 | AU10: =AT10/(AV4-AT11) -> 0.4333333333 | AV10: =IF(AU10=0,0,(AU10*((LOG(AU10))/LOG(2)))) -> -0.5227953802
A11: 12 | B11: 558 | C11: 13 | D11: 570 | E11: 24 | F11: 583 | K11: 0 | L11: 112 | N11: 211 | O11: =COUNTIF($L$7:$L$500,N11) -> 1 | P11: =O11/$Q$4 -> 0.005464480874 | Q11: =IF(P11=0,0,(P11*((LOG(P11))/LOG(2)))) -> -0.04106939802 | T11: =N11 -> 211 | U11: =COUNTIF(L7:L37,T11) -> 0 | Y11: =N11 -> 211 | Z11: =COUNTIF(L38:L67,Y11) -> 1 | AD11: =N11 -> 211 | AE11: =COUNTIF(L68:L98,AD11) -> 0 | AI11: =N11 -> 211 | AJ11: =COUNTIF(L99:L128,AI11) -> 0 | AN11: =N11 -> 211 | AO11: =COUNTIF(L129:L159,AN11) -> 0 | AS11: =N11 -> 211 | AT11: =COUNTIF(L160:L189,AS11) -> 0
A12: 12 | B12: 694 | C12: 24 | D12: 701 | E12: 24 | F12: 712 | K12: 0 | L12: 122 | N12: 212 | O12: =COUNTIF($L$7:$L$500,N12) -> 34 | P12: =O12/$Q$4 -> 0.1857923497 | Q12: =IF(P12=0,0,(P12*((LOG(P12))/LOG(2)))) -> -0.4511478574 | T12: =N12 -> 212 | U12: =COUNTIF(L7:L37,T12) -> 4 | V12: =U12/(W4-U11) -> 0.1290322581 | W12: =IF(V12=0,0,(V12*((LOG(V12))/LOG(2)))) -> -0.3811866207 | Y12: =N12 -> 212 | Z12: =COUNTIF(L38:L67,Y12) -> 3 | AA12: =Z12/(AB4-Z11) -> 0.1034482759 | AB12: =IF(AA12=0,0,(AA12*((LOG(AA12))/LOG(2)))) -> -0.3385881201 | AD12: =N12 -> 212 | AE12: =COUNTIF(L68:L98,AD12) -> 5 | AF12: =AE12/(AG4-AE11) -> 0.1612903226 | AG12: =IF(AF12=0,0,(AF12*((LOG(AF12))/LOG(2)))) -> -0.4245593896 | AI12: =N12 -> 212 | AJ12: =COUNTIF(L99:L128,AI12) -> 3 | AK12: =AJ12/(AL4-AJ11) -> 0.1 | AL12: =IF(AK12=0,0,(AK12*((LOG(AK12))/LOG(2)))) -> -0.3321928095 | AN12: =N12 -> 212 | AO12: =COUNTIF(L129:L159,AN12) -> 9 | AP12: =AO12/(AQ4-AO11) -> 0.2903225806 | AQ12: =IF(AP12=0,0,(AP12*((LOG(AP12))/LOG(2)))) -> -0.518014251 | AS12: =N12 -> 212 | AT12: =COUNTIF(L160:L189,AS12) -> 10 | AU12: =AT12/(AV4-AT11) -> 0.3333333333 | AV12: =IF(AU12=0,0,(AU12*((LOG(AU12))/LOG(2)))) -> -0.5283208336
A13: 12 | B13: 810 | C13: 24 | D13: 829 | E13: 24 | F13: 835 | K13: 0 | L13: 122 | N13: 221 | O13: =COUNTIF($L$7:$L$500,N13) -> 11 | P13: =O13/$Q$4 -> 0.06010928962 | Q13: =IF(P13=0,0,(P13*((LOG(P13))/LOG(2)))) -> -0.2438194012 | T13: =N13 -> 221 | U13: =COUNTIF(L7:L37,T13) -> 1 | V13: =U13/(W4-U11) -> 0.03225806452 | W13: =IF(V13=0,0,(V13*((LOG(V13))/LOG(2)))) -> -0.1598127842 | Y13: =N13 -> 221 | Z13: =COUNTIF(L38:L67,Y13) -> 3 | AA13: =Z13/(AB4-Z11) -> 0.1034482759 | AB13: =IF(AA13=0,0,(AA13*((LOG(AA13))/LOG(2)))) -> -0.3385881201 | AD13: =N13 -> 221 | AE13: =COUNTIF(L68:L98,AD13) -> 0 | AF13: =AE13/(AG4-AE11) -> 0 | AG13: =IF(AF13=0,0,(AF13*((LOG(AF13))/LOG(2)))) -> 0 | AI13: =N13 -> 221 | AJ13: =COUNTIF(L99:L128,AI13) -> 1 | AK13: =AJ13/(AL4-AJ11) -> 0.03333333333 | AL13: =IF(AK13=0,0,(AK13*((LOG(AK13))/LOG(2)))) -> -0.1635630199 | AN13: =N13 -> 221 | AO13: =COUNTIF(L129:L159,AN13) -> 4 | AP13: =AO13/(AQ4-AO11) -> 0.1290322581 | AQ13: =IF(AP13=0,0,(AP13*((LOG(AP13))/LOG(2)))) -> -0.3811866207 | AS13: =N13 -> 221 | AT13: =COUNTIF(L160:L189,AS13) -> 2 | AU13: =AT13/(AV4-AT11) -> 0.06666666667 | AV13: =IF(AU13=0,0,(AU13*((LOG(AU13))/LOG(2)))) -> -0.260459373
A14: 21 | B14: 929 | C14: 11 | D14: 932 | E14: 22 | F14: 935 | K14: 0 | L14: 212 | N14: 222 | O14: =COUNTIF($L$7:$L$500,N14) -> 38 | P14: =O14/$Q$4 -> 0.2076502732 | Q14: =IF(P14=0,0,(P14*((LOG(P14))/LOG(2)))) -> -0.4709035429 | T14: =N14 -> 222 | U14: =COUNTIF(L7:L37,T14) -> 5 | V14: =U14/(W4-U11) -> 0.1612903226 | W14: =IF(V14=0,0,(V14*((LOG(V14))/LOG(2)))) -> -0.4245593896 | Y14: =N14 -> 222 | Z14: =COUNTIF(L38:L67,Y14) -> 8 | AA14: =Z14/(AB4-Z11) -> 0.275862069 | AB14: =IF(AA14=0,0,(AA14*((LOG(AA14))/LOG(2)))) -> -0.5125464814 | AD14: =N14 -> 222 | AE14: =COUNTIF(L68:L98,AD14) -> 7 | AF14: =AE14/(AG4-AE11) -> 0.2258064516 | AG14: =IF(AF14=0,0,(AF14*((LOG(AF14))/LOG(2)))) -> -0.4847706361 | AI14: =N14 -> 222 | AJ14: =COUNTIF(L99:L128,AI14) -> 9 | AK14: =AJ14/(AL4-AJ11) -> 0.3 | AL14: =IF(AK14=0,0,(AK14*((LOG(AK14))/LOG(2)))) -> -0.5210896782 | AN14: =N14 -> 222 | AO14: =COUNTIF(L129:L159,AN14) -> 7 | AP14: =AO14/(AQ4-AO11) -> 0.2258064516 | AQ14: =IF(AP14=0,0,(AP14*((LOG(AP14))/LOG(2)))) -> -0.4847706361 | AS14: =N14 -> 222 | AT14: =COUNTIF(L160:L189,AS14) -> 2 | AU14: =AT14/(AV4-AT11) -> 0.06666666667 | AV14: =IF(AU14=0,0,(AU14*((LOG(AU14))/LOG(2)))) -> -0.260459373
A15: 21 | B15: 1041 | C15: 22 | D15: 1046 | E15: 24 | F15: 1052 | K15: 0 | L15: 222 | P15: =SUM(P7:P14) -> 1 | Q15: =-SUM(Q7:Q14) -> 2.373397975 | V15: =SUM(V7:V14) -> 1 | W15: =-SUM(W7:W14) -> 2.46473943 | AA15: =SUM(AA7:AA14) -> 1 | AB15: =-SUM(AB7:AB14) -> 2.150073236 | AF15: =SUM(AF7:AF14) -> 1 | AG15: =-SUM(AG7:AG14) -> 2.183540975 | AK15: =SUM(AK7:AK14) -> 1 | AL15: =-SUM(AL7:AL14) -> 1.953984548 | AP15: =SUM(AP7:AP14) -> 1 | AQ15: =-SUM(AQ7:AQ14) -> 2.26709228 | AU15: =SUM(AU7:AU14) -> 1 | AV15: =-SUM(AV7:AV14) -> 1.996057353
A16: 12 | B16: 1161 | C16: 13 | D16: 1174 | E16: 13 | F16: 1179 | K16: 0 | L16: 111 | P16: U= | Q16: =Q15/(LOG(Q4)/LOG(2)) -> 0.3157920122 | V16: U1= | W16: =W15/(LOG(W4)/LOG(2)) -> 0.4975054027 | AA16: U2= | AB16: =AB15/(LOG(AB4)/LOG(2)) -> 0.4381742764 | AF16: U3= | AG16: =AG15/(LOG(AG4)/LOG(2)) -> 0.4407457512 | AK16: U4= | AL16: =AL15/(LOG(AL4)/LOG(2)) -> 0.398212373 | AP16: U5= | AQ16: =AQ15/(LOG(AQ4)/LOG(2)) -> 0.4576105059 | AU16: U6= | AV16: =AV15/(LOG(AV4)/LOG(2)) -> 0.4067866022
A17: 12 | B17: 1324 | C17: 24 | D17: 1332 | E17: 24 | F17: 1339 | K17: 0 | L17: 122
A18: 12 | B18: 1432 | C18: 13 | D18: 1449 | E18: 24 | F18: 1461 | K18: 0 | L18: 112
A19: 12 | B19: 1555 | C19: 13 | D19: 1567 | E19: 13 | F19: 1570 | K19: 0 | L19: 111 | N19: Total Target Seq
A20: 12 | B20: 1665 | C20: 24 | D20: 1678 | E20: 13 | F20: 1680 | K20: 0 | L20: 121 | N20: =COUNTIF(L7:L189,G3) -> 1 | P20: 31 | Q20: 30 | R20: 31 | S20: 30 | T20: 31 | U20: 30
A21: 12 | B21: 1801 | C21: 24 | D21: 1808 | E21: 24 | F21: 1812 | K21: 0 | L21: 122 | P21: % of reinforcement given in 6 equal intervals based on number of trials
A22: 12 | B22: 1954 | C22: 24 | D22: 1958 | E22: 24 | F22: 1965 | K22: 0 | L22: 122 | P22: %_1 | Q22: %_2 | R22: %_3 | S22: %_4 | T22: %_5 | U22: %_6
A23: 12 | B23: 2067 | C23: 24 | D23: 2071 | E23: 24 | F23: 2076 | K23: 0 | L23: 122 | O23: target sequence | P23: =$G$3 -> 211 | Q23: =$G$3 -> 211 | R23: =$G$3 -> 211 | S23: =$G$3 -> 211 | T23: =$G$3 -> 211 | U23: =$G$3 -> 211
A24: 12 | B24: 2173 | C24: 24 | D24: 2175 | E24: 24 | F24: 2183 | K24: 0 | L24: 122 | O24: total reinforcement | P24: =U11 -> 0 | Q24: =Z11 -> 1 | R24: =AE11 -> 0 | S24: =AJ11 -> 0 | T24: =AO11 -> 0 | U24: =AT11 -> 0
A25: 21 | B25: 2287 | C25: 22 | D25: 2291 | E25: 24 | F25: 2298 | K25: 0 | L25: 222 | O25: % target
A26: 12 | B26: 2389 | C26: 13 | D26: 2391 | E26: 24 | F26: 2395 | K26: 0 | L26: 112 | O26: CCRF
A27: 12 | B27: 2535 | C27: 24 | D27: 2545 | E27: 24 | F27: 2559 | K27: 0 | L27: 122 | O27: % CCRf
A28: 21 | B28: 2664 | C28: 11 | D28: 2668 | E28: 22 | F28: 2675 | K28: 0 | L28: 212 | O28: average response rate | P28: =F37/P20 -> 126.2903226 | Q28: =(F67-F37)/Q20 -> 117.4333333 | R28: =(F98-F67)/R20 -> 137.5806452 | S28: =(F128-F98)/S20 -> 131.1666667 | T28: =(F159-F128)/T20 -> 131.8709677 | U28: =(F189-F159)/U20 -> 142.1
A29: 21 | B29: 2779 | C29: 22 | D29: 2785 | E29: 24 | F29: 2791 | K29: 0 | L29: 222
A30: 12 | B30: 2888 | C30: 24 | D30: 2892 | E30: 24 | F30: 2896 | K30: 0 | L30: 122
A31: 12 | B31: 2991 | C31: 24 | D31: 2994 | E31: 24 | F31: 2999 | K31: 0 | L31: 122
A32: 21 | B32: 3100 | C32: 22 | D32: 3106 | E32: 24 | F32: 3112 | K32: 0 | L32: 222
A33: 21 | B33: 3215 | C33: 22 | D33: 3220 | E33: 13 | F33: 3221 | K33: 0 | L33: 221
A34: 21 | B34: 3419 | C34: 11 | D34: 3423 | E34: 22 | F34: 3435 | K34: 0 | L34: 212
A35: 21 | B35: 3548 | C35: 22 | D35: 3555 | E35: 24 | F35: 3574 | K35: 0 | L35: 222
A36: 12 | B36: 3772 | C36: 24 | D36: 3782 | E36: 13 | F36: 3787 | K36: 0 | L36: 121
A37: 21 | B37: 3904 | C37: 11 | D37: 3908 | E37: 22 | F37: 3915 | K37: 0 | L37: 212
A38: 21 | B38: 4022 | C38: 22 | D38: 4026 | E38: 24 | F38: 4032 | K38: 0 | L38: 222
A39: 12 | B39: 4130 | C39: 13 | D39: 4138 | E39: 24 | F39: 4141 | K39: 0 | L39: 112
A40: 12 | B40: 4237 | C40: 24 | D40: 4239 | E40: 24 | F40: 4248 | K40: 0 | L40: 122
A41: 12 | B41: 4337 | C41: 24 | D41: 4341 | E41: 24 | F41: 4347 | K41: 0 | L41: 122
A42: 21 | B42: 4472 | C42: 11 | D42: 4478 | E42: 22 | F42: 4480 | K42: 0 | L42: 212
A43: 21 | B43: 4592 | C43: 22 | D43: 4599 | E43: 24 | F43: 4606 | K43: 0 | L43: 222
A44: 21 | B44: 4741 | C44: 11 | D44: 4745 | E44: 22 | F44: 4747 | K44: 0 | L44: 212
A45: 21 | B45: 4853 | C45: 22 | D45: 4857 | E45: 24 | F45: 4863 | K45: 0 | L45: 222
A46: 21 | B46: 4965 | C46: 22 | D46: 4972 | E46: 24 | F46: 4978 | K46: 0 | L46: 222
A47: 21 | B47: 5079 | C47: 11 | D47: 5082 | E47: 11 | F47: 5091 | K47: 0 | L47: 211
A48: 12 | B48: 5186 | C48: 24 | D48: 5201 | E48: 24 | F48: 5213 | K48: 0 | L48: 122
A49: 21 | B49: 5330 | C49: 11 | D49: 5332 | E49: 22 | F49: 5337 | K49: 0 | L49: 212
A50: 12 | B50: 5432 | C50: 24 | D50: 5443 | E50: 24 | F50: 5450 | K50: 0 | L50: 122
A51: 12 | B51: 5556 | C51: 24 | D51: 5570 | E51: 24 | F51: 5577 | K51: 0 | L51: 122
A52: 12 | B52: 5674 | C52: 24 | D52: 5677 | E52: 24 | F52: 5682 | K52: 0 | L52: 122
A53: 12 | B53: 5778 | C53: 24 | D53: 5784 | E53: 24 | F53: 5789 | K53: 0 | L53: 122
A54: 12 | B54: 5884 | C54: 24 | D54: 5890 | E54: 24 | F54: 5898 | K54: 0 | L54: 122
A55: 12 | B55: 5994 | C55: 24 | D55: 5999 | E55: 13 | F55: 6003 | K55: 0 | L55: 121
A56: 21 | B56: 6110 | C56: 22 | D56: 6118 | E56: 24 | F56: 6124 | K56: 0 | L56: 222
A57: 12 | B57: 6217 | C57: 24 | D57: 6230 | E57: 24 | F57: 6235 | K57: 0 | L57: 122
A58: 12 | B58: 6341 | C58: 24 | D58: 6343 | E58: 24 | F58: 6349 | K58: 0 | L58: 122
A59: 21 | B59: 6451 | C59: 22 | D59: 6457 | E59: 13 | F59: 6460 | K59: 0 | L59: 221
A60: 12 | B60: 6549 | C60: 24 | D60: 6556 | E60: 24 | F60: 6561 | K60: 0 | L60: 122
A61: 21 | B61: 6723 | C61: 22 | D61: 6730 | E61: 24 | F61: 6735 | K61: 0 | L61: 222
A62: 12 | B62: 6842 | C62: 13 | D62: 6852 | E62: 24 | F62: 6862 | K62: 0 | L62: 112
A63: 12 | B63: 6960 | C63: 24 | D63: 6965 | E63: 24 | F63: 6974 | K63: 0 | L63: 122
A64: 21 | B64: 7073 | C64: 22 | D64: 7077 | E64: 24 | F64: 7085 | K64: 0 | L64: 222
A65: 21 | B65: 7188 | C65: 22 | D65: 7193 | E65: 24 | F65: 7198 | K65: 0 | L65: 222
A66: 21 | B66: 7305 | C66: 22 | D66: 7309 | E66: 13 | F66: 7314 | K66: 0 | L66: 221
A67: 21 | B67: 7425 | C67: 22 | D67: 7431 | E67: 13 | F67: 7438 | K67: 0 | L67: 221
A68: 21 | B68: 7542 | C68: 22 | D68: 7547 | E68: 24 | F68: 7553 | K68: 0 | L68: 222
A69: 12 | B69: 7650 | C69: 24 | D69: 7654 | E69: 24 | F69: 7663 | K69: 0 | L69: 122
A70: 12 | B70: 7768 | C70: 13 | D70: 7775 | E70: 24 | F70: 7783 | K70: 0 | L70: 112
A71: 12 | B71: 7878 | C71: 24 | D71: 7895 | E71: 24 | F71: 7901 | K71: 0 | L71: 122
A72: 12 | B72: 8000 | C72: 24 | D72: 8003 | E72: 24 | F72: 8009 | K72: 0 | L72: 122
A73: 21 | B73: 8166 | C73: 22 | D73: 8172 | E73: 24 | F73: 8177 | K73: 0 | L73: 222
A74: 12 | B74: 8312 | C74: 13 | D74: 8325 | E74: 24 | F74: 8343 | K74: 0 | L74: 112
A75: 12 | B75: 8466 | C75: 13 | D75: 8478 | E75: 13 | F75: 8483 | K75: 0 | L75: 111
A76: 12 | B76: 8589 | C76: 24 | D76: 8601 | E76: 24 | F76: 8605 | K76: 0 | L76: 122
A77: 12 | B77: 9020 | C77: 24 | D77: 9036 | E77: 24 | F77: 9044 | K77: 0 | L77: 122
A78: 12 | B78: 9165 | C78: 24 | D78: 9178 | E78: 24 | F78: 9192 | K78: 0 | L78: 122
A79: 21 | B79: 9293 | C79: 11 | D79: 9297 | E79: 22 | F79: 9303 | K79: 0 | L79: 212
A80: 21 | B80: 9406 | C80: 22 | D80: 9418 | E80: 24 | F80: 9429 | K80: 0 | L80: 222
A81: 21 | B81: 9534 | C81: 22 | D81: 9538 | E81: 24 | F81: 9545 | K81: 0 | L81: 222
A82: 12 | B82: 9646 | C82: 24 | D82: 9652 | E82: 24 | F82: 9656 | K82: 0 | L82: 122
A83: 12 | B83: 9759 | C83: 24 | D83: 9767 | E83: 24 | F83: 9780 | K83: 0 | L83: 122
A84: 12 | B84: 9873 | C84: 24 | D84: 9886 | E84: 24 | F84: 9891 | K84: 0 | L84: 122
A85: 21 | B85: 9995 | C85: 22 | D85: 9997 | E85: 24 | F85: 10006 | K85: 0 | L85: 222
A86: 21 | B86: 10135 | C86: 11 | D86: 10142 | E86: 22 | F86: 10146 | K86: 0 | L86: 212
A87: 21 | B87: 10256 | C87: 22 | D87: 10262 | E87: 24 | F87: 10270 | K87: 0 | L87: 222
A88: 12 | B88: 10415 | C88: 24 | D88: 10426 | E88: 24 | F88: 10437 | K88: 0 | L88: 122
A89: 12 | B89: 10541 | C89: 13 | D89: 10546 | E89: 24 | F89: 10559 | K89: 0 | L89: 112
A90: 12 | B90: 10646 | C90: 13 | D90: 10653 | E90: 24 | F90: 10658 | K90: 0 | L90: 112
A91: 12 | B91: 10781 | C91: 24 | D91: 10793 | E91: 13 | F91: 10799 | K91: 0 | L91: 121
A92: 21 | B92: 10935 | C92: 11 | D92: 10940 | E92: 22 | F92: 10955 | K92: 0 | L92: 212
A93: 21 | B93: 11075 | C93: 22 | D93: 11087 | E93: 24 | F93: 11093 | K93: 0 | L93: 222
A94: 21 | B94: 11199 | C94: 11 | D94: 11206 | E94: 22 | F94: 11217 | K94: 0 | L94: 212
A95: 12 | B95: 11322 | C95: 24 | D95: 11327 | E95: 24 | F95: 11334 | K95: 0 | L95: 122
A96: 12 | B96: 11469 | C96: 24 | D96: 11483 | E96: 24 | F96: 11487 | K96: 0 | L96: 122
A97: 21 | B97: 11586 | C97: 11 | D97: 11589 | E97: 22 | F97: 11594 | K97: 0 | L97: 212
A98: 12 | B98: 11692 | C98: 13 | D98: 11696 | E98: 24 | F98: 11703 | K98: 0 | L98: 112
A99: 12 | B99: 11806 | C99: 24 | D99: 11819 | E99: 24 | F99: 11828 | K99: 0 | L99: 122
A100: 12 | B100: 11955 | C100: 24 | D100: 11971 | E100: 24 | F100: 11979 | K100: 0 | L100: 122
A101: 21 | B101: 12129 | C101: 22 | D101: 12134 | E101: 24 | F101: 12141 | K101: 0 | L101: 222
A102: 12 | B102: 12248 | C102: 24 | D102: 12256 | E102: 24 | F102: 12261 | K102: 0 | L102: 122
A103: 21 | B103: 12370 | C103: 11 | D103: 12373 | E103: 22 | F103: 12382 | K103: 0 | L103: 212
A104: 21 | B104: 12493 | C104: 22 | D104: 12499 | E104: 24 | F104: 12507 | K104: 0 | L104: 222
A105: 12 | B105: 12612 | C105: 24 | D105: 12627 | E105: 24 | F105: 12633 | K105: 0 | L105: 122
A106: 12 | B106: 12767 | C106: 24 | D106: 12771 | E106: 24 | F106: 12777 | K106: 0 | L106: 122
A107: 12 | B107: 12871 | C107: 24 | D107: 12890 | E107: 24 | F107: 12896 | K107: 0 | L107: 122
A108: 21 | B108: 13032 | C108: 22 | D108: 13044 | E108: 24 | F108: 13055 | K108: 0 | L108: 222
A109: 21 | B109: 13165 | C109: 22 | D109: 13168 | E109: 24 | F109: 13174 | K109: 0 | L109: 222
A110: 12 | B110: 13286 | C110: 24 | D110: 13289 | E110: 24 | F110: 13295 | K110: 0 | L110: 122
A111: 12 | B111: 13387 | C111: 24 | D111: 13395 | E111: 13 | F111: 13397 | K111: 0 | L111: 121
A112: 12 | B112: 13601 | C112: 24 | D112: 13608 | E112: 24 | F112: 13616 | K112: 0 | L112: 122
A113: 12 | B113: 13712 | C113: 24 | D113: 13717 | E113: 24 | F113: 13724 | K113: 0 | L113: 122
A114: 12 | B114: 13819 | C114: 24 | D114: 13826 | E114: 24 | F114: 13831 | K114: 0 | L114: 122
A115: 21 | B115: 13952 | C115: 22 | D115: 13959 | E115: 24 | F115: 13967 | K115: 0 | L115: 222
A116: 12 | B116: 14072 | C116: 24 | D116: 14078 | E116: 24 | F116: 14087 | K116: 0 | L116: 122
A117: 21 | B117: 14187 | C117: 22 | D117: 14191 | E117: 24 | F117: 14199 | K117: 0 | L117: 222
A118: 21 | B118: 14299 | C118: 11 | D118: 14303 | E118: 22 | F118: 14305 | K118: 0 | L118: 212
A119: 12 | B119: 14400 | C119: 13 | D119: 14410 | E119: 24 | F119: 14421 | K119: 0 | L119: 112
A120: 21 | B120: 14530 | C120: 22 | D120: 14534 | E120: 24 | F120: 14541 | K120: 0 | L120: 222
A121: 12 | B121: 14641 | C121: 24 | D121: 14647 | E121: 24 | F121: 14657 | K121: 0 | L121: 122
A122: 21 | B122: 14750 | C122: 22 | D122: 14759 | E122: 24 | F122: 14766 | K122: 0 | L122: 222
A123: 21 | B123: 14940 | C123: 11 | D123: 14947 | E123: 22 | F123: 14950 | K123: 0 | L123: 212
A124: 12 | B124: 15045 | C124: 24 | D124: 15060 | E124: 24 | F124: 15068 | K124: 0 | L124: 122
A125: 21 | B125: 15233 | C125: 22 | D125: 15243 | E125: 24 | F125: 15249 | K125: 0 | L125: 222
A126: 12 | B126: 15349 | C126: 13 | D126: 15357 | E126: 24 | F126: 15363 | K126: 0 | L126: 112
A127: 21 | B127: 15528 | C127: 22 | D127: 15532 | E127: 13 | F127: 15535 | K127: 0 | L127: 221
A128: 12 | B128: 15627 | C128: 24 | D128: 15634 | E128: 24 | F128: 15638 | K128: 0 | L128: 122
A129: 12 | B129: 15738 | C129: 24 | D129: 15744 | E129: 24 | F129: 15749 | K129: 0 | L129: 122
A130: 21 | B130: 15856 | C130: 22 | D130: 15865 | E130: 13 | F130: 15869 | K130: 0 | L130: 221
A131: 12 | B131: 15961 | C131: 13 | D131: 15977 | E131: 24 | F131: 15985 | K131: 0 | L131: 112
A132: 21 | B132: 16089 | C132: 22 | D132: 16093 | E132: 13 | F132: 16097 | K132: 0 | L132: 221
A133: 21 | B133: 16239 | C133: 11 | D133: 16245 | E133: 22 | F133: 16249 | K133: 0 | L133: 212
A134: 21 | B134: 16359 | C134: 22 | D134: 16370 | E134: 24 | F134: 16378 | K134: 0 | L134: 222
A135: 21 | B135: 16489 | C135: 11 | D135: 16494 | E135: 22 | F135: 16500 | K135: 0 | L135: 212
A136: 12 | B136: 16603 | C136: 24 | D136: 16620 | E136: 24 | F136: 16625 | K136: 0 | L136: 122
A137: 21 | B137: 16770 | C137: 11 | D137: 16776 | E137: 22 | F137: 16782 | K137: 0 | L137: 212
A138: 12 | B138: 16893 | C138: 24 | D138: 16907 | E138: 24 | F138: 16910 | K138: 0 | L138: 122
A139: 12 | B139: 17098 | C139: 24 | D139: 17104 | E139: 24 | F139: 17112 | K139: 0 | L139: 122
A140: 21 | B140: 17249 | C140: 11 | D140: 17251 | E140: 22 | F140: 17253 | K140: 0 | L140: 212
A141: 12 | B141: 17360 | C141: 13 | D141: 17367 | E141: 24 | F141: 17370 | K141: 0 | L141: 112
A142: 21 | B142: 17474 | C142: 22 | D142: 17479 | E142: 13 | F142: 17486 | K142: 0 | L142: 221
A143: 12 | B143: 17579 | C143: 24 | D143: 17582 | E143: 24 | F143: 17585 | K143: 0 | L143: 122
A144: 21 | B144: 17681 | C144: 11 | D144: 17682 | E144: 22 | F144: 17687 | K144: 0 | L144: 212
A145: 21 | B145: 17787 | C145: 22 | D145: 17791 | E145: 24 | F145: 17797 | K145: 0 | L145: 222
A146: 21 | B146: 17948 | C146: 22 | D146: 17951 | E146: 24 | F146: 17958 | K146: 0 | L146: 222
A147: 12 | B147: 18057 | C147: 13 | D147: 18060 | E147: 24 | F147: 18072 | K147: 0 | L147: 112
A148: 21 | B148: 18172 | C148: 22 | D148: 18177 | E148: 24 | F148: 18182 | K148: 0 | L148: 222
A149: 12 | B149: 18289 | C149: 13 | D149: 18294 | E149: 24 | F149: 18305 | K149: 0 | L149: 112
A150: 21 | B150: 18398 | C150: 11 | D150: 18401 | E150: 22 | F150: 18403 | K150: 0 | L150: 212
A151: 21 | B151: 18571 | C151: 11 | D151: 18577 | E151: 22 | F151: 18582 | K151: 0 | L151: 212
A152: 21 | B152: 18724 | C152: 22 | D152: 18728 | E152: 13 | F152: 18733 | K152: 0 | L152: 221
A153: 21 | B153: 18969 | C153: 22 | D153: 18975 | E153: 24 | F153: 18982 | K153: 0 | L153: 222
A154: 21 | B154: 19108 | C154: 11 | D154: 19115 | E154: 22 | F154: 19126 | K154: 0 | L154: 212
A155: 21 | B155: 19242 | C155: 22 | D155: 19249 | E155: 24 | F155: 19256 | K155: 0 | L155: 222
A156: 12 | B156: 19369 | C156: 13 | D156: 19372 | E156: 24 | F156: 19383 | K156: 0 | L156: 112
A157: 21 | B157: 19488 | C157: 11 | D157: 19496 | E157: 22 | F157: 19502 | K157: 0 | L157: 212
A158: 12 | B158: 19599 | C158: 24 | D158: 19604 | E158: 24 | F158: 19609 | K158: 0 | L158: 122
A159: 21 | B159: 19716 | C159: 22 | D159: 19720 | E159: 24 | F159: 19726 | K159: 0 | L159: 222
A160: 21 | B160: 19819 | C160: 11 | D160: 19825 | E160: 22 | F160: 19828 | K160: 0 | L160: 212
A161: 21 | B161: 19934 | C161: 11 | D161: 19941 | E161: 22 | F161: 19951 | K161: 0 | L161: 212
A162: 21 | B162: 20053 | C162: 22 | D162: 20061 | E162: 24 | F162: 20067 | K162: 0 | L162: 222
A163: 12 | B163: 20166 | C163: 24 | D163: 20172 | E163: 24 | F163: 20180 | K163: 0 | L163: 122
A164: 21 | B164: 20280 | C164: 22 | D164: 20289 | E164: 13 | F164: 20291 | K164: 0 | L164: 221
A165: 12 | B165: 20383 | C165: 24 | D165: 20399 | E165: 24 | F165: 20402 | K165: 0 | L165: 122
A166: 21 | B166: 20501 | C166: 11 | D166: 20506 | E166: 22 | F166: 20510 | K166: 0 | L166: 212
A167: 21 | B167: 20611 | C167: 11 | D167: 20616 | E167: 22 | F167: 20621 | K167: 0 | L167: 212
A168: 12 | B168: 20755 | C168: 24 | D168: 20774 | E168: 13 | F168: 20778 | K168: 0 | L168: 121
A169: 12 | B169: 20879 | C169: 24 | D169: 20883 | E169: 24 | F169: 20890 | K169: 0 | L169: 122
A170: 21 | B170: 20991 | C170: 11 | D170: 20997 | E170: 22 | F170: 21001 | K170: 0 | L170: 212
A171: 12 | B171: 21099 | C171: 24 | D171: 21103 | E171: 24 | F171: 21108 | K171: 0 | L171: 122
A172: 12 | B172: 21218 | C172: 24 | D172: 21220 | E172: 24 | F172: 21229 | K172: 0 | L172: 122
A173: 21 | B173: 21332 | C173: 22 | D173: 21335 | E173: 13 | F173: 21338 | K173: 0 | L173: 221
A174: 21 | B174: 21436 | C174: 22 | D174: 21443 | E174: 24 | F174: 21448 | K174: 0 | L174: 222
A175: 12 | B175: 21665 | C175: 24 | D175: 21684 | E175: 24 | F175: 21690 | K175: 0 | L175: 122
A176: 12 | B176: 21928 | C176: 24 | D176: 21931 | E176: 24 | F176: 21937 | K176: 0 | L176: 122
A177: 21 | B177: 22181 | C177: 11 | D177: 22183 | E177: 22 | F177: 22189 | K177: 0 | L177: 212
A178: 12 | B178: 22280 | C178: 24 | D178: 22293 | E178: 24 | F178: 22300 | K178: 0 | L178: 122
A179: 21 | B179: 22445 | C179: 11 | D179: 22449 | E179: 22 | F179: 22455 | K179: 0 | L179: 212
A180: 12 | B180: 22548 | C180: 13 | D180: 22550 | E180: 24 | F180: 22565 | K180: 0 | L180: 112
A181: 12 | B181: 22676 | C181: 24 | D181: 22686 | E181: 24 | F181: 22692 | K181: 0 | L181: 122
A182: 21 | B182: 22804 | C182: 11 | D182: 22812 | E182: 22 | F182: 22816 | K182: 0 | L182: 212
A183: 12 | B183: 22909 | C183: 24 | D183: 22915 | E183: 24 | F183: 22920 | K183: 0 | L183: 122
A184: 21 | B184: 23163 | C184: 11 | D184: 23168 | E184: 22 | F184: 23173 | K184: 0 | L184: 212
A185: 12 | B185: 23268 | C185: 24 | D185: 23276 | E185: 24 | F185: 23281 | K185: 0 | L185: 122
A186: 12 | B186: 23597 | C186: 24 | D186: 23612 | E186: 13 | F186: 23616 | K186: 0 | L186: 121
A187: 12 | B187: 23714 | C187: 24 | D187: 23716 | E187: 24 | F187: 23721 | K187: 0 | L187: 122
A188: 12 | B188: 23850 | C188: 24 | D188: 23856 | E188: 24 | F188: 23863 | K188: 0 | L188: 122
A189: 21 | B189: 23978 | C189: 11 | D189: 23986 | E189: 22 | F189: 23989 | L189: 212

Sheet !N202B00.Gus
A1: Report for:!N202B00.Gus
A2: Date: | B2: <date>
A3: Hen: | B3: <hen> | F3: Correct Sequence | G3: =Start!J2 -> 211 | P3: Total Sequences in Data | Q3: =4994-COUNTBLANK(L7:L5000) -> 194 | V3: Total Sequences in Block Data | W3: =COUNTA(L7:L38) -> 32 | AA3: Total Sequences in Block Data | AB3: =COUNTA(L39:L71) -> 33 | AF3: Total Sequences in Block Data | AG3: =COUNTA(L72:L103) -> 32 | AK3: Total Sequences in Block Data | AL3: =COUNTA(L104:L135) -> 32 | AP3: Total Sequences in Block Data | AQ3: =COUNTA(L136:L168) -> 33 | AU3: Total Sequences in Block Data | AV3: =COUNTA(L169:L200) -> 32
P4: Total Sequences in Summary | Q4: =SUM(O7:O14) -> 194 | V4: Total Sequences in Block Summary | W4: =SUM(U7:U14) -> 32 | AA4: Total Sequences in Block Summary | AB4: =SUM(Z7:Z14) -> 33 | AF4: Total Sequences in Block Summary | AG4: =SUM(AE7:AE14) -> 32 | AK4: Total Sequences in Block Summary | AL4: =SUM(AJ7:AJ14) -> 32 | AP4: Total Sequences in Block Summary | AQ4: =SUM(AO7:AO14) -> 33 | AU4: Total Sequences in Block Summary | AV4: =SUM(AT7:AT14) -> 32
T5: Block 1 | Y5: Block 2 | AD5: Block 3 | AI5: Block 4 | AN5: Block 5 | AS5: Block 6
A6: Sequence Component 1 | B6: Time 1 | C6: Sequence Component 2 | D6: Time 2 | E6: Sequence Component 3 | F6: Time 3 | G6: Sequence Component 4 | H6: Time 4 | I6: Sequence Component 5 | J6: Time 5 | K6: Correct? 0=No 1=Yes | L6: Sequence | N6: Frequency | P6: Relative Frequency | Q6: Variability | T6: Frequency | V6: Relative Frequency | W6: Variability | Y6: Frequency | AA6: Relative Frequency | AB6: Variability | AD6: Frequency | AF6: Relative Frequency | AG6: Variability | AI6: Frequency | AK6: Relative Frequency | AL6: Variability | AN6: Frequency | AP6: Relative Frequency | AQ6: Variability | AS6: Frequency | AU6: Relative Frequency | AV6: Variability
A7: 12 | B7: 9 | C7: 24 | D7: 12 | E7: 24 | F7: 17 | K7: 0 | L7: 122 | N7: 111 | O7: =COUNTIF($L$7:$L$500,N7) -> 1 | P7: =O7/$Q$4 -> 0.005154639175 | Q7: =IF(P7=0,0,(P7*((LOG(P7))/LOG(2)))) -> -0.03917480846 | T7: =N7 -> 111 | U7: =COUNTIF(L7:L38,T7) -> 1 | V7: =U7/(W4-U11) -> 0.03125 | W7: =IF(V7=0,0,(V7*((LOG(V7))/LOG(2)))) -> -0.15625 | Y7: =N7 -> 111 | Z7: =COUNTIF(L39:L71,Y7) -> 0 | AA7: =Z7/(AB4-Z11) -> 0 | AB7: =IF(AA7=0,0,(AA7*((LOG(AA7))/LOG(2)))) -> 0 | AD7: =N7 -> 111 | AE7: =COUNTIF(L72:L103,AD7) -> 0 | AF7: =AE7/(AG4-AE11) -> 0 | AG7: =IF(AF7=0,0,(AF7*((LOG(AF7))/LOG(2)))) -> 0 | AI7: =N7 -> 111 | AJ7: =COUNTIF(L104:L135,AI7) -> 0 | AK7: =AJ7/(AL4-AJ11) -> 0 | AL7: =IF(AK7=0,0,(AK7*((LOG(AK7))/LOG(2)))) -> 0 | AN7: =N7 -> 111 | AO7: =COUNTIF(L136:L168,AN7) -> 0 | AP7: =AO7/(AQ4-AO11) -> 0 | AQ7: =IF(AP7=0,0,(AP7*((LOG(AP7))/LOG(2)))) -> 0 | AS7: =N7 -> 111 | AT7: =COUNTIF(L169:L200,AS7) -> 0 | AU7: =AT7/(AV4-AT11) -> 0 | AV7: =IF(AU7=0,0,(AU7*((LOG(AU7))/LOG(2)))) -> 0
A8: 12 | B8: 111 | C8: 13 | D8: 119 | E8: 24 | F8: 124 | K8: 0 | L8: 112 | N8: 112 | O8: =COUNTIF($L$7:$L$500,N8) -> 14 | P8: =O8/$Q$4 -> 0.07216494845 | Q8: =IF(P8=0,0,(P8*((LOG(P8))/LOG(2)))) -> -0.2736897468 | T8: =N8 -> 112 | U8: =COUNTIF(L7:L38,T8) -> 6 | V8: =U8/(W4-U11) -> 0.1875 | W8: =IF(V8=0,0,(V8*((LOG(V8))/LOG(2)))) -> -0.4528195311 | Y8: =N8 -> 112 | Z8: =COUNTIF(L39:L71,Y8) -> 2 | AA8: =Z8/(AB4-Z11) -> 0.06060606061 | AB8: =IF(AA8=0,0,(AA8*((LOG(AA8))/LOG(2)))) -> -0.2451147951 | AD8: =N8 -> 112 | AE8: =COUNTIF(L72:L103,AD8) -> 0 | AF8: =AE8/(AG4-AE11) -> 0 | AG8: =IF(AF8=0,0,(AF8*((LOG(AF8))/LOG(2)))) -> 0 | AI8: =N8 -> 112 | AJ8: =COUNTIF(L104:L135,AI8) -> 1 | AK8: =AJ8/(AL4-AJ11) -> 0.03225806452 | AL8: =IF(AK8=0,0,(AK8*((LOG(AK8))/LOG(2)))) -> -0.1598127842 | AN8: =N8 -> 112 | AO8: =COUNTIF(L136:L168,AN8) -> 3 | AP8: =AO8/(AQ4-AO11) -> 0.09677419355 | AQ8: =IF(AP8=0,0,(AP8*((LOG(AP8))/LOG(2)))) -> -0.3260548848 | AS8: =N8 -> 112 | AT8: =COUNTIF(L169:L200,AS8) -> 2 | AU8: =AT8/(AV4-AT11) -> 0.0625 | AV8: =IF(AU8=0,0,(AU8*((LOG(AU8))/LOG(2)))) -> -0.25
A9: 12 | B9: 220 | C9: 24 | D9: 226 | E9: 24 | F9: 232 | K9: 0 | L9: 122 | N9: 121 | O9: =COUNTIF($L$7:$L$500,N9) -> 14 | P9: =O9/$Q$4 -> 0.07216494845 | Q9: =IF(P9=0,0,(P9*((LOG(P9))/LOG(2)))) -> -0.2736897468 | T9: =N9 -> 121 | U9: =COUNTIF(L7:L38,T9) -> 2 | V9: =U9/(W4-U11) -> 0.0625 | W9: =IF(V9=0,0,(V9*((LOG(V9))/LOG(2)))) -> -0.25 | Y9: =N9 -> 121 | Z9: =COUNTIF(L39:L71,Y9) -> 4 | AA9: =Z9/(AB4-Z11) -> 0.1212121212 | AB9: =IF(AA9=0,0,(AA9*((LOG(AA9))/LOG(2)))) -> -0.369017469 | AD9: =N9 -> 121 | AE9: =COUNTIF(L72:L103,AD9) -> 2 | AF9: =AE9/(AG4-AE11) -> 0.0625 | AG9: =IF(AF9=0,0,(AF9*((LOG(AF9))/LOG(2)))) -> -0.25 | AI9: =N9 -> 121 | AJ9: =COUNTIF(L104:L135,AI9) -> 2 | AK9: =AJ9/(AL4-AJ11) -> 0.06451612903 | AL9: =IF(AK9=0,0,(AK9*((LOG(AK9))/LOG(2)))) -> -0.2551094394 | AN9: =N9 -> 121 | AO9: =COUNTIF(L136:L168,AN9) -> 3 | AP9: =AO9/(AQ4-AO11) -> 0.09677419355 | AQ9: =IF(AP9=0,0,(AP9*((LOG(AP9))/LOG(2)))) -> -0.3260548848 | AS9: =N9 -> 121 | AT9: =COUNTIF(L169:L200,AS9) -> 1 | AU9: =AT9/(AV4-AT11) -> 0.03125 | AV9: =IF(AU9=0,0,(AU9*((LOG(AU9))/LOG(2)))) -> -0.15625
A10: 12 | B10: 326 | C10: 13 | D10: 330 | E10: 24 | F10: 340 | K10: 0 | L10: 112 | N10: 122 | O10: =COUNTIF($L$7:$L$500,N10) -> 77 | P10: =O10/$Q$4 -> 0.3969072165 | Q10: =IF(P10=0,0,(P10*((LOG(P10))/LOG(2)))) -> -0.5291274496 | T10: =N10 -> 122 | U10: =COUNTIF(L7:L38,T10) -> 13 | V10: =U10/(W4-U11) -> 0.40625 | W10: =IF(V10=0,0,(V10*((LOG(V10))/LOG(2)))) -> -0.5279463645 | Y10: =N10 -> 122 | Z10: =COUNTIF(L39:L71,Y10) -> 16 | AA10: =Z10/(AB4-Z11) -> 0.4848484848 | AB10: =IF(AA10=0,0,(AA10*((LOG(AA10))/LOG(2)))) -> -0.5063729064 | AD10: =N10 -> 122 | AE10: =COUNTIF(L72:L103,AD10) -> 13 | AF10: =AE10/(AG4-AE11) -> 0.40625 | AG10: =IF(AF10=0,0,(AF10*((LOG(AF10))/LOG(2)))) -> -0.5279463645 | AI10: =N10 -> 122 | AJ10: =COUNTIF(L104:L135,AI10) -> 12 | AK10: =AJ10/(AL4-AJ11) -> 0.3870967742 | AL10: =IF(AK10=0,0,(AK10*((LOG(AK10))/LOG(2)))) -> -0.5300259908 | AN10: =N10 -> 122 | AO10: =COUNTIF(L136:L168,AN10) -> 7 | AP10: =AO10/(AQ4-AO11) -> 0.2258064516 | AQ10: =IF(AP10=0,0,(AP10*((LOG(AP10))/LOG(2)))) -> -0.4847706361 | AS10: =N10 -> 122 | AT10: =COUNTIF(L169:L200,AS10) -> 16 | AU10: =AT10/(AV4-AT11) -> 0.5 | AV10: =IF(AU10=0,0,(AU10*((LOG(AU10))/LOG(2)))) -> -0.5
A11: 12 | B11: 442 | C11: 13 | D11: 445 | E11: 24 | F11: 457 | K11: 0 | L11: 112 | N11: 211 | O11: =COUNTIF($L$7:$L$500,N11) -> 3 | P11: =O11/$Q$4 -> 0.01546391753 | Q11: =IF(P11=0,0,(P11*((LOG(P11))/LOG(2)))) -> -0.093014696 | T11: =N11 -> 211 | U11: =COUNTIF(L7:L38,T11) -> 0 | Y11: =N11 -> 211 | Z11: =COUNTIF(L39:L71,Y11) -> 0 | AD11: =N11 -> 211 | AE11: =COUNTIF(L72:L103,AD11) -> 0 | AI11: =N11 -> 211 | AJ11: =COUNTIF(L104:L135,AI11) -> 1 | AN11: =N11 -> 211 | AO11: =COUNTIF(L136:L168,AN11) -> 2 | AS11: =N11 -> 211 | AT11: =COUNTIF(L169:L200,AS11) -> 0
A12: 12 | B12: 550 | C12: 13 | D12: 557 | E12: 13 | F12: 560 | K12: 0 | L12: 111 | N12: 212 | O12: =COUNTIF($L$7:$L$500,N12) -> 34 | P12: =O12/$Q$4 -> 0.175257732 | Q12: =IF(P12=0,0,(P12*((LOG(P12))/LOG(2)))) -> -0.4403262888 | T12: =N12 -> 212 | U12: =COUNTIF(L7:L38,T12) -> 4 | V12: =U12/(W4-U11) -> 0.125 | W12: =IF(V12=0,0,(V12*((LOG(V12))/LOG(2)))) -> -0.375 | Y12: =N12 -> 212 | Z12: =COUNTIF(L39:L71,Y12) -> 6 | AA12: =Z12/(AB4-Z11) -> 0.1818181818 | AB12: =IF(AA12=0,0,(AA12*((LOG(AA12))/LOG(2)))) -> -0.4471693852 | AD12: =N12 -> 212 | AE12: =COUNTIF(L72:L103,AD12) -> 4 | AF12: =AE12/(AG4-AE11) -> 0.125 | AG12: =IF(AF12=0,0,(AF12*((LOG(AF12))/LOG(2)))) -> -0.375 | AI12: =N12 -> 212 | AJ12: =COUNTIF(L104:L135,AI12) -> 9 | AK12: =AJ12/(AL4-AJ11) -> 0.2903225806 | AL12: =IF(AK12=0,0,(AK12*((LOG(AK12))/LOG(2)))) -> -0.518014251 | AN12: =N12 -> 212 | AO12: =COUNTIF(L136:L168,AN12) -> 6 | AP12: =AO12/(AQ4-AO11) -> 0.1935483871 | AQ12: =IF(AP12=0,0,(AP12*((LOG(AP12))/LOG(2)))) -> -0.4585613825 | AS12: =N12 -> 212 | AT12: =COUNTIF(L169:L200,AS12) -> 5 | AU12: =AT12/(AV4-AT11) -> 0.15625 | AV12: =IF(AU12=0,0,(AU12*((LOG(AU12))/LOG(2)))) -> -0.4184487352
A13: 12 | B13: 652 | C13: 24 | D13: 666 | E13: 13 | F13: 669 | K13: 0 | L13: 121 | N13: 221 | O13: =COUNTIF($L$7:$L$500,N13) -> 9 | P13: =O13/$Q$4 -> 0.04639175258 | Q13: =IF(P13=0,0,(P13*((LOG(P13))/LOG(2)))) -> -0.2055148998 | T13: =N13 -> 221 | U13: =COUNTIF(L7:L38,T13) -> 0 | V13: =U13/(W4-U11) -> 0 | W13: =IF(V13=0,0,(V13*((LOG(V13))/LOG(2)))) -> 0 | Y13: =N13 -> 221 | Z13: =COUNTIF(L39:L71,Y13) -> 1 | AA13: =Z13/(AB4-Z11) -> 0.0303030303 | AB13: =IF(AA13=0,0,(AA13*((LOG(AA13))/LOG(2)))) -> -0.1528604279 | AD13: =N13 -> 221 | AE13: =COUNTIF(L72:L103,AD13) -> 1 | AF13: =AE13/(AG4-AE11) -> 0.03125 | AG13: =IF(AF13=0,0,(AF13*((LOG(AF13))/LOG(2)))) -> -0.15625 | AI13: =N13 -> 221 | AJ13: =COUNTIF(L104:L135,AI13) -> 1 | AK13: =AJ13/(AL4-AJ11) -> 0.03225806452 | AL13: =IF(AK13=0,0,(AK13*((LOG(AK13))/LOG(2)))) -> -0.1598127842 | AN13: =N13 -> 221 | AO13: =COUNTIF(L136:L168,AN13) -> 2 | AP13: =AO13/(AQ4-AO11) -> 0.06451612903 | AQ13: =IF(AP13=0,0,(AP13*((LOG(AP13))/LOG(2)))) -> -0.2551094394 | AS13: =N13 -> 221 | AT13: =COUNTIF(L169:L200,AS13) -> 4 | AU13: =AT13/(AV4-AT11) -> 0.125 | AV13: =IF(AU13=0,0,(AU13*((LOG(AU13))/LOG(2)))) -> -0.375
A14: 12 | B14: 775 | C14: 24 | D14: 777 | E14: 24 | F14: 783 | K14: 0 | L14: 122 | N14: 222 | O14: =COUNTIF($L$7:$L$500,N14) -> 42 | P14: =O14/$Q$4 -> 0.2164948454 | Q14: =IF(P14=0,0,(P14*((LOG(P14))/LOG(2)))) -> -0.4779330289 | T14: =N14 -> 222 | U14: =COUNTIF(L7:L38,T14) -> 6 | V14: =U14/(W4-U11) -> 0.1875 | W14: =IF(V14=0,0,(V14*((LOG(V14))/LOG(2)))) -> -0.4528195311 | Y14: =N14 -> 222 | Z14: =COUNTIF(L39:L71,Y14) -> 4 | AA14: =Z14/(AB4-Z11) -> 0.1212121212 | AB14: =IF(AA14=0,0,(AA14*((LOG(AA14))/LOG(2)))) -> -0.369017469 | AD14: =N14 -> 222 | AE14: =COUNTIF(L72:L103,AD14) -> 12 | AF14: =AE14/(AG4-AE11) -> 0.375 | AG14: =IF(AF14=0,0,(AF14*((LOG(AF14))/LOG(2)))) -> -0.5306390622 | AI14: =N14 -> 222 | AJ14: =COUNTIF(L104:L135,AI14) -> 6 | AK14: =AJ14/(AL4-AJ11) -> 0.1935483871 | AL14: =IF(AK14=0,0,(AK14*((LOG(AK14))/LOG(2)))) -> -0.4585613825 | AN14: =N14 -> 222 | AO14: =COUNTIF(L136:L168,AN14) -> 10 | AP14: =AO14/(AQ4-AO11) -> 0.3225806452 | AQ14: =IF(AP14=0,0,(AP14*((LOG(AP14))/LOG(2)))) -> -0.526538134 | AS14: =N14 -> 222 | AT14: =COUNTIF(L169:L200,AS14) -> 4 | AU14: =AT14/(AV4-AT11) -> 0.125 | AV14: =IF(AU14=0,0,(AU14*((LOG(AU14))/LOG(2)))) -> -0.375
A15: 12 | B15: 880 | C15: 24 | D15: 884 | E15: 13 | F15: 889 | K15: 0 | L15: 121 | P15: =SUM(P7:P14) -> 1 | Q15: =-SUM(Q7:Q14) -> 2.332470665 | V15: =SUM(V7:V14) -> 1 | W15: =-SUM(W7:W14) -> 2.214835427 | AA15: =SUM(AA7:AA14) -> 1 | AB15: =-SUM(AB7:AB14) -> 2.089552453 | AF15: =SUM(AF7:AF14) -> 1 | AG15: =-SUM(AG7:AG14) -> 1.839835427 | AK15: =SUM(AK7:AK14) -> 1 | AL15: =-SUM(AL7:AL14) -> 2.081336632 | AP15: =SUM(AP7:AP14) -> 1 | AQ15: =-SUM(AQ7:AQ14) -> 2.377089362 | AU15: =SUM(AU7:AU14) -> 1 | AV15: =-SUM(AV7:AV14) -> 2.074698735
A16: 12 | B16: 1052 | C16: 24 | D16: 1072 | E16: 24 | F16: 1077 | K16: 0 | L16: 122 | P16: U= | Q16: =Q15/(LOG(Q4)/LOG(2)) -> 0.3069075546 | V16: U1= | W16: =W15/(LOG(W4)/LOG(2)) -> 0.4429670853 | AA16: U2= | AB16: =AB15/(LOG(AB4)/LOG(2)) -> 0.4142325923 | AF16: U3= | AG16: =AG15/(LOG(AG4)/LOG(2)) -> 0.3679670853 | AK16: U4= | AL16: =AL15/(LOG(AL4)/LOG(2)) -> 0.4162673264 | AP16: U5= | AQ16: =AQ15/(LOG(AQ4)/LOG(2)) -> 0.4712338698 | AU16: U6= | AV16: =AV15/(LOG(AV4)/LOG(2)) -> 0.414939747
A17: 12 | B17: 1296 | C17: 13 | D17: 1300 | E17: 24 | F17: 1308 | K17: 0 | L17: 112
A18: 12 | B18: 1408 | C18: 24 | D18: 1413 | E18: 24 | F18: 1417 | K18: 0 | L18: 122
A19: 12 | B19: 1511 | C19: 13 | D19: 1524 | E19: 24 | F19: 1532 | K19: 0 | L19: 112 | N19: Total Target Seq
A20: 12 | B20: 1629 | C20: 13 | D20: 1639 | E20: 24 | F20: 1643 | K20: 0 | L20: 112 | N20: =COUNTIF(L7:L200,G3) -> 3 | P20: 32 | Q20: 33 | R20: 32 | S20: 32 | T20: 33 | U20: 32
A21: 12 | B21: 1739 | C21: 24 | D21: 1744 | E21: 24 | F21: 1750 | K21: 0 | L21: 122 | P21: % of reinforcement given in 6 equal intervals based on number of trials
A22: 21 | B22: 1847 | C22: 11 | D22: 1853 | E22: 22 | F22: 1864 | K22: 0 | L22: 212 | P22: %_1 | Q22: %_2 | R22: %_3 | S22: %_4 | T22: %_5 | U22: %_6
A23: 21 | B23: 1974 | C23: 22 | D23: 1978 | E23: 24 | F23: 1984 | K23: 0 | L23: 222 | O23: target sequence | P23: =$G$3 -> 211 | Q23: =$G$3 -> 211 | R23: =$G$3 -> 211 | S23: =$G$3 -> 211 | T23: =$G$3 -> 211 | U23: =$G$3 -> 211
A24: 21 | B24: 2190 | C24: 22 | D24: 2192 | E24: 24 | F24: 2197 | K24: 0 | L24: 222 | O24: total reinforcement | P24: =U11 -> 0 | Q24: =Z11 -> 0 | R24: =AE11 -> 0 | S24: =AJ11 -> 1 | T24: =AO11 -> 2 | U24: =AT11 -> 0
A25: 21 | B25: 2311 | C25: 22 | D25: 2313 | E25: 24 | F25: 2321 | K25: 0 | L25: 222 | O25: % target
A26: 12 | B26: 2428 | C26: 24 | D26: 2431 | E26: 24 | F26: 2433 | K26: 0 | L26: 122 | O26: CCRF
A27: 12 | B27: 2531 | C27: 24 | D27: 2534 | E27: 24 | F27: 2538 | K27: 0 | L27: 122 | O27: % CCRf
A28: 12 | B28: 2640 | C28: 24 | D28: 2649 | E28: 24 | F28: 2654 | K28: 0 | L28: 122 | O28: average response rate | P28: =F38/P20 -> 123.40625 | Q28: =(F71-F38)/Q20 -> 117.5151515 | R28: =(F103-F71)/R20 -> 119 | S28: =(F135-F103)/S20 -> 128.5 | T28: =(F168-F135)/T20 -> 120.0909091 | U28: =(F200-F168)/U20 -> 131
A29: 21 | B29: 2757 | C29: 22 | D29: 2760 | E29: 24 | F29: 2768 | K29: 0 | L29: 222
A30: 12 | B30: 2869 | C30: 24 | D30: 2874 | E30: 24 | F30: 2886 | K30: 0 | L30: 122
A31: 21 | B31: 3101 | C31: 11 | D31: 3104 | E31: 22 | F31: 3107 | K31: 0 | L31: 212
A32: 21 | B32: 3211 | C32: 22 | D32: 3217 | E32: 24 | F32: 3223 | K32: 0 | L32: 222
A33: 12 | B33: 3331 | C33: 24 | D33: 3343 | E33: 24 | F33: 3349 | K33: 0 | L33: 122
A34: 21 | B34: 3448 | C34: 11 | D34: 3451 | E34: 22 | F34: 3463 | K34: 0 | L34: 212
A35: 12 | B35: 3569 | C35: 24 | D35: 3583 | E35: 24 | F35: 3592 | K35: 0 | L35: 122
A36: 21 | B36: 3691 | C36: 11 | D36: 3694 | E36: 22 | F36: 3701 | K36: 0 | L36: 212
A37: 21 | B37: 3797 | C37: 22 | D37: 3804 | E37: 24 | F37: 3809 | K37: 0 | L37: 222
A38: 12 | B38: 3934 | C38: 24 | D38: 3939 | E38: 24 | F38: 3949 | K38: 0 | L38: 122
A39: 12 | B39: 4073 | C39: 24 | D39: 4088 | E39: 24 | F39: 4100 | K39: 0 | L39: 122
A40: 12 | B40: 4216 | C40: 24 | D40: 4218 | E40: 24 | F40: 4230 | K40: 0 | L40: 122
A41: 12 | B41: 4330 | C41: 24 | D41: 4340 | E41: 13 | F41: 4344 | K41: 0 | L41: 121
A42: 12 | B42: 4461 | C42: 24 | D42: 4480 | E42: 24 | F42: 4487 | K42: 0 | L42: 122
A43: 21 | B43: 4621 | C43: 11 | D43: 4628 | E43: 22 | F43: 4632 | K43: 0 | L43: 212
A44: 21 | B44: 4732 | C44: 22 | D44: 4738 | E44: 24 | F44: 4744 | K44: 0 | L44: 222
A45: 12 | B45: 4841 | C45: 24 | D45: 4845 | E45: 24 | F45: 4850 | K45: 0 | L45: 122
A46: 12 | B46: 4947 | C46: 24 | D46: 4959 | E46: 24 | F46: 4965 | K46: 0 | L46: 122
A47: 12 | B47: 5059 | C47: 24 | D47: 5061 | E47: 13 | F47: 5064 | K47: 0 | L47: 121
A48: 12 | B48: 5164 | C48: 24 | D48: 5176 | E48: 24 | F48: 5183 | K48: 0 | L48: 122
A49: 21 | B49: 5273 | C49: 22 | D49: 5280 | E49: 24 | F49: 5292 | K49: 0 | L49: 222
A50: 12 | B50: 5424 | C50: 24 | D50: 5434 | E50: 13 | F50: 5439 | K50: 0 | L50: 121
A51: 21 | B51: 5539 | C51: 11 | D51: 5542 | E51: 22 | F51: 5545 | K51: 0 | L51: 212
A52: 12 | B52: 5638 | C52: 24 | D52: 5648 | E52: 24 | F52: 5654 | K52: 0 | L52: 122
A53: 21 | B53: 5773 | C53: 11 | D53: 5776 | E53: 22 | F53: 5782 | K53: 0 | L53: 212
A54: 21 | B54: 5892 | C54: 22 | D54: 5898 | E54: 24 | F54: 5905 | K54: 0 | L54: 222
A55: 12 | B55: 5997 | C55: 24 | D55: 6009 | E55: 24 | F55: 6015 | K55: 0 | L55: 122
A56: 12 | B56: 6116 | C56: 24 | D56: 6122 | E56: 24 | F56: 6132 | K56: 0 | L56: 122
A57: 21 | B57: 6228 | C57: 11 | D57: 6229 | E57: 22 | F57: 6233 | K57: 0 | L57: 212
A58: 21 | B58: 6338 | C58: 22 | D58: 6345 | E58: 24 | F58: 6353 | K58: 0 | L58: 222
A59: 12 | B59: 6451 | C59: 24 | D59: 6454 | E59: 24 | F59: 6459 | K59: 0 | L59: 122
A60: 12 | B60: 6557 | C60: 24 | D60: 6568 | E60: 13 | F60: 6571 | K60: 0 | L60: 121
A61: 21 | B61: 6681 | C61: 11 | D61: 6683 | E61: 22 | F61: 6687 | K61: 0 | L61: 212
A62: 12 | B62: 6785 | C62: 24 | D62: 6793 | E62: 24 | F62: 6799 | K62: 0 | L62: 122
A63: 12 | B63: 6903 | C63: 24 | D63: 6907 | E63: 24 | F63: 6912 | K63: 0 | L63: 122
A64: 12 | B64: 7006 | C64: 24 | D64: 7015 | E64: 24 | F64: 7021 | K64: 0 | L64: 122
A65: 21 | B65: 7127 | C65: 22 | D65: 7132 | E65: 13 | F65: 7134 | K65: 0 | L65: 221
A66: 12 | B66: 7227 | C66: 13 | D66: 7230 | E66: 24 | F66: 7236 | K66: 0 | L66: 112
A67: 12 | B67: 7340 | C67: 24 | D67: 7346 | E67: 24 | F67: 7353 | K67: 0 | L67: 122
A68: 12 | B68: 7458 | C68: 24 | D68: 7462 | E68: 24 | F68: 7473 | K68: 0 | L68: 122
A69: 12 | B69: 7578 | C69: 24 | D69: 7585 | E69: 24 | F69: 7592 | K69: 0 | L69: 122
A70: 21 | B70: 7706 | C70: 11 | D70: 7709 | E70: 22 | F70: 7712 | K70: 0 | L70: 212
A71: 12 | B71: 7811 | C71: 13 | D71: 7819 | E71: 24 | F71: 7827 | K71: 0 | L71: 112
A72: 21 | B72: 8058 | C72: 11 | D72: 8062 | E72: 22 | F72: 8071 | K72: 0 | L72: 212
A73: 21 | B73: 8171 | C73: 22 | D73: 8178 | E73: 24 | F73: 8183 | K73: 0 | L73: 222
A74: 12 | B74: 8280 | C74: 24 | D74: 8285 | E74: 24 | F74: 8294 | K74: 0 | L74: 122
A75: 21 | B75: 8390 | C75: 11 | D75: 8396 | E75: 22 | F75: 8400 | K75: 0 | L75: 212
A76: 21 | B76: 8505 | C76: 22 | D76: 8513 | E76: 24 | F76: 8520 | K76: 0 | L76: 222
A77: 21 | B77: 8704 | C77: 22 | D77: 8709 | E77: 24 | F77: 8715 | K77: 0 | L77: 222
A78: 21 | B78: 8808 | C78: 22 | D78: 8817 | E78: 24 | F78: 8820 | K78: 0 | L78: 222
A79: 12 | B79: 8942 | C79: 24 | D79: 8953 | E79: 13 | F79: 8956 | K79: 0 | L79: 121
A80: 21 | B80: 9054 | C80: 22 | D80: 9062 | E80: 24 | F80: 9069 | K80: 0 | L80: 222
A81: 21 | B81: 9174 | C81: 22 | D81: 9182 | E81: 24 | F81: 9189 | K81: 0 | L81: 222
A82: 21 | B82: 9287 | C82: 22 | D82: 9291 | E82: 24 | F82: 9296 | K82: 0 | L82: 222
A83: 12 | B83: 9392 | C83: 24 | D83: 9394 | E83: 24 | F83: 9397 | K83: 0 | L83: 122
A84: 12 | B84: 9491 | C84: 24 | D84: 9497 | E84: 24 | F84: 9503 | K84: 0 | L84: 122
A85: 21 | B85: 9598 | C85: 11 | D85: 9603 | E85: 22 | F85: 9607 | K85: 0 | L85: 212
A86: 21 | B86: 9711 | C86: 22 | D86: 9715 | E86: 24 | F86: 9723 | K86: 0 | L86: 222
A87: 21 | B87: 9826 | C87: 22 | D87: 9831 | E87: 13 | F87: 9834 | K87: 0 | L87: 221
A88: 12 | B88: 9933 | C88: 24 | D88: 9935 | E88: 24 | F88: 9940 | K88: 0 | L88: 122
A89: 12 | B89: 10035 | C89: 24 | D89: 10039 | E89: 24 | F89: 10044 | K89: 0 | L89: 122
A90: 21 | B90: 10143 | C90: 22 | D90: 10147 | E90: 24 | F90: 10153 | K90: 0 | L90: 222
A91: 12 | B91: 10249 | C91: 24 | D91: 10252 | E91: 24 | F91: 10260 | K91: 0 | L91: 122
A92: 12 | B92: 10359 | C92: 24 | D92: 10365 | E92: 24 | F92: 10371 | K92: 0 | L92: 122
A93: 12 | B93: 10465 | C93: 24 | D93: 10477 | E93: 24 | F93: 10480 | K93: 0 | L93: 122
A94: 12 | B94: 10575 | C94: 24 | D94: 10582 | E94: 24 | F94: 10585 | K94: 0 | L94: 122
A95: 21 | B95: 10681 | C95: 22 | D95: 10687 | E95: 24 | F95: 10693 | K95: 0 | L95: 222
A96: 21 | B96: 10790 | C96: 22 | D96: 10795 | E96: 24 | F96: 10801 | K96: 0 | L96: 222
A97: 21 | B97: 10901 | C97: 22 | D97: 10903 | E97: 24 | F97: 10909 | K97: 0 | L97: 222
A98: 21 | B98: 11018 | C98: 11 | D98: 11022 | E98: 22 | F98: 11031 | K98: 0 | L98: 212
A99: 12 | B99: 11125 | C99: 24 | D99: 11133 | E99: 24 | F99: 11135 | K99: 0 | L99: 122
A100: 12 | B100: 11306 | C100: 24 | D100: 11310 | E100: 24 | F100: 11316 | K100: 0 | L100: 122
A101: 12 | B101: 11411 | C101: 24 | D101: 11420 | E101: 13 | F101: 11422 | K101: 0 | L101: 121
A102: 12 | B102: 11521 | C102: 24 | D102: 11529 | E102: 24 | F102: 11535 | K102: 0 | L102: 122
A103: 12 | B103: 11629 | C103: 24 | D103: 11630 | E103: 24 | F103: 11635 | K103: 0 | L103: 122
A104: 21 | B104: 11732 | C104: 11 | D104: 11734 | E104: 22 | F104: 11742 | K104: 0 | L104: 212
A105: 12 | B105: 11846 | C105: 24 | D105: 11854 | E105: 24 | F105: 11859 | K105: 0 | L105: 122
A106: 12 | B106: 11956 | C106: 24 | D106: 11962 | E106: 24 | F106: 11967 | K106: 0 | L106: 122
A107: 12 | B107: 12064 | C107: 24 | D107: 12070 | E107: 24 | F107: 12076 | K107: 0 | L107: 122
A108: 21 | B108: 12173 | C108: 11 | D108: 12176 | E108: 22 | F108: 12183 | K108: 0 | L108: 212
A109: 12 | B109: 12275 | C109: 13 | D109: 12282 | E109: 24 | F109: 12289 | K109: 0 | L109: 112
A110: 21 | B110: 12386 | C110: 22 | D110: 12392 | E110: 24 | F110: 12399 | K110: 0 | L110: 222
A111: 21 | B111: 12490 | C111: 11 | D111: 12492 | E111: 22 | F111: 12500 | K111: 0 | L111: 212
A112: 21 | B112: 12598 | C112: 22 | D112: 12603 | E112: 24 | F112: 12610 | K112: 0 | L112: 222
A113: 21 | B113: 12743 | C113: 22 | D113: 12746 | E113: 13 | F113: 12749 | K113: 0 | L113: 221
A114: 21 | B114: 12861 | C114: 11 | D114: 12863 | E114: 22 | F114: 12868 | K114: 0 | L114: 212
A115: 21 | B115: 12968 | C115: 22 | D115: 12973 | E115: 24 | F115: 12978 | K115: 0 | L115: 222
A116: 12 | B116: 13085 | C116: 24 | D116: 13092 | E116: 24 | F116: 13098 | K116: 0 | L116: 122
A117: 21 | B117: 13210 | C117: 11 | D117: 13213 | E117: 11 | F117: 13215 | K117: 0 | L117: 211
A118: 21 | B118: 13390 | C118: 22 | D118: 13395 | E118: 24 | F118: 13404 | K118: 0 | L118: 222
A119: 12 | B119: 13579 | C119: 24 | D119: 13589 | E119: 13 | F119: 13592 | K119: 0 | L119: 121
A120: 12 | B120: 13693 | C120: 24 | D120: 13699 | E120: 24 | F120: 13705 | K120: 0 | L120: 122
A121: 12 | B121: 13798 | C121: 24 | D121: 13803 | E121: 24 | F121: 13811 | K121: 0 | L121: 122
A122: 21 | B122: 13929 | C122: 11 | D122: 13939 | E122: 22 | F122: 13947 | K122: 0 | L122: 212
A123: 21 | B123: 14058 | C123: 11 | D123: 14062 | E123: 22 | F123: 14072 | K123: 0 | L123: 212
A124: 12 | B124: 14165 | C124: 24 | D124: 14172 | E124: 24 | F124: 14177 | K124: 0 | L124: 122
A125: 21 | B125: 14278 | C125: 11 | D125: 14280 | E125: 22 | F125: 14284 | K125: 0 | L125: 212
A126: 12 | B126: 14378 | C126: 24 | D126: 14387 | E126: 13 | F126: 14388 | K126: 0 | L126: 121
A127: 12 | B127: 14486 | C127: 24 | D127: 14489 | E127: 24 | F127: 14502 | K127: 0 | L127: 122
A128: 21 | B128: 14690 | C128: 22 | D128: 14697 | E128: 24 | F128: 14703 | K128: 0 | L128: 222
A129: 12 | B129: 14844 | C129: 24 | D129: 14847 | E129: 24 | F129: 14865 | K129: 0 | L129: 122
A130: 12 | B130: 15123 | C130: 24 | D130: 15135 | E130: 24 | F130: 15141 | K130: 0 | L130: 122
A131: 21 | B131: 15241 | C131: 22 | D131: 15246 | E131: 24 | F131: 15254 | K131: 0 | L131: 222
A132: 21 | B132: 15409 | C132: 11 | D132: 15410 | E132: 22 | F132: 15414 | K132: 0 | L132: 212
A133: 12 | B133: 15512 | C133: 24 | D133: 15522 | E133: 24 | F133: 15527 | K133: 0 | L133: 122
A134: 21 | B134: 15630 | C134: 11 | D134: 15634 | E134: 22 | F134: 15640 | K134: 0 | L134: 212
A135: 12 | B135: 15733 | C135: 24 | D135: 15742 | E135: 24 | F135: 15747 | K135: 0 | L135: 122
A136: 21 | B136: 15867 | C136: 11 | D136: 15875 | E136: 22 | F136: 15882 | K136: 0 | L136: 212
A137: 12 | B137: 16022 | C137: 24 | D137: 16027 | E137: 24 | F137: 16032 | K137: 0 | L137: 122
A138: 12 | B138: 16129 | C138: 24 | D138: 16131 | E138: 24 | F138: 16137 | K138: 0 | L138: 122
A139: 21 | B139: 16235 | C139: 11 | D139: 16238 | E139: 22 | F139: 16247 | K139: 0 | L139: 212
A140: 12 | B140: 16342 | C140: 13 | D140: 16346 | E140: 24 | F140: 16352 | K140: 0 | L140: 112
A141: 21 | B141: 16452 | C141: 22 | D141: 16458 | E141: 24 | F141: 16464 | K141: 0 | L141: 222
A142: 12 | B142: 16557 | C142: 13 | D142: 16571 | E142: 24 | F142: 16582 | K142: 0 | L142: 112
A143: 12 | B143: 16678 | C143: 24 | D143: 16684 | E143: 24 | F143: 16690 | K143: 0 | L143: 122
A144: 21 | B144: 16786 | C144: 22 | D144: 16798 | E144: 24 | F144: 16806 | K144: 0 | L144: 222
A145: 21 | B145: 16903 | C145: 11 | D145: 16909 | E145: 22 | F145: 16912 | K145: 0 | L145: 212
A146: 21 | B146: 17010 | C146: 22 | D146: 17016 | E146: 13 | F146: 17019 | K146: 0 | L146: 221
A147: 21 | B147: 17175 | C147: 11 | D147: 17179 | E147: 22 | F147: 17184 | K147: 0 | L147: 212
A148: 21 | B148: 17290 | C148: 22 | D148: 17293 | E148: 24 | F148: 17299 | K148: 0 | L148: 222
A149: 12 | B149: 17391 | C149: 24 | D149: 17395 | E149: 13 | F149: 17403 | K149: 0 | L149: 121
A150: 12 | B150: 17499 | C150: 24 | D150: 17504 | E150: 24 | F150: 17508 | K150: 0 | L150: 122
A151: 21 | B151: 17607 | C151: 22 | D151: 17611 | E151: 24 | F151: 17616 | K151: 0 | L151: 222
A152: 12 | B152: 17716 | C152: 24 | D152: 17721 | E152: 24 | F152: 17726 | K152: 0 | L152: 122
A153: 21 | B153: 17830 | C153: 22 | D153: 17834 | E153: 24 | F153: 17840 | K153: 0 | L153: 222
A154: 21 | B154: 17946 | C154: 11 | D154: 17951 | E154: 11 | F154: 17955 | K154: 0 | L154: 211
A155: 21 | B155: 18074 | C155: 11 | D155: 18082 | E155: 11 | F155: 18089 | K155: 0 | L155: 211
A156: 21 | B156: 18240 | C156: 11 | D156: 18251 | E156: 22 | F156: 18255 | K156: 0 | L156: 212
A157: 21 | B157: 18471 | C157: 11 | D157: 18474 | E157: 22 | F157: 18481 | K157: 0 | L157: 212
A158: 12 | B158: 18576 | C158: 13 | D158: 18584 | E158: 24 | F158: 18590 | K158: 0 | L158: 112
A159: 21 | B159: 18685 | C159: 22 | D159: 18691 | E159: 24 | F159: 18699 | K159: 0 | L159: 222
A160: 21 | B160: 18798 | C160: 22 | D160: 18807 | E160: 13 | F160: 18809 | K160: 0 | L160: 221
A161: 21 | B161: 18902 | C161: 22 | D161: 18913 | E161: 24 | F161: 18920 | K161: 0 | L161: 222
A162: 12 | B162: 19019 | C162: 24 | D162: 19027 | E162: 13 | F162: 19032 | K162: 0 | L162: 121
A163: 21 | B163: 19134 | C163: 22 | D163: 19138 | E163: 24 | F163: 19144 | K163: 0 | L163: 222
A164: 12 | B164: 19241 | C164: 24 | D164: 19246 | E164: 13 | F164: 19251 | K164: 0 | L164: 121
A165: 21 | B165: 19347 | C165: 22 | D165: 19351 | E165: 24 | F165: 19358 | K165: 0 | L165: 222
A166: 12 | B166: 19451 | C166: 24 | D166: 19458 | E166: 24 | F166: 19463 | K166: 0 | L166: 122
A167: 12 | B167: 19573 | C167: 24 | D167: 19580 | E167: 24 | F167: 19586 | K167: 0 | L167: 122
A168: 21 | B168: 19688 | C168: 22 | D168: 19703 | E168: 24 | F168: 19710 | K168: 0 | L168: 222
A169: 12 | B169: 19879 | C169: 24 | D169: 19889 | E169: 24 | F169: 19899 | K169: 0 | L169: 122
A170: 21 | B170: 19995 | C170: 22 | D170: 20002 | E170: 24 | F170: 20007 | K170: 0 | L170: 222
A171: 12 | B171: 20121 | C171: 24 | D171: 20128 | E171: 24 | F171: 20133 | K171: 0 | L171: 122
A172: 21 | B172: 20245 | C172: 11 | D172: 20249 | E172: 22 | F172: 20255 | K172: 0 | L172: 212
A173: 12 | B173: 20351 | C173: 24 | D173: 20359 | E173: 24 | F173: 20365 | K173: 0 | L173: 122
A174: 21 | B174: 20493 | C174: 11 | D174: 20501 | E174: 22 | F174: 20505 | K174: 0 | L174: 212
A175: 12 | B175: 20964 | C175: 24 | D175: 20974 | E175: 24 | F175: 20982 | K175: 0 | L175: 122
A176: 12 | B176: 21081 | C176: 24 | D176: 21084 | E176: 24 | F176: 21088 | K176: 0 | L176: 122
A177: 21 | B177: 21194 | C177: 22 | D177: 21203 | E177: 24 | F177: 21210 | K177: 0 | L177: 222
A178: 21 | B178: 21316 | C178: 22 | D178: 21318 | E178: 24 | F178: 21324 | K178: 0 | L178: 222
A179: 21 | B179: 21435 | C179: 22 | D179: 21442 | E179: 13 | F179: 21444 | K179: 0 | L179: 221
A180: 12 | B180: 21556 | C180: 24 | D180: 21569 | E180: 24 | F180: 21575 | K180: 0 | L180: 122
A181: 12 | B181: 21669 | C181: 24 | D181: 21673 | E181: 24 | F181: 21681 | K181: 0 | L181: 122
A182: 21 | B182: 21785 | C182: 22 | D182: 21790 | E182: 13 | F182: 21792 | K182: 0 | L182: 221
A183: 21 | B183: 21897 | C183: 11 | D183: 21901 | E183: 22 | F183: 21908 | K183: 0 | L183: 212
A184: 21 | B184: 22007 | C184: 11 | D184: 22009 | E184: 22 | F184: 22013 | K184: 0 | L184: 212
A185: 12 | B185: 22106 | C185: 13 | D185: 22110 | E185: 24 | F185: 22116 | K185: 0 | L185: 112
A186: 12 | B186: 22213 | C186: 24 | D186: 22219 | E186: 24 | F186: 22225 | K186: 0 | L186: 122
A187: 21 | B187: 22330 | C187: 22 | D187: 22335 | E187: 13 | F187: 22338 | K187: 0 | L187: 221
A188: 12 | B188: 22444 | C188: 24 | D188: 22453 | E188: 24 | F188: 22458 | K188: 0 | L188: 122
A189: 12 | B189: 22564 | C189: 24 | D189: 22570 | E189: 24 | F189: 22575 | K189: 0 | L189: 122
A190: 21 | B190: 22678 | C190: 22 | D190: 22682 | E190: 13 | F190: 22684 | K190: 0 | L190: 221
A191: 12 | B191: 22780 | C191: 24 | D191: 22783 | E191: 13 | F191: 22787 | K191: 0 | L191: 121
A192: 12 | B192: 22879 | C192: 24 | D192: 22884 | E192: 24 | F192: 22890 | K192: 0 | L192: 122
A193: 12 | B193: 23091 | C193: 24 | D193: 23096 | E193: 24 | F193: 23102 | K193: 0 | L193: 122
A194: 12 | B194: 23206 | C194: 24 | D194: 23210 | E194: 24 | F194: 23215 | K194: 0 | L194: 122
A195: 12 | B195: 23320 | C195: 24 | D195: 23324 | E195: 24 | F195: 23330 | K195: 0 | L195: 122
A196: 12 | B196: 23429 | C196: 24 | D196: 23433 | E196: 24 | F196: 23438 | K196: 0 | L196: 122
A197: 12 | B197: 23565 | C197: 13 | D197: 23568 | E197: 24 | F197: 23573 | K197: 0 | L197: 112
A198: 21 | B198: 23679 | C198: 11 | D198: 23683 | E198: 22 | F198: 23690 | K198: 0 | L198: 212
A199: 21 | B199: 23784 | C199: 22 | D199: 23789 | E199: 24 | F199: 23795 | K199: 0 | L199: 222
A200: 12 | B200: 23893 | C200: 24 | D200: 23897 | E200: 24 | F200: 23902 | K200: 0 | L200: 122

Sheet !N204A10.Gus
A1: Report for:!N204A10.Gus
A2: Date: | B2: <date>
A3: Hen: | B3: <hen> | F3: Correct Sequence | G3: =Start!J2 -> 211 | P3: Total Sequences in Data | Q3: =4994-COUNTBLANK(L7:L5000) -> 199 | V3: Total Sequences in Block Data | W3: =COUNTA(L7:L39) -> 33 | AA3: Total Sequences in Block Data | AB3: =COUNTA(L40:L72) -> 33 | AF3: Total Sequences in Block Data | AG3: =COUNTA(L73:L106) -> 34 | AK3: Total Sequences in Block Data | AL3: =COUNTA(L107:L139) -> 33 | AP3: Total Sequences in Block Data | AQ3: =COUNTA(L140:L172) -> 33 | AU3: Total Sequences in Block Data | AV3: =COUNTA(L173:L205) -> 33
P4: Total Sequences in Summary | Q4: =SUM(O7:O14) -> 198 | V4: Total Sequences in Block Summary | W4: =SUM(U7:U14) -> 33 | AA4: Total Sequences in Block Summary | AB4: =SUM(Z7:Z14) -> 33 | AF4: Total Sequences in Block Summary | AG4: =SUM(AE7:AE14) -> 34 | AK4: Total Sequences in Block Summary | AL4: =SUM(AJ7:AJ14) -> 33 | AP4: Total Sequences in Block Summary | AQ4: =SUM(AO7:AO14) -> 33 | AU4: Total Sequences in Block Summary | AV4: =SUM(AT7:AT14) -> 32
T5: Block 1 | Y5: Block 2 | AD5: Block 3 | AI5: Block 4 | AN5: Block 5 | AS5: Block 6
A6: Sequence Component 1 | B6: Time 1 | C6: Sequence Component 2 | D6: Time 2 | E6: Sequence Component 3 | F6: Time 3 | G6: Sequence Component 4 | H6: Time 4 | I6: Sequence Component 5 | J6: Time 5 | K6: Correct? 0=No 1=Yes | L6: Sequence | N6: Frequency | P6: Relative Frequency | Q6: Variability | T6: Frequency | V6: Relative Frequency | W6: Variability | Y6: Frequency | AA6: Relative Frequency | AB6: Variability | AD6: Frequency | AF6: Relative Frequency | AG6: Variability | AI6: Frequency | AK6: Relative Frequency | AL6: Variability | AN6: Frequency | AP6: Relative Frequency | AQ6: Variability | AS6: Frequency | AU6: Relative Frequency | AV6: Variability
A7: 12 | B7: 67 | C7: 24 | D7: 75 | E7: 24 | F7: 87 | K7: 0 | L7: 122 | N7: 111 | O7: =COUNTIF($L$7:$L$500,N7) -> 4 | P7: =O7/$Q$4 -> 0.0202020202 | Q7: =IF(P7=0,0,(P7*((LOG(P7))/LOG(2)))) -> -0.1137243762 | T7: =N7 -> 111 | U7: =COUNTIF(L7:L39,T7) -> 3 | V7: =U7/(W4-U11) -> 0.09375 | W7: =IF(V7=0,0,(V7*((LOG(V7))/LOG(2)))) -> -0.3201597656 | Y7: =N7 -> 111 | Z7: =COUNTIF(L40:L72,Y7) -> 1 | AA7: =Z7/(AB4-Z11) -> 0.0303030303 | AB7: =IF(AA7=0,0,(AA7*((LOG(AA7))/LOG(2)))) -> -0.1528604279 | AD7: =N7 -> 111 | AE7: =COUNTIF(L73:L106,AD7) -> 0 | AF7: =AE7/(AG4-AE11) -> 0 | AG7: =IF(AF7=0,0,(AF7*((LOG(AF7))/LOG(2)))) -> 0 | AI7: =N7 -> 111 | AJ7: =COUNTIF(L107:L139,AI7) -> 0 | AK7: =AJ7/(AL4-AJ11) -> 0 | AL7: =IF(AK7=0,0,(AK7*((LOG(AK7))/LOG(2)))) -> 0 | AN7: =N7 -> 111 | AO7: =COUNTIF(L140:L172,AN7) -> 0 | AP7: =AO7/(AQ4-AO11) -> 0 | AQ7: =IF(AP7=0,0,(AP7*((LOG(AP7))/LOG(2)))) -> 0 | AS7: =N7 -> 111 | AT7: =COUNTIF(L173:L205,AS7) -> 0 | AU7: =AT7/(AV4-AT11) -> 0 | AV7: =IF(AU7=0,0,(AU7*((LOG(AU7))/LOG(2)))) -> 0
A8: 12 | B8: 195 | C8: 13 | D8: 200 | E8: 24 | F8: 206 | K8: 0 | L8: 112 | N8: 112 | O8: =COUNTIF($L$7:$L$500,N8) -> 16 | P8: =O8/$Q$4 -> 0.08080808081 | Q8: =IF(P8=0,0,(P8*((LOG(P8))/LOG(2)))) -> -0.293281343 | T8: =N8 -> 112 | U8: =COUNTIF(L7:L39,T8) -> 7 | V8: =U8/(W4-U11) -> 0.21875 | W8: =IF(V8=0,0,(V8*((LOG(V8))/LOG(2)))) -> -0.4796411108 | Y8: =N8 -> 112 | Z8: =COUNTIF(L40:L72,Y8) -> 4 | AA8: =Z8/(AB4-Z11) -> 0.1212121212 | AB8: =IF(AA8=0,0,(AA8*((LOG(AA8))/LOG(2)))) -> -0.369017469 | AD8: =N8 -> 112 | AE8: =COUNTIF(L73:L106,AD8) -> 1 | AF8: =AE8/(AG4-AE11) -> 0.0303030303 | AG8: =IF(AF8=0,0,(AF8*((LOG(AF8))/LOG(2)))) -> -0.1528604279 | AI8: =N8 -> 112 | AJ8: =COUNTIF(L107:L139,AI8) -> 1 | AK8: =AJ8/(AL4-AJ11) -> 0.0303030303 | AL8: =IF(AK8=0,0,(AK8*((LOG(AK8))/LOG(2)))) -> -0.1528604279 | AN8: =N8 -> 112 | AO8: =COUNTIF(L140:L172,AN8) -> 0 | AP8: =AO8/(AQ4-AO11) -> 0 | AQ8: =IF(AP8=0,0,(AP8*((LOG(AP8))/LOG(2)))) -> 0 | AS8: =N8 -> 112 | AT8: =COUNTIF(L173:L205,AS8) -> 3 | AU8: =AT8/(AV4-AT11) -> 0.09375 | AV8: =IF(AU8=0,0,(AU8*((LOG(AU8))/LOG(2)))) -> -0.3201597656
A9: 12 | B9: 301 | C9: 13 | D9: 304 | E9: 13 | F9: 309 | K9: 0 | L9: 111 | N9: 121 | O9: =COUNTIF($L$7:$L$500,N9) -> 8 | P9: =O9/$Q$4 -> 0.0404040404 | Q9: =IF(P9=0,0,(P9*((LOG(P9))/LOG(2)))) -> -0.1870447119 | T9: =N9 -> 121 | U9: =COUNTIF(L7:L39,T9) -> 1 | V9: =U9/(W4-U11) -> 0.03125 | W9: =IF(V9=0,0,(V9*((LOG(V9))/LOG(2)))) -> -0.15625 | Y9: =N9 -> 121 | Z9: =COUNTIF(L40:L72,Y9) -> 3 | AA9: =Z9/(AB4-Z11) -> 0.09090909091 | AB9: =IF(AA9=0,0,(AA9*((LOG(AA9))/LOG(2)))) -> -0.3144937835 | AD9: =N9 -> 121 | AE9: =COUNTIF(L73:L106,AD9) -> 0 | AF9: =AE9/(AG4-AE11) -> 0 | AG9: =IF(AF9=0,0,(AF9*((LOG(AF9))/LOG(2)))) -> 0 | AI9: =N9 -> 121 | AJ9: =COUNTIF(L107:L139,AI9) -> 2 | AK9: =AJ9/(AL4-AJ11) -> 0.06060606061 | AL9: =IF(AK9=0,0,(AK9*((LOG(AK9))/LOG(2)))) -> -0.2451147951 | AN9: =N9 -> 121 | AO9: =COUNTIF(L140:L172,AN9) -> 1 | AP9: =AO9/(AQ4-AO11) -> 0.0303030303 | AQ9: =IF(AP9=0,0,(AP9*((LOG(AP9))/LOG(2)))) -> -0.1528604279 | AS9: =N9 -> 121 | AT9: =COUNTIF(L173:L205,AS9) -> 1 | AU9: =AT9/(AV4-AT11) -> 0.03125 | AV9: =IF(AU9=0,0,(AU9*((LOG(AU9))/LOG(2)))) -> -0.15625
A10: 12 | B10: 427 | C10: 24 | D10: 439 | E10: 24 | F10: 444 | K10: 0 | L10: 122 | N10: 122 | O10: =COUNTIF($L$7:$L$500,N10) -> 80 | P10: =O10/$Q$4 -> 0.404040404 | Q10: =IF(P10=0,0,(P10*((LOG(P10))/LOG(2)))) -> -0.5282539496 | T10: =N10 -> 122 | U10: =COUNTIF(L7:L39,T10) -> 12 | V10: =U10/(W4-U11) -> 0.375 | W10: =IF(V10=0,0,(V10*((LOG(V10))/LOG(2)))) -> -0.5306390622 | Y10: =N10 -> 122 | Z10: =COUNTIF(L40:L72,Y10) -> 17 | AA10: =Z10/(AB4-Z11) -> 0.5151515152 | AB10: =IF(AA10=0,0,(AA10*((LOG(AA10))/LOG(2)))) -> -0.4929645978 | AD10: =N10 -> 122 | AE10: =COUNTIF(L73:L106,AD10) -> 15 | AF10: =AE10/(AG4-AE11) -> 0.4545454545 | AG10: =IF(AF10=0,0,(AF10*((LOG(AF10))/LOG(2)))) -> -0.5170470562 | AI10: =N10 -> 122 | AJ10: =COUNTIF(L107:L139,AI10) -> 12 | AK10: =AJ10/(AL4-AJ11) -> 0.3636363636 | AL10: =IF(AK10=0,0,(AK10*((LOG(AK10))/LOG(2)))) -> -0.5307024068 | AN10: =N10 -> 122 | AO10: =COUNTIF(L140:L172,AN10) -> 14 | AP10: =AO10/(AQ4-AO11) -> 0.4242424242 | AQ10: =IF(AP10=0,0,(AP10*((LOG(AP10))/LOG(2)))) -> -0.5248045079 | AS10: =N10 -> 122 | AT10: =COUNTIF(L173:L205,AS10) -> 10 | AU10: =AT10/(AV4-AT11) -> 0.3125 | AV10: =IF(AU10=0,0,(AU10*((LOG(AU10))/LOG(2)))) -> -0.5243974703
A11: 12 | B11: 539 | C11: 13 | D11: 550 | E11: 24 | F11: 568 | K11: 0 | L11: 112 | N11: 211 | O11: =COUNTIF($L$7:$L$500,N11) -> 2 | P11: =O11/$Q$4 -> 0.0101010101 | Q11: =IF(P11=0,0,(P11*((LOG(P11))/LOG(2)))) -> -0.06696319818 | T11: =N11 -> 211 | U11: =COUNTIF(L7:L39,T11) -> 1 | Y11: =N11 -> 211 | Z11: =COUNTIF(L40:L72,Y11) -> 0 | AD11: =N11 -> 211 | AE11: =COUNTIF(L73:L106,AD11) -> 1 | AI11: =N11 -> 211 | AJ11: =COUNTIF(L107:L139,AI11) -> 0 | AN11: =N11 -> 211 | AO11: =COUNTIF(L140:L172,AN11) -> 0 | AS11: =N11 -> 211 | AT11: =COUNTIF(L173:L205,AS11) -> 0
A12: 12 | B12: 664 | C12: 13 | D12: 689 | E12: 24 | F12: 703 | K12: 0 | L12: 112 | N12: 212 | O12: =COUNTIF($L$7:$L$500,N12) -> 31 | P12: =O12/$Q$4 -> 0.1565656566 | Q12: =IF(P12=0,0,(P12*((LOG(P12))/LOG(2)))) -> -0.4188382303 | T12: =N12 -> 212 | U12: =COUNTIF(L7:L39,T12) -> 4 | V12: =U12/(W4-U11) -> 0.125 | W12: =IF(V12=0,0,(V12*((LOG(V12))/LOG(2)))) -> -0.375 | Y12: =N12 -> 212 | Z12: =COUNTIF(L40:L72,Y12) -> 3 | AA12: =Z12/(AB4-Z11) -> 0.09090909091 | AB12: =IF(AA12=0,0,(AA12*((LOG(AA12))/LOG(2)))) -> -0.3144937835 | AD12: =N12 -> 212 | AE12: =COUNTIF(L73:L106,AD12) -> 4 | AF12: =AE12/(AG4-AE11) -> 0.1212121212 | AG12: =IF(AF12=0,0,(AF12*((LOG(AF12))/LOG(2)))) -> -0.369017469 | AI12: =N12 -> 212 | AJ12: =COUNTIF(L107:L139,AI12) -> 8 | AK12: =AJ12/(AL4-AJ11) -> 0.2424242424 | AL12: =IF(AK12=0,0,(AK12*((LOG(AK12))/LOG(2)))) -> -0.4956106956 | AN12: =N12 -> 212 | AO12: =COUNTIF(L140:L172,AN12) -> 4 | AP12: =AO12/(AQ4-AO11) -> 0.1212121212 | AQ12: =IF(AP12=0,0,(AP12*((LOG(AP12))/LOG(2)))) -> -0.369017469 | AS12: =N12 -> 212 | AT12: =COUNTIF(L173:L205,AS12) -> 8 | AU12: =AT12/(AV4-AT11) -> 0.25 | AV12: =IF(AU12=0,0,(AU12*((LOG(AU12))/LOG(2)))) -> -0.5
A13: 21 | B13: 818 | C13: 22 | D13: 824 | E13: 24 | F13: 830 | K13: 0 | L13: 222 | N13: 221 | O13: =COUNTIF($L$7:$L$500,N13) -> 13 | P13: =O13/$Q$4 -> 0.06565656566 | Q13: =IF(P13=0,0,(P13*((LOG(P13))/LOG(2)))) -> -0.2579591905 | T13: =N13 -> 221 | U13: =COUNTIF(L7:L39,T13) -> 0 | V13: =U13/(W4-U11) -> 0 | W13: =IF(V13=0,0,(V13*((LOG(V13))/LOG(2)))) -> 0 | Y13: =N13 -> 221 | Z13: =COUNTIF(L40:L72,Y13) -> 0 | AA13: =Z13/(AB4-Z11) -> 0 | AB13: =IF(AA13=0,0,(AA13*((LOG(AA13))/LOG(2)))) -> 0 | AD13: =N13 -> 221 | AE13: =COUNTIF(L73:L106,AD13) -> 6 | AF13: =AE13/(AG4-AE11) -> 0.1818181818 | AG13: =IF(AF13=0,0,(AF13*((LOG(AF13))/LOG(2)))) -> -0.4471693852 | AI13: =N13 -> 221 | AJ13: =COUNTIF(L107:L139,AI13) -> 1 | AK13: =AJ13/(AL4-AJ11) -> 0.0303030303 | AL13: =IF(AK13=0,0,(AK13*((LOG(AK13))/LOG(2)))) -> -0.1528604279 | AN13: =N13 -> 221 | AO13: =COUNTIF(L140:L172,AN13) -> 5 | AP13: =AO13/(AQ4-AO11) -> 0.1515151515 | AQ13: =IF(AP13=0,0,(AP13*((LOG(AP13))/LOG(2)))) -> -0.4124948522 | AS13: =N13 -> 221 | AT13: =COUNTIF(L173:L205,AS13) -> 1 | AU13: =AT13/(AV4-AT11) -> 0.03125 | AV13: =IF(AU13=0,0,(AU13*((LOG(AU13))/LOG(2)))) -> -0.15625
A14: 12 | B14: 1142 | C14: 13 | D14: 1147 | E14: 13 | F14: 1163 | K14: 0 | L14: 111 | N14: 222 | O14: =COUNTIF($L$7:$L$500,N14) -> 44 | P14: =O14/$Q$4 -> 0.2222222222 | Q14: =IF(P14=0,0,(P14*((LOG(P14))/LOG(2)))) -> -0.4822055559 | T14: =N14 -> 222 | U14: =COUNTIF(L7:L39,T14) -> 5 | V14: =U14/(W4-U11) -> 0.15625 | W14: =IF(V14=0,0,(V14*((LOG(V14))/LOG(2)))) -> -0.4184487352 | Y14: =N14 -> 222 | Z14: =COUNTIF(L40:L72,Y14) -> 5 | AA14: =Z14/(AB4-Z11) -> 0.1515151515 | AB14: =IF(AA14=0,0,(AA14*((LOG(AA14))/LOG(2)))) -> -0.4124948522 | AD14: =N14 -> 222 | AE14: =COUNTIF(L73:L106,AD14) -> 7 | AF14: =AE14/(AG4-AE11) -> 0.2121212121 | AG14: =IF(AF14=0,0,(AF14*((LOG(AF14))/LOG(2)))) -> -0.4745234661 | AI14: =N14 -> 222 | AJ14: =COUNTIF(L107:L139,AI14) -> 9 | AK14: =AJ14/(AL4-AJ11) -> 0.2727272727 | AL14: =IF(AK14=0,0,(AK14*((LOG(AK14))/LOG(2)))) -> -0.5112188503 | AN14: =N14 -> 222 | AO14: =COUNTIF(L140:L172,AN14) -> 9 | AP14: =AO14/(AQ4-AO11) -> 0.2727272727 | AQ14: =IF(AP14=0,0,(AP14*((LOG(AP14))/LOG(2)))) -> -0.5112188503 | AS14: =N14 -> 222 | AT14: =COUNTIF(L173:L205,AS14) -> 9 | AU14: =AT14/(AV4-AT11) -> 0.28125 | AV14: =IF(AU14=0,0,(AU14*((LOG(AU14))/LOG(2)))) -> -0.5147085933
A15: 12 | B15: 1256 | C15: 13 | D15: 1259 | E15: 13 | F15: 1264 | K15: 0 | L15: 111 | P15: =SUM(P7:P14) -> 1 | Q15: =-SUM(Q7:Q14) -> 2.348270556 | V15: =SUM(V7:V14) -> 1 | W15: =-SUM(W7:W14) -> 2.280138674 | AA15: =SUM(AA7:AA14) -> 1 | AB15: =-SUM(AB7:AB14) -> 2.056324914 | AF15: =SUM(AF7:AF14) -> 1 | AG15: =-SUM(AG7:AG14) -> 1.960617804 | AK15: =SUM(AK7:AK14) -> 1 | AL15: =-SUM(AL7:AL14) -> 2.088367604 | AP15: =SUM(AP7:AP14) -> 1 | AQ15: =-SUM(AQ7:AQ14) -> 1.970396107 | AU15: =SUM(AU7:AU14) -> 1 | AV15: =-SUM(AV7:AV14) -> 2.171765829
A16: 21 | B16: 1372 | C16: 22 | D16: 1375 | E16: 24 | F16: 1380 | K16: 0 | L16: 222 | P16: U= | Q16: =Q15/(LOG(Q4)/LOG(2)) -> 0.3077940477 | V16: U1= | W16: =W15/(LOG(W4)/LOG(2)) -> 0.4520143787 | AA16: U2= | AB16: =AB15/(LOG(AB4)/LOG(2)) -> 0.4076455696 | AF16: U3= | AG16: =AG15/(LOG(AG4)/LOG(2)) -> 0.3853822358 | AK16: U4= | AL16: =AL15/(LOG(AL4)/LOG(2)) -> 0.413997708 | AP16: U5= | AQ16: =AQ15/(LOG(AQ4)/LOG(2)) -> 0.3906110547 | AU16: U6= | AV16: =AV15/(LOG(AV4)/LOG(2)) -> 0.4343531658
A17: 12 | B17: 1484 | C17: 24 | D17: 1493 | E17: 24 | F17: 1498 | K17: 0 | L17: 122
A18: 12 | B18: 1596 | C18: 13 | D18: 1605 | E18: 24 | F18: 1614 | K18: 0 | L18: 112
A19: 12 | B19: 1712 | C19: 24 | D19: 1716 | E19: 24 | F19: 1719 | K19: 0 | L19: 122 | N19: Total Target Seq
A20: 12 | B20: 1826 | C20: 24 | D20: 1834 | E20: 24 | F20: 1839 | K20: 0 | L20: 122 | N20: =COUNTIF(L7:L205,G3) -> 2 | P20: 33 | Q20: 33 | R20: 34 | S20: 33 | T20: 33 | U20: 33
A21: 21 | B21: 1933 | C21: 11 | D21: 1936 | E21: 11 | F21: 1940 | K21: 0 | L21: 211 | P21: % of reinforcement given in 6 equal intervals based on number of trials
A22: 21 | B22: 2052 | C22: 11 | D22: 2054 | E22: 22 | F22: 2059 | K22: 0 | L22: 212 | P22: %_1 | Q22: %_2 | R22: %_3 | S22: %_4 | T22: %_5 | U22: %_6
A23: 12 | B23: 2204 | C23: 24 | D23: 2210 | E23: 24 | F23: 2223 | K23: 0 | L23: 122 | O23: target sequence | P23: =$G$3 -> 211 | Q23: =$G$3 -> 211 | R23: =$G$3 -> 211 | S23: =$G$3 -> 211 | T23: =$G$3 -> 211 | U23: =$G$3 -> 211
A24: 12 | B24: 2341 | C24: 24 | D24: 2352 | E24: 13 | F24: 2355 | K24: 0 | L24: 121 | O24: total reinforcement | P24: =U11 -> 1 | Q24: =Z11 -> 0 | R24: =AE11 -> 1 | S24: =AJ11 -> 0 | T24: =AO11 -> 0 | U24: =AT11 -> 0
A25: 12 | B25: 2443 | C25: 24 | D25: 2449 | E25: 24 | F25: 2455 | K25: 0 | L25: 122 | O25: % target
A26: 21 | B26: 2573 | C26: 22 | D26: 2580 | E26: 24 | F26: 2587 | K26: 0 | L26: 222 | O26: CCRF
A27: 12 | B27: 2693 | C27: 13 | D27: 2708 | E27: 24 | F27: 2710 | K27: 0 | L27: 112 | O27: % CCRf
A28: 12 | B28: 2814 | C28: 13 | D28: 2820 | E28: 24 | F28: 2825 | K28: 0 | L28: 112 | O28: average response rate | P28: =F39/P20 -> 123.3636364 | Q28: =(F72-F39)/Q20 -> 113.2121212 | R28: =(F106-F72)/R20 -> 121.8823529 | S28: =(F139-F106)/S20 -> 118.6060606 | T28: =(F172-F139)/T20 -> 116.8787879 | U28: =(F205-F172)/U20 -> -597.6363636
A29: 21 | B29: 2921 | C29: 11 | D29: 2924 | E29: 22 | F29: 2927 | K29: 0 | L29: 212
A30: 12 | B30: 3030 | C30: 24 | D30: 3039 | E30: 24 | F30: 3045 | K30: 0 | L30: 122
A31: 12 | B31: 3152 | C31: 24 | D31: 3164 | E31: 24 | F31: 3170 | K31: 0 | L31: 122
A32: 12 | B32: 3269 | C32: 24 | D32: 3273 | E32: 24 | F32: 3279 | K32: 0 | L32: 122
A33: 12 | B33: 3372 | C33: 24 | D33: 3377 | E33: 24 | F33: 3386 | K33: 0 | L33: 122
A34: 12 | B34: 3480 | C34: 13 | D34: 3483 | E34: 24 | F34: 3494 | K34: 0 | L34: 112
A35: 21 | B35: 3596 | C35: 22 | D35: 3600 | E35: 24 | F35: 3605 | K35: 0 | L35: 222
A36: 21 | B36: 3708 | C36: 11 | D36: 3712 | E36: 22 | F36: 3722 | K36: 0 | L36: 212
A37: 21 | B37: 3823 | C37: 11 | D37: 3827 | E37: 22 | F37: 3833 | K37: 0 | L37: 212
A38: 21 | B38: 3936 | C38: 22 | D38: 3943 | E38: 24 | F38: 3950 | K38: 0 | L38: 222
A39: 12 | B39: 4061 | C39: 24 | D39: 4066 | E39: 24 | F39: 4071 | K39: 0 | L39: 122
A40: 12 | B40: 4165 | C40: 24 | D40: 4178 | E40: 24 | F40: 4181 | K40: 0 | L40: 122
A41: 12 | B41: 4281 | C41: 24 | D41: 4284 | E41: 24 | F41: 4288 | K41: 0 | L41: 122
A42: 12 | B42: 4380 | C42: 13 | D42: 4388 | E42: 13 | F42: 4396 | K42: 0 | L42: 111
A43: 12 | B43: 4493 | C43: 24 | D43: 4496 | E43: 24 | F43: 4507 | K43: 0 | L43: 122
A44: 12 | B44: 4597 | C44: 24 | D44: 4601 | E44: 24 | F44: 4609 | K44: 0 | L44: 122
A45: 21 | B45: 4727 | C45: 22 | D45: 4734 | E45: 24 | F45: 4741 | K45: 0 | L45: 222
A46: 21 | B46: 4846 | C46: 22 | D46: 4850 | E46: 24 | F46: 4857 | K46: 0 | L46: 222
A47: 12 | B47: 4950 | C47: 24 | D47: 4957 | E47: 24 | F47: 4961 | K47: 0 | L47: 122
A48: 12 | B48: 5055 | C48: 24 | D48: 5061 | E48: 13 | F48: 5063 | K48: 0 | L48: 121
A49: 12 | B49: 5167 | C49: 24 | D49: 5170 | E49: 24 | F49: 5176 | K49: 0 | L49: 122
A50: 12 | B50: 5274 | C50: 13 | D50: 5285 | E50: 24 | F50: 5290 | K50: 0 | L50: 112
A51: 12 | B51: 5387 | C51: 24 | D51: 5390 | E51: 24 | F51: 5396 | K51: 0 | L51: 122
A52: 21 | B52: 5502 | C52: 11 | D52: 5509 | E52: 22 | F52: 5514 | K52: 0 | L52: 212
A53: 21 | B53: 5622 | C53: 22 | D53: 5628 | E53: 24 | F53: 5636 | K53: 0 | L53: 222
A54: 21 | B54: 5805 | C54: 11 | D54: 5809 | E54: 22 | F54: 5815 | K54: 0 | L54: 212
A55: 12 | B55: 5910 | C55: 13 | D55: 5919 | E55: 24 | F55: 5927 | K55: 0 | L55: 112
A56: 21 | B56: 6023 | C56: 22 | D56: 6027 | E56: 24 | F56: 6033 | K56: 0 | L56: 222
A57: 12 | B57: 6132 | C57: 24 | D57: 6143 | E57: 24 | F57: 6149 | K57: 0 | L57: 122
A58: 12 | B58: 6243 | C58: 24 | D58: 6262 | E58: 24 | F58: 6264 | K58: 0 | L58: 122
A59: 12 | B59: 6360 | C59: 24 | D59: 6362 | E59: 24 | F59: 6368 | K59: 0 | L59: 122
A60: 12 | B60: 6471 | C60: 13 | D60: 6481 | E60: 24 | F60: 6495 | K60: 0 | L60: 112
A61: 12 | B61: 6583 | C61: 24 | D61: 6594 | E61: 24 | F61: 6603 | K61: 0 | L61: 122
A62: 12 | B62: 6704 | C62: 24 | D62: 6709 | E62: 24 | F62: 6715 | K62: 0 | L62: 122
A63: 12 | B63: 6821 | C63: 13 | D63: 6825 | E63: 24 | F63: 6831 | K63: 0 | L63: 112
A64: 12 | B64: 6923 | C64: 24 | D64: 6933 | E64: 13 | F64: 6936 | K64: 0 | L64: 121
A65: 12 | B65: 7029 | C65: 24 | D65: 7033 | E65: 24 | F65: 7037 | K65: 0 | L65: 122
A66: 12 | B66: 7132 | C66: 24 | D66: 7142 | E66: 24 | F66: 7150 | K66: 0 | L66: 122
A67: 21 | B67: 7246 | C67: 11 | D67: 7249 | E67: 22 | F67: 7251 | K67: 0 | L67: 212
A68: 21 | B68: 7357 | C68: 22 | D68: 7367 | E68: 24 | F68: 7373 | K68: 0 | L68: 222
A69: 12 | B69: 7469 | C69: 24 | D69: 7476 | E69: 24 | F69: 7491 | K69: 0 | L69: 122
A70: 12 | B70: 7588 | C70: 24 | D70: 7593 | E70: 13 | F70: 7595 | K70: 0 | L70: 121
A71: 12 | B71: 7693 | C71: 24 | D71: 7696 | E71: 24 | F71: 7703 | K71: 0 | L71: 122
A72: 12 | B72: 7798 | C72: 24 | D72: 7804 | E72: 24 | F72: 7807 | K72: 0 | L72: 122
A73: 12 | B73: 7904 | C73: 13 | D73: 7908 | E73: 24 | F73: 7920 | K73: 0 | L73: 112
A74: 12 | B74: 8012 | C74: 24 | D74: 8031 | E74: 24 | F74: 8038 | K74: 0 | L74: 122
A75: 21 | B75: 8131 | C75: 22 | D75: 8136 | E75: 24 | F75: 8144 | K75: 0 | L75: 222
A76: 21 | B76: 8260 | C76: 22 | D76: 8266 | E76: 13 | F76: 8268 | K76: 0 | L76: 221
A77: 12 | B77: 8450 | C77: 24 | D77: 8456 | E77: 24 | F77: 8459 | K77: 0 | L77: 122
A78: 12 | B78: 8558 | C78: 24 | D78: 8562 | E78: 24 | F78: 8572 | K78: 0 | L78: 122
A79: 12 | B79: 8679 | C79: 24 | D79: 8691 | E79: 24 | F79: 8696 | K79: 0 | L79: 122
A80: 12 | B80: 8790 | C80: 24 | D80: 8793 | E80: 24 | F80: 8797 | K80: 0 | L80: 122
A81: 12 | B81: 8898 | C81: 24 | D81: 8901 | E81: 24 | F81: 8907 | K81: 0 | L81: 122
A82: 21 | B82: 9018 | C82: 11 | D82: 9031 | E82: 22 | F82: 9052 | K82: 0 | L82: 212
A83: 21 | B83: 9241 | C83: 11 | D83: 9244 | E83: 11 | F83: 9247 | K83: 0 | L83: 211
A84: 21 | B84: 9371 | C84: 11 | D84: 9377 | E84: 22 | F84: 9390 | K84: 0 | L84: 212
A85: 21 | B85: 9522 | C85: 22 | D85: 9526 | E85: 24 | F85: 9531 | K85: 0 | L85: 222
A86: 21 | B86: 9634 | C86: 22 | D86: 9642 | E86: 24 | F86: 9654 | K86: 0 | L86: 222
A87: 21 | B87: 9783 | C87: 11 | D87: 9790 | E87: 22 | F87: 9800 | K87: 0 | L87: 212
A88: 12 | B88: 9896 | C88: 24 | D88: 9900 | E88: 24 | F88: 9910 | K88: 0 | L88: 122
A89: 21 | B89: 10007 | C89: 22 | D89: 10011 | E89: 24 | F89: 10016 | K89: 0 | L89: 222
A90: 12 | B90: 10109 | C90: 24 | D90: 10114 | E90: 24 | F90: 10120 | K90: 0 | L90: 122
A91: 12 | B91: 10212 | C91: 24 | D91: 10214 | E91: 24 | F91: 10219 | K91: 0 | L91: 122
A92: 21 | B92: 10315 | C92: 22 | D92: 10318 | E92: 13 | F92: 10323 | K92: 0 | L92: 221
A93: 21 | B93: 10451 | C93: 11 | D93: 10458 | E93: 22 | F93: 10465 | K93: 0 | L93: 212
A94: 21 | B94: 10571 | C94: 22 | D94: 10577 | E94: 24 | F94: 10582 | K94: 0 | L94: 222
A95: 12 | B95: 10684 | C95: 24 | D95: 10688 | E95: 24 | F95: 10695 | K95: 0 | L95: 122
A96: 21 | B96: 10790 | C96: 22 | D96: 10792 | E96: 13 | F96: 10797 | K96: 0 | L96: 221
A97: 21 | B97: 10892 | C97: 22 | D97: 10896 | E97: 13 | F97: 10901 | K97: 0 | L97: 221
A98: 12 | B98: 10998 | C98: 24 | D98: 11002 | E98: 24 | F98: 11008 | K98: 0 | L98: 122
A99: 21 | B99: 11108 | C99: 22 | D99: 11113 | E99: 13 | F99: 11116 | K99: 0 | L99: 221
A100: 12 | B100: 11248 | C100: 24 | D100: 11261 | E100: 24 | F100: 11266 | K100: 0 | L100: 122
A101: 12 | B101: 11382 | C101: 24 | D101: 11392 | E101: 24 | F101: 11397 | K101: 0 | L101: 122
A102: 12 | B102: 11497 | C102: 24 | D102: 11501 | E102: 24 | F102: 11505 | K102: 0 | L102: 122
A103: 21 | B103: 11598 | C103: 22 | D103: 11603 | E103: 13 | F103: 11608 | K103: 0 | L103: 221
A104: 12 | B104: 11710 | C104: 24 | D104: 11722 | E104: 24 | F104: 11729 | K104: 0 | L104: 122
A105: 21 | B105: 11828 | C105: 22 | D105: 11833 | E105: 24 | F105: 11840 | K105: 0 | L105: 222
A106: 21 | B106: 11941 | C106: 22 | D106: 11946 | E106: 24 | F106: 11951 | K106: 0 | L106: 222
A107: 21 | B107: 12049 | C107: 22 | D107: 12058 | E107: 24 | F107: 12063 | K107: 0 | L107: 222
A108: 12 | B108: 12160 | C108: 24 | D108: 12161 | E108: 13 | F108: 12166 | K108: 0 | L108: 121
A109: 21 | B109: 12258 | C109: 22 | D109: 12263 | E109: 13 | F109: 12268 | K109: 0 | L109: 221
A110: 21 | B110: 12492 | C110: 11 | D110: 12495 | E110: 22 | F110: 12501 | K110: 0 | L110: 212
A111: 21 | B111: 12602 | C111: 22 | D111: 12607 | E111: 24 | F111: 12616 | K111: 0 | L111: 222
A112: 21 | B112: 12711 | C112: 11 | D112: 12718 | E112: 22 | F112: 12725 | K112: 0 | L112: 212
A113: 21 | B113: 12820 | C113: 22 | D113: 12828 | E113: 24 | F113: 12835 | K113: 0 | L113: 222
A114: 12 | B114: 12934 | C114: 24 | D114: 12938 | E114: 24 | F114: 12943 | K114: 0 | L114: 122
A115: 21 | B115: 13044 | C115: 11 | D115: 13046 | E115: 22 | F115: 13050 | K115: 0 | L115: 212
A116: 21 | B116: 13218 | C116: 22 | D116: 13223 | E116: 24 | F116: 13227 | K116: 0 | L116: 222
A117: 12 | B117: 13322 | C117: 24 | D117: 13327 | E117: 24 | F117: 13333 | K117: 0 | L117: 122
A118: 21 | B118: 13440 | C118: 11 | D118: 13446 | E118: 22 | F118: 13454 | K118: 0 | L118: 212
A119: 21 | B119: 13566 | C119: 22 | D119: 13571 | E119: 24 | F119: 13579 | K119: 0 | L119: 222
A120: 12 | B120: 13682 | C120: 24 | D120: 13686 | E120: 24 | F120: 13692 | K120: 0 | L120: 122
A121: 12 | B121: 13785 | C121: 13 | D121: 13787 | E121: 24 | F121: 13792 | K121: 0 | L121: 112
A122: 21 | B122: 13888 | C122: 11 | D122: 13890 | E122: 22 | F122: 13897 | K122: 0 | L122: 212
A123: 21 | B123: 14001 | C123: 11 | D123: 14005 | E123: 22 | F123: 14012 | K123: 0 | L123: 212
A124: 21 | B124: 14123 | C124: 22 | D124: 14132 | E124: 24 | F124: 14139 | K124: 0 | L124: 222
A125: 12 | B125: 14230 | C125: 24 | D125: 14234 | E125: 24 | F125: 14238 | K125: 0 | L125: 122
A126: 12 | B126: 14338 | C126: 24 | D126: 14341 | E126: 24 | F126: 14350 | K126: 0 | L126: 122
A127: 12 | B127: 14480 | C127: 24 | D127: 14491 | E127: 24 | F127: 14499 | K127: 0 | L127: 122
A128: 12 | B128: 14600 | C128: 24 | D128: 14605 | E128: 24 | F128: 14612 | K128: 0 | L128: 122
A129: 12 | B129: 14709 | C129: 24 | D129: 14713 | E129: 24 | F129: 14719 | K129: 0 | L129: 122
A130: 12 | B130: 14812 | C130: 24 | D130: 14823 | E130: 24 | F130: 14826 | K130: 0 | L130: 122
A131: 21 | B131: 14926 | C131: 22 | D131: 14929 | E131: 24 | F131: 14935 | K131: 0 | L131: 222
A132: 12 | B132: 15035 | C132: 24 | D132: 15037 | E132: 24 | F132: 15046 | K132: 0 | L132: 122
A133: 21 | B133: 15134 | C133: 22 | D133: 15145 | E133: 24 | F133: 15155 | K133: 0 | L133: 222
A134: 21 | B134: 15305 | C134: 11 | D134: 15310 | E134: 22 | F134: 15317 | K134: 0 | L134: 212
A135: 21 | B135: 15416 | C135: 22 | D135: 15418 | E135: 24 | F135: 15424 | K135: 0 | L135: 222
A136: 21 | B136: 15520 | C136: 11 | D136: 15523 | E136: 22 | F136: 15528 | K136: 0 | L136: 212
A137: 12 | B137: 15621 | C137: 24 | D137: 15639 | E137: 13 | F137: 15644 | K137: 0 | L137: 121
A138: 12 | B138: 15742 | C138: 24 | D138: 15747 | E138: 24 | F138: 15753 | K138: 0 | L138: 122
A139: 12 | B139: 15850 | C139: 24 | D139: 15857 | E139: 24 | F139: 15865 | K139: 0 | L139: 122
A140: 12 | B140: 15965 | C140: 24 | D140: 15967 | E140: 24 | F140: 15973 | K140: 0 | L140: 122
A141: 21 | B141: 16079 | C141: 11 | D141: 16083 | E141: 22 | F141: 16090 | K141: 0 | L141: 212
A142: 21 | B142: 16194 | C142: 22 | D142: 16201 | E142: 24 | F142: 16207 | K142: 0 | L142: 222
A143: 12 | B143: 16347 | C143: 24 | D143: 16351 | E143: 24 | F143: 16356 | K143: 0 | L143: 122
A144: 12 | B144: 16453 | C144: 24 | D144: 16458 | E144: 24 | F144: 16464 | K144: 0 | L144: 122
A145: 21 | B145: 16561 | C145: 22 | D145: 16567 | E145: 24 | F145: 16574 | K145: 0 | L145: 222
A146: 21 | B146: 16676 | C146: 22 | D146: 16679 | E146: 24 | F146: 16685 | K146: 0 | L146: 222
A147: 21 | B147: 16814 | C147: 11 | D147: 16818 | E147: 22 | F147: 16820 | K147: 0 | L147: 212
A148: 21 | B148: 16964 | C148: 22 | D148: 16967 | E148: 13 | F148: 16972 | K148: 0 | L148: 221
A149: 21 | B149: 17089 | C149: 22 | D149: 17091 | E149: 24 | F149: 17096 | K149: 0 | L149: 222
A150: 12 | B150: 17190 | C150: 24 | D150: 17195 | E150: 24 | F150: 17204 | K150: 0 | L150: 122
A151: 21 | B151: 17302 | C151: 22 | D151: 17308 | E151: 24 | F151: 17324 | K151: 0 | L151: 222
A152: 21 | B152: 17422 | C152: 22 | D152: 17426 | E152: 24 | F152: 17431 | K152: 0 | L152: 222
A153: 12 | B153: 17524 | C153: 24 | D153: 17531 | E153: 24 | F153: 17536 | K153: 0 | L153: 122
A154: 12 | B154: 17634 | C154: 24 | D154: 17636 | E154: 24 | F154: 17641 | K154: 0 | L154: 122
A155: 12 | B155: 17735 | C155: 24 | D155: 17741 | E155: 24 | F155: 17748 | K155: 0 | L155: 122
A156: 12 | B156: 17841 | C156: 24 | D156: 17850 | E156: 24 | F156: 17854 | K156: 0 | L156: 122
A157: 21 | B157: 17946 | C157: 22 | D157: 17952 | E157: 13 | F157: 17956 | K157: 0 | L157: 221
A158: 21 | B158: 18066 | C158: 22 | D158: 18072 | E158: 24 | F158: 18078 | K158: 0 | L158: 222
A159: 12 | B159: 18217 | C159: 24 | D159: 18228 | E159: 24 | F159: 18232 | K159: 0 | L159: 122
A160: 12 | B160: 18326 | C160: 24 | D160: 18329 | E160: 24 | F160: 18332 | K160: 0 | L160: 122
A161: 21 | B161: 18434 | C161: 22 | D161: 18438 | E161: 13 | F161: 18440 | K161: 0 | L161: 221
A162: 12 | B162: 18534 | C162: 24 | D162: 18536 | E162: 24 | F162: 18541 | K162: 0 | L162: 122
A163: 21 | B163: 18638 | C163: 11 | D163: 18645 | E163: 22 | F163: 18648 | K163: 0 | L163: 212
A164: 12 | B164: 18747 | C164: 24 | D164: 18757 | E164: 24 | F164: 18764 | K164: 0 | L164: 122
A165: 21 | B165: 18860 | C165: 22 | D165: 18864 | E165: 24 | F165: 18871 | K165: 0 | L165: 222
A166: 21 | B166: 18967 | C166: 22 | D166: 18971 | E166: 24 | F166: 18979 | K166: 0 | L166: 222
A167: 12 | B167: 19074 | C167: 24 | D167: 19079 | E167: 13 | F167: 19084 | K167: 0 | L167: 121
A168: 12 | B168: 19184 | C168: 24 | D168: 19187 | E168: 24 | F168: 19192 | K168: 0 | L168: 122
A169: 21 | B169: 19294 | C169: 22 | D169: 19299 | E169: 13 | F169: 19301 | K169: 0 | L169: 221
A170: 21 | B170: 19417 | C170: 22 | D170: 19424 | E170: 13 | F170: 19428 | K170: 0 | L170: 221
A171: 12 | B171: 19597 | C171: 24 | D171: 19609 | E171: 24 | F171: 19615 | K171: 0 | L171: 122
A172: 21 | B172: 19712 | C172: 11 | D172: 19715 | E172: 22 | F172: 19722 | K172: 0 | L172: 212
A173: 21 | B173: 19825 | C173: 22 | D173: 19830 | E173: 24 | F173: 19836 | K173: 0 | L173: 222
A174: 12 | B174: 19928 | C174: 24 | D174: 19932 | E174: 24 | F174: 19936 | K174: 0 | L174: 122
A175: 21 | B175: 20038 | C175: 22 | D175: 20044 | E175: 24 | F175: 20050 | K175: 0 | L175: 222
A176: 12 | B176: 20144 | C176: 24 | D176: 20148 | E176: 24 | F176: 20154 | K176: 0 | L176: 122
A177: 12 | B177: 20252 | C177: 24 | D177: 20256 | E177: 24 | F177: 20261 | K177: 0 | L177: 122
A178: 12 | B178: 20356 | C178: 24 | D178: 20361 | E178: 24 | F178: 20366 | K178: 0 | L178: 122
A179: 21 | B179: 20477 | C179: 22 | D179: 20483 | E179: 24 | F179: 20496 | K179: 0 | L179: 222
A180: 21 | B180: 20636 | C180: 11 | D180: 20641 | E180: 22 | F180: 20646 | K180: 0 | L180: 212
A181: 21 | B181: 20743 | C181: 11 | D181: 20750 | E181: 22 | F181: 20753 | K181: 0 | L181: 212
A182: 12 | B182: 20854 | C182: 13 | D182: 20859 | E182: 24 | F182: 20866 | K182: 0 | L182: 112
A183: 21 | B183: 20966 | C183: 11 | D183: 20968 | E183: 22 | F183: 20972 | K183: 0 | L183: 212
A184: 21 | B184: 21071 | C184: 22 | D184: 21078 | E184: 13 | F184: 21083 | K184: 0 | L184: 221
A185: 21 | B185: 21180 | C185: 22 | D185: 21184 | E185: 24 | F185: 21191 | K185: 0 | L185: 222
A186: 12 | B186: 21284 | C186: 24 | D186: 21295 | E186: 24 | F186: 21299 | K186: 0 | L186: 122
A187: 12 | B187: 21392 | C187: 24 | D187: 21397 | E187: 13 | F187: 21399 | K187: 0 | L187: 121
A188: 12 | B188: 21497 | C188: 13 | D188: 21500 | E188: 24 | F188: 21506 | K188: 0 | L188: 112
A189: 12 | B189: 21634 | C189: 24 | D189: 21643 | E189: 24 | F189: 21649 | K189: 0 | L189: 122
A190: 12 | B190: 21762 | C190: 24 | D190: 21774 | E190: 24 | F190: 21780 | K190: 0 | L190: 122
A191: 12 | B191: 21876 | C191: 24 | D191: 21880 | E191: 24 | F191: 21885 | K191: 0 | L191: 122
A192: 21 | B192: 22012 | C192: 11 | D192: 22017 | E192: 22 | F192: 22020 | K192: 0 | L192: 212
A193: 12 | B193: 22255 | C193: 24 | D193: 22267 | E193: 24 | F193: 22274 | K193: 0 | L193: 122
A194: 21 | B194: 22474 | C194: 22 | D194: 22483 | E194: 24 | F194: 22490 | K194: 0 | L194: 222
A195: 21 | B195: 22590 | C195: 11 | D195: 22595 | E195: 22 | F195: 22601 | K195: 0 | L195: 212
A196: 21 | B196: 22711 | C196: 22 | D196: 22719 | E196: 24 | F196: 22725 | K196: 0 | L196: 222
A197: 21 | B197: 22846 | C197: 11 | D197: 22853 | E197: 22 | F197: 22855 | K197: 0 | L197: 212
A198: 21 | B198: 23052 | C198: 22 | D198: 23059 | E198: 24 | F198: 23066 | K198: 0 | L198: 222
A199: 12 | B199: 23163 | C199: 24 | D199: 23166 | E199: 24 | F199: 23170 | K199: 0 | L199: 122
A200: 21 | B200: 23266 | C200: 22 | D200: 23270 | E200: 24 | F200: 23275 | K200: 0 | L200: 222
... 5 more rows

Sheet !N205920.Gus
A1: Report for:!N205920.Gus
A2: Date: | B2: <date>
A3: Hen: | B3: <hen> | F3: Correct Sequence | G3: =Start!J2 -> 211 | P3: Total Sequences in Data | Q3: =4994-COUNTBLANK(L7:L5000) -> 175 | V3: Total Sequences in Block Data | W3: =COUNTA(L7:L35) -> 29 | AA3: Total Sequences in Block Data | AB3: =COUNTA(L36:L64) -> 29 | AF3: Total Sequences in Block Data | AG3: =COUNTA(L65:L94) -> 30 | AK3: Total Sequences in Block Data | AL3: =COUNTA(L95:L123) -> 29 | AP3: Total Sequences in Block Data | AQ3: =COUNTA(L124:L152) -> 29 | AU3: Total Sequences in Block Data | AV3: =COUNTA(L153:L181) -> 29
P4: Total Sequences in Summary | Q4: =SUM(O7:O14) -> 174 | V4: Total Sequences in Block Summary | W4: =SUM(U7:U14) -> 29 | AA4: Total Sequences in Block Summary | AB4: =SUM(Z7:Z14) -> 29 | AF4: Total Sequences in Block Summary | AG4: =SUM(AE7:AE14) -> 30 | AK4: Total Sequences in Block Summary | AL4: =SUM(AJ7:AJ14) -> 29 | AP4: Total Sequences in Block Summary | AQ4: =SUM(AO7:AO14) -> 29 | AU4: Total Sequences in Block Summary | AV4: =SUM(AT7:AT14) -> 28
T5: Block 1 | Y5: Block 2 | AD5: Block 3 | AI5: Block 4 | AN5: Block 5 | AS5: Block 6
A6: Sequence Component 1 | B6: Time 1 | C6: Sequence Component 2 | D6: Time 2 | E6: Sequence Component 3 | F6: Time 3 | G6: Sequence Component 4 | H6: Time 4 | I6: Sequence Component 5 | J6: Time 5 | K6: Correct? 0=No 1=Yes | L6: Sequence | N6: Frequency | P6: Relative Frequency | Q6: Variability | T6: Frequency | V6: Relative Frequency | W6: Variability | Y6: Frequency | AA6: Relative Frequency | AB6: Variability | AD6: Frequency | AF6: Relative Frequency | AG6: Variability | AI6: Frequency | AK6: Relative Frequency | AL6: Variability | AN6: Frequency | AP6: Relative Frequency | AQ6: Variability | AS6: Frequency | AU6: Relative Frequency | AV6: Variability
A7: 21 | B7: 51 | C7: 22 | D7: 57 | E7: 24 | F7: 64 | K7: 0 | L7: 222 | N7: 111 | O7: =COUNTIF($L$7:$L$500,N7) -> 0 | P7: =O7/$Q$4 -> 0 | Q7: =IF(P7=0,0,(P7*((LOG(P7))/LOG(2)))) -> 0 | T7: =N7 -> 111 | U7: =COUNTIF(L7:L35,T7) -> 0 | V7: =U7/(W4-U11) -> 0 | W7: =IF(V7=0,0,(V7*((LOG(V7))/LOG(2)))) -> 0 | Y7: =N7 -> 111 | Z7: =COUNTIF(L36:L64,Y7) -> 0 | AA7: =Z7/(AB4-Z11) -> 0 | AB7: =IF(AA7=0,0,(AA7*((LOG(AA7))/LOG(2)))) -> 0 | AD7: =N7 -> 111 | AE7: =COUNTIF(L65:L94,AD7) -> 0 | AF7: =AE7/(AG4-AE11) -> 0 | AG7: =IF(AF7=0,0,(AF7*((LOG(AF7))/LOG(2)))) -> 0 | AI7: =N7 -> 111 | AJ7: =COUNTIF(L95:L123,AI7) -> 0 | AK7: =AJ7/(AL4-AJ11) -> 0 | AL7: =IF(AK7=0,0,(AK7*((LOG(AK7))/LOG(2)))) -> 0 | AN7: =N7 -> 111 | AO7: =COUNTIF(L124:L152,AN7) -> 0 | AP7: =AO7/(AQ4-AO11) -> 0 | AQ7: =IF(AP7=0,0,(AP7*((LOG(AP7))/LOG(2)))) -> 0 | AS7: =N7 -> 111 | AT7: =COUNTIF(L153:L181,AS7) -> 0 | AU7: =AT7/(AV4-AT11) -> 0 | AV7: =IF(AU7=0,0,(AU7*((LOG(AU7))/LOG(2)))) -> 0
A8: 12 | B8: 166 | C8: 24 | D8: 181 | E8: 24 | F8: 188 | K8: 0 | L8: 122 | N8: 112 | O8: =COUNTIF($L$7:$L$500,N8) -> 8 | P8: =O8/$Q$4 -> 0.04597701149 | Q8: =IF(P8=0,0,(P8*((LOG(P8))/LOG(2)))) -> -0.2042732642 | T8: =N8 -> 112 | U8: =COUNTIF(L7:L35,T8) -> 2 | V8: =U8/(W4-U11) -> 0.06896551724 | W8: =IF(V8=0,0,(V8*((LOG(V8))/LOG(2)))) -> -0.2660676548 | Y8: =N8 -> 112 | Z8: =COUNTIF(L36:L64,Y8) -> 1 | AA8: =Z8/(AB4-Z11) -> 0.03448275862 | AB8: =IF(AA8=0,0,(AA8*((LOG(AA8))/LOG(2)))) -> -0.167516586 | AD8: =N8 -> 112 | AE8: =COUNTIF(L65:L94,AD8) -> 1 | AF8: =AE8/(AG4-AE11) -> 0.03333333333 | AG8: =IF(AF8=0,0,(AF8*((LOG(AF8))/LOG(2)))) -> -0.1635630199 | AI8: =N8 -> 112 | AJ8: =COUNTIF(L95:L123,AI8) -> 1 | AK8: =AJ8/(AL4-AJ11) -> 0.03571428571 | AL8: =IF(AK8=0,0,(AK8*((LOG(AK8))/LOG(2)))) -> -0.1716912472 | AN8: =N8 -> 112 | AO8: =COUNTIF(L124:L152,AN8) -> 2 | AP8: =AO8/(AQ4-AO11) -> 0.06896551724 | AQ8: =IF(AP8=0,0,(AP8*((LOG(AP8))/LOG(2)))) -> -0.2660676548 | AS8: =N8 -> 112 | AT8: =COUNTIF(L153:L181,AS8) -> 1 | AU8: =AT8/(AV4-AT11) -> 0.03571428571 | AV8: =IF(AU8=0,0,(AU8*((LOG(AU8))/LOG(2)))) -> -0.1716912472
A9: 12 | B9: 305 | C9: 24 | D9: 311 | E9: 24 | F9: 313 | K9: 0 | L9: 122 | N9: 121 | O9: =COUNTIF($L$7:$L$500,N9) -> 8 | P9: =O9/$Q$4 -> 0.04597701149 | Q9: =IF(P9=0,0,(P9*((LOG(P9))/LOG(2)))) -> -0.2042732642 | T9: =N9 -> 121 | U9: =COUNTIF(L7:L35,T9) -> 2 | V9: =U9/(W4-U11) -> 0.06896551724 | W9: =IF(V9=0,0,(V9*((LOG(V9))/LOG(2)))) -> -0.2660676548 | Y9: =N9 -> 121 | Z9: =COUNTIF(L36:L64,Y9) -> 4 | AA9: =Z9/(AB4-Z11) -> 0.1379310345 | AB9: =IF(AA9=0,0,(AA9*((LOG(AA9))/LOG(2)))) -> -0.3942042752 | AD9: =N9 -> 121 | AE9: =COUNTIF(L65:L94,AD9) -> 1 | AF9: =AE9/(AG4-AE11) -> 0.03333333333 | AG9: =IF(AF9=0,0,(AF9*((LOG(AF9))/LOG(2)))) -> -0.1635630199 | AI9: =N9 -> 121 | AJ9: =COUNTIF(L95:L123,AI9) -> 1 | AK9: =AJ9/(AL4-AJ11) -> 0.03571428571 | AL9: =IF(AK9=0,0,(AK9*((LOG(AK9))/LOG(2)))) -> -0.1716912472 | AN9: =N9 -> 121 | AO9: =COUNTIF(L124:L152,AN9) -> 0 | AP9: =AO9/(AQ4-AO11) -> 0 | AQ9: =IF(AP9=0,0,(AP9*((LOG(AP9))/LOG(2)))) -> 0 | AS9: =N9 -> 121 | AT9: =COUNTIF(L153:L181,AS9) -> 0 | AU9: =AT9/(AV4-AT11) -> 0 | AV9: =IF(AU9=0,0,(AU9*((LOG(AU9))/LOG(2)))) -> 0
A10: 12 | B10: 411 | C10: 13 | D10: 420 | E10: 24 | F10: 425 | K10: 0 | L10: 112 | N10: 122 | O10: =COUNTIF($L$7:$L$500,N10) -> 44 | P10: =O10/$Q$4 -> 0.2528735632 | Q10: =IF(P10=0,0,(P10*((LOG(P10))/LOG(2)))) -> -0.5015777161 | T10: =N10 -> 122 | U10: =COUNTIF(L7:L35,T10) -> 12 | V10: =U10/(W4-U11) -> 0.4137931034 | W10: =IF(V10=0,0,(V10*((LOG(V10))/LOG(2)))) -> -0.5267662735 | Y10: =N10 -> 122 | Z10: =COUNTIF(L36:L64,Y10) -> 6 | AA10: =Z10/(AB4-Z11) -> 0.2068965517 | AB10: =IF(AA10=0,0,(AA10*((LOG(AA10))/LOG(2)))) -> -0.4702796885 | AD10: =N10 -> 122 | AE10: =COUNTIF(L65:L94,AD10) -> 9 | AF10: =AE10/(AG4-AE11) -> 0.3 | AG10: =IF(AF10=0,0,(AF10*((LOG(AF10))/LOG(2)))) -> -0.5210896782 | AI10: =N10 -> 122 | AJ10: =COUNTIF(L95:L123,AI10) -> 4 | AK10: =AJ10/(AL4-AJ11) -> 0.1428571429 | AL10: =IF(AK10=0,0,(AK10*((LOG(AK10))/LOG(2)))) -> -0.4010507032 | AN10: =N10 -> 122 | AO10: =COUNTIF(L124:L152,AN10) -> 7 | AP10: =AO10/(AQ4-AO11) -> 0.2413793103 | AQ10: =IF(AP10=0,0,(AP10*((LOG(AP10))/LOG(2)))) -> -0.4949787073 | AS10: =N10 -> 122 | AT10: =COUNTIF(L153:L181,AS10) -> 6 | AU10: =AT10/(AV4-AT11) -> 0.2142857143 | AV10: =IF(AU10=0,0,(AU10*((LOG(AU10))/LOG(2)))) -> -0.4762269474
A11: 12 | B11: 523 | C11: 24 | D11: 529 | E11: 24 | F11: 538 | K11: 0 | L11: 122 | N11: 211 | O11: =COUNTIF($L$7:$L$500,N11) -> 1 | P11: =O11/$Q$4 -> 0.005747126437 | Q11: =IF(P11=0,0,(P11*((LOG(P11))/LOG(2)))) -> -0.04277553733 | T11: =N11 -> 211 | U11: =COUNTIF(L7:L35,T11) -> 0 | Y11: =N11 -> 211 | Z11: =COUNTIF(L36:L64,Y11) -> 0 | AD11: =N11 -> 211 | AE11: =COUNTIF(L65:L94,AD11) -> 0 | AI11: =N11 -> 211 | AJ11: =COUNTIF(L95:L123,AI11) -> 1 | AN11: =N11 -> 211 | AO11: =COUNTIF(L124:L152,AN11) -> 0 | AS11: =N11 -> 211 | AT11: =COUNTIF(L153:L181,AS11) -> 0
A12: 12 | B12: 914 | C12: 24 | D12: 923 | E12: 24 | F12: 934 | K12: 0 | L12: 122 | N12: 212 | O12: =COUNTIF($L$7:$L$500,N12) -> 45 | P12: =O12/$Q$4 -> 0.2586206897 | Q12: =IF(P12=0,0,(P12*((LOG(P12))/LOG(2)))) -> -0.5045923447 | T12: =N12 -> 212 | U12: =COUNTIF(L7:L35,T12) -> 3 | V12: =U12/(W4-U11) -> 0.1034482759 | W12: =IF(V12=0,0,(V12*((LOG(V12))/LOG(2)))) -> -0.3385881201 | Y12: =N12 -> 212 | Z12: =COUNTIF(L36:L64,Y12) -> 6 | AA12: =Z12/(AB4-Z11) -> 0.2068965517 | AB12: =IF(AA12=0,0,(AA12*((LOG(AA12))/LOG(2)))) -> -0.4702796885 | AD12: =N12 -> 212 | AE12: =COUNTIF(L65:L94,AD12) -> 8 | AF12: =AE12/(AG4-AE11) -> 0.2666666667 | AG12: =IF(AF12=0,0,(AF12*((LOG(AF12))/LOG(2)))) -> -0.5085041588 | AI12: =N12 -> 212 | AJ12: =COUNTIF(L95:L123,AI12) -> 10 | AK12: =AJ12/(AL4-AJ11) -> 0.3571428571 | AL12: =IF(AK12=0,0,(AK12*((LOG(AK12))/LOG(2)))) -> -0.5305095811 | AN12: =N12 -> 212 | AO12: =COUNTIF(L124:L152,AN12) -> 7 | AP12: =AO12/(AQ4-AO11) -> 0.2413793103 | AQ12: =IF(AP12=0,0,(AP12*((LOG(AP12))/LOG(2)))) -> -0.4949787073 | AS12: =N12 -> 212 | AT12: =COUNTIF(L153:L181,AS12) -> 11 | AU12: =AT12/(AV4-AT11) -> 0.3928571429 | AV12: =IF(AU12=0,0,(AU12*((LOG(AU12))/LOG(2)))) -> -0.5295412978
A13: 21 | B13: 1110 | C13: 11 | D13: 1113 | E13: 22 | F13: 1115 | K13: 0 | L13: 212 | N13: 221 | O13: =COUNTIF($L$7:$L$500,N13) -> 20 | P13: =O13/$Q$4 -> 0.1149425287 | Q13: =IF(P13=0,0,(P13*((LOG(P13))/LOG(2)))) -> -0.3587374024 | T13: =N13 -> 221 | U13: =COUNTIF(L7:L35,T13) -> 3 | V13: =U13/(W4-U11) -> 0.1034482759 | W13: =IF(V13=0,0,(V13*((LOG(V13))/LOG(2)))) -> -0.3385881201 | Y13: =N13 -> 221 | Z13: =COUNTIF(L36:L64,Y13) -> 4 | AA13: =Z13/(AB4-Z11) -> 0.1379310345 | AB13: =IF(AA13=0,0,(AA13*((LOG(AA13))/LOG(2)))) -> -0.3942042752 | AD13: =N13 -> 221 | AE13: =COUNTIF(L65:L94,AD13) -> 3 | AF13: =AE13/(AG4-AE11) -> 0.1 | AG13: =IF(AF13=0,0,(AF13*((LOG(AF13))/LOG(2)))) -> -0.3321928095 | AI13: =N13 -> 221 | AJ13: =COUNTIF(L95:L123,AI13) -> 6 | AK13: =AJ13/(AL4-AJ11) -> 0.2142857143 | AL13: =IF(AK13=0,0,(AK13*((LOG(AK13))/LOG(2)))) -> -0.4762269474 | AN13: =N13 -> 221 | AO13: =COUNTIF(L124:L152,AN13) -> 3 | AP13: =AO13/(AQ4-AO11) -> 0.1034482759 | AQ13: =IF(AP13=0,0,(AP13*((LOG(AP13))/LOG(2)))) -> -0.3385881201 | AS13: =N13 -> 221 | AT13: =COUNTIF(L153:L181,AS13) -> 1 | AU13: =AT13/(AV4-AT11) -> 0.03571428571 | AV13: =IF(AU13=0,0,(AU13*((LOG(AU13))/LOG(2)))) -> -0.1716912472
A14: 12 | B14: 1209 | C14: 24 | D14: 1221 | E14: 13 | F14: 1224 | K14: 0 | L14: 121 | N14: 222 | O14: =COUNTIF($L$7:$L$500,N14) -> 48 | P14: =O14/$Q$4 -> 0.275862069 | Q14: =IF(P14=0,0,(P14*((LOG(P14))/LOG(2)))) -> -0.5125464814 | T14: =N14 -> 222 | U14: =COUNTIF(L7:L35,T14) -> 7 | V14: =U14/(W4-U11) -> 0.2413793103 | W14: =IF(V14=0,0,(V14*((LOG(V14))/LOG(2)))) -> -0.4949787073 | Y14: =N14 -> 222 | Z14: =COUNTIF(L36:L64,Y14) -> 8 | AA14: =Z14/(AB4-Z11) -> 0.275862069 | AB14: =IF(AA14=0,0,(AA14*((LOG(AA14))/LOG(2)))) -> -0.5125464814 | AD14: =N14 -> 222 | AE14: =COUNTIF(L65:L94,AD14) -> 8 | AF14: =AE14/(AG4-AE11) -> 0.2666666667 | AG14: =IF(AF14=0,0,(AF14*((LOG(AF14))/LOG(2)))) -> -0.5085041588 | AI14: =N14 -> 222 | AJ14: =COUNTIF(L95:L123,AI14) -> 6 | AK14: =AJ14/(AL4-AJ11) -> 0.2142857143 | AL14: =IF(AK14=0,0,(AK14*((LOG(AK14))/LOG(2)))) -> -0.4762269474 | AN14: =N14 -> 222 | AO14: =COUNTIF(L124:L152,AN14) -> 10 | AP14: =AO14/(AQ4-AO11) -> 0.3448275862 | AQ14: =IF(AP14=0,0,(AP14*((LOG(AP14))/LOG(2)))) -> -0.5296734139 | AS14: =N14 -> 222 | AT14: =COUNTIF(L153:L181,AS14) -> 9 | AU14: =AT14/(AV4-AT11) -> 0.3214285714 | AV14: =IF(AU14=0,0,(AU14*((LOG(AU14))/LOG(2)))) -> -0.5263167602
A15: 21 | B15: 1321 | C15: 11 | D15: 1327 | E15: 22 | F15: 1334 | K15: 0 | L15: 212 | P15: =SUM(P7:P14) -> 1 | Q15: =-SUM(Q7:Q14) -> 2.32877601 | V15: =SUM(V7:V14) -> 1 | W15: =-SUM(W7:W14) -> 2.231056531 | AA15: =SUM(AA7:AA14) -> 1 | AB15: =-SUM(AB7:AB14) -> 2.409030995 | AF15: =SUM(AF7:AF14) -> 1 | AG15: =-SUM(AG7:AG14) -> 2.197416845 | AK15: =SUM(AK7:AK14) -> 1 | AL15: =-SUM(AL7:AL14) -> 2.227396674 | AP15: =SUM(AP7:AP14) -> 1 | AQ15: =-SUM(AQ7:AQ14) -> 2.124286603 | AU15: =SUM(AU7:AU14) -> 1 | AV15: =-SUM(AV7:AV14) -> 1.8754675
A16: 21 | B16: 1507 | C16: 22 | D16: 1520 | E16: 24 | F16: 1527 | K16: 0 | L16: 222 | P16: U= | Q16: =Q15/(LOG(Q4)/LOG(2)) -> 0.3128837417 | V16: U1= | W16: =W15/(LOG(W4)/LOG(2)) -> 0.4592559199 | AA16: U2= | AB16: =AB15/(LOG(AB4)/LOG(2)) -> 0.4958913996 | AF16: U3= | AG16: =AG15/(LOG(AG4)/LOG(2)) -> 0.4478226694 | AK16: U4= | AL16: =AL15/(LOG(AL4)/LOG(2)) -> 0.4585025499 | AP16: U5= | AQ16: =AQ15/(LOG(AQ4)/LOG(2)) -> 0.4372776685 | AU16: U6= | AV16: =AV15/(LOG(AV4)/LOG(2)) -> 0.3901246174
A17: 21 | B17: 1634 | C17: 22 | D17: 1637 | E17: 13 | F17: 1643 | K17: 0 | L17: 221
A18: 21 | B18: 1748 | C18: 22 | D18: 1750 | E18: 24 | F18: 1754 | K18: 0 | L18: 222
A19: 12 | B19: 1848 | C19: 24 | D19: 1863 | E19: 13 | F19: 1866 | K19: 0 | L19: 121 | N19: Total Target Seq
A20: 21 | B20: 1960 | C20: 22 | D20: 1964 | E20: 24 | F20: 1969 | K20: 0 | L20: 222 | N20: =COUNTIF(L7:L181,G3) -> 1 | P20: 29 | Q20: 29 | R20: 30 | S20: 29 | T20: 29 | U20: 29
A21: 12 | B21: 2102 | C21: 24 | D21: 2106 | E21: 24 | F21: 2108 | K21: 0 | L21: 122 | P21: % of reinforcement given in 6 equal intervals based on number of trials
A22: 21 | B22: 2212 | C22: 22 | D22: 2216 | E22: 24 | F22: 2223 | K22: 0 | L22: 222 | P22: %_1 | Q22: %_2 | R22: %_3 | S22: %_4 | T22: %_5 | U22: %_6
A23: 21 | B23: 2329 | C23: 22 | D23: 2333 | E23: 13 | F23: 2336 | K23: 0 | L23: 221 | O23: target sequence | P23: =$G$3 -> 211 | Q23: =$G$3 -> 211 | R23: =$G$3 -> 211 | S23: =$G$3 -> 211 | T23: =$G$3 -> 211 | U23: =$G$3 -> 211
A24: 12 | B24: 2434 | C24: 13 | D24: 2444 | E24: 24 | F24: 2451 | K24: 0 | L24: 112 | O24: total reinforcement | P24: =U11 -> 0 | Q24: =Z11 -> 0 | R24: =AE11 -> 0 | S24: =AJ11 -> 1 | T24: =AO11 -> 0 | U24: =AT11 -> 0
A25: 12 | B25: 2545 | C25: 24 | D25: 2554 | E25: 24 | F25: 2562 | K25: 0 | L25: 122 | O25: % target
A26: 21 | B26: 2664 | C26: 22 | D26: 2668 | E26: 13 | F26: 2673 | K26: 0 | L26: 221 | O26: CCRF
A27: 12 | B27: 2768 | C27: 24 | D27: 2772 | E27: 24 | F27: 2778 | K27: 0 | L27: 122 | O27: % CCRf
A28: 12 | B28: 2873 | C28: 24 | D28: 2878 | E28: 24 | F28: 2880 | K28: 0 | L28: 122 | O28: average response rate | P28: =F35/P20 -> 137.7931034 | Q28: =(F64-F35)/Q20 -> 118.5862069 | R28: =(F94-F64)/R20 -> 145.9333333 | S28: =(F123-F94)/S20 -> 145.5862069 | T28: =(F152-F123)/T20 -> 133.8275862 | U28: =(F181-F152)/U20 -> -686.7586207
A29: 12 | B29: 2990 | C29: 24 | D29: 3003 | E29: 24 | F29: 3016 | K29: 0 | L29: 122
A30: 12 | B30: 3332 | C30: 24 | D30: 3353 | E30: 24 | F30: 3361 | K30: 0 | L30: 122
A31: 21 | B31: 3516 | C31: 22 | D31: 3520 | E31: 24 | F31: 3529 | K31: 0 | L31: 222
A32: 21 | B32: 3662 | C32: 11 | D32: 3667 | E32: 22 | F32: 3669 | K32: 0 | L32: 212
A33: 12 | B33: 3763 | C33: 24 | D33: 3770 | E33: 24 | F33: 3776 | K33: 0 | L33: 122
A34: 12 | B34: 3871 | C34: 24 | D34: 3883 | E34: 24 | F34: 3888 | K34: 0 | L34: 122
A35: 21 | B35: 3984 | C35: 22 | D35: 3989 | E35: 24 | F35: 3996 | K35: 0 | L35: 222
A36: 21 | B36: 4119 | C36: 22 | D36: 4128 | E36: 24 | F36: 4135 | K36: 0 | L36: 222
A37: 12 | B37: 4229 | C37: 24 | D37: 4237 | E37: 13 | F37: 4244 | K37: 0 | L37: 121
A38: 21 | B38: 4342 | C38: 22 | D38: 4350 | E38: 13 | F38: 4353 | K38: 0 | L38: 221
A39: 21 | B39: 4453 | C39: 11 | D39: 4459 | E39: 22 | F39: 4463 | K39: 0 | L39: 212
A40: 21 | B40: 4566 | C40: 22 | D40: 4570 | E40: 24 | F40: 4576 | K40: 0 | L40: 222
A41: 21 | B41: 4677 | C41: 22 | D41: 4680 | E41: 24 | F41: 4685 | K41: 0 | L41: 222
A42: 21 | B42: 4789 | C42: 11 | D42: 4794 | E42: 22 | F42: 4797 | K42: 0 | L42: 212
A43: 12 | B43: 4890 | C43: 13 | D43: 4898 | E43: 24 | F43: 4904 | K43: 0 | L43: 112
A44: 12 | B44: 5019 | C44: 24 | D44: 5028 | E44: 24 | F44: 5033 | K44: 0 | L44: 122
A45: 21 | B45: 5153 | C45: 22 | D45: 5159 | E45: 24 | F45: 5165 | K45: 0 | L45: 222
A46: 21 | B46: 5288 | C46: 11 | D46: 5290 | E46: 22 | F46: 5294 | K46: 0 | L46: 212
A47: 21 | B47: 5394 | C47: 22 | D47: 5398 | E47: 13 | F47: 5401 | K47: 0 | L47: 221
A48: 21 | B48: 5516 | C48: 22 | D48: 5521 | E48: 24 | F48: 5529 | K48: 0 | L48: 222
A49: 21 | B49: 5626 | C49: 22 | D49: 5630 | E49: 13 | F49: 5633 | K49: 0 | L49: 221
A50: 12 | B50: 5725 | C50: 24 | D50: 5738 | E50: 24 | F50: 5744 | K50: 0 | L50: 122
A51: 12 | B51: 5838 | C51: 24 | D51: 5845 | E51: 24 | F51: 5850 | K51: 0 | L51: 122
A52: 21 | B52: 5947 | C52: 22 | D52: 5956 | E52: 24 | F52: 5963 | K52: 0 | L52: 222
A53: 12 | B53: 6062 | C53: 24 | D53: 6067 | E53: 24 | F53: 6072 | K53: 0 | L53: 122
A54: 12 | B54: 6175 | C54: 24 | D54: 6182 | E54: 24 | F54: 6186 | K54: 0 | L54: 122
A55: 12 | B55: 6290 | C55: 24 | D55: 6294 | E55: 24 | F55: 6298 | K55: 0 | L55: 122
A56: 12 | B56: 6397 | C56: 24 | D56: 6402 | E56: 13 | F56: 6406 | K56: 0 | L56: 121
A57: 21 | B57: 6525 | C57: 11 | D57: 6533 | E57: 22 | F57: 6541 | K57: 0 | L57: 212
A58: 21 | B58: 6781 | C58: 11 | D58: 6784 | E58: 22 | F58: 6788 | K58: 0 | L58: 212
A59: 21 | B59: 6888 | C59: 22 | D59: 6892 | E59: 24 | F59: 6898 | K59: 0 | L59: 222
A60: 21 | B60: 6996 | C60: 22 | D60: 7000 | E60: 13 | F60: 7004 | K60: 0 | L60: 221
A61: 12 | B61: 7099 | C61: 24 | D61: 7101 | E61: 13 | F61: 7111 | K61: 0 | L61: 121
A62: 21 | B62: 7208 | C62: 11 | D62: 7211 | E62: 22 | F62: 7216 | K62: 0 | L62: 212
A63: 12 | B63: 7309 | C63: 24 | D63: 7316 | E63: 13 | F63: 7321 | K63: 0 | L63: 121
A64: 21 | B64: 7421 | C64: 22 | D64: 7428 | E64: 24 | F64: 7435 | K64: 0 | L64: 222
A65: 21 | B65: 7534 | C65: 22 | D65: 7537 | E65: 24 | F65: 7543 | K65: 0 | L65: 222
A66: 21 | B66: 7645 | C66: 22 | D66: 7649 | E66: 24 | F66: 7657 | K66: 0 | L66: 222
A67: 12 | B67: 7750 | C67: 24 | D67: 7754 | E67: 24 | F67: 7762 | K67: 0 | L67: 122
A68: 12 | B68: 7856 | C68: 24 | D68: 7859 | E68: 24 | F68: 7863 | K68: 0 | L68: 122
A69: 21 | B69: 7959 | C69: 22 | D69: 7963 | E69: 13 | F69: 7965 | K69: 0 | L69: 221
A70: 21 | B70: 8465 | C70: 11 | D70: 8467 | E70: 22 | F70: 8484 | K70: 0 | L70: 212
A71: 21 | B71: 8623 | C71: 11 | D71: 8628 | E71: 22 | F71: 8635 | K71: 0 | L71: 212
A72: 21 | B72: 8836 | C72: 11 | D72: 8839 | E72: 22 | F72: 8849 | K72: 0 | L72: 212
A73: 12 | B73: 8955 | C73: 24 | D73: 8960 | E73: 24 | F73: 8964 | K73: 0 | L73: 122
A74: 21 | B74: 9072 | C74: 22 | D74: 9077 | E74: 24 | F74: 9084 | K74: 0 | L74: 222
A75: 12 | B75: 9176 | C75: 24 | D75: 9183 | E75: 24 | F75: 9184 | K75: 0 | L75: 122
A76: 21 | B76: 9301 | C76: 22 | D76: 9306 | E76: 13 | F76: 9310 | K76: 0 | L76: 221
A77: 21 | B77: 9431 | C77: 11 | D77: 9437 | E77: 22 | F77: 9440 | K77: 0 | L77: 212
A78: 21 | B78: 9760 | C78: 11 | D78: 9761 | E78: 22 | F78: 9773 | K78: 0 | L78: 212
A79: 21 | B79: 9923 | C79: 22 | D79: 9927 | E79: 24 | F79: 9933 | K79: 0 | L79: 222
A80: 21 | B80: 10037 | C80: 22 | D80: 10042 | E80: 24 | F80: 10050 | K80: 0 | L80: 222
A81: 12 | B81: 10149 | C81: 13 | D81: 10153 | E81: 24 | F81: 10160 | K81: 0 | L81: 112
A82: 21 | B82: 10279 | C82: 11 | D82: 10285 | E82: 22 | F82: 10291 | K82: 0 | L82: 212
A83: 12 | B83: 10385 | C83: 24 | D83: 10390 | E83: 24 | F83: 10394 | K83: 0 | L83: 122
A84: 12 | B84: 10490 | C84: 24 | D84: 10497 | E84: 24 | F84: 10502 | K84: 0 | L84: 122
A85: 12 | B85: 10603 | C85: 24 | D85: 10614 | E85: 24 | F85: 10622 | K85: 0 | L85: 122
A86: 12 | B86: 10714 | C86: 24 | D86: 10717 | E86: 13 | F86: 10720 | K86: 0 | L86: 121
A87: 21 | B87: 10826 | C87: 22 | D87: 10831 | E87: 24 | F87: 10837 | K87: 0 | L87: 222
A88: 21 | B88: 10945 | C88: 22 | D88: 10955 | E88: 24 | F88: 10963 | K88: 0 | L88: 222
A89: 12 | B89: 11059 | C89: 24 | D89: 11064 | E89: 24 | F89: 11071 | K89: 0 | L89: 122
A90: 12 | B90: 11160 | C90: 24 | D90: 11169 | E90: 24 | F90: 11176 | K90: 0 | L90: 122
A91: 21 | B91: 11332 | C91: 11 | D91: 11336 | E91: 22 | F91: 11343 | K91: 0 | L91: 212
A92: 21 | B92: 11449 | C92: 22 | D92: 11456 | E92: 24 | F92: 11464 | K92: 0 | L92: 222
A93: 21 | B93: 11579 | C93: 22 | D93: 11591 | E93: 13 | F93: 11597 | K93: 0 | L93: 221
A94: 21 | B94: 11803 | C94: 11 | D94: 11808 | E94: 22 | F94: 11813 | K94: 0 | L94: 212
A95: 21 | B95: 11910 | C95: 11 | D95: 11914 | E95: 22 | F95: 11920 | K95: 0 | L95: 212
A96: 21 | B96: 12082 | C96: 11 | D96: 12093 | E96: 22 | F96: 12096 | K96: 0 | L96: 212
A97: 21 | B97: 12199 | C97: 11 | D97: 12201 | E97: 22 | F97: 12204 | K97: 0 | L97: 212
A98: 21 | B98: 12308 | C98: 11 | D98: 12313 | E98: 22 | F98: 12318 | K98: 0 | L98: 212
A99: 21 | B99: 12419 | C99: 11 | D99: 12425 | E99: 22 | F99: 12427 | K99: 0 | L99: 212
A100: 21 | B100: 12618 | C100: 22 | D100: 12621 | E100: 13 | F100: 12623 | K100: 0 | L100: 221
A101: 21 | B101: 12713 | C101: 11 | D101: 12719 | E101: 22 | F101: 12726 | K101: 0 | L101: 212
A102: 21 | B102: 12873 | C102: 22 | D102: 12883 | E102: 24 | F102: 12890 | K102: 0 | L102: 222
A103: 21 | B103: 12999 | C103: 11 | D103: 13003 | E103: 22 | F103: 13010 | K103: 0 | L103: 212
A104: 21 | B104: 13106 | C104: 22 | D104: 13112 | E104: 24 | F104: 13116 | K104: 0 | L104: 222
A105: 12 | B105: 13218 | C105: 24 | D105: 13220 | E105: 24 | F105: 13225 | K105: 0 | L105: 122
A106: 12 | B106: 13320 | C106: 13 | D106: 13324 | E106: 24 | F106: 13326 | K106: 0 | L106: 112
A107: 21 | B107: 13419 | C107: 22 | D107: 13423 | E107: 13 | F107: 13428 | K107: 0 | L107: 221
A108: 21 | B108: 13570 | C108: 22 | D108: 13576 | E108: 13 | F108: 13579 | K108: 0 | L108: 221
A109: 12 | B109: 13672 | C109: 24 | D109: 13684 | E109: 13 | F109: 13688 | K109: 0 | L109: 121
A110: 21 | B110: 13789 | C110: 22 | D110: 13795 | E110: 24 | F110: 13800 | K110: 0 | L110: 222
A111: 21 | B111: 13892 | C111: 22 | D111: 13895 | E111: 24 | F111: 13900 | K111: 0 | L111: 222
A112: 21 | B112: 14024 | C112: 22 | D112: 14027 | E112: 13 | F112: 14032 | K112: 0 | L112: 221
A113: 21 | B113: 14201 | C113: 11 | D113: 14206 | E113: 22 | F113: 14212 | K113: 0 | L113: 212
A114: 21 | B114: 14341 | C114: 11 | D114: 14345 | E114: 22 | F114: 14354 | K114: 0 | L114: 212
A115: 12 | B115: 14582 | C115: 24 | D115: 14588 | E115: 24 | F115: 14599 | K115: 0 | L115: 122
A116: 21 | B116: 14700 | C116: 22 | D116: 14705 | E116: 13 | F116: 14707 | K116: 0 | L116: 221
A117: 21 | B117: 14934 | C117: 11 | D117: 14940 | E117: 11 | F117: 14946 | K117: 0 | L117: 211
A118: 21 | B118: 15381 | C118: 11 | D118: 15386 | E118: 22 | F118: 15395 | K118: 0 | L118: 212
A119: 21 | B119: 15511 | C119: 22 | D119: 15533 | E119: 24 | F119: 15542 | K119: 0 | L119: 222
A120: 21 | B120: 15699 | C120: 22 | D120: 15708 | E120: 13 | F120: 15712 | K120: 0 | L120: 221
A121: 21 | B121: 15815 | C121: 22 | D121: 15820 | E121: 24 | F121: 15827 | K121: 0 | L121: 222
A122: 12 | B122: 15922 | C122: 24 | D122: 15926 | E122: 24 | F122: 15930 | K122: 0 | L122: 122
A123: 12 | B123: 16022 | C123: 24 | D123: 16030 | E123: 24 | F123: 16035 | K123: 0 | L123: 122
A124: 21 | B124: 16136 | C124: 22 | D124: 16140 | E124: 13 | F124: 16142 | K124: 0 | L124: 221
A125: 12 | B125: 16237 | C125: 24 | D125: 16243 | E125: 24 | F125: 16250 | K125: 0 | L125: 122
A126: 21 | B126: 16357 | C126: 22 | D126: 16362 | E126: 24 | F126: 16367 | K126: 0 | L126: 222
A127: 21 | B127: 16467 | C127: 11 | D127: 16470 | E127: 22 | F127: 16476 | K127: 0 | L127: 212
A128: 21 | B128: 16590 | C128: 22 | D128: 16594 | E128: 24 | F128: 16601 | K128: 0 | L128: 222
A129: 21 | B129: 16757 | C129: 22 | D129: 16768 | E129: 24 | F129: 16775 | K129: 0 | L129: 222
A130: 12 | B130: 16913 | C130: 24 | D130: 16925 | E130: 24 | F130: 16930 | K130: 0 | L130: 122
A131: 12 | B131: 17031 | C131: 24 | D131: 17033 | E131: 24 | F131: 17038 | K131: 0 | L131: 122
A132: 21 | B132: 17145 | C132: 22 | D132: 17149 | E132: 24 | F132: 17154 | K132: 0 | L132: 222
A133: 12 | B133: 17247 | C133: 13 | D133: 17253 | E133: 24 | F133: 17255 | K133: 0 | L133: 112
A134: 12 | B134: 17346 | C134: 13 | D134: 17356 | E134: 24 | F134: 17359 | K134: 0 | L134: 112
A135: 21 | B135: 17465 | C135: 22 | D135: 17475 | E135: 13 | F135: 17482 | K135: 0 | L135: 221
A136: 12 | B136: 17574 | C136: 24 | D136: 17582 | E136: 24 | F136: 17589 | K136: 0 | L136: 122
A137: 21 | B137: 17813 | C137: 11 | D137: 17821 | E137: 22 | F137: 17831 | K137: 0 | L137: 212
A138: 21 | B138: 18092 | C138: 11 | D138: 18099 | E138: 22 | F138: 18101 | K138: 0 | L138: 212
A139: 21 | B139: 18205 | C139: 11 | D139: 18214 | E139: 22 | F139: 18226 | K139: 0 | L139: 212
A140: 21 | B140: 18391 | C140: 11 | D140: 18398 | E140: 22 | F140: 18404 | K140: 0 | L140: 212
A141: 21 | B141: 18509 | C141: 22 | D141: 18513 | E141: 13 | F141: 18517 | K141: 0 | L141: 221
A142: 21 | B142: 18615 | C142: 22 | D142: 18619 | E142: 24 | F142: 18624 | K142: 0 | L142: 222
A143: 21 | B143: 18725 | C143: 22 | D143: 18731 | E143: 24 | F143: 18736 | K143: 0 | L143: 222
A144: 12 | B144: 18828 | C144: 24 | D144: 18841 | E144: 24 | F144: 18845 | K144: 0 | L144: 122
A145: 21 | B145: 18946 | C145: 11 | D145: 18951 | E145: 22 | F145: 18953 | K145: 0 | L145: 212
A146: 21 | B146: 19051 | C146: 22 | D146: 19057 | E146: 24 | F146: 19065 | K146: 0 | L146: 222
A147: 21 | B147: 19166 | C147: 22 | D147: 19173 | E147: 24 | F147: 19180 | K147: 0 | L147: 222
A148: 12 | B148: 19273 | C148: 24 | D148: 19282 | E148: 24 | F148: 19285 | K148: 0 | L148: 122
A149: 21 | B149: 19387 | C149: 22 | D149: 19393 | E149: 24 | F149: 19399 | K149: 0 | L149: 222
A150: 12 | B150: 19492 | C150: 24 | D150: 19506 | E150: 24 | F150: 19510 | K150: 0 | L150: 122
A151: 21 | B151: 19665 | C151: 22 | D151: 19673 | E151: 24 | F151: 19679 | K151: 0 | L151: 222
A152: 21 | B152: 19899 | C152: 11 | D152: 19908 | E152: 22 | F152: 19916 | K152: 0 | L152: 212
A153: 21 | B153: 20014 | C153: 11 | D153: 20017 | E153: 22 | F153: 20023 | K153: 0 | L153: 212
A154: 21 | B154: 20126 | C154: 22 | D154: 20133 | E154: 24 | F154: 20139 | K154: 0 | L154: 222
A155: 21 | B155: 20237 | C155: 11 | D155: 20241 | E155: 22 | F155: 20247 | K155: 0 | L155: 212
A156: 21 | B156: 20342 | C156: 22 | D156: 20347 | E156: 24 | F156: 20354 | K156: 0 | L156: 222
A157: 21 | B157: 20452 | C157: 22 | D157: 20460 | E157: 24 | F157: 20466 | K157: 0 | L157: 222
A158: 21 | B158: 20562 | C158: 22 | D158: 20568 | E158: 24 | F158: 20572 | K158: 0 | L158: 222
A159: 21 | B159: 20718 | C159: 11 | D159: 20725 | E159: 22 | F159: 20732 | K159: 0 | L159: 212
A160: 21 | B160: 20832 | C160: 11 | D160: 20836 | E160: 22 | F160: 20840 | K160: 0 | L160: 212
A161: 12 | B161: 20940 | C161: 24 | D161: 20945 | E161: 24 | F161: 20951 | K161: 0 | L161: 122
A162: 21 | B162: 21092 | C162: 11 | D162: 21095 | E162: 22 | F162: 21102 | K162: 0 | L162: 212
A163: 12 | B163: 21314 | C163: 24 | D163: 21326 | E163: 24 | F163: 21332 | K163: 0 | L163: 122
A164: 12 | B164: 21428 | C164: 13 | D164: 21431 | E164: 24 | F164: 21433 | K164: 0 | L164: 112
A165: 21 | B165: 21539 | C165: 11 | D165: 21547 | E165: 22 | F165: 21559 | K165: 0 | L165: 212
A166: 21 | B166: 21856 | C166: 11 | D166: 21864 | E166: 22 | F166: 21876 | K166: 0 | L166: 212
A167: 21 | B167: 22288 | C167: 11 | D167: 22293 | E167: 22 | F167: 22301 | K167: 0 | L167: 212
A168: 12 | B168: 22395 | C168: 24 | D168: 22402 | E168: 24 | F168: 22408 | K168: 0 | L168: 122
A169: 21 | B169: 22503 | C169: 22 | D169: 22508 | E169: 24 | F169: 22514 | K169: 0 | L169: 222
A170: 21 | B170: 22618 | C170: 22 | D170: 22623 | E170: 24 | F170: 22628 | K170: 0 | L170: 222
A171: 21 | B171: 22761 | C171: 11 | D171: 22769 | E171: 22 | F171: 22777 | K171: 0 | L171: 212
A172: 21 | B172: 22931 | C172: 11 | D172: 22939 | E172: 22 | F172: 22941 | K172: 0 | L172: 212
A173: 21 | B173: 23044 | C173: 22 | D173: 23051 | E173: 24 | F173: 23059 | K173: 0 | L173: 222
A174: 21 | B174: 23157 | C174: 22 | D174: 23163 | E174: 24 | F174: 23170 | K174: 0 | L174: 222
A175: 12 | B175: 23263 | C175: 24 | D175: 23272 | E175: 24 | F175: 23280 | K175: 0 | L175: 122
A176: 12 | B176: 23374 | C176: 24 | D176: 23385 | E176: 24 | F176: 23390 | K176: 0 | L176: 122
A177: 21 | B177: 23502 | C177: 22 | D177: 23507 | E177: 13 | F177: 23511 | K177: 0 | L177: 221
A178: 21 | B178: 23667 | C178: 11 | D178: 23670 | E178: 22 | F178: 23678 | K178: 0 | L178: 212
A179: 12 | B179: 23771 | C179: 24 | D179: 23783 | E179: 24 | F179: 23789 | K179: 0 | L179: 122
A180: 21 | B180: 23890 | C180: 22 | D180: 23894 | E180: 24 | F180: 23901 | K180: 0 | L180: 222
A181: 21 | B181: 23999 | L181: 2

Sheet !N206A30.Gus
A1: Report for:!N206A30.Gus
A2: Date: | B2: <date>
A3: Hen: | B3: <hen> | F3: Correct Sequence | G3: =Start!J2 -> 211 | P3: Total Sequences in Data | Q3: =4994-COUNTBLANK(L7:L5000) -> 184 | V3: Total Sequences in Block Data | W3: =COUNTA(L7:L37) -> 31 | AA3: Total Sequences in Block Data | AB3: =COUNTA(L38:L67) -> 30 | AF3: Total Sequences in Block Data | AG3: =COUNTA(L68:L98) -> 31 | AK3: Total Sequences in Block Data | AL3: =COUNTA(L99:L129) -> 31 | AP3: Total Sequences in Block Data | AQ3: =COUNTA(L130:L159) -> 30 | AU3: Total Sequences in Block Data | AV3: =COUNTA(L160:L190) -> 31
P4: Total Sequences in Summary | Q4: =SUM(O7:O14) -> 184 | V4: Total Sequences in Block Summary | W4: =SUM(U7:U14) -> 31 | AA4: Total Sequences in Block Summary | AB4: =SUM(Z7:Z14) -> 30 | AF4: Total Sequences in Block Summary | AG4: =SUM(AE7:AE14) -> 31 | AK4: Total Sequences in Block Summary | AL4: =SUM(AJ7:AJ14) -> 31 | AP4: Total Sequences in Block Summary | AQ4: =SUM(AO7:AO14) -> 30 | AU4: Total Sequences in Block Summary | AV4: =SUM(AT7:AT14) -> 31
T5: Block 1 | Y5: Block 2 | AD5: Block 3 | AI5: Block 4 | AN5: Block 5 | AS5: Block 6
A6: Sequence Component 1 | B6: Time 1 | C6: Sequence Component 2 | D6: Time 2 | E6: Sequence Component 3 | F6: Time 3 | G6: Sequence Component 4 | H6: Time 4 | I6: Sequence Component 5 | J6: Time 5 | K6: Correct? 0=No 1=Yes | L6: Sequence | N6: Frequency | P6: Relative Frequency | Q6: Variability | T6: Frequency | V6: Relative Frequency | W6: Variability | Y6: Frequency | AA6: Relative Frequency | AB6: Variability | AD6: Frequency | AF6: Relative Frequency | AG6: Variability | AI6: Frequency | AK6: Relative Frequency | AL6: Variability | AN6: Frequency | AP6: Relative Frequency | AQ6: Variability | AS6: Frequency | AU6: Relative Frequency | AV6: Variability
A7: 12 | B7: 78 | C7: 24 | D7: 91 | E7: 24 | F7: 97 | K7: 0 | L7: 122 | N7: 111 | O7: =COUNTIF($L$7:$L$500,N7) -> 1 | P7: =O7/$Q$4 -> 0.005434782609 | Q7: =IF(P7=0,0,(P7*((LOG(P7))/LOG(2)))) -> -0.04088892367 | T7: =N7 -> 111 | U7: =COUNTIF(L7:L37,T7) -> 1 | V7: =U7/(W4-U11) -> 0.03225806452 | W7: =IF(V7=0,0,(V7*((LOG(V7))/LOG(2)))) -> -0.1598127842 | Y7: =N7 -> 111 | Z7: =COUNTIF(L38:L67,Y7) -> 0 | AA7: =Z7/(AB4-Z11) -> 0 | AB7: =IF(AA7=0,0,(AA7*((LOG(AA7))/LOG(2)))) -> 0 | AD7: =N7 -> 111 | AE7: =COUNTIF(L68:L98,AD7) -> 0 | AF7: =AE7/(AG4-AE11) -> 0 | AG7: =IF(AF7=0,0,(AF7*((LOG(AF7))/LOG(2)))) -> 0 | AI7: =N7 -> 111 | AJ7: =COUNTIF(L99:L129,AI7) -> 0 | AK7: =AJ7/(AL4-AJ11) -> 0 | AL7: =IF(AK7=0,0,(AK7*((LOG(AK7))/LOG(2)))) -> 0 | AN7: =N7 -> 111 | AO7: =COUNTIF(L130:L159,AN7) -> 0 | AP7: =AO7/(AQ4-AO11) -> 0 | AQ7: =IF(AP7=0,0,(AP7*((LOG(AP7))/LOG(2)))) -> 0 | AS7: =N7 -> 111 | AT7: =COUNTIF(L160:L190,AS7) -> 0 | AU7: =AT7/(AV4-AT11) -> 0 | AV7: =IF(AU7=0,0,(AU7*((LOG(AU7))/LOG(2)))) -> 0
A8: 12 | B8: 193 | C8: 24 | D8: 196 | E8: 24 | F8: 198 | K8: 0 | L8: 122 | N8: 112 | O8: =COUNTIF($L$7:$L$500,N8) -> 2 | P8: =O8/$Q$4 -> 0.01086956522 | Q8: =IF(P8=0,0,(P8*((LOG(P8))/LOG(2)))) -> -0.07090828213 | T8: =N8 -> 112 | U8: =COUNTIF(L7:L37,T8) -> 1 | V8: =U8/(W4-U11) -> 0.03225806452 | W8: =IF(V8=0,0,(V8*((LOG(V8))/LOG(2)))) -> -0.1598127842 | Y8: =N8 -> 112 | Z8: =COUNTIF(L38:L67,Y8) -> 1 | AA8: =Z8/(AB4-Z11) -> 0.03448275862 | AB8: =IF(AA8=0,0,(AA8*((LOG(AA8))/LOG(2)))) -> -0.167516586 | AD8: =N8 -> 112 | AE8: =COUNTIF(L68:L98,AD8) -> 0 | AF8: =AE8/(AG4-AE11) -> 0 | AG8: =IF(AF8=0,0,(AF8*((LOG(AF8))/LOG(2)))) -> 0 | AI8: =N8 -> 112 | AJ8: =COUNTIF(L99:L129,AI8) -> 0 | AK8: =AJ8/(AL4-AJ11) -> 0 | AL8: =IF(AK8=0,0,(AK8*((LOG(AK8))/LOG(2)))) -> 0 | AN8: =N8 -> 112 | AO8: =COUNTIF(L130:L159,AN8) -> 0 | AP8: =AO8/(AQ4-AO11) -> 0 | AQ8: =IF(AP8=0,0,(AP8*((LOG(AP8))/LOG(2)))) -> 0 | AS8: =N8 -> 112 | AT8: =COUNTIF(L160:L190,AS8) -> 0 | AU8: =AT8/(AV4-AT11) -> 0 | AV8: =IF(AU8=0,0,(AU8*((LOG(AU8))/LOG(2)))) -> 0
A9: 12 | B9: 294 | C9: 24 | D9: 298 | E9: 24 | F9: 312 | K9: 0 | L9: 122 | N9: 121 | O9: =COUNTIF($L$7:$L$500,N9) -> 2 | P9: =O9/$Q$4 -> 0.01086956522 | Q9: =IF(P9=0,0,(P9*((LOG(P9))/LOG(2)))) -> -0.07090828213 | T9: =N9 -> 121 | U9: =COUNTIF(L7:L37,T9) -> 0 | V9: =U9/(W4-U11) -> 0 | W9: =IF(V9=0,0,(V9*((LOG(V9))/LOG(2)))) -> 0 | Y9: =N9 -> 121 | Z9: =COUNTIF(L38:L67,Y9) -> 0 | AA9: =Z9/(AB4-Z11) -> 0 | AB9: =IF(AA9=0,0,(AA9*((LOG(AA9))/LOG(2)))) -> 0 | AD9: =N9 -> 121 | AE9: =COUNTIF(L68:L98,AD9) -> 0 | AF9: =AE9/(AG4-AE11) -> 0 | AG9: =IF(AF9=0,0,(AF9*((LOG(AF9))/LOG(2)))) -> 0 | AI9: =N9 -> 121 | AJ9: =COUNTIF(L99:L129,AI9) -> 1 | AK9: =AJ9/(AL4-AJ11) -> 0.03225806452 | AL9: =IF(AK9=0,0,(AK9*((LOG(AK9))/LOG(2)))) -> -0.1598127842 | AN9: =N9 -> 121 | AO9: =COUNTIF(L130:L159,AN9) -> 1 | AP9: =AO9/(AQ4-AO11) -> 0.03333333333 | AQ9: =IF(AP9=0,0,(AP9*((LOG(AP9))/LOG(2)))) -> -0.1635630199 | AS9: =N9 -> 121 | AT9: =COUNTIF(L160:L190,AS9) -> 0 | AU9: =AT9/(AV4-AT11) -> 0 | AV9: =IF(AU9=0,0,(AU9*((LOG(AU9))/LOG(2)))) -> 0
A10: 12 | B10: 412 | C10: 24 | D10: 417 | E10: 24 | F10: 420 | K10: 0 | L10: 122 | N10: 122 | O10: =COUNTIF($L$7:$L$500,N10) -> 45 | P10: =O10/$Q$4 -> 0.2445652174 | Q10: =IF(P10=0,0,(P10*((LOG(P10))/LOG(2)))) -> -0.496885319 | T10: =N10 -> 122 | U10: =COUNTIF(L7:L37,T10) -> 14 | V10: =U10/(W4-U11) -> 0.4516129032 | W10: =IF(V10=0,0,(V10*((LOG(V10))/LOG(2)))) -> -0.5179283689 | Y10: =N10 -> 122 | Z10: =COUNTIF(L38:L67,Y10) -> 11 | AA10: =Z10/(AB4-Z11) -> 0.3793103448 | AB10: =IF(AA10=0,0,(AA10*((LOG(AA10))/LOG(2)))) -> -0.5304842463 | AD10: =N10 -> 122 | AE10: =COUNTIF(L68:L98,AD10) -> 4 | AF10: =AE10/(AG4-AE11) -> 0.1290322581 | AG10: =IF(AF10=0,0,(AF10*((LOG(AF10))/LOG(2)))) -> -0.3811866207 | AI10: =N10 -> 122 | AJ10: =COUNTIF(L99:L129,AI10) -> 5 | AK10: =AJ10/(AL4-AJ11) -> 0.1612903226 | AL10: =IF(AK10=0,0,(AK10*((LOG(AK10))/LOG(2)))) -> -0.4245593896 | AN10: =N10 -> 122 | AO10: =COUNTIF(L130:L159,AN10) -> 7 | AP10: =AO10/(AQ4-AO11) -> 0.2333333333 | AQ10: =IF(AP10=0,0,(AP10*((LOG(AP10))/LOG(2)))) -> -0.4898916572 | AS10: =N10 -> 122 | AT10: =COUNTIF(L160:L190,AS10) -> 4 | AU10: =AT10/(AV4-AT11) -> 0.1290322581 | AV10: =IF(AU10=0,0,(AU10*((LOG(AU10))/LOG(2)))) -> -0.3811866207
A11: 21 | B11: 522 | C11: 11 | D11: 524 | E11: 22 | F11: 525 | K11: 0 | L11: 212 | N11: 211 | O11: =COUNTIF($L$7:$L$500,N11) -> 1 | P11: =O11/$Q$4 -> 0.005434782609 | Q11: =IF(P11=0,0,(P11*((LOG(P11))/LOG(2)))) -> -0.04088892367 | T11: =N11 -> 211 | U11: =COUNTIF(L7:L37,T11) -> 0 | Y11: =N11 -> 211 | Z11: =COUNTIF(L38:L67,Y11) -> 1 | AD11: =N11 -> 211 | AE11: =COUNTIF(L68:L98,AD11) -> 0 | AI11: =N11 -> 211 | AJ11: =COUNTIF(L99:L129,AI11) -> 0 | AN11: =N11 -> 211 | AO11: =COUNTIF(L130:L159,AN11) -> 0 | AS11: =N11 -> 211 | AT11: =COUNTIF(L160:L190,AS11) -> 0
A12: 12 | B12: 622 | C12: 24 | D12: 633 | E12: 24 | F12: 644 | K12: 0 | L12: 122 | N12: 212 | O12: =COUNTIF($L$7:$L$500,N12) -> 35 | P12: =O12/$Q$4 -> 0.1902173913 | Q12: =IF(P12=0,0,(P12*((LOG(P12))/LOG(2)))) -> -0.4554334939 | T12: =N12 -> 212 | U12: =COUNTIF(L7:L37,T12) -> 6 | V12: =U12/(W4-U11) -> 0.1935483871 | W12: =IF(V12=0,0,(V12*((LOG(V12))/LOG(2)))) -> -0.4585613825 | Y12: =N12 -> 212 | Z12: =COUNTIF(L38:L67,Y12) -> 5 | AA12: =Z12/(AB4-Z11) -> 0.1724137931 | AB12: =IF(AA12=0,0,(AA12*((LOG(AA12))/LOG(2)))) -> -0.4372505 | AD12: =N12 -> 212 | AE12: =COUNTIF(L68:L98,AD12) -> 11 | AF12: =AE12/(AG4-AE11) -> 0.3548387097 | AG12: =IF(AF12=0,0,(AF12*((LOG(AF12))/LOG(2)))) -> -0.5304003745 | AI12: =N12 -> 212 | AJ12: =COUNTIF(L99:L129,AI12) -> 5 | AK12: =AJ12/(AL4-AJ11) -> 0.1612903226 | AL12: =IF(AK12=0,0,(AK12*((LOG(AK12))/LOG(2)))) -> -0.4245593896 | AN12: =N12 -> 212 | AO12: =COUNTIF(L130:L159,AN12) -> 3 | AP12: =AO12/(AQ4-AO11) -> 0.1 | AQ12: =IF(AP12=0,0,(AP12*((LOG(AP12))/LOG(2)))) -> -0.3321928095 | AS12: =N12 -> 212 | AT12: =COUNTIF(L160:L190,AS12) -> 5 | AU12: =AT12/(AV4-AT11) -> 0.1612903226 | AV12: =IF(AU12=0,0,(AU12*((LOG(AU12))/LOG(2)))) -> -0.4245593896
A13: 12 | B13: 752 | C13: 13 | D13: 761 | E13: 13 | F13: 767 | K13: 0 | L13: 111 | N13: 221 | O13: =COUNTIF($L$7:$L$500,N13) -> 23 | P13: =O13/$Q$4 -> 0.125 | Q13: =IF(P13=0,0,(P13*((LOG(P13))/LOG(2)))) -> -0.375 | T13: =N13 -> 221 | U13: =COUNTIF(L7:L37,T13) -> 5 | V13: =U13/(W4-U11) -> 0.1612903226 | W13: =IF(V13=0,0,(V13*((LOG(V13))/LOG(2)))) -> -0.4245593896 | Y13: =N13 -> 221 | Z13: =COUNTIF(L38:L67,Y13) -> 4 | AA13: =Z13/(AB4-Z11) -> 0.1379310345 | AB13: =IF(AA13=0,0,(AA13*((LOG(AA13))/LOG(2)))) -> -0.3942042752 | AD13: =N13 -> 221 | AE13: =COUNTIF(L68:L98,AD13) -> 4 | AF13: =AE13/(AG4-AE11) -> 0.1290322581 | AG13: =IF(AF13=0,0,(AF13*((LOG(AF13))/LOG(2)))) -> -0.3811866207 | AI13: =N13 -> 221 | AJ13: =COUNTIF(L99:L129,AI13) -> 3 | AK13: =AJ13/(AL4-AJ11) -> 0.09677419355 | AL13: =IF(AK13=0,0,(AK13*((LOG(AK13))/LOG(2)))) -> -0.3260548848 | AN13: =N13 -> 221 | AO13: =COUNTIF(L130:L159,AN13) -> 5 | AP13: =AO13/(AQ4-AO11) -> 0.1666666667 | AQ13: =IF(AP13=0,0,(AP13*((LOG(AP13))/LOG(2)))) -> -0.4308270835 | AS13: =N13 -> 221 | AT13: =COUNTIF(L160:L190,AS13) -> 2 | AU13: =AT13/(AV4-AT11) -> 0.06451612903 | AV13: =IF(AU13=0,0,(AU13*((LOG(AU13))/LOG(2)))) -> -0.2551094394
A14: 12 | B14: 860 | C14: 13 | D14: 872 | E14: 24 | F14: 886 | K14: 0 | L14: 112 | N14: 222 | O14: =COUNTIF($L$7:$L$500,N14) -> 75 | P14: =O14/$Q$4 -> 0.4076086957 | Q14: =IF(P14=0,0,(P14*((LOG(P14))/LOG(2)))) -> -0.5277486137 | T14: =N14 -> 222 | U14: =COUNTIF(L7:L37,T14) -> 4 | V14: =U14/(W4-U11) -> 0.1290322581 | W14: =IF(V14=0,0,(V14*((LOG(V14))/LOG(2)))) -> -0.3811866207 | Y14: =N14 -> 222 | Z14: =COUNTIF(L38:L67,Y14) -> 8 | AA14: =Z14/(AB4-Z11) -> 0.275862069 | AB14: =IF(AA14=0,0,(AA14*((LOG(AA14))/LOG(2)))) -> -0.5125464814 | AD14: =N14 -> 222 | AE14: =COUNTIF(L68:L98,AD14) -> 12 | AF14: =AE14/(AG4-AE11) -> 0.3870967742 | AG14: =IF(AF14=0,0,(AF14*((LOG(AF14))/LOG(2)))) -> -0.5300259908 | AI14: =N14 -> 222 | AJ14: =COUNTIF(L99:L129,AI14) -> 17 | AK14: =AJ14/(AL4-AJ11) -> 0.5483870968 | AL14: =IF(AK14=0,0,(AK14*((LOG(AK14))/LOG(2)))) -> -0.4753054508 | AN14: =N14 -> 222 | AO14: =COUNTIF(L130:L159,AN14) -> 14 | AP14: =AO14/(AQ4-AO11) -> 0.4666666667 | AQ14: =IF(AP14=0,0,(AP14*((LOG(AP14))/LOG(2)))) -> -0.5131166477 | AS14: =N14 -> 222 | AT14: =COUNTIF(L160:L190,AS14) -> 20 | AU14: =AT14/(AV4-AT11) -> 0.6451612903 | AV14: =IF(AU14=0,0,(AU14*((LOG(AU14))/LOG(2)))) -> -0.4079149777
A15: 12 | B15: 1045 | C15: 24 | D15: 1059 | E15: 24 | F15: 1065 | K15: 0 | L15: 122 | P15: =SUM(P7:P14) -> 1 | Q15: =-SUM(Q7:Q14) -> 2.078661838 | V15: =SUM(V7:V14) -> 1 | W15: =-SUM(W7:W14) -> 2.10186133 | AA15: =SUM(AA7:AA14) -> 1 | AB15: =-SUM(AB7:AB14) -> 2.042002089 | AF15: =SUM(AF7:AF14) -> 1 | AG15: =-SUM(AG7:AG14) -> 1.822799607 | AK15: =SUM(AK7:AK14) -> 1 | AL15: =-SUM(AL7:AL14) -> 1.810291899 | AP15: =SUM(AP7:AP14) -> 1 | AQ15: =-SUM(AQ7:AQ14) -> 1.929591218 | AU15: =SUM(AU7:AU14) -> 1 | AV15: =-SUM(AV7:AV14) -> 1.468770427
A16: 21 | B16: 1542 | C16: 11 | D16: 1547 | E16: 22 | F16: 1551 | K16: 0 | L16: 212 | P16: U= | Q16: =Q15/(LOG(Q4)/LOG(2)) -> 0.2762869303 | V16: U1= | W16: =W15/(LOG(W4)/LOG(2)) -> 0.4242587896 | AA16: U2= | AB16: =AB15/(LOG(AB4)/LOG(2)) -> 0.4161499119 | AF16: U3= | AG16: =AG15/(LOG(AG4)/LOG(2)) -> 0.3679304356 | AK16: U4= | AL16: =AL15/(LOG(AL4)/LOG(2)) -> 0.3654057663 | AP16: U5= | AQ16: =AQ15/(LOG(AQ4)/LOG(2)) -> 0.3932411331 | AU16: U6= | AV16: =AV15/(LOG(AV4)/LOG(2)) -> 0.2964699692
A17: 21 | B17: 1652 | C17: 11 | D17: 1661 | E17: 22 | F17: 1668 | K17: 0 | L17: 212
A18: 21 | B18: 1786 | C18: 11 | D18: 1788 | E18: 22 | F18: 1792 | K18: 0 | L18: 212
A19: 12 | B19: 1886 | C19: 24 | D19: 1890 | E19: 24 | F19: 1897 | K19: 0 | L19: 122 | N19: Total Target Seq
A20: 12 | B20: 1990 | C20: 24 | D20: 2000 | E20: 24 | F20: 2002 | K20: 0 | L20: 122 | N20: =COUNTIF(L7:L190,G3) -> 1 | P20: 31 | Q20: 30 | R20: 31 | S20: 31 | T20: 30 | U20: 31
A21: 21 | B21: 2099 | C21: 22 | D21: 2105 | E21: 24 | F21: 2120 | K21: 0 | L21: 222 | P21: % of reinforcement given in 6 equal intervals based on number of trials
A22: 21 | B22: 2217 | C22: 11 | D22: 2221 | E22: 22 | F22: 2228 | K22: 0 | L22: 212 | P22: %_1 | Q22: %_2 | R22: %_3 | S22: %_4 | T22: %_5 | U22: %_6
A23: 21 | B23: 2404 | C23: 11 | D23: 2412 | E23: 22 | F23: 2419 | K23: 0 | L23: 212 | O23: target sequence | P23: =$G$3 -> 211 | Q23: =$G$3 -> 211 | R23: =$G$3 -> 211 | S23: =$G$3 -> 211 | T23: =$G$3 -> 211 | U23: =$G$3 -> 211
A24: 21 | B24: 2561 | C24: 22 | D24: 2564 | E24: 13 | F24: 2566 | K24: 0 | L24: 221 | O24: total reinforcement | P24: =U11 -> 0 | Q24: =Z11 -> 1 | R24: =AE11 -> 0 | S24: =AJ11 -> 0 | T24: =AO11 -> 0 | U24: =AT11 -> 0
A25: 12 | B25: 2669 | C25: 24 | D25: 2676 | E25: 24 | F25: 2683 | K25: 0 | L25: 122 | O25: % target
A26: 21 | B26: 2782 | C26: 22 | D26: 2787 | E26: 13 | F26: 2790 | K26: 0 | L26: 221 | O26: CCRF
A27: 12 | B27: 2884 | C27: 24 | D27: 2889 | E27: 24 | F27: 2895 | K27: 0 | L27: 122 | O27: % CCRf
A28: 21 | B28: 2986 | C28: 22 | D28: 2992 | E28: 24 | F28: 3001 | K28: 0 | L28: 222 | O28: average response rate | P28: =F37/P20 -> 131.3870968 | Q28: =(F67-F37)/Q20 -> 129.5 | R28: =(F98-F67)/R20 -> 127.8709677 | S28: =(F129-F98)/S20 -> 115.1935484 | T28: =(F159-F129)/T20 -> 138.0666667 | U28: =(F190-F159)/U20 -> 137.5483871
A29: 21 | B29: 3183 | C29: 22 | D29: 3188 | E29: 13 | F29: 3189 | K29: 0 | L29: 221
A30: 12 | B30: 3305 | C30: 24 | D30: 3312 | E30: 24 | F30: 3317 | K30: 0 | L30: 122
A31: 21 | B31: 3419 | C31: 22 | D31: 3423 | E31: 13 | F31: 3427 | K31: 0 | L31: 221
A32: 21 | B32: 3528 | C32: 22 | D32: 3533 | E32: 24 | F32: 3539 | K32: 0 | L32: 222
A33: 12 | B33: 3637 | C33: 24 | D33: 3640 | E33: 24 | F33: 3646 | K33: 0 | L33: 122
A34: 21 | B34: 3752 | C34: 22 | D34: 3759 | E34: 24 | F34: 3767 | K34: 0 | L34: 222
A35: 12 | B35: 3867 | C35: 24 | D35: 3871 | E35: 24 | F35: 3876 | K35: 0 | L35: 122
A36: 12 | B36: 3970 | C36: 24 | D36: 3974 | E36: 24 | F36: 3980 | K36: 0 | L36: 122
A37: 21 | B37: 4067 | C37: 22 | D37: 4069 | E37: 13 | F37: 4073 | K37: 0 | L37: 221
A38: 21 | B38: 4236 | C38: 11 | D38: 4240 | E38: 22 | F38: 4247 | K38: 0 | L38: 212
A39: 21 | B39: 4350 | C39: 11 | D39: 4354 | E39: 22 | F39: 4360 | K39: 0 | L39: 212
A40: 21 | B40: 4471 | C40: 22 | D40: 4475 | E40: 24 | F40: 4480 | K40: 0 | L40: 222
A41: 12 | B41: 4583 | C41: 24 | D41: 4591 | E41: 24 | F41: 4597 | K41: 0 | L41: 122
A42: 12 | B42: 4690 | C42: 24 | D42: 4700 | E42: 24 | F42: 4705 | K42: 0 | L42: 122
A43: 12 | B43: 4798 | C43: 24 | D43: 4809 | E43: 24 | F43: 4812 | K43: 0 | L43: 122
A44: 12 | B44: 4904 | C44: 24 | D44: 4920 | E44: 24 | F44: 4924 | K44: 0 | L44: 122
A45: 12 | B45: 5017 | C45: 13 | D45: 5028 | E45: 24 | F45: 5033 | K45: 0 | L45: 112
A46: 12 | B46: 5131 | C46: 24 | D46: 5134 | E46: 24 | F46: 5144 | K46: 0 | L46: 122
A47: 12 | B47: 5243 | C47: 24 | D47: 5253 | E47: 24 | F47: 5260 | K47: 0 | L47: 122
A48: 21 | B48: 5361 | C48: 22 | D48: 5366 | E48: 13 | F48: 5369 | K48: 0 | L48: 221
A49: 21 | B49: 5465 | C49: 11 | D49: 5474 | E49: 22 | F49: 5475 | K49: 0 | L49: 212
A50: 21 | B50: 5595 | C50: 11 | D50: 5598 | E50: 22 | F50: 5604 | K50: 0 | L50: 212
A51: 21 | B51: 5755 | C51: 22 | D51: 5761 | E51: 24 | F51: 5768 | K51: 0 | L51: 222
A52: 12 | B52: 5862 | C52: 24 | D52: 5869 | E52: 24 | F52: 5874 | K52: 0 | L52: 122
A53: 21 | B53: 5976 | C53: 22 | D53: 5978 | E53: 13 | F53: 5983 | K53: 0 | L53: 221
A54: 21 | B54: 6093 | C54: 11 | D54: 6095 | E54: 22 | F54: 6100 | K54: 0 | L54: 212
A55: 12 | B55: 6194 | C55: 24 | D55: 6196 | E55: 24 | F55: 6202 | K55: 0 | L55: 122
A56: 12 | B56: 6309 | C56: 24 | D56: 6314 | E56: 24 | F56: 6324 | K56: 0 | L56: 122
A57: 21 | B57: 6428 | C57: 22 | D57: 6432 | E57: 24 | F57: 6437 | K57: 0 | L57: 222
A58: 21 | B58: 6541 | C58: 22 | D58: 6545 | E58: 24 | F58: 6551 | K58: 0 | L58: 222
A59: 21 | B59: 6660 | C59: 22 | D59: 6667 | E59: 24 | F59: 6673 | K59: 0 | L59: 222
A60: 21 | B60: 6782 | C60: 22 | D60: 6787 | E60: 13 | F60: 6794 | K60: 0 | L60: 221
A61: 21 | B61: 6891 | C61: 22 | D61: 6893 | E61: 24 | F61: 6898 | K61: 0 | L61: 222
A62: 21 | B62: 7044 | C62: 11 | D62: 7050 | E62: 11 | F62: 7054 | K62: 0 | L62: 211
A63: 21 | B63: 7482 | C63: 22 | D63: 7494 | E63: 24 | F63: 7511 | K63: 0 | L63: 222
A64: 21 | B64: 7620 | C64: 22 | D64: 7628 | E64: 24 | F64: 7634 | K64: 0 | L64: 222
A65: 21 | B65: 7740 | C65: 22 | D65: 7742 | E65: 13 | F65: 7748 | K65: 0 | L65: 221
A66: 12 | B66: 7844 | C66: 24 | D66: 7848 | E66: 24 | F66: 7852 | K66: 0 | L66: 122
A67: 12 | B67: 7953 | C67: 24 | D67: 7955 | E67: 24 | F67: 7958 | K67: 0 | L67: 122
A68: 12 | B68: 8087 | C68: 24 | D68: 8090 | E68: 24 | F68: 8095 | K68: 0 | L68: 122
A69: 21 | B69: 8193 | C69: 22 | D69: 8197 | E69: 24 | F69: 8203 | K69: 0 | L69: 222
A70: 21 | B70: 8304 | C70: 11 | D70: 8307 | E70: 22 | F70: 8309 | K70: 0 | L70: 212
A71: 12 | B71: 8404 | C71: 24 | D71: 8411 | E71: 24 | F71: 8421 | K71: 0 | L71: 122
A72: 12 | B72: 8513 | C72: 24 | D72: 8525 | E72: 24 | F72: 8529 | K72: 0 | L72: 122
A73: 21 | B73: 8628 | C73: 22 | D73: 8631 | E73: 24 | F73: 8642 | K73: 0 | L73: 222
A74: 21 | B74: 8808 | C74: 11 | D74: 8813 | E74: 22 | F74: 8822 | K74: 0 | L74: 212
A75: 21 | B75: 9009 | C75: 22 | D75: 9018 | E75: 13 | F75: 9020 | K75: 0 | L75: 221
A76: 21 | B76: 9120 | C76: 22 | D76: 9127 | E76: 24 | F76: 9134 | K76: 0 | L76: 222
A77: 21 | B77: 9233 | C77: 22 | D77: 9239 | E77: 24 | F77: 9245 | K77: 0 | L77: 222
A78: 21 | B78: 9392 | C78: 22 | D78: 9405 | E78: 24 | F78: 9413 | K78: 0 | L78: 222
A79: 21 | B79: 9516 | C79: 11 | D79: 9520 | E79: 22 | F79: 9522 | K79: 0 | L79: 212
A80: 21 | B80: 9636 | C80: 22 | D80: 9640 | E80: 24 | F80: 9646 | K80: 0 | L80: 222
A81: 21 | B81: 9748 | C81: 22 | D81: 9754 | E81: 24 | F81: 9756 | K81: 0 | L81: 222
A82: 21 | B82: 9855 | C82: 11 | D82: 9859 | E82: 22 | F82: 9861 | K82: 0 | L82: 212
A83: 21 | B83: 9958 | C83: 22 | D83: 9960 | E83: 24 | F83: 9964 | K83: 0 | L83: 222
A84: 21 | B84: 10097 | C84: 11 | D84: 10105 | E84: 22 | F84: 10108 | K84: 0 | L84: 212
A85: 21 | B85: 10223 | C85: 22 | D85: 10225 | E85: 24 | F85: 10230 | K85: 0 | L85: 222
A86: 21 | B86: 10406 | C86: 11 | D86: 10410 | E86: 22 | F86: 10412 | K86: 0 | L86: 212
A87: 21 | B87: 10526 | C87: 11 | D87: 10530 | E87: 22 | F87: 10532 | K87: 0 | L87: 212
A88: 21 | B88: 10645 | C88: 11 | D88: 10653 | E88: 22 | F88: 10658 | K88: 0 | L88: 212
A89: 21 | B89: 10762 | C89: 22 | D89: 10771 | E89: 13 | F89: 10781 | K89: 0 | L89: 221
A90: 21 | B90: 10905 | C90: 11 | D90: 10909 | E90: 22 | F90: 10915 | K90: 0 | L90: 212
A91: 21 | B91: 11011 | C91: 22 | D91: 11017 | E91: 13 | F91: 11020 | K91: 0 | L91: 221
A92: 12 | B92: 11233 | C92: 24 | D92: 11238 | E92: 24 | F92: 11243 | K92: 0 | L92: 122
A93: 21 | B93: 11351 | C93: 22 | D93: 11354 | E93: 24 | F93: 11359 | K93: 0 | L93: 222
A94: 21 | B94: 11454 | C94: 11 | D94: 11457 | E94: 22 | F94: 11464 | K94: 0 | L94: 212
A95: 21 | B95: 11559 | C95: 11 | D95: 11573 | E95: 22 | F95: 11581 | K95: 0 | L95: 212
A96: 21 | B96: 11684 | C96: 22 | D96: 11688 | E96: 24 | F96: 11693 | K96: 0 | L96: 222
A97: 21 | B97: 11796 | C97: 22 | D97: 11803 | E97: 13 | F97: 11808 | K97: 0 | L97: 221
A98: 21 | B98: 11908 | C98: 22 | D98: 11914 | E98: 24 | F98: 11922 | K98: 0 | L98: 222
A99: 21 | B99: 12029 | C99: 22 | D99: 12034 | E99: 24 | F99: 12041 | K99: 0 | L99: 222
A100: 21 | B100: 12155 | C100: 22 | D100: 12166 | E100: 24 | F100: 12177 | K100: 0 | L100: 222
A101: 21 | B101: 12277 | C101: 22 | D101: 12283 | E101: 24 | F101: 12290 | K101: 0 | L101: 222
A102: 21 | B102: 12403 | C102: 11 | D102: 12405 | E102: 22 | F102: 12411 | K102: 0 | L102: 212
A103: 21 | B103: 12509 | C103: 22 | D103: 12511 | E103: 24 | F103: 12516 | K103: 0 | L103: 222
A104: 21 | B104: 12632 | C104: 22 | D104: 12642 | E104: 24 | F104: 12649 | K104: 0 | L104: 222
A105: 21 | B105: 12758 | C105: 22 | D105: 12767 | E105: 24 | F105: 12773 | K105: 0 | L105: 222
A106: 12 | B106: 12865 | C106: 24 | D106: 12870 | E106: 24 | F106: 12872 | K106: 0 | L106: 122
A107: 21 | B107: 12969 | C107: 22 | D107: 12973 | E107: 24 | F107: 12979 | K107: 0 | L107: 222
A108: 21 | B108: 13078 | C108: 22 | D108: 13081 | E108: 24 | F108: 13094 | K108: 0 | L108: 222
A109: 12 | B109: 13185 | C109: 24 | D109: 13198 | E109: 24 | F109: 13205 | K109: 0 | L109: 122
A110: 21 | B110: 13302 | C110: 22 | D110: 13307 | E110: 24 | F110: 13320 | K110: 0 | L110: 222
A111: 21 | B111: 13442 | C111: 22 | D111: 13452 | E111: 24 | F111: 13458 | K111: 0 | L111: 222
A112: 21 | B112: 13563 | C112: 22 | D112: 13567 | E112: 13 | F112: 13569 | K112: 0 | L112: 221
A113: 21 | B113: 13673 | C113: 22 | D113: 13679 | E113: 24 | F113: 13686 | K113: 0 | L113: 222
A114: 21 | B114: 13786 | C114: 22 | D114: 13790 | E114: 13 | F114: 13796 | K114: 0 | L114: 221
A115: 21 | B115: 13898 | C115: 22 | D115: 13901 | E115: 24 | F115: 13907 | K115: 0 | L115: 222
A116: 21 | B116: 13997 | C116: 11 | D116: 14000 | E116: 22 | F116: 14007 | K116: 0 | L116: 212
A117: 21 | B117: 14132 | C117: 11 | D117: 14136 | E117: 22 | F117: 14137 | K117: 0 | L117: 212
A118: 12 | B118: 14238 | C118: 24 | D118: 14240 | E118: 24 | F118: 14246 | K118: 0 | L118: 122
A119: 12 | B119: 14345 | C119: 24 | D119: 14349 | E119: 13 | F119: 14353 | K119: 0 | L119: 121
A120: 21 | B120: 14449 | C120: 11 | D120: 14454 | E120: 22 | F120: 14456 | K120: 0 | L120: 212
A121: 21 | B121: 14555 | C121: 22 | D121: 14562 | E121: 24 | F121: 14568 | K121: 0 | L121: 222
A122: 21 | B122: 14692 | C122: 22 | D122: 14701 | E122: 13 | F122: 14705 | K122: 0 | L122: 221
A123: 21 | B123: 14806 | C123: 22 | D123: 14812 | E123: 24 | F123: 14819 | K123: 0 | L123: 222
A124: 21 | B124: 14923 | C124: 11 | D124: 14929 | E124: 22 | F124: 14935 | K124: 0 | L124: 212
A125: 21 | B125: 15035 | C125: 22 | D125: 15040 | E125: 24 | F125: 15060 | K125: 0 | L125: 222
A126: 21 | B126: 15159 | C126: 22 | D126: 15164 | E126: 24 | F126: 15167 | K126: 0 | L126: 222
A127: 12 | B127: 15267 | C127: 24 | D127: 15270 | E127: 24 | F127: 15274 | K127: 0 | L127: 122
A128: 12 | B128: 15367 | C128: 24 | D128: 15374 | E128: 24 | F128: 15378 | K128: 0 | L128: 122
A129: 21 | B129: 15483 | C129: 22 | D129: 15487 | E129: 24 | F129: 15493 | K129: 0 | L129: 222
A130: 21 | B130: 15585 | C130: 22 | D130: 15590 | E130: 13 | F130: 15595 | K130: 0 | L130: 221
A131: 21 | B131: 15716 | C131: 22 | D131: 15724 | E131: 13 | F131: 15728 | K131: 0 | L131: 221
A132: 21 | B132: 15890 | C132: 22 | D132: 15899 | E132: 24 | F132: 15906 | K132: 0 | L132: 222
A133: 21 | B133: 16005 | C133: 22 | D133: 16008 | E133: 24 | F133: 16015 | K133: 0 | L133: 222
A134: 12 | B134: 16115 | C134: 24 | D134: 16118 | E134: 24 | F134: 16123 | K134: 0 | L134: 122
A135: 21 | B135: 16228 | C135: 11 | D135: 16231 | E135: 22 | F135: 16233 | K135: 0 | L135: 212
A136: 21 | B136: 16331 | C136: 22 | D136: 16338 | E136: 24 | F136: 16344 | K136: 0 | L136: 222
A137: 12 | B137: 16438 | C137: 24 | D137: 16463 | E137: 24 | F137: 16469 | K137: 0 | L137: 122
A138: 21 | B138: 16567 | C138: 22 | D138: 16572 | E138: 13 | F138: 16580 | K138: 0 | L138: 221
A139: 21 | B139: 16712 | C139: 22 | D139: 16717 | E139: 24 | F139: 16730 | K139: 0 | L139: 222
A140: 12 | B140: 16831 | C140: 24 | D140: 16836 | E140: 24 | F140: 16849 | K140: 0 | L140: 122
A141: 21 | B141: 16948 | C141: 22 | D141: 16953 | E141: 24 | F141: 16955 | K141: 0 | L141: 222
A142: 21 | B142: 17052 | C142: 22 | D142: 17055 | E142: 24 | F142: 17062 | K142: 0 | L142: 222
A143: 12 | B143: 17153 | C143: 24 | D143: 17173 | E143: 24 | F143: 17179 | K143: 0 | L143: 122
A144: 12 | B144: 17271 | C144: 24 | D144: 17281 | E144: 24 | F144: 17285 | K144: 0 | L144: 122
A145: 12 | B145: 17384 | C145: 24 | D145: 17394 | E145: 24 | F145: 17400 | K145: 0 | L145: 122
A146: 21 | B146: 17499 | C146: 22 | D146: 17506 | E146: 24 | F146: 17512 | K146: 0 | L146: 222
A147: 12 | B147: 17623 | C147: 24 | D147: 17631 | E147: 13 | F147: 17641 | K147: 0 | L147: 121
A148: 21 | B148: 18181 | C148: 22 | D148: 18196 | E148: 24 | F148: 18203 | K148: 0 | L148: 222
A149: 21 | B149: 18306 | C149: 22 | D149: 18321 | E149: 24 | F149: 18327 | K149: 0 | L149: 222
A150: 21 | B150: 18427 | C150: 22 | D150: 18432 | E150: 24 | F150: 18437 | K150: 0 | L150: 222
A151: 21 | B151: 18542 | C151: 22 | D151: 18548 | E151: 24 | F151: 18555 | K151: 0 | L151: 222
A152: 21 | B152: 18676 | C152: 22 | D152: 18681 | E152: 13 | F152: 18686 | K152: 0 | L152: 221
A153: 21 | B153: 18832 | C153: 11 | D153: 18839 | E153: 22 | F153: 18845 | K153: 0 | L153: 212
A154: 21 | B154: 18945 | C154: 22 | D154: 18950 | E154: 24 | F154: 18956 | K154: 0 | L154: 222
A155: 12 | B155: 19059 | C155: 24 | D155: 19064 | E155: 24 | F155: 19071 | K155: 0 | L155: 122
A156: 21 | B156: 19200 | C156: 11 | D156: 19204 | E156: 22 | F156: 19205 | K156: 0 | L156: 212
A157: 21 | B157: 19389 | C157: 22 | D157: 19399 | E157: 24 | F157: 19407 | K157: 0 | L157: 222
A158: 21 | B158: 19518 | C158: 22 | D158: 19523 | E158: 24 | F158: 19529 | K158: 0 | L158: 222
A159: 21 | B159: 19627 | C159: 22 | D159: 19631 | E159: 13 | F159: 19635 | K159: 0 | L159: 221
A160: 12 | B160: 19729 | C160: 24 | D160: 19742 | E160: 24 | F160: 19750 | K160: 0 | L160: 122
A161: 21 | B161: 19848 | C161: 22 | D161: 19850 | E161: 24 | F161: 19856 | K161: 0 | L161: 222
A162: 21 | B162: 19958 | C162: 22 | D162: 19962 | E162: 24 | F162: 19967 | K162: 0 | L162: 222
A163: 21 | B163: 20130 | C163: 22 | D163: 20137 | E163: 24 | F163: 20147 | K163: 0 | L163: 222
A164: 21 | B164: 20319 | C164: 22 | D164: 20324 | E164: 24 | F164: 20330 | K164: 0 | L164: 222
A165: 21 | B165: 20437 | C165: 22 | D165: 20442 | E165: 24 | F165: 20447 | K165: 0 | L165: 222
A166: 21 | B166: 20555 | C166: 22 | D166: 20561 | E166: 24 | F166: 20568 | K166: 0 | L166: 222
A167: 21 | B167: 20669 | C167: 22 | D167: 20677 | E167: 24 | F167: 20683 | K167: 0 | L167: 222
A168: 21 | B168: 20793 | C168: 22 | D168: 20802 | E168: 13 | F168: 20807 | K168: 0 | L168: 221
A169: 21 | B169: 20921 | C169: 11 | D169: 20936 | E169: 22 | F169: 20938 | K169: 0 | L169: 212
A170: 21 | B170: 21040 | C170: 11 | D170: 21048 | E170: 22 | F170: 21054 | K170: 0 | L170: 212
A171: 21 | B171: 21154 | C171: 22 | D171: 21159 | E171: 13 | F171: 21162 | K171: 0 | L171: 221
A172: 12 | B172: 21256 | C172: 24 | D172: 21264 | E172: 24 | F172: 21267 | K172: 0 | L172: 122
A173: 21 | B173: 21377 | C173: 22 | D173: 21381 | E173: 24 | F173: 21386 | K173: 0 | L173: 222
A174: 21 | B174: 21485 | C174: 11 | D174: 21488 | E174: 22 | F174: 21491 | K174: 0 | L174: 212
A175: 12 | B175: 21584 | C175: 24 | D175: 21593 | E175: 24 | F175: 21598 | K175: 0 | L175: 122
A176: 12 | B176: 21698 | C176: 24 | D176: 21701 | E176: 24 | F176: 21707 | K176: 0 | L176: 122
A177: 21 | B177: 21809 | C177: 22 | D177: 21813 | E177: 24 | F177: 21820 | K177: 0 | L177: 222
A178: 21 | B178: 21922 | C178: 22 | D178: 21924 | E178: 24 | F178: 21928 | K178: 0 | L178: 222
A179: 21 | B179: 22031 | C179: 22 | D179: 22037 | E179: 24 | F179: 22044 | K179: 0 | L179: 222
A180: 21 | B180: 22144 | C180: 22 | D180: 22148 | E180: 24 | F180: 22155 | K180: 0 | L180: 222
A181: 21 | B181: 22539 | C181: 22 | D181: 22550 | E181: 24 | F181: 22556 | K181: 0 | L181: 222
A182: 21 | B182: 22744 | C182: 22 | D182: 22765 | E182: 24 | F182: 22774 | K182: 0 | L182: 222
A183: 21 | B183: 22884 | C183: 11 | D183: 22890 | E183: 22 | F183: 22897 | K183: 0 | L183: 212
A184: 21 | B184: 23037 | C184: 22 | D184: 23044 | E184: 24 | F184: 23051 | K184: 0 | L184: 222
A185: 21 | B185: 23232 | C185: 22 | D185: 23237 | E185: 24 | F185: 23253 | K185: 0 | L185: 222
A186: 21 | B186: 23426 | C186: 22 | D186: 23434 | E186: 24 | F186: 23443 | K186: 0 | L186: 222
A187: 21 | B187: 23543 | C187: 11 | D187: 23549 | E187: 22 | F187: 23553 | K187: 0 | L187: 212
A188: 21 | B188: 23660 | C188: 22 | D188: 23664 | E188: 24 | F188: 23670 | K188: 0 | L188: 222
A189: 21 | B189: 23773 | C189: 22 | D189: 23784 | E189: 24 | F189: 23792 | K189: 0 | L189: 222
A190: 21 | B190: 23892 | C190: 22 | D190: 23895 | E190: 24 | F190: 23899 | K190: 0 | L190: 222

Sheet !N207A10.Gus
A1: Report for:!N207A10.Gus
A2: Date: | B2: <date>
A3: Hen: | B3: <hen> | F3: Correct Sequence | G3: =Start!J2 -> 211 | P3: Total Sequences in Data | Q3: =4994-COUNTBLANK(L7:L5000) -> 189 | V3: Total Sequences in Block Data | W3: =COUNTA(L7:L38) -> 32 | AA3: Total Sequences in Block Data | AB3: =COUNTA(L39:L69) -> 31 | AF3: Total Sequences in Block Data | AG3: =COUNTA(L70:L101) -> 32 | AK3: Total Sequences in Block Data | AL3: =COUNTA(L102:L132) -> 31 | AP3: Total Sequences in Block Data | AQ3: =COUNTA(L133:L164) -> 32 | AU3: Total Sequences in Block Data | AV3: =COUNTA(L165:L195) -> 31
P4: Total Sequences in Summary | Q4: =SUM(O7:O14) -> 189 | V4: Total Sequences in Block Summary | W4: =SUM(U7:U14) -> 32 | AA4: Total Sequences in Block Summary | AB4: =SUM(Z7:Z14) -> 31 | AF4: Total Sequences in Block Summary | AG4: =SUM(AE7:AE14) -> 32 | AK4: Total Sequences in Block Summary | AL4: =SUM(AJ7:AJ14) -> 31 | AP4: Total Sequences in Block Summary | AQ4: =SUM(AO7:AO14) -> 32 | AU4: Total Sequences in Block Summary | AV4: =SUM(AT7:AT14) -> 31
T5: Block 1 | Y5: Block 2 | AD5: Block 3 | AI5: Block 4 | AN5: Block 5 | AS5: Block 6
A6: Sequence Component 1 | B6: Time 1 | C6: Sequence Component 2 | D6: Time 2 | E6: Sequence Component 3 | F6: Time 3 | G6: Sequence Component 4 | H6: Time 4 | I6: Sequence Component 5 | J6: Time 5 | K6: Correct? 0=No 1=Yes | L6: Sequence | N6: Frequency | P6: Relative Frequency | Q6: Variability | T6: Frequency | V6: Relative Frequency | W6: Variability | Y6: Frequency | AA6: Relative Frequency | AB6: Variability | AD6: Frequency | AF6: Relative Frequency | AG6: Variability | AI6: Frequency | AK6: Relative Frequency | AL6: Variability | AN6: Frequency | AP6: Relative Frequency | AQ6: Variability | AS6: Frequency | AU6: Relative Frequency | AV6: Variability
A7: 12 | B7: 29 | C7: 13 | D7: 51 | E7: 24 | F7: 54 | K7: 0 | L7: 112 | N7: 111 | O7: =COUNTIF($L$7:$L$500,N7) -> 1 | P7: =O7/$Q$4 -> 0.005291005291 | Q7: =IF(P7=0,0,(P7*((LOG(P7))/LOG(2)))) -> -0.04001186468 | T7: =N7 -> 111 | U7: =COUNTIF(L7:L38,T7) -> 1 | V7: =U7/(W4-U11) -> 0.03125 | W7: =IF(V7=0,0,(V7*((LOG(V7))/LOG(2)))) -> -0.15625 | Y7: =N7 -> 111 | Z7: =COUNTIF(L39:L69,Y7) -> 0 | AA7: =Z7/(AB4-Z11) -> 0 | AB7: =IF(AA7=0,0,(AA7*((LOG(AA7))/LOG(2)))) -> 0 | AD7: =N7 -> 111 | AE7: =COUNTIF(L70:L101,AD7) -> 0 | AF7: =AE7/(AG4-AE11) -> 0 | AG7: =IF(AF7=0,0,(AF7*((LOG(AF7))/LOG(2)))) -> 0 | AI7: =N7 -> 111 | AJ7: =COUNTIF(L102:L132,AI7) -> 0 | AK7: =AJ7/(AL4-AJ11) -> 0 | AL7: =IF(AK7=0,0,(AK7*((LOG(AK7))/LOG(2)))) -> 0 | AN7: =N7 -> 111 | AO7: =COUNTIF(L133:L164,AN7) -> 0 | AP7: =AO7/(AQ4-AO11) -> 0 | AQ7: =IF(AP7=0,0,(AP7*((LOG(AP7))/LOG(2)))) -> 0 | AS7: =N7 -> 111 | AT7: =COUNTIF(L165:L195,AS7) -> 0 | AU7: =AT7/(AV4-AT11) -> 0 | AV7: =IF(AU7=0,0,(AU7*((LOG(AU7))/LOG(2)))) -> 0
A8: 12 | B8: 155 | C8: 24 | D8: 162 | E8: 24 | F8: 167 | K8: 0 | L8: 122 | N8: 112 | O8: =COUNTIF($L$7:$L$500,N8) -> 3 | P8: =O8/$Q$4 -> 0.01587301587 | Q8: =IF(P8=0,0,(P8*((LOG(P8))/LOG(2)))) -> -0.0948774591 | T8: =N8 -> 112 | U8: =COUNTIF(L7:L38,T8) -> 2 | V8: =U8/(W4-U11) -> 0.0625 | W8: =IF(V8=0,0,(V8*((LOG(V8))/LOG(2)))) -> -0.25 | Y8: =N8 -> 112 | Z8: =COUNTIF(L39:L69,Y8) -> 0 | AA8: =Z8/(AB4-Z11) -> 0 | AB8: =IF(AA8=0,0,(AA8*((LOG(AA8))/LOG(2)))) -> 0 | AD8: =N8 -> 112 | AE8: =COUNTIF(L70:L101,AD8) -> 1 | AF8: =AE8/(AG4-AE11) -> 0.03125 | AG8: =IF(AF8=0,0,(AF8*((LOG(AF8))/LOG(2)))) -> -0.15625 | AI8: =N8 -> 112 | AJ8: =COUNTIF(L102:L132,AI8) -> 0 | AK8: =AJ8/(AL4-AJ11) -> 0 | AL8: =IF(AK8=0,0,(AK8*((LOG(AK8))/LOG(2)))) -> 0 | AN8: =N8 -> 112 | AO8: =COUNTIF(L133:L164,AN8) -> 0 | AP8: =AO8/(AQ4-AO11) -> 0 | AQ8: =IF(AP8=0,0,(AP8*((LOG(AP8))/LOG(2)))) -> 0 | AS8: =N8 -> 112 | AT8: =COUNTIF(L165:L195,AS8) -> 0 | AU8: =AT8/(AV4-AT11) -> 0 | AV8: =IF(AU8=0,0,(AU8*((LOG(AU8))/LOG(2)))) -> 0
A9: 12 | B9: 268 | C9: 24 | D9: 274 | E9: 24 | F9: 278 | K9: 0 | L9: 122 | N9: 121 | O9: =COUNTIF($L$7:$L$500,N9) -> 1 | P9: =O9/$Q$4 -> 0.005291005291 | Q9: =IF(P9=0,0,(P9*((LOG(P9))/LOG(2)))) -> -0.04001186468 | T9: =N9 -> 121 | U9: =COUNTIF(L7:L38,T9) -> 0 | V9: =U9/(W4-U11) -> 0 | W9: =IF(V9=0,0,(V9*((LOG(V9))/LOG(2)))) -> 0 | Y9: =N9 -> 121 | Z9: =COUNTIF(L39:L69,Y9) -> 0 | AA9: =Z9/(AB4-Z11) -> 0 | AB9: =IF(AA9=0,0,(AA9*((LOG(AA9))/LOG(2)))) -> 0 | AD9: =N9 -> 121 | AE9: =COUNTIF(L70:L101,AD9) -> 0 | AF9: =AE9/(AG4-AE11) -> 0 | AG9: =IF(AF9=0,0,(AF9*((LOG(AF9))/LOG(2)))) -> 0 | AI9: =N9 -> 121 | AJ9: =COUNTIF(L102:L132,AI9) -> 1 | AK9: =AJ9/(AL4-AJ11) -> 0.03225806452 | AL9: =IF(AK9=0,0,(AK9*((LOG(AK9))/LOG(2)))) -> -0.1598127842 | AN9: =N9 -> 121 | AO9: =COUNTIF(L133:L164,AN9) -> 0 | AP9: =AO9/(AQ4-AO11) -> 0 | AQ9: =IF(AP9=0,0,(AP9*((LOG(AP9))/LOG(2)))) -> 0 | AS9: =N9 -> 121 | AT9: =COUNTIF(L165:L195,AS9) -> 0 | AU9: =AT9/(AV4-AT11) -> 0 | AV9: =IF(AU9=0,0,(AU9*((LOG(AU9))/LOG(2)))) -> 0
A10: 12 | B10: 370 | C10: 13 | D10: 379 | E10: 24 | F10: 383 | K10: 0 | L10: 112 | N10: 122 | O10: =COUNTIF($L$7:$L$500,N10) -> 37 | P10: =O10/$Q$4 -> 0.1957671958 | Q10: =IF(P10=0,0,(P10*((LOG(P10))/LOG(2)))) -> -0.4605989162 | T10: =N10 -> 122 | U10: =COUNTIF(L7:L38,T10) -> 10 | V10: =U10/(W4-U11) -> 0.3125 | W10: =IF(V10=0,0,(V10*((LOG(V10))/LOG(2)))) -> -0.5243974703 | Y10: =N10 -> 122 | Z10: =COUNTIF(L39:L69,Y10) -> 8 | AA10: =Z10/(AB4-Z11) -> 0.2580645161 | AB10: =IF(AA10=0,0,(AA10*((LOG(AA10))/LOG(2)))) -> -0.5043087253 | AD10: =N10 -> 122 | AE10: =COUNTIF(L70:L101,AD10) -> 4 | AF10: =AE10/(AG4-AE11) -> 0.125 | AG10: =IF(AF10=0,0,(AF10*((LOG(AF10))/LOG(2)))) -> -0.375 | AI10: =N10 -> 122 | AJ10: =COUNTIF(L102:L132,AI10) -> 4 | AK10: =AJ10/(AL4-AJ11) -> 0.1290322581 | AL10: =IF(AK10=0,0,(AK10*((LOG(AK10))/LOG(2)))) -> -0.3811866207 | AN10: =N10 -> 122 | AO10: =COUNTIF(L133:L164,AN10) -> 8 | AP10: =AO10/(AQ4-AO11) -> 0.25 | AQ10: =IF(AP10=0,0,(AP10*((LOG(AP10))/LOG(2)))) -> -0.5 | AS10: =N10 -> 122 | AT10: =COUNTIF(L165:L195,AS10) -> 3 | AU10: =AT10/(AV4-AT11) -> 0.09677419355 | AV10: =IF(AU10=0,0,(AU10*((LOG(AU10))/LOG(2)))) -> -0.3260548848
A11: 12 | B11: 474 | C11: 24 | D11: 488 | E11: 24 | F11: 494 | K11: 0 | L11: 122 | N11: 211 | O11: =COUNTIF($L$7:$L$500,N11) -> 0 | P11: =O11/$Q$4 -> 0 | Q11: =IF(P11=0,0,(P11*((LOG(P11))/LOG(2)))) -> 0 | T11: =N11 -> 211 | U11: =COUNTIF(L7:L38,T11) -> 0 | Y11: =N11 -> 211 | Z11: =COUNTIF(L39:L69,Y11) -> 0 | AD11: =N11 -> 211 | AE11: =COUNTIF(L70:L101,AD11) -> 0 | AI11: =N11 -> 211 | AJ11: =COUNTIF(L102:L132,AI11) -> 0 | AN11: =N11 -> 211 | AO11: =COUNTIF(L133:L164,AN11) -> 0 | AS11: =N11 -> 211 | AT11: =COUNTIF(L165:L195,AS11) -> 0
A12: 12 | B12: 593 | C12: 24 | D12: 596 | E12: 24 | F12: 602 | K12: 0 | L12: 122 | N12: 212 | O12: =COUNTIF($L$7:$L$500,N12) -> 44 | P12: =O12/$Q$4 -> 0.2328042328 | Q12: =IF(P12=0,0,(P12*((LOG(P12))/LOG(2)))) -> -0.4895432563 | T12: =N12 -> 212 | U12: =COUNTIF(L7:L38,T12) -> 6 | V12: =U12/(W4-U11) -> 0.1875 | W12: =IF(V12=0,0,(V12*((LOG(V12))/LOG(2)))) -> -0.4528195311 | Y12: =N12 -> 212 | Z12: =COUNTIF(L39:L69,Y12) -> 9 | AA12: =Z12/(AB4-Z11) -> 0.2903225806 | AB12: =IF(AA12=0,0,(AA12*((LOG(AA12))/LOG(2)))) -> -0.518014251 | AD12: =N12 -> 212 | AE12: =COUNTIF(L70:L101,AD12) -> 7 | AF12: =AE12/(AG4-AE11) -> 0.21875 | AG12: =IF(AF12=0,0,(AF12*((LOG(AF12))/LOG(2)))) -> -0.4796411108 | AI12: =N12 -> 212 | AJ12: =COUNTIF(L102:L132,AI12) -> 8 | AK12: =AJ12/(AL4-AJ11) -> 0.2580645161 | AL12: =IF(AK12=0,0,(AK12*((LOG(AK12))/LOG(2)))) -> -0.5043087253 | AN12: =N12 -> 212 | AO12: =COUNTIF(L133:L164,AN12) -> 5 | AP12: =AO12/(AQ4-AO11) -> 0.15625 | AQ12: =IF(AP12=0,0,(AP12*((LOG(AP12))/LOG(2)))) -> -0.4184487352 | AS12: =N12 -> 212 | AT12: =COUNTIF(L165:L195,AS12) -> 9 | AU12: =AT12/(AV4-AT11) -> 0.2903225806 | AV12: =IF(AU12=0,0,(AU12*((LOG(AU12))/LOG(2)))) -> -0.518014251
A13: 12 | B13: 696 | C13: 13 | D13: 702 | E13: 13 | F13: 714 | K13: 0 | L13: 111 | N13: 221 | O13: =COUNTIF($L$7:$L$500,N13) -> 21 | P13: =O13/$Q$4 -> 0.1111111111 | Q13: =IF(P13=0,0,(P13*((LOG(P13))/LOG(2)))) -> -0.352213889 | T13: =N13 -> 221 | U13: =COUNTIF(L7:L38,T13) -> 4 | V13: =U13/(W4-U11) -> 0.125 | W13: =IF(V13=0,0,(V13*((LOG(V13))/LOG(2)))) -> -0.375 | Y13: =N13 -> 221 | Z13: =COUNTIF(L39:L69,Y13) -> 2 | AA13: =Z13/(AB4-Z11) -> 0.06451612903 | AB13: =IF(AA13=0,0,(AA13*((LOG(AA13))/LOG(2)))) -> -0.2551094394 | AD13: =N13 -> 221 | AE13: =COUNTIF(L70:L101,AD13) -> 3 | AF13: =AE13/(AG4-AE11) -> 0.09375 | AG13: =IF(AF13=0,0,(AF13*((LOG(AF13))/LOG(2)))) -> -0.3201597656 | AI13: =N13 -> 221 | AJ13: =COUNTIF(L102:L132,AI13) -> 5 | AK13: =AJ13/(AL4-AJ11) -> 0.1612903226 | AL13: =IF(AK13=0,0,(AK13*((LOG(AK13))/LOG(2)))) -> -0.4245593896 | AN13: =N13 -> 221 | AO13: =COUNTIF(L133:L164,AN13) -> 1 | AP13: =AO13/(AQ4-AO11) -> 0.03125 | AQ13: =IF(AP13=0,0,(AP13*((LOG(AP13))/LOG(2)))) -> -0.15625 | AS13: =N13 -> 221 | AT13: =COUNTIF(L165:L195,AS13) -> 6 | AU13: =AT13/(AV4-AT11) -> 0.1935483871 | AV13: =IF(AU13=0,0,(AU13*((LOG(AU13))/LOG(2)))) -> -0.4585613825
